{"text_format":"1","workbook":"xlsx","n_sheets":5,"sheets":["DATOS OBLIGATORIOS","CONSIDERACIONES","ANEXO 1","ANEXO 3","ANEXO 2"],"not_rendered":{"charts":0,"images":0,"macros":1,"external_links":0,"defined_names":240,"comments":0,"pivot_tables":0},"unopened":[],"bounds":{"document_bytes":16777216,"sheet_cells":100000,"rows_first":2000,"rows_last":500,"rows_between":2000,"halvings":0,"cell_chars":16384,"cell_head_chars":4096},"cells_cut":0,"cells_raw":0,"read":"whole","date_system":"1900"}

{"sheet":"DATOS OBLIGATORIOS","index":0,"n_rows":4,"n_cols":19,"rows_kept":4,"cut":false,"hidden":false,"merged":[[0,3,0,10]]}
[null,null,null,"DATOS OBLIGATORIOS PARA LA APERTURA DE CUENTAS CTS"]
[]
["TIPO DOI","N° DOI","PRIMER APELLIDO","SEGUNDO APELLIDO","NOMBRES","ESTADO CIVIL","SEXO","FECHA NAC.","OCUPACIÓN","CARGO","DOMICILIO","DEPARTAMENTO","PROVINCIA","DISTRITO","TELÉFONO","CORREO","MONEDA","MONTO","MONTO DE 4 SUELDOS"]
[null,null,null,null,null,null,null,null,null,null,null,null,"",""]

{"sheet":"CONSIDERACIONES","index":1,"n_rows":23,"n_cols":4,"rows_kept":23,"cut":false,"hidden":false,"merged":[]}
[]
[]
[null,"FORMATO DE LOS DATOS EN LOS CAMPOS:"]
[]
[]
[null,"CAMPO","FORMATO","DÍGITOS/CARACTERES"]
[null,"FECHA NAC.","DD/MM/YYYY","-"]
[null,"UBIGEO","TEXTO (UBIGEO RENIEC - DNI)",6]
[null,"TELÉFONO","CARÁCTER","-"]
[]
[null,"CONSIDERACIONES EN LAS COLUMNAS:"]
[]
[null,"LA COLUMNA \"UBIGEO\" "]
[null,"- EL CAMPO SE PINTA DE ROJO EN LOS SIGUIENTES CASOS:"]
[null,"- EL CÓDIGO UBIGEO NO TENGA 6 DÍGITOS"]
[null,"- EL CÓDIGO UBIGEO NO EXISTA EN LA LISTA DEL ANEXO 2"]
[null,"LA COLUMNA \"DOI\" "]
[null,"- EL CAMPO SE PINTA DE ROJO EN LOS SIGUIENTES CASOS:"]
[null,"- EXISTE ALGÚN DNI DUPLICADO"]
[null,"- EL DNI NO TENGA 8 DÍGITOS"]
[null,"- EL DNI TIENE CARACTERES QUE NO SON NÚMEROS"]
[null,"LA COLUMNA SEGUNDO APELLIDO"]
[null,"CUANDO SE INGRESA EL APELLIDO DE CASADA O VIUDA SE COLOCARÁ EN ESTA COLUMNA"]

{"sheet":"ANEXO 1","index":2,"n_rows":86,"n_cols":4,"rows_kept":86,"cut":false,"hidden":false,"merged":[[83,1,83,2],[79,1,79,2],[41,1,41,2],[2,1,2,2],[6,1,6,2],[13,1,13,2],[19,1,19,2],[28,1,28,2]]}
[null,"CONSIDERAR LAS TABLAS PARA LLENAR CON SUS RESPECTIVOS VALORES"]
[]
[null,"SEXO"]
[null,"MASCULINO","M",0]
[null,"FEMENINO","F",1]
[]
[null,"ESTADO CIVIL"]
[null,"SOLTERO",1,{"$f":"CONCATENATE(C8,\".\",B8)","v":"1.SOLTERO"}]
[null,"CASADO",2,{"$f":"CONCATENATE(C9,\".\",B9)","v":"2.CASADO"}]
[null,"VIUDO",3,"3.VIUDO"]
[null,"DIVORCIADO",4,"4.DIVORCIADO"]
[null,"CONVIVIENTE",6,"6.CONVIVIENTE"]
[]
[null,"CONDICION DE DOMICILIO"]
[null,"PROPIA",1,"1.PROPIA"]
[null,"ALQUILADA",2,"2.ALQUILADA"]
[null,"DE FAMILIA",3,"3.DE FAMILIA"]
[null,"ALQUILER VENTA",4,"4.ALQUILER VENTA"]
[]
[null,"GRADO DE INSTRUCCIÓN"]
[null,"NO INDICADO",1]
[null,"PRIMARIA",2,"2.PRIMARIA"]
[null,"SECUNDARIA",3,"3.SECUNDARIA"]
[null,"SUPERIOR",4,"4.SUPERIOR"]
[null,"MAGISTER",6,"6.MAGISTER"]
[null,"DOCTORADO",7,"7.DOCTORADO"]
[null,"PHD",8,"8.PHD"]
[]
[null,"OCUPACIONES"]
[null,"AMA DE CASA",14,{"$f":"B30","v":"AMA DE CASA"}]
[null,"DESEMPLEADO(A)",116,{"$f":"B31","v":"DESEMPLEADO(A)"}]
[null,"EMPLEADO",117,"EMPLEADO"]
[null,"EMPLEADOR(A)",118,"EMPLEADOR(A)"]
[null,"ESTUDIANTE",56,"ESTUDIANTE"]
[null,"JUBILADO(A)",119,"JUBILADO(A)"]
[null,"MIEMBRO DE LAS FUERZAS ARMADAS/MIEMBRO DEL CLERO",120,"MIEMBRO DE LAS FUERZAS ARMADAS/MIEMBRO DEL CLERO"]
[null,"OBRERO(A)",121,"OBRERO(A)"]
[null,"TRABAJADOR(A) DEL HOGAR",122,"TRABAJADOR(A) DEL HOGAR"]
[null,"TRABAJADOR(A) INDEPENDIENTE",123,"TRABAJADOR(A) INDEPENDIENTE"]
[null,"NO DECLARA",998,"NO DECLARA"]
[]
[null,"CARGO"]
[null,"ALCALDE",1,{"$f":"CONCATENATE(C43,\".\",B43)","v":"1.ALCALDE"}]
[null,"ANALISTA",2,"2.ANALISTA"]
[null,"APODERADO",3,"3.APODERADO"]
[null,"ASESOR / CONSULTOR",4,"4.ASESOR / CONSULTOR"]
[null,"ASISTENTE",5,"5.ASISTENTE"]
[null,"AUDITOR",6,"6.AUDITOR"]
[null,"AUXILIAR / AYUDANTE",7,"7.AUXILIAR / AYUDANTE"]
[null,"CONGRESISTA",8,"8.CONGRESISTA"]
[null,"CONTRALOR GENERAL",9,"9.CONTRALOR GENERAL"]
[null,"DECANO",10,"10.DECANO"]
[null,"DIPLOMATICO",11,"11.DIPLOMATICO"]
[null,"DIRECTIVO DE ASOCIACION DEPORTIVA",12,"12.DIRECTIVO DE ASOCIACION DEPORTIVA"]
[null,"DIRECTOR, SUBDIRECTOR, GERENTE, JEFE DEL SECTOR PRIVADO",13,"13.DIRECTOR, SUBDIRECTOR, GERENTE, JEFE DEL SECTOR PRIVADO"]
[null,"DOCENTE",14,"14.DOCENTE"]
[null,"INSPECTOR",15,"15.INSPECTOR"]
[null,"INTENDENTE, DIRECTOR, GERENTE, JEFE DE LA ADMINISTRACION PUBLICA",16,"16.INTENDENTE, DIRECTOR, GERENTE, JEFE DE LA ADMINISTRACION PUBLICA"]
[null,"INTERVENTOR GENERAL DE ECONOMIA DE LA ADMINISTRACION PUBLICA",17,"17.INTERVENTOR GENERAL DE ECONOMIA DE LA ADMINISTRACION PUBLICA"]
[null,"JUEZ",18,"18.JUEZ"]
[null,"NOTARIO PÚBLICO",19,"19.NOTARIO PÚBLICO"]
[null,"PRACTICANTE",20,"20.PRACTICANTE"]
[null,"PREFECTO",21,"21.PREFECTO"]
[null,"PRESIDENTE DE GOBIERNO REGIONAL",22,"22.PRESIDENTE DE GOBIERNO REGIONAL"]
[null,"PRESIDENTE DE LA CORTE SUPREMA",23,"23.PRESIDENTE DE LA CORTE SUPREMA"]
[null,"PRESIDENTE DE LA REPUBLICA",24,"24.PRESIDENTE DE LA REPUBLICA"]
[null,"PRESIDENTE, TRIBUNAL DE JUSTICIA",25,"25.PRESIDENTE, TRIBUNAL DE JUSTICIA"]
[null,"MINISTRO / VICEMINISTRO",26,"26.MINISTRO / VICEMINISTRO"]
[null,"PROCURADOR",27,"27.PROCURADOR"]
[null,"PROCURADOR GENERAL",28,"28.PROCURADOR GENERAL"]
[null,"RECTOR",29,"29.RECTOR"]
[null,"REGIDORES DE MUNICIPALIDADES",30,"30.REGIDORES DE MUNICIPALIDADES"]
[null,"SUB-PREFECTO",31,"31.SUB-PREFECTO"]
[null,"SUPERINTENDENTE DE LA ADMINISTRACIÓN PÚBLICA",32,"32.SUPERINTENDENTE DE LA ADMINISTRACIÓN PÚBLICA"]
[null,"VICE-PRESIDENTE DE LA REPUBLICA",33,"33.VICE-PRESIDENTE DE LA REPUBLICA"]
[null,"VOCAL DE LA CORTE SUPERIOR O SUPREMA",34,"34.VOCAL DE LA CORTE SUPERIOR O SUPREMA"]
[null,"OTROS",99,"99.OTROS"]
[null,"NO DECLARA",98,"98.NO DECLARA"]
[]
[null,"MONEDA"]
[null,"SOLES",1,{"$f":"CONCATENATE(C81,\".\",B81)","v":"1.SOLES"}]
[null,"DOLARES",2,{"$f":"CONCATENATE(C82,\".\",B82)","v":"2.DOLARES"}]
[]
[null,"TIPO DOI"]
[null,"DNI",1,{"$f":"CONCATENATE(C85,\".\",B85)","v":"1.DNI"}]
[null,"CARNET DE EXTRANJERIA",4,{"$f":"CONCATENATE(C86,\".\",B86)","v":"4.CARNET DE EXTRANJERIA"}]

{"sheet":"ANEXO 3","index":3,"n_rows":1840,"n_cols":10,"rows_kept":1840,"cut":false,"hidden":false,"merged":[]}
[]
[null,"DEPARTAMENTO",null,"DEPARTAMENTO","PROVINCIA",null,"DEPARTAMENTO","PROVINCIA","DISTRITO","UBIGEO"]
[null,"01.AMAZONAS",null,"AMAZONAS","01.CHACHAPOYAS",null,"AMAZONAS","CHACHAPOYAS","01.CHACHAPOYAS","010101"]
[null,"02.ANCASH",null,"AMAZONAS","02.BAGUA",null,"AMAZONAS","CHACHAPOYAS","02.ASUNCION","010102"]
[null,"03.APURIMAC",null,"AMAZONAS","03.BONGARA",null,"AMAZONAS","CHACHAPOYAS","03.BALSAS","010103"]
[null,"04.AREQUIPA",null,"AMAZONAS","04.LUYA",null,"AMAZONAS","CHACHAPOYAS","04.CHETO","010104"]
[null,"05.AYACUCHO",null,"AMAZONAS","05.RODRIGUEZ DE MENDOZA",null,"AMAZONAS","CHACHAPOYAS","05.CHILIQUIN","010105"]
[null,"06.CAJAMARCA",null,"AMAZONAS","06.CONDORCANQUI",null,"AMAZONAS","CHACHAPOYAS","06.CHUQUIBAMBA","010106"]
[null,"07.CUSCO",null,"AMAZONAS","07.UTCUBAMBA",null,"AMAZONAS","CHACHAPOYAS","07.GRANADA","010107"]
[null,"08.HUANCAVELICA",null,"ANCASH","01.HUARAZ",null,"AMAZONAS","CHACHAPOYAS","08.HUANCAS","010108"]
[null,"09.HUANUCO",null,"ANCASH","02.AIJA",null,"AMAZONAS","CHACHAPOYAS","09.LA JALCA","010109"]
[null,"10.ICA",null,"ANCASH","03.BOLOGNESI",null,"AMAZONAS","CHACHAPOYAS","10.LEIMEBAMBA","010110"]
[null,"11.JUNIN",null,"ANCASH","04.CARHUAZ",null,"AMAZONAS","CHACHAPOYAS","11.LEVANTO","010111"]
[null,"12.LA LIBERTAD",null,"ANCASH","05.CASMA",null,"AMAZONAS","CHACHAPOYAS","12.MAGDALENA","010112"]
[null,"13.LAMBAYEQUE",null,"ANCASH","06.CORONGO",null,"AMAZONAS","CHACHAPOYAS","13.MARISCAL CASTILLA","010113"]
[null,"14.LIMA",null,"ANCASH","07.HUAYLAS",null,"AMAZONAS","CHACHAPOYAS","14.MOLINOPAMPA","010114"]
[null,"15.LORETO",null,"ANCASH","08.HUARI",null,"AMAZONAS","CHACHAPOYAS","15.MONTEVIDEO","010115"]
[null,"16.MADRE DE DIOS",null,"ANCASH","09.MARISCAL LUZURIAGA",null,"AMAZONAS","CHACHAPOYAS","16.OLLEROS","010116"]
[null,"17.MOQUEGUA",null,"ANCASH","10.PALLASCA",null,"AMAZONAS","CHACHAPOYAS","17.QUINJALCA","010117"]
[null,"18.PASCO",null,"ANCASH","11.POMABAMBA",null,"AMAZONAS","CHACHAPOYAS","18.SAN FRANCISCO DE DAGUAS","010118"]
[null,"19.PIURA",null,"ANCASH","12.RECUAY",null,"AMAZONAS","CHACHAPOYAS","19.SAN ISIDRO DE MAINO","010119"]
[null,"20.PUNO",null,"ANCASH","13.SANTA",null,"AMAZONAS","CHACHAPOYAS","20.SOLOCO","010120"]
[null,"21.SAN MARTIN",null,"ANCASH","14.SIHUAS",null,"AMAZONAS","CHACHAPOYAS","21.SONCHE","010121"]
[null,"22.TACNA",null,"ANCASH","15.YUNGAY",null,"AMAZONAS","BAGUA","01.LA PECA","010201"]
[null,"23.TUMBES",null,"ANCASH","16.ANTONIO RAIMONDI",null,"AMAZONAS","BAGUA","02.ARAMANGO","010202"]
[null,"24.CALLAO",null,"ANCASH","17.CARLOS FERMIN FITZCARRALD",null,"AMAZONAS","BAGUA","03.COPALLIN","010203"]
[null,"25.UCAYALI",null,"ANCASH","18.ASUNCION",null,"AMAZONAS","BAGUA","04.EL PARCO","010204"]
[null,null,null,"ANCASH","19.HUARMEY",null,"AMAZONAS","BAGUA","05.BAGUA","010205"]
[null,null,null,"ANCASH","20.OCROS",null,"AMAZONAS","BAGUA","06.IMAZA","010206"]
[null,null,null,"APURIMAC","01.ABANCAY",null,"AMAZONAS","BONGARA","01.JUMBILLA","010301"]
[null,null,null,"APURIMAC","02.AYMARAES",null,"AMAZONAS","BONGARA","02.COROSHA","010302"]
[null,null,null,"APURIMAC","03.ANDAHUAYLAS",null,"AMAZONAS","BONGARA","03.CUISPES","010303"]
[null,null,null,"APURIMAC","04.ANTABAMBA",null,"AMAZONAS","BONGARA","04.CHISQUILLA","010304"]
[null,null,null,"APURIMAC","05.COTABAMBAS",null,"AMAZONAS","BONGARA","05.CHURUJA","010305"]
[null,null,null,"APURIMAC","06.GRAU",null,"AMAZONAS","BONGARA","06.FLORIDA","010306"]
[null,null,null,"APURIMAC","07.CHINCHEROS",null,"AMAZONAS","BONGARA","07.RECTA","010307"]
[null,null,null,"AREQUIPA","01.AREQUIPA PROVINCIA",null,"AMAZONAS","BONGARA","08.SAN CARLOS","010308"]
[null,null,null,"AREQUIPA","02.CAYLLOMA",null,"AMAZONAS","BONGARA","09.SHIPASBAMBA","010309"]
[null,null,null,"AREQUIPA","03.CAMANA",null,"AMAZONAS","BONGARA","10.VALERA","010310"]
[null,null,null,"AREQUIPA","04.CARAVELI",null,"AMAZONAS","BONGARA","11.YAMBRASBAMBA","010311"]
[null,null,null,"AREQUIPA","05.CASTILLA",null,"AMAZONAS","BONGARA","12.JAZAN","010312"]
[null,null,null,"AREQUIPA","06.CONDESUYOS",null,"AMAZONAS","LUYA","01.LAMUD","010401"]
[null,null,null,"AREQUIPA","07.ISLAY",null,"AMAZONAS","LUYA","02.CAMPORREDONDO","010402"]
[null,null,null,"AREQUIPA","08.LA UNION",null,"AMAZONAS","LUYA","03.COCABAMBA","010403"]
[null,null,null,"AYACUCHO","01.HUAMANGA",null,"AMAZONAS","LUYA","04.COLCAMAR","010404"]
[null,null,null,"AYACUCHO","02.CANGALLO",null,"AMAZONAS","LUYA","05.CONILA","010405"]
[null,null,null,"AYACUCHO","03.HUANTA",null,"AMAZONAS","LUYA","06.INGUILPATA","010406"]
[null,null,null,"AYACUCHO","04.LA MAR",null,"AMAZONAS","LUYA","07.LONGUITA","010407"]
[null,null,null,"AYACUCHO","05.LUCANAS",null,"AMAZONAS","LUYA","08.LONYA CHICO","010408"]
[null,null,null,"AYACUCHO","06.PARINACOCHAS",null,"AMAZONAS","LUYA","09.LUYA","010409"]
[null,null,null,"AYACUCHO","07.VICTOR FAJARDO",null,"AMAZONAS","LUYA","10.LUYA VIEJO","010410"]
[null,null,null,"AYACUCHO","08.HUANCA SANCOS",null,"AMAZONAS","LUYA","11.MARIA","010411"]
[null,null,null,"AYACUCHO","09.VILCAS HUAMAN",null,"AMAZONAS","LUYA","12.OCALLI","010412"]
[null,null,null,"AYACUCHO","10.PAUCAR DEL SARA SARA",null,"AMAZONAS","LUYA","13.OCUMAL","010413"]
[null,null,null,"AYACUCHO","11.SUCRE",null,"AMAZONAS","LUYA","14.PISUQUIA","010414"]
[null,null,null,"CAJAMARCA","01.CAJAMARCA PROVINCIA",null,"AMAZONAS","LUYA","15.SAN CRISTOBAL","010415"]
[null,null,null,"CAJAMARCA","02.CAJABAMBA",null,"AMAZONAS","LUYA","16.SAN FRANCISCO DE YESO","010416"]
[null,null,null,"CAJAMARCA","03.CELENDIN",null,"AMAZONAS","LUYA","17.SAN JERONIMO","010417"]
[null,null,null,"CAJAMARCA","04.CONTUMAZA",null,"AMAZONAS","LUYA","18.SAN JUAN DE LOPECANCHA","010418"]
[null,null,null,"CAJAMARCA","05.CUTERVO",null,"AMAZONAS","LUYA","19.SANTA CATALINA","010419"]
[null,null,null,"CAJAMARCA","06.CHOTA",null,"AMAZONAS","LUYA","20.SANTO TOMAS","010420"]
[null,null,null,"CAJAMARCA","07.HUALGAYOC",null,"AMAZONAS","LUYA","21.TINGO","010421"]
[null,null,null,"CAJAMARCA","08.JAEN",null,"AMAZONAS","LUYA","22.TRITA","010422"]
[null,null,null,"CAJAMARCA","09.SANTA CRUZ",null,"AMAZONAS","LUYA","23.PROVIDENCIA","010423"]
[null,null,null,"CAJAMARCA","10.SAN MIGUEL",null,"AMAZONAS","RODRIGUEZ DE MENDOZA","01.SAN NICOLAS","010501"]
[null,null,null,"CAJAMARCA","11.SAN IGNACIO",null,"AMAZONAS","RODRIGUEZ DE MENDOZA","02.COCHAMAL","010502"]
[null,null,null,"CAJAMARCA","12.SAN MARCOS",null,"AMAZONAS","RODRIGUEZ DE MENDOZA","03.CHIRIMOTO","010503"]
[null,null,null,"CAJAMARCA","13.SAN PABLO",null,"AMAZONAS","RODRIGUEZ DE MENDOZA","04.HUAMBO","010504"]
[null,null,null,"CUSCO","01.CUSCO PROVINCIA",null,"AMAZONAS","RODRIGUEZ DE MENDOZA","05.LIMABAMBA","010505"]
[null,null,null,"CUSCO","02.ACOMAYO",null,"AMAZONAS","RODRIGUEZ DE MENDOZA","06.LONGAR","010506"]
[null,null,null,"CUSCO","03.ANTA",null,"AMAZONAS","RODRIGUEZ DE MENDOZA","07.MILPUCC","010507"]
[null,null,null,"CUSCO","04.CALCA",null,"AMAZONAS","RODRIGUEZ DE MENDOZA","08.MARISCAL BENAVIDES","010508"]
[null,null,null,"CUSCO","05.CANAS",null,"AMAZONAS","RODRIGUEZ DE MENDOZA","09.OMIA","010509"]
[null,null,null,"CUSCO","06.CANCHIS",null,"AMAZONAS","RODRIGUEZ DE MENDOZA","10.SANTA ROSA","010510"]
[null,null,null,"CUSCO","07.CHUMBIVILCAS",null,"AMAZONAS","RODRIGUEZ DE MENDOZA","11.TOTORA","010511"]
[null,null,null,"CUSCO","08.ESPINAR",null,"AMAZONAS","RODRIGUEZ DE MENDOZA","12.VISTA ALEGRE","010512"]
[null,null,null,"CUSCO","09.LA CONVENCION",null,"AMAZONAS","CONDORCANQUI","01.NIEVA","010601"]
[null,null,null,"CUSCO","10.PARURO",null,"AMAZONAS","CONDORCANQUI","02.RIO SANTIAGO","010602"]
[null,null,null,"CUSCO","11.PAUCARTAMBO",null,"AMAZONAS","CONDORCANQUI","03.EL CENEPA","010603"]
[null,null,null,"CUSCO","12.QUISPICANCHI",null,"AMAZONAS","UTCUBAMBA","01.BAGUA GRANDE","010701"]
[null,null,null,"CUSCO","13.URUBAMBA",null,"AMAZONAS","UTCUBAMBA","02.CAJARURO","010702"]
[null,null,null,"HUANCAVELICA","01.HUANCAVELICA PROVINCIA",null,"AMAZONAS","UTCUBAMBA","03.CUMBA","010703"]
[null,null,null,"HUANCAVELICA","02.ACOBAMBA",null,"AMAZONAS","UTCUBAMBA","04.EL MILAGRO","010704"]
[null,null,null,"HUANCAVELICA","03.ANGARAES",null,"AMAZONAS","UTCUBAMBA","05.JAMALCA","010705"]
[null,null,null,"HUANCAVELICA","04.CASTROVIRREYNA",null,"AMAZONAS","UTCUBAMBA","06.LONYA GRANDE","010706"]
[null,null,null,"HUANCAVELICA","05.TAYACAJA",null,"AMAZONAS","UTCUBAMBA","07.YAMON","010707"]
[null,null,null,"HUANCAVELICA","06.HUAYTARA",null,"ANCASH","HUARAZ","01.HUARAZ","020101"]
[null,null,null,"HUANCAVELICA","07.CHURCAMPA",null,"ANCASH","HUARAZ","02.INDEPENDENCIA","020102"]
[null,null,null,"HUANUCO","01.HUANUCO PROVINCIA",null,"ANCASH","HUARAZ","03.COCHABAMBA","020103"]
[null,null,null,"HUANUCO","02.AMBO",null,"ANCASH","HUARAZ","04.COLCABAMBA","020104"]
[null,null,null,"HUANUCO","03.DOS DE MAYO",null,"ANCASH","HUARAZ","05.HUANCHAY","020105"]
[null,null,null,"HUANUCO","04.HUAMALIES",null,"ANCASH","HUARAZ","06.JANGAS","020106"]
[null,null,null,"HUANUCO","05.MARAÑON",null,"ANCASH","HUARAZ","07.LA LIBERTAD","020107"]
[null,null,null,"HUANUCO","06.LEONCIO PRADO",null,"ANCASH","HUARAZ","08.OLLEROS","020108"]
[null,null,null,"HUANUCO","07.PACHITEA",null,"ANCASH","HUARAZ","09.PAMPAS GRANDE","020109"]
[null,null,null,"HUANUCO","08.PUERTO INCA",null,"ANCASH","HUARAZ","10.PARIACOTO","020110"]
[null,null,null,"HUANUCO","09.HUACAYBAMBA",null,"ANCASH","HUARAZ","11.PIRA","020111"]
[null,null,null,"HUANUCO","10.LAURICOCHA",null,"ANCASH","HUARAZ","12.TARICA","020112"]
[null,null,null,"HUANUCO","11.YAROWILCA",null,"ANCASH","AIJA","01.AIJA","020201"]
[null,null,null,"ICA","01.ICA PROVINCIA",null,"ANCASH","AIJA","03.CORIS","020203"]
[null,null,null,"ICA","02.CHINCHA",null,"ANCASH","AIJA","05.HUACLLAN","020205"]
[null,null,null,"ICA","03.NAZCA",null,"ANCASH","AIJA","06.LA MERCED","020206"]
[null,null,null,"ICA","04.PISCO",null,"ANCASH","AIJA","08.SUCCHA","020208"]
[null,null,null,"ICA","05.PALPA",null,"ANCASH","BOLOGNESI","01.CHIQUIAN","020301"]
[null,null,null,"JUNIN","01.HUANCAYO",null,"ANCASH","BOLOGNESI","02.ABELARDO PARDO LEZAMETA","020302"]
[null,null,null,"JUNIN","02.CONCEPCION",null,"ANCASH","BOLOGNESI","04.AQUIA","020304"]
[null,null,null,"JUNIN","03.JAUJA",null,"ANCASH","BOLOGNESI","05.CAJACAY","020305"]
[null,null,null,"JUNIN","04.JUNIN",null,"ANCASH","BOLOGNESI","10.HUAYLLACAYAN","020310"]
[null,null,null,"JUNIN","05.TARMA",null,"ANCASH","BOLOGNESI","11.HUASTA","020311"]
[null,null,null,"JUNIN","06.YAULI",null,"ANCASH","BOLOGNESI","13.MANGAS","020313"]
[null,null,null,"JUNIN","07.SATIPO",null,"ANCASH","BOLOGNESI","15.PACLLON","020315"]
[null,null,null,"JUNIN","08.CHANCHAMAYO",null,"ANCASH","BOLOGNESI","17.SAN MIGUEL DE CORPANQUI","020317"]
[null,null,null,"JUNIN","09.CHUPACA",null,"ANCASH","BOLOGNESI","20.TICLLOS","020320"]
[null,null,null,"LA LIBERTAD","01.TRUJILLO",null,"ANCASH","BOLOGNESI","21.ANTONIO RAIMONDI","020321"]
[null,null,null,"LA LIBERTAD","02.BOLIVAR",null,"ANCASH","BOLOGNESI","22.CANIS","020322"]
[null,null,null,"LA LIBERTAD","03.SANCHEZ CARRION",null,"ANCASH","BOLOGNESI","23.COLQUIOC","020323"]
[null,null,null,"LA LIBERTAD","04.OTUZCO",null,"ANCASH","BOLOGNESI","24.LA PRIMAVERA","020324"]
[null,null,null,"LA LIBERTAD","05.PACASMAYO",null,"ANCASH","BOLOGNESI","25.HUALLANCA","020325"]
[null,null,null,"LA LIBERTAD","06.PATAZ",null,"ANCASH","CARHUAZ","01.CARHUAZ","020401"]
[null,null,null,"LA LIBERTAD","07.SANTIAGO DE CHUCO",null,"ANCASH","CARHUAZ","02.ACOPAMPA","020402"]
[null,null,null,"LA LIBERTAD","08.ASCOPE",null,"ANCASH","CARHUAZ","03.AMASHCA","020403"]
[null,null,null,"LA LIBERTAD","09.CHEPEN",null,"ANCASH","CARHUAZ","04.ANTA","020404"]
[null,null,null,"LA LIBERTAD","10.JULCAN",null,"ANCASH","CARHUAZ","05.ATAQUERO","020405"]
[null,null,null,"LA LIBERTAD","11.GRAN CHIMU",null,"ANCASH","CARHUAZ","06.MARCARA","020406"]
[null,null,null,"LA LIBERTAD","12.VIRU",null,"ANCASH","CARHUAZ","07.PARIAHUANCA","020407"]
[null,null,null,"LAMBAYEQUE","01.CHICLAYO",null,"ANCASH","CARHUAZ","08.SAN MIGUEL DE ACO","020408"]
[null,null,null,"LAMBAYEQUE","02.FERREÑAFE",null,"ANCASH","CARHUAZ","09.SHILLA","020409"]
[null,null,null,"LAMBAYEQUE","03.LAMBAYEQUE",null,"ANCASH","CARHUAZ","10.TINCO","020410"]
[null,null,null,"LIMA","01.LIMA PROVINCIA",null,"ANCASH","CARHUAZ","11.YUNGAR","020411"]
[null,null,null,"LIMA","02.CAJATAMBO",null,"ANCASH","CASMA","01.CASMA","020501"]
[null,null,null,"LIMA","03.CANTA",null,"ANCASH","CASMA","02.BUENA VISTA ALTA","020502"]
[null,null,null,"LIMA","04.CAÑETE",null,"ANCASH","CASMA","03.COMANDANTE NOEL","020503"]
[null,null,null,"LIMA","05.HUAURA",null,"ANCASH","CASMA","05.YAUTAN","020505"]
[null,null,null,"LIMA","06.HUAROCHIRI",null,"ANCASH","CORONGO","01.CORONGO","020601"]
[null,null,null,"LIMA","07.YAUYOS",null,"ANCASH","CORONGO","02.ACO","020602"]
[null,null,null,"LIMA","08.HUARAL",null,"ANCASH","CORONGO","03.BAMBAS","020603"]
[null,null,null,"LIMA","09.BARRANCA",null,"ANCASH","CORONGO","04.CUSCA","020604"]
[null,null,null,"LIMA","10.OYON",null,"ANCASH","CORONGO","05.LA PAMPA","020605"]
[null,null,null,"LORETO","01.MAYNAS",null,"ANCASH","CORONGO","06.YANAC","020606"]
[null,null,null,"LORETO","02.ALTO AMAZONAS",null,"ANCASH","CORONGO","07.YUPAN","020607"]
[null,null,null,"LORETO","03.LORETO PROVINCIA",null,"ANCASH","HUAYLAS","01.CARAZ","020701"]
[null,null,null,"LORETO","04.REQUENA",null,"ANCASH","HUAYLAS","02.HUALLANCA","020702"]
[null,null,null,"LORETO","05.UCAYALI PROVINCIA",null,"ANCASH","HUAYLAS","03.HUATA","020703"]
[null,null,null,"LORETO","06.MARISCAL RAMON CASTILLA",null,"ANCASH","HUAYLAS","04.HUAYLAS","020704"]
[null,null,null,"LORETO","07.DATEM DEL MARAÑON",null,"ANCASH","HUAYLAS","05.MATO","020705"]
[null,null,null,"MADRE DE DIOS","01.TAMBOPATA",null,"ANCASH","HUAYLAS","06.PAMPAROMAS","020706"]
[null,null,null,"MADRE DE DIOS","02.MANU",null,"ANCASH","HUAYLAS","07.PUEBLO LIBRE","020707"]
[null,null,null,"MADRE DE DIOS","03.TAHUAMANU",null,"ANCASH","HUAYLAS","08.SANTA CRUZ","020708"]
[null,null,null,"MOQUEGUA","01.MARISCAL NIETO",null,"ANCASH","HUAYLAS","09.YURACMARCA","020709"]
[null,null,null,"MOQUEGUA","02.GENERAL SANCHEZ CERRO",null,"ANCASH","HUAYLAS","10.SANTO TORIBIO","020710"]
[null,null,null,"MOQUEGUA","03.ILO",null,"ANCASH","HUARI","01.HUARI","020801"]
[null,null,null,"PASCO","01.PASCO PROVINCIA",null,"ANCASH","HUARI","02.CAJAY","020802"]
[null,null,null,"PASCO","02.DANIEL ALCIDES CARRION",null,"ANCASH","HUARI","03.CHAVIN DE HUANTAR","020803"]
[null,null,null,"PASCO","03.OXAPAMPA",null,"ANCASH","HUARI","04.HUACACHI","020804"]
[null,null,null,"PIURA","01.PIURA",null,"ANCASH","HUARI","05.HUACHIS","020805"]
[null,null,null,"PIURA","02.AYABACA",null,"ANCASH","HUARI","06.HUACCHIS","020806"]
[null,null,null,"PIURA","03.HUANCABAMBA",null,"ANCASH","HUARI","07.HUANTAR","020807"]
[null,null,null,"PIURA","04.MORROPON",null,"ANCASH","HUARI","08.MASIN","020808"]
[null,null,null,"PIURA","05.PAITA",null,"ANCASH","HUARI","09.PAUCAS","020809"]
[null,null,null,"PIURA","06.SULLANA",null,"ANCASH","HUARI","10.PONTO","020810"]
[null,null,null,"PIURA","07.TALARA",null,"ANCASH","HUARI","11.RAHUAPAMPA","020811"]
[null,null,null,"PIURA","08.SECHURA",null,"ANCASH","HUARI","12.RAPAYAN","020812"]
[null,null,null,"PUNO","01.PUNO PROVINCIA",null,"ANCASH","HUARI","13.SAN MARCOS","020813"]
[null,null,null,"PUNO","02.AZANGARO",null,"ANCASH","HUARI","14.SAN PEDRO DE CHANA","020814"]
[null,null,null,"PUNO","03.CARABAYA",null,"ANCASH","HUARI","15.UCO","020815"]
[null,null,null,"PUNO","04.CHUCUITO",null,"ANCASH","HUARI","16.ANRA","020816"]
[null,null,null,"PUNO","05.HUANCANE",null,"ANCASH","MARISCAL LUZURIAGA","01.PISCOBAMBA","020901"]
[null,null,null,"PUNO","06.LAMPA",null,"ANCASH","MARISCAL LUZURIAGA","02.CASCA","020902"]
[null,null,null,"PUNO","07.MELGAR",null,"ANCASH","MARISCAL LUZURIAGA","03.LUCMA","020903"]
[null,null,null,"PUNO","08.SANDIA",null,"ANCASH","MARISCAL LUZURIAGA","04.FIDEL OLIVAS ESCUDERO","020904"]
[null,null,null,"PUNO","09.SAN ROMAN",null,"ANCASH","MARISCAL LUZURIAGA","05.LLAMA","020905"]
[null,null,null,"PUNO","10.YUNGUYO",null,"ANCASH","MARISCAL LUZURIAGA","06.LLUMPA","020906"]
[null,null,null,"PUNO","11.SAN ANTONIO DE PUTINA",null,"ANCASH","MARISCAL LUZURIAGA","07.MUSGA","020907"]
[null,null,null,"PUNO","12.EL COLLAO",null,"ANCASH","MARISCAL LUZURIAGA","08.ELEAZAR GUZMAN BARRON","020908"]
[null,null,null,"PUNO","13.MOHO",null,"ANCASH","PALLASCA","01.CABANA","021001"]
[null,null,null,"SAN MARTIN","01.MOYOBAMBA",null,"ANCASH","PALLASCA","02.BOLOGNESI","021002"]
[null,null,null,"SAN MARTIN","02.HUALLAGA",null,"ANCASH","PALLASCA","03.CONCHUCOS","021003"]
[null,null,null,"SAN MARTIN","03.LAMAS",null,"ANCASH","PALLASCA","04.HUACASCHUQUE","021004"]
[null,null,null,"SAN MARTIN","04.MARISCAL CACERES",null,"ANCASH","PALLASCA","05.HUANDOVAL","021005"]
[null,null,null,"SAN MARTIN","05.RIOJA",null,"ANCASH","PALLASCA","06.LACABAMBA","021006"]
[null,null,null,"SAN MARTIN","06.SAN MARTIN PROVINCIA",null,"ANCASH","PALLASCA","07.LLAPO","021007"]
[null,null,null,"SAN MARTIN","07.BELLAVISTA",null,"ANCASH","PALLASCA","08.PALLASCA","021008"]
[null,null,null,"SAN MARTIN","08.TOCACHE",null,"ANCASH","PALLASCA","09.PAMPAS","021009"]
[null,null,null,"SAN MARTIN","09.PICOTA",null,"ANCASH","PALLASCA","10.SANTA ROSA","021010"]
[null,null,null,"SAN MARTIN","10.EL DORADO",null,"ANCASH","PALLASCA","11.TAUCA","021011"]
[null,null,null,"TACNA","01.TACNA PROVINCIA",null,"ANCASH","POMABAMBA","01.POMABAMBA","021101"]
[null,null,null,"TACNA","02.TARATA",null,"ANCASH","POMABAMBA","02.HUAYLLAN","021102"]
[null,null,null,"TACNA","03.JORGE BASADRE",null,"ANCASH","POMABAMBA","03.PAROBAMBA","021103"]
[null,null,null,"TACNA","04.CANDARAVE",null,"ANCASH","POMABAMBA","04.QUINUABAMBA","021104"]
[null,null,null,"TUMBES","01.TUMBES PROVINCIA",null,"ANCASH","RECUAY","01.RECUAY","021201"]
[null,null,null,"TUMBES","02.CONTRALMIRANTE VILLAR",null,"ANCASH","RECUAY","02.COTAPARACO","021202"]
[null,null,null,"TUMBES","03.ZARUMILLA",null,"ANCASH","RECUAY","03.HUAYLLAPAMPA","021203"]
[null,null,null,"CALLAO","01.CALLAO PROVINCIA",null,"ANCASH","RECUAY","04.MARCA","021204"]
[null,null,null,"UCAYALI","01.CORONEL PORTILLO",null,"ANCASH","RECUAY","05.PAMPAS CHICO","021205"]
[null,null,null,"UCAYALI","02.PADRE ABAD",null,"ANCASH","RECUAY","06.PARARIN","021206"]
[null,null,null,"UCAYALI","03.ATALAYA",null,"ANCASH","RECUAY","07.TAPACOCHA","021207"]
[null,null,null,"UCAYALI","04.PURUS",null,"ANCASH","RECUAY","08.TICAPAMPA","021208"]
[null,null,null,null,null,null,"ANCASH","RECUAY","09.LLACLLIN","021209"]
[null,null,null,null,null,null,"ANCASH","RECUAY","10.CATAC","021210"]
[null,null,null,null,null,null,"ANCASH","SANTA","01.CHIMBOTE","021301"]
[null,null,null,null,null,null,"ANCASH","SANTA","02.CACERES DEL PERU","021302"]
[null,null,null,null,null,null,"ANCASH","SANTA","03.MACATE","021303"]
[null,null,null,null,null,null,"ANCASH","SANTA","04.MORO","021304"]
[null,null,null,null,null,null,"ANCASH","SANTA","05.NEPEÑA","021305"]
[null,null,null,null,null,null,"ANCASH","SANTA","06.SAMANCO","021306"]
[null,null,null,null,null,null,"ANCASH","SANTA","07.SANTA","021307"]
[null,null,null,null,null,null,"ANCASH","SANTA","08.COISHCO","021308"]
[null,null,null,null,null,null,"ANCASH","SANTA","09.NUEVO CHIMBOTE","021309"]
[null,null,null,null,null,null,"ANCASH","SIHUAS","01.SIHUAS","021401"]
[null,null,null,null,null,null,"ANCASH","SIHUAS","02.ALFONSO UGARTE","021402"]
[null,null,null,null,null,null,"ANCASH","SIHUAS","03.CHINGALPO","021403"]
[null,null,null,null,null,null,"ANCASH","SIHUAS","04.HUAYLLABAMBA","021404"]
[null,null,null,null,null,null,"ANCASH","SIHUAS","05.QUICHES","021405"]
[null,null,null,null,null,null,"ANCASH","SIHUAS","06.SICSIBAMBA","021406"]
[null,null,null,null,null,null,"ANCASH","SIHUAS","07.ACOBAMBA","021407"]
[null,null,null,null,null,null,"ANCASH","SIHUAS","08.CASHAPAMPA","021408"]
[null,null,null,null,null,null,"ANCASH","SIHUAS","09.RAGASH","021409"]
[null,null,null,null,null,null,"ANCASH","SIHUAS","10.SAN JUAN","021410"]
[null,null,null,null,null,null,"ANCASH","YUNGAY","01.YUNGAY","021501"]
[null,null,null,null,null,null,"ANCASH","YUNGAY","02.CASCAPARA","021502"]
[null,null,null,null,null,null,"ANCASH","YUNGAY","03.MANCOS","021503"]
[null,null,null,null,null,null,"ANCASH","YUNGAY","04.MATACOTO","021504"]
[null,null,null,null,null,null,"ANCASH","YUNGAY","05.QUILLO","021505"]
[null,null,null,null,null,null,"ANCASH","YUNGAY","06.RANRAHIRCA","021506"]
[null,null,null,null,null,null,"ANCASH","YUNGAY","07.SHUPLUY","021507"]
[null,null,null,null,null,null,"ANCASH","YUNGAY","08.YANAMA","021508"]
[null,null,null,null,null,null,"ANCASH","ANTONIO RAIMONDI","01.LLAMELLIN","021601"]
[null,null,null,null,null,null,"ANCASH","ANTONIO RAIMONDI","02.ACZO","021602"]
[null,null,null,null,null,null,"ANCASH","ANTONIO RAIMONDI","03.CHACCHO","021603"]
[null,null,null,null,null,null,"ANCASH","ANTONIO RAIMONDI","04.CHINGAS","021604"]
[null,null,null,null,null,null,"ANCASH","ANTONIO RAIMONDI","05.MIRGAS","021605"]
[null,null,null,null,null,null,"ANCASH","ANTONIO RAIMONDI","06.SAN JUAN DE RONTOY","021606"]
[null,null,null,null,null,null,"ANCASH","CARLOS FERMIN FITZCARRALD","01.SAN LUIS","021701"]
[null,null,null,null,null,null,"ANCASH","CARLOS FERMIN FITZCARRALD","02.YAUYA","021702"]
[null,null,null,null,null,null,"ANCASH","CARLOS FERMIN FITZCARRALD","03.SAN NICOLAS","021703"]
[null,null,null,null,null,null,"ANCASH","ASUNCION","01.CHACAS","021801"]
[null,null,null,null,null,null,"ANCASH","ASUNCION","02.ACOCHACA","021802"]
[null,null,null,null,null,null,"ANCASH","HUARMEY","01.HUARMEY","021901"]
[null,null,null,null,null,null,"ANCASH","HUARMEY","02.COCHAPETI","021902"]
[null,null,null,null,null,null,"ANCASH","HUARMEY","03.HUAYAN","021903"]
[null,null,null,null,null,null,"ANCASH","HUARMEY","04.MALVAS","021904"]
[null,null,null,null,null,null,"ANCASH","HUARMEY","05.CULEBRAS","021905"]
[null,null,null,null,null,null,"ANCASH","OCROS","01.ACAS","022001"]
[null,null,null,null,null,null,"ANCASH","OCROS","02.CAJAMARQUILLA","022002"]
[null,null,null,null,null,null,"ANCASH","OCROS","03.CARHUAPAMPA","022003"]
[null,null,null,null,null,null,"ANCASH","OCROS","04.COCHAS","022004"]
[null,null,null,null,null,null,"ANCASH","OCROS","05.CONGAS","022005"]
[null,null,null,null,null,null,"ANCASH","OCROS","06.LLIPA","022006"]
[null,null,null,null,null,null,"ANCASH","OCROS","07.OCROS","022007"]
[null,null,null,null,null,null,"ANCASH","OCROS","08.SAN CRISTOBAL DE RAJAN","022008"]
[null,null,null,null,null,null,"ANCASH","OCROS","09.SAN PEDRO","022009"]
[null,null,null,null,null,null,"ANCASH","OCROS","10.SANTIAGO DE CHILCAS","022010"]
[null,null,null,null,null,null,"APURIMAC","ABANCAY","01.ABANCAY","030101"]
[null,null,null,null,null,null,"APURIMAC","ABANCAY","02.CIRCA","030102"]
[null,null,null,null,null,null,"APURIMAC","ABANCAY","03.CURAHUASI","030103"]
[null,null,null,null,null,null,"APURIMAC","ABANCAY","04.CHACOCHE","030104"]
[null,null,null,null,null,null,"APURIMAC","ABANCAY","05.HUANIPACA","030105"]
[null,null,null,null,null,null,"APURIMAC","ABANCAY","06.LAMBRAMA","030106"]
[null,null,null,null,null,null,"APURIMAC","ABANCAY","07.PICHIRHUA","030107"]
[null,null,null,null,null,null,"APURIMAC","ABANCAY","08.SAN PEDRO DE CACHORA","030108"]
[null,null,null,null,null,null,"APURIMAC","ABANCAY","09.TAMBURCO","030109"]
[null,null,null,null,null,null,"APURIMAC","AYMARAES","01.CHALHUANCA","030201"]
[null,null,null,null,null,null,"APURIMAC","AYMARAES","02.CAPAYA","030202"]
[null,null,null,null,null,null,"APURIMAC","AYMARAES","03.CARAYBAMBA","030203"]
[null,null,null,null,null,null,"APURIMAC","AYMARAES","04.COLCABAMBA","030204"]
[null,null,null,null,null,null,"APURIMAC","AYMARAES","05.COTARUSE","030205"]
[null,null,null,null,null,null,"APURIMAC","AYMARAES","06.CHAPIMARCA","030206"]
[null,null,null,null,null,null,"APURIMAC","AYMARAES","07.HUAYLLO","030207"]
[null,null,null,null,null,null,"APURIMAC","AYMARAES","08.LUCRE","030208"]
[null,null,null,null,null,null,"APURIMAC","AYMARAES","09.POCOHUANCA","030209"]
[null,null,null,null,null,null,"APURIMAC","AYMARAES","10.SAÑAYCA","030210"]
[null,null,null,null,null,null,"APURIMAC","AYMARAES","11.SORAYA","030211"]
[null,null,null,null,null,null,"APURIMAC","AYMARAES","12.TAPAIRIHUA","030212"]
[null,null,null,null,null,null,"APURIMAC","AYMARAES","13.TINTAY","030213"]
[null,null,null,null,null,null,"APURIMAC","AYMARAES","14.TORAYA","030214"]
[null,null,null,null,null,null,"APURIMAC","AYMARAES","15.YANACA","030215"]
[null,null,null,null,null,null,"APURIMAC","AYMARAES","16.SAN JUAN DE CHACÑA","030216"]
[null,null,null,null,null,null,"APURIMAC","AYMARAES","17.JUSTO APU SAHUARAURA","030217"]
[null,null,null,null,null,null,"APURIMAC","ANDAHUAYLAS","01.ANDAHUAYLAS","030301"]
[null,null,null,null,null,null,"APURIMAC","ANDAHUAYLAS","02.ANDARAPA","030302"]
[null,null,null,null,null,null,"APURIMAC","ANDAHUAYLAS","03.CHIARA","030303"]
[null,null,null,null,null,null,"APURIMAC","ANDAHUAYLAS","04.HUANCARAMA","030304"]
[null,null,null,null,null,null,"APURIMAC","ANDAHUAYLAS","05.HUANCARAY","030305"]
[null,null,null,null,null,null,"APURIMAC","ANDAHUAYLAS","06.KISHUARA","030306"]
[null,null,null,null,null,null,"APURIMAC","ANDAHUAYLAS","07.PACOBAMBA","030307"]
[null,null,null,null,null,null,"APURIMAC","ANDAHUAYLAS","08.PAMPACHIRI","030308"]
[null,null,null,null,null,null,"APURIMAC","ANDAHUAYLAS","09.SAN ANTONIO DE CACHI","030309"]
[null,null,null,null,null,null,"APURIMAC","ANDAHUAYLAS","10.SAN JERONIMO","030310"]
[null,null,null,null,null,null,"APURIMAC","ANDAHUAYLAS","11.TALAVERA","030311"]
[null,null,null,null,null,null,"APURIMAC","ANDAHUAYLAS","12.TURPO","030312"]
[null,null,null,null,null,null,"APURIMAC","ANDAHUAYLAS","13.PACUCHA","030313"]
[null,null,null,null,null,null,"APURIMAC","ANDAHUAYLAS","14.POMACOCHA","030314"]
[null,null,null,null,null,null,"APURIMAC","ANDAHUAYLAS","15.SANTA MARIA DE CHICMO","030315"]
[null,null,null,null,null,null,"APURIMAC","ANDAHUAYLAS","16.TUMAY HUARACA","030316"]
[null,null,null,null,null,null,"APURIMAC","ANDAHUAYLAS","17.HUAYANA","030317"]
[null,null,null,null,null,null,"APURIMAC","ANDAHUAYLAS","18.SAN MIGUEL DE CHACCRAMPA","030318"]
[null,null,null,null,null,null,"APURIMAC","ANDAHUAYLAS","19.KAQUIABAMBA","030319"]
[null,null,null,null,null,null,"APURIMAC","ANTABAMBA","01.ANTABAMBA","030401"]
[null,null,null,null,null,null,"APURIMAC","ANTABAMBA","02.EL ORO","030402"]
[null,null,null,null,null,null,"APURIMAC","ANTABAMBA","03.HUAQUIRCA","030403"]
[null,null,null,null,null,null,"APURIMAC","ANTABAMBA","04.JUAN ESPINOZA MEDRANO","030404"]
[null,null,null,null,null,null,"APURIMAC","ANTABAMBA","05.OROPESA","030405"]
[null,null,null,null,null,null,"APURIMAC","ANTABAMBA","06.PACHACONAS","030406"]
[null,null,null,null,null,null,"APURIMAC","ANTABAMBA","07.SABAINO","030407"]
[null,null,null,null,null,null,"APURIMAC","COTABAMBAS","01.TAMBOBAMBA","030501"]
[null,null,null,null,null,null,"APURIMAC","COTABAMBAS","02.COYLLURQUI","030502"]
[null,null,null,null,null,null,"APURIMAC","COTABAMBAS","03.COTABAMBAS","030503"]
[null,null,null,null,null,null,"APURIMAC","COTABAMBAS","04.HAQUIRA","030504"]
[null,null,null,null,null,null,"APURIMAC","COTABAMBAS","05.MARA","030505"]
[null,null,null,null,null,null,"APURIMAC","COTABAMBAS","06.CHALLHUAHUACHO","030506"]
[null,null,null,null,null,null,"APURIMAC","GRAU","01.CHUQUIBAMBILLA","030601"]
[null,null,null,null,null,null,"APURIMAC","GRAU","02.CURPAHUASI","030602"]
[null,null,null,null,null,null,"APURIMAC","GRAU","03.HUAILLATI","030603"]
[null,null,null,null,null,null,"APURIMAC","GRAU","04.MAMARA","030604"]
[null,null,null,null,null,null,"APURIMAC","GRAU","05.MARISCAL GAMARRA","030605"]
[null,null,null,null,null,null,"APURIMAC","GRAU","06.MICAELA BASTIDAS","030606"]
[null,null,null,null,null,null,"APURIMAC","GRAU","07.PROGRESO","030607"]
[null,null,null,null,null,null,"APURIMAC","GRAU","08.PATAYPAMPA","030608"]
[null,null,null,null,null,null,"APURIMAC","GRAU","09.SAN ANTONIO","030609"]
[null,null,null,null,null,null,"APURIMAC","GRAU","10.TURPAY","030610"]
[null,null,null,null,null,null,"APURIMAC","GRAU","11.VILCABAMBA","030611"]
[null,null,null,null,null,null,"APURIMAC","GRAU","12.VIRUNDO","030612"]
[null,null,null,null,null,null,"APURIMAC","GRAU","13.SANTA ROSA","030613"]
[null,null,null,null,null,null,"APURIMAC","GRAU","14.CURASCO","030614"]
[null,null,null,null,null,null,"APURIMAC","CHINCHEROS","01.CHINCHEROS","030701"]
[null,null,null,null,null,null,"APURIMAC","CHINCHEROS","02.ONGOY","030702"]
[null,null,null,null,null,null,"APURIMAC","CHINCHEROS","03.OCOBAMBA","030703"]
[null,null,null,null,null,null,"APURIMAC","CHINCHEROS","04.COCHARCAS","030704"]
[null,null,null,null,null,null,"APURIMAC","CHINCHEROS","05.ANCO HUALLO","030705"]
[null,null,null,null,null,null,"APURIMAC","CHINCHEROS","06.HUACCANA","030706"]
[null,null,null,null,null,null,"APURIMAC","CHINCHEROS","07.URANMARCA","030707"]
[null,null,null,null,null,null,"APURIMAC","CHINCHEROS","08.RANRACANCHA","030708"]
[null,null,null,null,null,null,"AREQUIPA","AREQUIPA","01.AREQUIPA","040101"]
[null,null,null,null,null,null,"AREQUIPA","AREQUIPA","02.CAYMA","040102"]
[null,null,null,null,null,null,"AREQUIPA","AREQUIPA","03.CERRO COLORADO","040103"]
[null,null,null,null,null,null,"AREQUIPA","AREQUIPA","04.CHARACATO","040104"]
[null,null,null,null,null,null,"AREQUIPA","AREQUIPA","05.CHIGUATA","040105"]
[null,null,null,null,null,null,"AREQUIPA","AREQUIPA","06.LA JOYA","040106"]
[null,null,null,null,null,null,"AREQUIPA","AREQUIPA","07.MIRAFLORES","040107"]
[null,null,null,null,null,null,"AREQUIPA","AREQUIPA","08.MOLLEBAYA","040108"]
[null,null,null,null,null,null,"AREQUIPA","AREQUIPA","09.PAUCARPATA","040109"]
[null,null,null,null,null,null,"AREQUIPA","AREQUIPA","10.POCSI","040110"]
[null,null,null,null,null,null,"AREQUIPA","AREQUIPA","11.POLOBAYA","040111"]
[null,null,null,null,null,null,"AREQUIPA","AREQUIPA","12.QUEQUEÑA","040112"]
[null,null,null,null,null,null,"AREQUIPA","AREQUIPA","13.SABANDIA","040113"]
[null,null,null,null,null,null,"AREQUIPA","AREQUIPA","14.SACHACA","040114"]
[null,null,null,null,null,null,"AREQUIPA","AREQUIPA","15.SAN JUAN DE SIGUAS","040115"]
[null,null,null,null,null,null,"AREQUIPA","AREQUIPA","16.SAN JUAN DE TARUCANI","040116"]
[null,null,null,null,null,null,"AREQUIPA","AREQUIPA","17.SANTA ISABEL DE SIGUAS","040117"]
[null,null,null,null,null,null,"AREQUIPA","AREQUIPA","18.SANTA RITA DE SIHUAS","040118"]
[null,null,null,null,null,null,"AREQUIPA","AREQUIPA","19.SOCABAYA","040119"]
[null,null,null,null,null,null,"AREQUIPA","AREQUIPA","20.TIABAYA","040120"]
[null,null,null,null,null,null,"AREQUIPA","AREQUIPA","21.UCHUMAYO","040121"]
[null,null,null,null,null,null,"AREQUIPA","AREQUIPA","22.VITOR","040122"]
[null,null,null,null,null,null,"AREQUIPA","AREQUIPA","23.YANAHUARA","040123"]
[null,null,null,null,null,null,"AREQUIPA","AREQUIPA","24.YARABAMBA","040124"]
[null,null,null,null,null,null,"AREQUIPA","AREQUIPA","25.YURA","040125"]
[null,null,null,null,null,null,"AREQUIPA","AREQUIPA","26.MARIANO MELGAR","040126"]
[null,null,null,null,null,null,"AREQUIPA","AREQUIPA","27.JACOBO HUNTER","040127"]
[null,null,null,null,null,null,"AREQUIPA","AREQUIPA","28.ALTO SELVA ALEGRE","040128"]
[null,null,null,null,null,null,"AREQUIPA","AREQUIPA","29.JOSE LUIS BUSTAMANTE Y RIVERO","040129"]
[null,null,null,null,null,null,"AREQUIPA","CAYLLOMA","01.CHIVAY","040201"]
[null,null,null,null,null,null,"AREQUIPA","CAYLLOMA","02.ACHOMA","040202"]
[null,null,null,null,null,null,"AREQUIPA","CAYLLOMA","03.CABANACONDE","040203"]
[null,null,null,null,null,null,"AREQUIPA","CAYLLOMA","04.CAYLLOMA","040204"]
[null,null,null,null,null,null,"AREQUIPA","CAYLLOMA","05.CALLALLI","040205"]
[null,null,null,null,null,null,"AREQUIPA","CAYLLOMA","06.COPORAQUE","040206"]
[null,null,null,null,null,null,"AREQUIPA","CAYLLOMA","07.HUAMBO","040207"]
[null,null,null,null,null,null,"AREQUIPA","CAYLLOMA","08.HUANCA","040208"]
[null,null,null,null,null,null,"AREQUIPA","CAYLLOMA","09.ICHUPAMPA","040209"]
[null,null,null,null,null,null,"AREQUIPA","CAYLLOMA","10.LARI","040210"]
[null,null,null,null,null,null,"AREQUIPA","CAYLLOMA","11.LLUTA","040211"]
[null,null,null,null,null,null,"AREQUIPA","CAYLLOMA","12.MACA","040212"]
[null,null,null,null,null,null,"AREQUIPA","CAYLLOMA","13.MADRIGAL","040213"]
[null,null,null,null,null,null,"AREQUIPA","CAYLLOMA","14.SAN ANTONIO DE CHUCA","040214"]
[null,null,null,null,null,null,"AREQUIPA","CAYLLOMA","15.SIBAYO","040215"]
[null,null,null,null,null,null,"AREQUIPA","CAYLLOMA","16.TAPAY","040216"]
[null,null,null,null,null,null,"AREQUIPA","CAYLLOMA","17.TISCO","040217"]
[null,null,null,null,null,null,"AREQUIPA","CAYLLOMA","18.TUTI","040218"]
[null,null,null,null,null,null,"AREQUIPA","CAYLLOMA","19.YANQUE","040219"]
[null,null,null,null,null,null,"AREQUIPA","CAYLLOMA","20.MAJES","040220"]
[null,null,null,null,null,null,"AREQUIPA","CAMANA","01.CAMANA","040301"]
[null,null,null,null,null,null,"AREQUIPA","CAMANA","02.JOSE MARIA QUIMPER","040302"]
[null,null,null,null,null,null,"AREQUIPA","CAMANA","03.MARIANO NICOLAS VALCARCEL","040303"]
[null,null,null,null,null,null,"AREQUIPA","CAMANA","04.MARISCAL CACERES","040304"]
[null,null,null,null,null,null,"AREQUIPA","CAMANA","05.NICOLAS DE PIEROLA","040305"]
[null,null,null,null,null,null,"AREQUIPA","CAMANA","06.OCOÑA","040306"]
[null,null,null,null,null,null,"AREQUIPA","CAMANA","07.QUILCA","040307"]
[null,null,null,null,null,null,"AREQUIPA","CAMANA","08.SAMUEL PASTOR","040308"]
[null,null,null,null,null,null,"AREQUIPA","CARAVELI","01.CARAVELI","040401"]
[null,null,null,null,null,null,"AREQUIPA","CARAVELI","02.ACARI","040402"]
[null,null,null,null,null,null,"AREQUIPA","CARAVELI","03.ATICO","040403"]
[null,null,null,null,null,null,"AREQUIPA","CARAVELI","04.ATIQUIPA","040404"]
[null,null,null,null,null,null,"AREQUIPA","CARAVELI","05.BELLA UNION","040405"]
[null,null,null,null,null,null,"AREQUIPA","CARAVELI","06.CAHUACHO","040406"]
[null,null,null,null,null,null,"AREQUIPA","CARAVELI","07.CHALA","040407"]
[null,null,null,null,null,null,"AREQUIPA","CARAVELI","08.CHAPARRA","040408"]
[null,null,null,null,null,null,"AREQUIPA","CARAVELI","09.HUANUHUANU","040409"]
[null,null,null,null,null,null,"AREQUIPA","CARAVELI","10.JAQUI","040410"]
[null,null,null,null,null,null,"AREQUIPA","CARAVELI","11.LOMAS","040411"]
[null,null,null,null,null,null,"AREQUIPA","CARAVELI","12.QUICACHA","040412"]
[null,null,null,null,null,null,"AREQUIPA","CARAVELI","13.YAUCA","040413"]
[null,null,null,null,null,null,"AREQUIPA","CASTILLA","01.APLAO","040501"]
[null,null,null,null,null,null,"AREQUIPA","CASTILLA","02.ANDAGUA","040502"]
[null,null,null,null,null,null,"AREQUIPA","CASTILLA","03.AYO","040503"]
[null,null,null,null,null,null,"AREQUIPA","CASTILLA","04.CHACHAS","040504"]
[null,null,null,null,null,null,"AREQUIPA","CASTILLA","05.CHILCAYMARCA","040505"]
[null,null,null,null,null,null,"AREQUIPA","CASTILLA","06.CHOCO","040506"]
[null,null,null,null,null,null,"AREQUIPA","CASTILLA","07.HUANCARQUI","040507"]
[null,null,null,null,null,null,"AREQUIPA","CASTILLA","08.MACHAGUAY","040508"]
[null,null,null,null,null,null,"AREQUIPA","CASTILLA","09.ORCOPAMPA","040509"]
[null,null,null,null,null,null,"AREQUIPA","CASTILLA","10.PAMPACOLCA","040510"]
[null,null,null,null,null,null,"AREQUIPA","CASTILLA","11.TIPAN","040511"]
[null,null,null,null,null,null,"AREQUIPA","CASTILLA","12.URACA","040512"]
[null,null,null,null,null,null,"AREQUIPA","CASTILLA","13.UÑON","040513"]
[null,null,null,null,null,null,"AREQUIPA","CASTILLA","14.VIRACO","040514"]
[null,null,null,null,null,null,"AREQUIPA","CONDESUYOS","01.CHUQUIBAMBA","040601"]
[null,null,null,null,null,null,"AREQUIPA","CONDESUYOS","02.ANDARAY","040602"]
[null,null,null,null,null,null,"AREQUIPA","CONDESUYOS","03.CAYARANI","040603"]
[null,null,null,null,null,null,"AREQUIPA","CONDESUYOS","04.CHICHAS","040604"]
[null,null,null,null,null,null,"AREQUIPA","CONDESUYOS","05.IRAY","040605"]
[null,null,null,null,null,null,"AREQUIPA","CONDESUYOS","06.SALAMANCA","040606"]
[null,null,null,null,null,null,"AREQUIPA","CONDESUYOS","07.YANAQUIHUA","040607"]
[null,null,null,null,null,null,"AREQUIPA","CONDESUYOS","08.RIO GRANDE","040608"]
[null,null,null,null,null,null,"AREQUIPA","ISLAY","01.MOLLENDO","040701"]
[null,null,null,null,null,null,"AREQUIPA","ISLAY","02.COCACHACRA","040702"]
[null,null,null,null,null,null,"AREQUIPA","ISLAY","03.DEAN VALDIVIA","040703"]
[null,null,null,null,null,null,"AREQUIPA","ISLAY","04.ISLAY","040704"]
[null,null,null,null,null,null,"AREQUIPA","ISLAY","05.MEJIA","040705"]
[null,null,null,null,null,null,"AREQUIPA","ISLAY","06.PUNTA DE BOMBON","040706"]
[null,null,null,null,null,null,"AREQUIPA","LA UNION","01.COTAHUASI","040801"]
[null,null,null,null,null,null,"AREQUIPA","LA UNION","02.ALCA","040802"]
[null,null,null,null,null,null,"AREQUIPA","LA UNION","03.CHARCANA","040803"]
[null,null,null,null,null,null,"AREQUIPA","LA UNION","04.HUAYNACOTAS","040804"]
[null,null,null,null,null,null,"AREQUIPA","LA UNION","05.PAMPAMARCA","040805"]
[null,null,null,null,null,null,"AREQUIPA","LA UNION","06.PUYCA","040806"]
[null,null,null,null,null,null,"AREQUIPA","LA UNION","07.QUECHUALLA","040807"]
[null,null,null,null,null,null,"AREQUIPA","LA UNION","08.SAYLA","040808"]
[null,null,null,null,null,null,"AREQUIPA","LA UNION","09.TAURIA","040809"]
[null,null,null,null,null,null,"AREQUIPA","LA UNION","10.TOMEPAMPA","040810"]
[null,null,null,null,null,null,"AREQUIPA","LA UNION","11.TORO","040811"]
[null,null,null,null,null,null,"AYACUCHO","HUAMANGA","01.AYACUCHO","050101"]
[null,null,null,null,null,null,"AYACUCHO","HUAMANGA","02.ACOS VINCHOS","050102"]
[null,null,null,null,null,null,"AYACUCHO","HUAMANGA","03.CARMEN ALTO","050103"]
[null,null,null,null,null,null,"AYACUCHO","HUAMANGA","04.CHIARA","050104"]
[null,null,null,null,null,null,"AYACUCHO","HUAMANGA","05.QUINUA","050105"]
[null,null,null,null,null,null,"AYACUCHO","HUAMANGA","06.SAN JOSE DE TICLLAS","050106"]
[null,null,null,null,null,null,"AYACUCHO","HUAMANGA","07.SAN JUAN BAUTISTA","050107"]
[null,null,null,null,null,null,"AYACUCHO","HUAMANGA","08.SANTIAGO DE PISCHA","050108"]
[null,null,null,null,null,null,"AYACUCHO","HUAMANGA","09.VINCHOS","050109"]
[null,null,null,null,null,null,"AYACUCHO","HUAMANGA","10.TAMBILLO","050110"]
[null,null,null,null,null,null,"AYACUCHO","HUAMANGA","11.ACOCRO","050111"]
[null,null,null,null,null,null,"AYACUCHO","HUAMANGA","12.SOCOS","050112"]
[null,null,null,null,null,null,"AYACUCHO","HUAMANGA","13.OCROS","050113"]
[null,null,null,null,null,null,"AYACUCHO","HUAMANGA","14.PACAYCASA","050114"]
[null,null,null,null,null,null,"AYACUCHO","HUAMANGA","15.JESUS NAZARENO","050115"]
[null,null,null,null,null,null,"AYACUCHO","CANGALLO","01.CANGALLO","050201"]
[null,null,null,null,null,null,"AYACUCHO","CANGALLO","04.CHUSCHI","050204"]
[null,null,null,null,null,null,"AYACUCHO","CANGALLO","06.LOS MOROCHUCOS","050206"]
[null,null,null,null,null,null,"AYACUCHO","CANGALLO","07.PARAS","050207"]
[null,null,null,null,null,null,"AYACUCHO","CANGALLO","08.TOTOS","050208"]
[null,null,null,null,null,null,"AYACUCHO","CANGALLO","11.MARIA PARADO DE BELLIDO","050211"]
[null,null,null,null,null,null,"AYACUCHO","HUANTA","01.HUANTA","050301"]
[null,null,null,null,null,null,"AYACUCHO","HUANTA","02.AYAHUANCO","050302"]
[null,null,null,null,null,null,"AYACUCHO","HUANTA","03.HUAMANGUILLA","050303"]
[null,null,null,null,null,null,"AYACUCHO","HUANTA","04.IGUAIN","050304"]
[null,null,null,null,null,null,"AYACUCHO","HUANTA","05.LURICOCHA","050305"]
[null,null,null,null,null,null,"AYACUCHO","HUANTA","07.SANTILLANA","050307"]
[null,null,null,null,null,null,"AYACUCHO","HUANTA","08.SIVIA","050308"]
[null,null,null,null,null,null,"AYACUCHO","HUANTA","09.LLOCHEGUA","050309"]
[null,null,null,null,null,null,"AYACUCHO","LA MAR","01.SAN MIGUEL","050401"]
[null,null,null,null,null,null,"AYACUCHO","LA MAR","02.ANCO","050402"]
[null,null,null,null,null,null,"AYACUCHO","LA MAR","03.AYNA","050403"]
[null,null,null,null,null,null,"AYACUCHO","LA MAR","04.CHILCAS","050404"]
[null,null,null,null,null,null,"AYACUCHO","LA MAR","05.CHUNGUI","050405"]
[null,null,null,null,null,null,"AYACUCHO","LA MAR","06.TAMBO","050406"]
[null,null,null,null,null,null,"AYACUCHO","LA MAR","07.LUIS CARRANZA","050407"]
[null,null,null,null,null,null,"AYACUCHO","LA MAR","08.SANTA ROSA","050408"]
[null,null,null,null,null,null,"AYACUCHO","LA MAR","09.SAMUGARI","050409"]
[null,null,null,null,null,null,"AYACUCHO","LUCANAS","01.PUQUIO","050501"]
[null,null,null,null,null,null,"AYACUCHO","LUCANAS","02.AUCARA","050502"]
[null,null,null,null,null,null,"AYACUCHO","LUCANAS","03.CABANA","050503"]
[null,null,null,null,null,null,"AYACUCHO","LUCANAS","04.CARMEN SALCEDO","050504"]
[null,null,null,null,null,null,"AYACUCHO","LUCANAS","06.CHAVIÑA","050506"]
[null,null,null,null,null,null,"AYACUCHO","LUCANAS","08.CHIPAO","050508"]
[null,null,null,null,null,null,"AYACUCHO","LUCANAS","10.HUAC-HUAS","050510"]
[null,null,null,null,null,null,"AYACUCHO","LUCANAS","11.LARAMATE","050511"]
[null,null,null,null,null,null,"AYACUCHO","LUCANAS","12.LEONCIO PRADO","050512"]
[null,null,null,null,null,null,"AYACUCHO","LUCANAS","13.LUCANAS","050513"]
[null,null,null,null,null,null,"AYACUCHO","LUCANAS","14.LLAUTA","050514"]
[null,null,null,null,null,null,"AYACUCHO","LUCANAS","16.OCAÑA","050516"]
[null,null,null,null,null,null,"AYACUCHO","LUCANAS","17.OTOCA","050517"]
[null,null,null,null,null,null,"AYACUCHO","LUCANAS","20.SANCOS","050520"]
[null,null,null,null,null,null,"AYACUCHO","LUCANAS","21.SAN JUAN","050521"]
[null,null,null,null,null,null,"AYACUCHO","LUCANAS","22.SAN PEDRO","050522"]
[null,null,null,null,null,null,"AYACUCHO","LUCANAS","24.SANTA ANA DE HUAYCAHUACHO","050524"]
[null,null,null,null,null,null,"AYACUCHO","LUCANAS","25.SANTA LUCIA","050525"]
[null,null,null,null,null,null,"AYACUCHO","LUCANAS","29.SAISA","050529"]
[null,null,null,null,null,null,"AYACUCHO","LUCANAS","31.SAN PEDRO DE PALCO","050531"]
[null,null,null,null,null,null,"AYACUCHO","LUCANAS","32.SAN CRISTOBAL","050532"]
[null,null,null,null,null,null,"AYACUCHO","PARINACOCHAS","01.CORACORA","050601"]
[null,null,null,null,null,null,"AYACUCHO","PARINACOCHAS","04.CORONEL CASTAÑEDA","050604"]
[null,null,null,null,null,null,"AYACUCHO","PARINACOCHAS","05.CHUMPI","050605"]
[null,null,null,null,null,null,"AYACUCHO","PARINACOCHAS","08.PACAPAUSA","050608"]
[null,null,null,null,null,null,"AYACUCHO","PARINACOCHAS","11.PULLO","050611"]
[null,null,null,null,null,null,"AYACUCHO","PARINACOCHAS","12.PUYUSCA","050612"]
[null,null,null,null,null,null,"AYACUCHO","PARINACOCHAS","15.SAN FRANCISCO DE RAVACAYCO","050615"]
[null,null,null,null,null,null,"AYACUCHO","PARINACOCHAS","16.UPAHUACHO","050616"]
[null,null,null,null,null,null,"AYACUCHO","VICTOR FAJARDO","01.HUANCAPI","050701"]
[null,null,null,null,null,null,"AYACUCHO","VICTOR FAJARDO","02.ALCAMENCA","050702"]
[null,null,null,null,null,null,"AYACUCHO","VICTOR FAJARDO","03.APONGO","050703"]
[null,null,null,null,null,null,"AYACUCHO","VICTOR FAJARDO","04.CANARIA","050704"]
[null,null,null,null,null,null,"AYACUCHO","VICTOR FAJARDO","06.CAYARA","050706"]
[null,null,null,null,null,null,"AYACUCHO","VICTOR FAJARDO","07.COLCA","050707"]
[null,null,null,null,null,null,"AYACUCHO","VICTOR FAJARDO","08.HUALLA","050708"]
[null,null,null,null,null,null,"AYACUCHO","VICTOR FAJARDO","09.HUAMANQUIQUIA","050709"]
[null,null,null,null,null,null,"AYACUCHO","VICTOR FAJARDO","10.HUANCARAYLLA","050710"]
[null,null,null,null,null,null,"AYACUCHO","VICTOR FAJARDO","13.SARHUA","050713"]
[null,null,null,null,null,null,"AYACUCHO","VICTOR FAJARDO","14.VILCANCHOS","050714"]
[null,null,null,null,null,null,"AYACUCHO","VICTOR FAJARDO","15.ASQUIPATA","050715"]
[null,null,null,null,null,null,"AYACUCHO","HUANCA SANCOS","01.SANCOS","050801"]
[null,null,null,null,null,null,"AYACUCHO","HUANCA SANCOS","02.SACSAMARCA","050802"]
[null,null,null,null,null,null,"AYACUCHO","HUANCA SANCOS","03.SANTIAGO DE LUCANAMARCA","050803"]
[null,null,null,null,null,null,"AYACUCHO","HUANCA SANCOS","04.CARAPO","050804"]
[null,null,null,null,null,null,"AYACUCHO","VILCAS HUAMAN","01.VILCAS HUAMAN","050901"]
[null,null,null,null,null,null,"AYACUCHO","VILCAS HUAMAN","02.VISCHONGO","050902"]
[null,null,null,null,null,null,"AYACUCHO","VILCAS HUAMAN","03.ACCOMARCA","050903"]
[null,null,null,null,null,null,"AYACUCHO","VILCAS HUAMAN","04.CARHUANCA","050904"]
[null,null,null,null,null,null,"AYACUCHO","VILCAS HUAMAN","05.CONCEPCION","050905"]
[null,null,null,null,null,null,"AYACUCHO","VILCAS HUAMAN","06.HUAMBALPA","050906"]
[null,null,null,null,null,null,"AYACUCHO","VILCAS HUAMAN","07.SAURAMA","050907"]
[null,null,null,null,null,null,"AYACUCHO","VILCAS HUAMAN","08.INDEPENDENCIA","050908"]
[null,null,null,null,null,null,"AYACUCHO","PAUCAR DEL SARA SARA","01.PAUSA","051001"]
[null,null,null,null,null,null,"AYACUCHO","PAUCAR DEL SARA SARA","02.COLTA","051002"]
[null,null,null,null,null,null,"AYACUCHO","PAUCAR DEL SARA SARA","03.CORCULLA","051003"]
[null,null,null,null,null,null,"AYACUCHO","PAUCAR DEL SARA SARA","04.LAMPA","051004"]
[null,null,null,null,null,null,"AYACUCHO","PAUCAR DEL SARA SARA","05.MARCABAMBA","051005"]
[null,null,null,null,null,null,"AYACUCHO","PAUCAR DEL SARA SARA","06.OYOLO","051006"]
[null,null,null,null,null,null,"AYACUCHO","PAUCAR DEL SARA SARA","07.PARARCA","051007"]
[null,null,null,null,null,null,"AYACUCHO","PAUCAR DEL SARA SARA","08.SAN JAVIER DE ALPABAMBA","051008"]
[null,null,null,null,null,null,"AYACUCHO","PAUCAR DEL SARA SARA","09.SAN JOSE DE USHUA","051009"]
[null,null,null,null,null,null,"AYACUCHO","PAUCAR DEL SARA SARA","10.SARA SARA","051010"]
[null,null,null,null,null,null,"AYACUCHO","SUCRE","01.QUEROBAMBA","051101"]
[null,null,null,null,null,null,"AYACUCHO","SUCRE","02.BELEN","051102"]
[null,null,null,null,null,null,"AYACUCHO","SUCRE","03.CHALCOS","051103"]
[null,null,null,null,null,null,"AYACUCHO","SUCRE","04.SAN SALVADOR DE QUIJE","051104"]
[null,null,null,null,null,null,"AYACUCHO","SUCRE","05.PAICO","051105"]
[null,null,null,null,null,null,"AYACUCHO","SUCRE","06.SANTIAGO DE PAUCARAY","051106"]
[null,null,null,null,null,null,"AYACUCHO","SUCRE","07.SAN PEDRO DE LARCAY","051107"]
[null,null,null,null,null,null,"AYACUCHO","SUCRE","08.SORAS","051108"]
[null,null,null,null,null,null,"AYACUCHO","SUCRE","09.HUACAÑA","051109"]
[null,null,null,null,null,null,"AYACUCHO","SUCRE","10.CHILCAYOC","051110"]
[null,null,null,null,null,null,"AYACUCHO","SUCRE","11.MORCOLLA","051111"]
[null,null,null,null,null,null,"CAJAMARCA","CAJAMARCA","01.CAJAMARCA","060101"]
[null,null,null,null,null,null,"CAJAMARCA","CAJAMARCA","02.ASUNCION","060102"]
[null,null,null,null,null,null,"CAJAMARCA","CAJAMARCA","03.COSPAN","060103"]
[null,null,null,null,null,null,"CAJAMARCA","CAJAMARCA","04.CHETILLA","060104"]
[null,null,null,null,null,null,"CAJAMARCA","CAJAMARCA","05.ENCAÑADA","060105"]
[null,null,null,null,null,null,"CAJAMARCA","CAJAMARCA","06.JESUS","060106"]
[null,null,null,null,null,null,"CAJAMARCA","CAJAMARCA","07.LOS BAÑOS DEL INCA","060107"]
[null,null,null,null,null,null,"CAJAMARCA","CAJAMARCA","08.LLACANORA","060108"]
[null,null,null,null,null,null,"CAJAMARCA","CAJAMARCA","09.MAGDALENA","060109"]
[null,null,null,null,null,null,"CAJAMARCA","CAJAMARCA","10.MATARA","060110"]
[null,null,null,null,null,null,"CAJAMARCA","CAJAMARCA","11.NAMORA","060111"]
[null,null,null,null,null,null,"CAJAMARCA","CAJAMARCA","12.SAN JUAN","060112"]
[null,null,null,null,null,null,"CAJAMARCA","CAJABAMBA","01.CAJABAMBA","060201"]
[null,null,null,null,null,null,"CAJAMARCA","CAJABAMBA","02.CACHACHI","060202"]
[null,null,null,null,null,null,"CAJAMARCA","CAJABAMBA","03.CONDEBAMBA","060203"]
[null,null,null,null,null,null,"CAJAMARCA","CAJABAMBA","05.SITACOCHA","060205"]
[null,null,null,null,null,null,"CAJAMARCA","CELENDIN","01.CELENDIN","060301"]
[null,null,null,null,null,null,"CAJAMARCA","CELENDIN","02.CORTEGANA","060302"]
[null,null,null,null,null,null,"CAJAMARCA","CELENDIN","03.CHUMUCH","060303"]
[null,null,null,null,null,null,"CAJAMARCA","CELENDIN","04.HUASMIN","060304"]
[null,null,null,null,null,null,"CAJAMARCA","CELENDIN","05.JORGE CHAVEZ","060305"]
[null,null,null,null,null,null,"CAJAMARCA","CELENDIN","06.JOSE GALVEZ","060306"]
[null,null,null,null,null,null,"CAJAMARCA","CELENDIN","07.MIGUEL IGLESIAS","060307"]
[null,null,null,null,null,null,"CAJAMARCA","CELENDIN","08.OXAMARCA","060308"]
[null,null,null,null,null,null,"CAJAMARCA","CELENDIN","09.SOROCHUCO","060309"]
[null,null,null,null,null,null,"CAJAMARCA","CELENDIN","10.SUCRE","060310"]
[null,null,null,null,null,null,"CAJAMARCA","CELENDIN","11.UTCO","060311"]
[null,null,null,null,null,null,"CAJAMARCA","CELENDIN","12.LA LIBERTAD DE PALLAN","060312"]
[null,null,null,null,null,null,"CAJAMARCA","CONTUMAZA","01.CONTUMAZA","060401"]
[null,null,null,null,null,null,"CAJAMARCA","CONTUMAZA","03.CHILETE","060403"]
[null,null,null,null,null,null,"CAJAMARCA","CONTUMAZA","04.GUZMANGO","060404"]
[null,null,null,null,null,null,"CAJAMARCA","CONTUMAZA","05.SAN BENITO","060405"]
[null,null,null,null,null,null,"CAJAMARCA","CONTUMAZA","06.CUPISNIQUE","060406"]
[null,null,null,null,null,null,"CAJAMARCA","CONTUMAZA","07.TANTARICA","060407"]
[null,null,null,null,null,null,"CAJAMARCA","CONTUMAZA","08.YONAN","060408"]
[null,null,null,null,null,null,"CAJAMARCA","CONTUMAZA","09.SANTA CRUZ DE TOLED","060409"]
[null,null,null,null,null,null,"CAJAMARCA","CUTERVO","01.CUTERVO","060501"]
[null,null,null,null,null,null,"CAJAMARCA","CUTERVO","02.CALLAYUC","060502"]
[null,null,null,null,null,null,"CAJAMARCA","CUTERVO","03.CUJILLO","060503"]
[null,null,null,null,null,null,"CAJAMARCA","CUTERVO","04.CHOROS","060504"]
[null,null,null,null,null,null,"CAJAMARCA","CUTERVO","05.LA RAMADA","060505"]
[null,null,null,null,null,null,"CAJAMARCA","CUTERVO","06.PIMPINGOS","060506"]
[null,null,null,null,null,null,"CAJAMARCA","CUTERVO","07.QUEROCOTILLO","060507"]
[null,null,null,null,null,null,"CAJAMARCA","CUTERVO","08.SAN ANDRES DE CUTERVO","060508"]
[null,null,null,null,null,null,"CAJAMARCA","CUTERVO","09.SAN JUAN DE CUTERVO","060509"]
[null,null,null,null,null,null,"CAJAMARCA","CUTERVO","10.SAN LUIS DE LUCMA","060510"]
[null,null,null,null,null,null,"CAJAMARCA","CUTERVO","11.SANTA CRUZ","060511"]
[null,null,null,null,null,null,"CAJAMARCA","CUTERVO","12.SANTO DOMINGO DE LA CAPILLA","060512"]
[null,null,null,null,null,null,"CAJAMARCA","CUTERVO","13.SANTO TOMAS","060513"]
[null,null,null,null,null,null,"CAJAMARCA","CUTERVO","14.SOCOTA","060514"]
[null,null,null,null,null,null,"CAJAMARCA","CUTERVO","15.TORIBIO CASANOVA","060515"]
[null,null,null,null,null,null,"CAJAMARCA","CHOTA","01.CHOTA","060601"]
[null,null,null,null,null,null,"CAJAMARCA","CHOTA","02.ANGUIA","060602"]
[null,null,null,null,null,null,"CAJAMARCA","CHOTA","03.COCHABAMBA","060603"]
[null,null,null,null,null,null,"CAJAMARCA","CHOTA","04.CONCHAN","060604"]
[null,null,null,null,null,null,"CAJAMARCA","CHOTA","05.CHADIN","060605"]
[null,null,null,null,null,null,"CAJAMARCA","CHOTA","06.CHIGUIRIP","060606"]
[null,null,null,null,null,null,"CAJAMARCA","CHOTA","07.CHIMBAN","060607"]
[null,null,null,null,null,null,"CAJAMARCA","CHOTA","08.HUAMBOS","060608"]
[null,null,null,null,null,null,"CAJAMARCA","CHOTA","09.LAJAS","060609"]
[null,null,null,null,null,null,"CAJAMARCA","CHOTA","10.LLAMA","060610"]
[null,null,null,null,null,null,"CAJAMARCA","CHOTA","11.MIRACOSTA","060611"]
[null,null,null,null,null,null,"CAJAMARCA","CHOTA","12.PACCHA","060612"]
[null,null,null,null,null,null,"CAJAMARCA","CHOTA","13.PION","060613"]
[null,null,null,null,null,null,"CAJAMARCA","CHOTA","14.QUEROCOTO","060614"]
[null,null,null,null,null,null,"CAJAMARCA","CHOTA","15.TACABAMBA","060615"]
[null,null,null,null,null,null,"CAJAMARCA","CHOTA","16.TOCMOCHE","060616"]
[null,null,null,null,null,null,"CAJAMARCA","CHOTA","17.SAN JUAN DE LICUPIS","060617"]
[null,null,null,null,null,null,"CAJAMARCA","CHOTA","18.CHOROPAMPA","060618"]
[null,null,null,null,null,null,"CAJAMARCA","CHOTA","19.CHALAMARCA","060619"]
[null,null,null,null,null,null,"CAJAMARCA","HUALGAYOC","01.BAMBAMARCA","060701"]
[null,null,null,null,null,null,"CAJAMARCA","HUALGAYOC","02.CHUGUR","060702"]
[null,null,null,null,null,null,"CAJAMARCA","HUALGAYOC","03.HUALGAYOC","060703"]
[null,null,null,null,null,null,"CAJAMARCA","JAEN","01.JAEN","060801"]
[null,null,null,null,null,null,"CAJAMARCA","JAEN","02.BELLAVISTA","060802"]
[null,null,null,null,null,null,"CAJAMARCA","JAEN","03.COLASAY","060803"]
[null,null,null,null,null,null,"CAJAMARCA","JAEN","04.CHONTALI","060804"]
[null,null,null,null,null,null,"CAJAMARCA","JAEN","05.POMAHUACA","060805"]
[null,null,null,null,null,null,"CAJAMARCA","JAEN","06.PUCARA","060806"]
[null,null,null,null,null,null,"CAJAMARCA","JAEN","07.SALLIQUE","060807"]
[null,null,null,null,null,null,"CAJAMARCA","JAEN","08.SAN FELIPE","060808"]
[null,null,null,null,null,null,"CAJAMARCA","JAEN","09.SAN JOSE DEL ALTO","060809"]
[null,null,null,null,null,null,"CAJAMARCA","JAEN","10.SANTA ROSA","060810"]
[null,null,null,null,null,null,"CAJAMARCA","JAEN","11.LAS PIRIAS","060811"]
[null,null,null,null,null,null,"CAJAMARCA","JAEN","12.HUABAL","060812"]
[null,null,null,null,null,null,"CAJAMARCA","SANTA CRUZ","01.SANTA CRUZ","060901"]
[null,null,null,null,null,null,"CAJAMARCA","SANTA CRUZ","02.CATACHE","060902"]
[null,null,null,null,null,null,"CAJAMARCA","SANTA CRUZ","03.CHANCAYBAÑOS","060903"]
[null,null,null,null,null,null,"CAJAMARCA","SANTA CRUZ","04.LA ESPERANZA","060904"]
[null,null,null,null,null,null,"CAJAMARCA","SANTA CRUZ","05.NINABAMBA","060905"]
[null,null,null,null,null,null,"CAJAMARCA","SANTA CRUZ","06.PULAN","060906"]
[null,null,null,null,null,null,"CAJAMARCA","SANTA CRUZ","07.SEXI","060907"]
[null,null,null,null,null,null,"CAJAMARCA","SANTA CRUZ","08.UTICYACU","060908"]
[null,null,null,null,null,null,"CAJAMARCA","SANTA CRUZ","09.YAUYUCAN","060909"]
[null,null,null,null,null,null,"CAJAMARCA","SANTA CRUZ","10.ANDABAMBA","060910"]
[null,null,null,null,null,null,"CAJAMARCA","SANTA CRUZ","11.SAUCEPAMPA","060911"]
[null,null,null,null,null,null,"CAJAMARCA","SAN MIGUEL","01.SAN MIGUEL","061001"]
[null,null,null,null,null,null,"CAJAMARCA","SAN MIGUEL","02.CALQUIS","061002"]
[null,null,null,null,null,null,"CAJAMARCA","SAN MIGUEL","03.LA FLORIDA","061003"]
[null,null,null,null,null,null,"CAJAMARCA","SAN MIGUEL","04.LLAPA","061004"]
[null,null,null,null,null,null,"CAJAMARCA","SAN MIGUEL","05.NANCHOC","061005"]
[null,null,null,null,null,null,"CAJAMARCA","SAN MIGUEL","06.NIEPOS","061006"]
[null,null,null,null,null,null,"CAJAMARCA","SAN MIGUEL","07.SAN GREGORIO","061007"]
[null,null,null,null,null,null,"CAJAMARCA","SAN MIGUEL","08.SAN SILVESTRE DE COCHAN","061008"]
[null,null,null,null,null,null,"CAJAMARCA","SAN MIGUEL","09.EL PRADO","061009"]
[null,null,null,null,null,null,"CAJAMARCA","SAN MIGUEL","10.UNION AGUA BLANCA","061010"]
[null,null,null,null,null,null,"CAJAMARCA","SAN MIGUEL","11.TONGOD","061011"]
[null,null,null,null,null,null,"CAJAMARCA","SAN MIGUEL","12.CATILLUC","061012"]
[null,null,null,null,null,null,"CAJAMARCA","SAN MIGUEL","13.BOLIVAR","061013"]
[null,null,null,null,null,null,"CAJAMARCA","SAN IGNACIO","01.SAN IGNACIO","061101"]
[null,null,null,null,null,null,"CAJAMARCA","SAN IGNACIO","02.CHIRINOS","061102"]
[null,null,null,null,null,null,"CAJAMARCA","SAN IGNACIO","03.HUARANGO","061103"]
[null,null,null,null,null,null,"CAJAMARCA","SAN IGNACIO","04.NAMBALLE","061104"]
[null,null,null,null,null,null,"CAJAMARCA","SAN IGNACIO","05.LA COIPA","061105"]
[null,null,null,null,null,null,"CAJAMARCA","SAN IGNACIO","06.SAN JOSE DE LOURDES","061106"]
[null,null,null,null,null,null,"CAJAMARCA","SAN IGNACIO","07.TABACONAS","061107"]
[null,null,null,null,null,null,"CAJAMARCA","SAN MARCOS","01.PEDRO GALVEZ","061201"]
[null,null,null,null,null,null,"CAJAMARCA","SAN MARCOS","02.ICHOCAN","061202"]
[null,null,null,null,null,null,"CAJAMARCA","SAN MARCOS","03.GREGORIO PITA","061203"]
[null,null,null,null,null,null,"CAJAMARCA","SAN MARCOS","04.JOSE MANUEL QUIROZ","061204"]
[null,null,null,null,null,null,"CAJAMARCA","SAN MARCOS","05.EDUARDO VILLANUEVA","061205"]
[null,null,null,null,null,null,"CAJAMARCA","SAN MARCOS","06.JOSE SABOGAL","061206"]
[null,null,null,null,null,null,"CAJAMARCA","SAN MARCOS","07.CHANCAY","061207"]
[null,null,null,null,null,null,"CAJAMARCA","SAN PABLO","01.SAN PABLO","061301"]
[null,null,null,null,null,null,"CAJAMARCA","SAN PABLO","02.SAN BERNARDINO","061302"]
[null,null,null,null,null,null,"CAJAMARCA","SAN PABLO","03.SAN LUIS","061303"]
[null,null,null,null,null,null,"CAJAMARCA","SAN PABLO","04.TUMBADEN","061304"]
[null,null,null,null,null,null,"CUSCO","CUSCO","01.CUSCO","070101"]
[null,null,null,null,null,null,"CUSCO","CUSCO","02.CCORCA","070102"]
[null,null,null,null,null,null,"CUSCO","CUSCO","03.POROY","070103"]
[null,null,null,null,null,null,"CUSCO","CUSCO","04.SAN JERONIMO","070104"]
[null,null,null,null,null,null,"CUSCO","CUSCO","05.SAN SEBASTIAN","070105"]
[null,null,null,null,null,null,"CUSCO","CUSCO","06.SANTIAGO","070106"]
[null,null,null,null,null,null,"CUSCO","CUSCO","07.SAYLLA","070107"]
[null,null,null,null,null,null,"CUSCO","CUSCO","08.WANCHAQ","070108"]
[null,null,null,null,null,null,"CUSCO","ACOMAYO","01.ACOMAYO","070201"]
[null,null,null,null,null,null,"CUSCO","ACOMAYO","02.ACOPIA","070202"]
[null,null,null,null,null,null,"CUSCO","ACOMAYO","03.ACOS","070203"]
[null,null,null,null,null,null,"CUSCO","ACOMAYO","04.POMACANCHI","070204"]
[null,null,null,null,null,null,"CUSCO","ACOMAYO","05.RONDOCAN","070205"]
[null,null,null,null,null,null,"CUSCO","ACOMAYO","06.SANGARARA","070206"]
[null,null,null,null,null,null,"CUSCO","ACOMAYO","07.MOSOC LLACTA","070207"]
[null,null,null,null,null,null,"CUSCO","ANTA","01.ANTA","070301"]
[null,null,null,null,null,null,"CUSCO","ANTA","02.CHINCHAYPUJIO","070302"]
[null,null,null,null,null,null,"CUSCO","ANTA","03.HUAROCONDO","070303"]
[null,null,null,null,null,null,"CUSCO","ANTA","04.LIMATAMBO","070304"]
[null,null,null,null,null,null,"CUSCO","ANTA","05.MOLLEPATA","070305"]
[null,null,null,null,null,null,"CUSCO","ANTA","06.PUCYURA","070306"]
[null,null,null,null,null,null,"CUSCO","ANTA","07.ZURITE","070307"]
[null,null,null,null,null,null,"CUSCO","ANTA","08.CACHIMAYO","070308"]
[null,null,null,null,null,null,"CUSCO","ANTA","09.ANCAHUASI","070309"]
[null,null,null,null,null,null,"CUSCO","CALCA","01.CALCA","070401"]
[null,null,null,null,null,null,"CUSCO","CALCA","02.COYA","070402"]
[null,null,null,null,null,null,"CUSCO","CALCA","03.LAMAY","070403"]
[null,null,null,null,null,null,"CUSCO","CALCA","04.LARES","070404"]
[null,null,null,null,null,null,"CUSCO","CALCA","05.PISAC","070405"]
[null,null,null,null,null,null,"CUSCO","CALCA","06.SAN SALVADOR","070406"]
[null,null,null,null,null,null,"CUSCO","CALCA","07.TARAY","070407"]
[null,null,null,null,null,null,"CUSCO","CALCA","08.YANATILE","070408"]
[null,null,null,null,null,null,"CUSCO","CANAS","01.YANAOCA","070501"]
[null,null,null,null,null,null,"CUSCO","CANAS","02.CHECCA","070502"]
[null,null,null,null,null,null,"CUSCO","CANAS","03.KUNTURKANKI","070503"]
[null,null,null,null,null,null,"CUSCO","CANAS","04.LANGUI","070504"]
[null,null,null,null,null,null,"CUSCO","CANAS","05.LAYO","070505"]
[null,null,null,null,null,null,"CUSCO","CANAS","06.PAMPAMARCA","070506"]
[null,null,null,null,null,null,"CUSCO","CANAS","07.QUEHUE","070507"]
[null,null,null,null,null,null,"CUSCO","CANAS","08.TUPAC AMARU","070508"]
[null,null,null,null,null,null,"CUSCO","CANCHIS","01.SICUANI","070601"]
[null,null,null,null,null,null,"CUSCO","CANCHIS","02.COMBAPATA","070602"]
[null,null,null,null,null,null,"CUSCO","CANCHIS","03.CHECACUPE","070603"]
[null,null,null,null,null,null,"CUSCO","CANCHIS","04.MARANGANI","070604"]
[null,null,null,null,null,null,"CUSCO","CANCHIS","05.PITUMARCA","070605"]
[null,null,null,null,null,null,"CUSCO","CANCHIS","06.SAN PABLO","070606"]
[null,null,null,null,null,null,"CUSCO","CANCHIS","07.SAN PEDRO","070607"]
[null,null,null,null,null,null,"CUSCO","CANCHIS","08.TINTA","070608"]
[null,null,null,null,null,null,"CUSCO","CHUMBIVILCAS","01.SANTO TOMAS","070701"]
[null,null,null,null,null,null,"CUSCO","CHUMBIVILCAS","02.CAPACMARCA","070702"]
[null,null,null,null,null,null,"CUSCO","CHUMBIVILCAS","03.COLQUEMARCA","070703"]
[null,null,null,null,null,null,"CUSCO","CHUMBIVILCAS","04.CHAMACA","070704"]
[null,null,null,null,null,null,"CUSCO","CHUMBIVILCAS","05.LIVITACA","070705"]
[null,null,null,null,null,null,"CUSCO","CHUMBIVILCAS","06.LLUSCO","070706"]
[null,null,null,null,null,null,"CUSCO","CHUMBIVILCAS","07.QUIÑOTA","070707"]
[null,null,null,null,null,null,"CUSCO","CHUMBIVILCAS","08.VELILLE","070708"]
[null,null,null,null,null,null,"CUSCO","ESPINAR","01.ESPINAR","070801"]
[null,null,null,null,null,null,"CUSCO","ESPINAR","02.CONDOROMA","070802"]
[null,null,null,null,null,null,"CUSCO","ESPINAR","03.COPORAQUE","070803"]
[null,null,null,null,null,null,"CUSCO","ESPINAR","04.OCORURO","070804"]
[null,null,null,null,null,null,"CUSCO","ESPINAR","05.PALLPATA","070805"]
[null,null,null,null,null,null,"CUSCO","ESPINAR","06.PICHIGUA","070806"]
[null,null,null,null,null,null,"CUSCO","ESPINAR","07.SUYCKUTAMBO","070807"]
[null,null,null,null,null,null,"CUSCO","ESPINAR","08.ALTO PICHIGUA","070808"]
[null,null,null,null,null,null,"CUSCO","LA CONVENCION","01.SANTA ANA","070901"]
[null,null,null,null,null,null,"CUSCO","LA CONVENCION","02.ECHARATE","070902"]
[null,null,null,null,null,null,"CUSCO","LA CONVENCION","03.HUAYOPATA","070903"]
[null,null,null,null,null,null,"CUSCO","LA CONVENCION","04.MARANURA","070904"]
[null,null,null,null,null,null,"CUSCO","LA CONVENCION","05.OCOBAMBA","070905"]
[null,null,null,null,null,null,"CUSCO","LA CONVENCION","06.SANTA TERESA","070906"]
[null,null,null,null,null,null,"CUSCO","LA CONVENCION","07.VILCABAMBA","070907"]
[null,null,null,null,null,null,"CUSCO","LA CONVENCION","08.QUELLOUNO","070908"]
[null,null,null,null,null,null,"CUSCO","LA CONVENCION","09.KIMBIRI","070909"]
[null,null,null,null,null,null,"CUSCO","LA CONVENCION","10.PICHARI","070910"]
[null,null,null,null,null,null,"CUSCO","PARURO","01.PARURO","071001"]
[null,null,null,null,null,null,"CUSCO","PARURO","02.ACCHA","071002"]
[null,null,null,null,null,null,"CUSCO","PARURO","03.CCAPI","071003"]
[null,null,null,null,null,null,"CUSCO","PARURO","04.COLCHA","071004"]
[null,null,null,null,null,null,"CUSCO","PARURO","05.HUANOQUITE","071005"]
[null,null,null,null,null,null,"CUSCO","PARURO","06.OMACHA","071006"]
[null,null,null,null,null,null,"CUSCO","PARURO","07.YAURISQUE","071007"]
[null,null,null,null,null,null,"CUSCO","PARURO","08.PACCARITAMBO","071008"]
[null,null,null,null,null,null,"CUSCO","PARURO","09.PILLPINTO","071009"]
[null,null,null,null,null,null,"CUSCO","PAUCARTAMBO","01.PAUCARTAMBO","071101"]
[null,null,null,null,null,null,"CUSCO","PAUCARTAMBO","02.CAICAY","071102"]
[null,null,null,null,null,null,"CUSCO","PAUCARTAMBO","03.COLQUEPATA","071103"]
[null,null,null,null,null,null,"CUSCO","PAUCARTAMBO","04.CHALLABAMBA","071104"]
[null,null,null,null,null,null,"CUSCO","PAUCARTAMBO","05.KOSÑIPATA","071105"]
[null,null,null,null,null,null,"CUSCO","PAUCARTAMBO","06.HUANCARANI","071106"]
[null,null,null,null,null,null,"CUSCO","QUISPICANCHI","01.URCOS","071201"]
[null,null,null,null,null,null,"CUSCO","QUISPICANCHI","02.ANDAHUAYLILLAS","071202"]
[null,null,null,null,null,null,"CUSCO","QUISPICANCHI","03.CAMANTI","071203"]
[null,null,null,null,null,null,"CUSCO","QUISPICANCHI","04.CCARHUAYO","071204"]
[null,null,null,null,null,null,"CUSCO","QUISPICANCHI","05.CCATCA","071205"]
[null,null,null,null,null,null,"CUSCO","QUISPICANCHI","06.CUSIPATA","071206"]
[null,null,null,null,null,null,"CUSCO","QUISPICANCHI","07.HUARO","071207"]
[null,null,null,null,null,null,"CUSCO","QUISPICANCHI","08.LUCRE","071208"]
[null,null,null,null,null,null,"CUSCO","QUISPICANCHI","09.MARCAPATA","071209"]
[null,null,null,null,null,null,"CUSCO","QUISPICANCHI","10.OCONGATE","071210"]
[null,null,null,null,null,null,"CUSCO","QUISPICANCHI","11.OROPESA","071211"]
[null,null,null,null,null,null,"CUSCO","QUISPICANCHI","12.QUIQUIJANA","071212"]
[null,null,null,null,null,null,"CUSCO","URUBAMBA","01.URUBAMBA","071301"]
[null,null,null,null,null,null,"CUSCO","URUBAMBA","02.CHINCHERO","071302"]
[null,null,null,null,null,null,"CUSCO","URUBAMBA","03.HUAYLLABAMBA","071303"]
[null,null,null,null,null,null,"CUSCO","URUBAMBA","04.MACHUPICCHU","071304"]
[null,null,null,null,null,null,"CUSCO","URUBAMBA","05.MARAS","071305"]
[null,null,null,null,null,null,"CUSCO","URUBAMBA","06.OLLANTAYTAMBO","071306"]
[null,null,null,null,null,null,"CUSCO","URUBAMBA","07.YUCAY","071307"]
[null,null,null,null,null,null,"HUANCAVELICA","HUANCAVELICA","01.HUANCAVELICA","080101"]
[null,null,null,null,null,null,"HUANCAVELICA","HUANCAVELICA","02.ACOBAMBILLA","080102"]
[null,null,null,null,null,null,"HUANCAVELICA","HUANCAVELICA","03.ACORIA","080103"]
[null,null,null,null,null,null,"HUANCAVELICA","HUANCAVELICA","04.CONAYCA","080104"]
[null,null,null,null,null,null,"HUANCAVELICA","HUANCAVELICA","05.CUENCA","080105"]
[null,null,null,null,null,null,"HUANCAVELICA","HUANCAVELICA","06.HUACHOCOLPA","080106"]
[null,null,null,null,null,null,"HUANCAVELICA","HUANCAVELICA","08.HUAYLLAHUARA","080108"]
[null,null,null,null,null,null,"HUANCAVELICA","HUANCAVELICA","09.IZCUCHACA","080109"]
[null,null,null,null,null,null,"HUANCAVELICA","HUANCAVELICA","10.LARIA","080110"]
[null,null,null,null,null,null,"HUANCAVELICA","HUANCAVELICA","11.MANTA","080111"]
[null,null,null,null,null,null,"HUANCAVELICA","HUANCAVELICA","12.MARISCAL CACERES","080112"]
[null,null,null,null,null,null,"HUANCAVELICA","HUANCAVELICA","13.MOYA","080113"]
[null,null,null,null,null,null,"HUANCAVELICA","HUANCAVELICA","14.NUEVO OCCORO","080114"]
[null,null,null,null,null,null,"HUANCAVELICA","HUANCAVELICA","15.PALCA","080115"]
[null,null,null,null,null,null,"HUANCAVELICA","HUANCAVELICA","16.PILCHACA","080116"]
[null,null,null,null,null,null,"HUANCAVELICA","HUANCAVELICA","17.VILCA","080117"]
[null,null,null,null,null,null,"HUANCAVELICA","HUANCAVELICA","18.YAULI","080118"]
[null,null,null,null,null,null,"HUANCAVELICA","HUANCAVELICA","19.ASCENSION","080119"]
[null,null,null,null,null,null,"HUANCAVELICA","HUANCAVELICA","20.HUANDO","080120"]
[null,null,null,null,null,null,"HUANCAVELICA","ACOBAMBA","01.ACOBAMBA","080201"]
[null,null,null,null,null,null,"HUANCAVELICA","ACOBAMBA","02.ANTA","080202"]
[null,null,null,null,null,null,"HUANCAVELICA","ACOBAMBA","03.ANDABAMBA","080203"]
[null,null,null,null,null,null,"HUANCAVELICA","ACOBAMBA","04.CAJA","080204"]
[null,null,null,null,null,null,"HUANCAVELICA","ACOBAMBA","05.MARCAS","080205"]
[null,null,null,null,null,null,"HUANCAVELICA","ACOBAMBA","06.PAUCARA","080206"]
[null,null,null,null,null,null,"HUANCAVELICA","ACOBAMBA","07.POMACOCHA","080207"]
[null,null,null,null,null,null,"HUANCAVELICA","ACOBAMBA","08.ROSARIO","080208"]
[null,null,null,null,null,null,"HUANCAVELICA","ANGARAES","01.LIRCAY","080301"]
[null,null,null,null,null,null,"HUANCAVELICA","ANGARAES","02.ANCHONGA","080302"]
[null,null,null,null,null,null,"HUANCAVELICA","ANGARAES","03.CALLANMARCA","080303"]
[null,null,null,null,null,null,"HUANCAVELICA","ANGARAES","04.CONGALLA","080304"]
[null,null,null,null,null,null,"HUANCAVELICA","ANGARAES","05.CHINCHO","080305"]
[null,null,null,null,null,null,"HUANCAVELICA","ANGARAES","06.HUALLAY-GRANDE","080306"]
[null,null,null,null,null,null,"HUANCAVELICA","ANGARAES","07.HUANCA-HUANCA","080307"]
[null,null,null,null,null,null,"HUANCAVELICA","ANGARAES","08.JULCAMARCA","080308"]
[null,null,null,null,null,null,"HUANCAVELICA","ANGARAES","09.SAN ANTONIO DE ANTAPARCO","080309"]
[null,null,null,null,null,null,"HUANCAVELICA","ANGARAES","10.SANTO TOMAS DE PATA","080310"]
[null,null,null,null,null,null,"HUANCAVELICA","ANGARAES","11.SECCLLA","080311"]
[null,null,null,null,null,null,"HUANCAVELICA","ANGARAES","12.CCOCHACCASA","080312"]
[null,null,null,null,null,null,"HUANCAVELICA","CASTROVIRREYNA","01.CASTROVIRREYNA","080401"]
[null,null,null,null,null,null,"HUANCAVELICA","CASTROVIRREYNA","02.ARMA","080402"]
[null,null,null,null,null,null,"HUANCAVELICA","CASTROVIRREYNA","03.AURAHUA","080403"]
[null,null,null,null,null,null,"HUANCAVELICA","CASTROVIRREYNA","05.CAPILLAS","080405"]
[null,null,null,null,null,null,"HUANCAVELICA","CASTROVIRREYNA","06.COCAS","080406"]
[null,null,null,null,null,null,"HUANCAVELICA","CASTROVIRREYNA","08.CHUPAMARCA","080408"]
[null,null,null,null,null,null,"HUANCAVELICA","CASTROVIRREYNA","09.HUACHOS","080409"]
[null,null,null,null,null,null,"HUANCAVELICA","CASTROVIRREYNA","10.HUAMATAMBO","080410"]
[null,null,null,null,null,null,"HUANCAVELICA","CASTROVIRREYNA","14.MOLLEPAMPA","080414"]
[null,null,null,null,null,null,"HUANCAVELICA","CASTROVIRREYNA","22.SAN JUAN","080422"]
[null,null,null,null,null,null,"HUANCAVELICA","CASTROVIRREYNA","27.TANTARA","080427"]
[null,null,null,null,null,null,"HUANCAVELICA","CASTROVIRREYNA","28.TICRAPO","080428"]
[null,null,null,null,null,null,"HUANCAVELICA","CASTROVIRREYNA","29.SANTA ANA","080429"]
[null,null,null,null,null,null,"HUANCAVELICA","TAYACAJA","01.PAMPAS","080501"]
[null,null,null,null,null,null,"HUANCAVELICA","TAYACAJA","02.ACOSTAMBO","080502"]
[null,null,null,null,null,null,"HUANCAVELICA","TAYACAJA","03.ACRAQUIA","080503"]
[null,null,null,null,null,null,"HUANCAVELICA","TAYACAJA","04.AHUAYCHA","080504"]
[null,null,null,null,null,null,"HUANCAVELICA","TAYACAJA","06.COLCABAMBA","080506"]
[null,null,null,null,null,null,"HUANCAVELICA","TAYACAJA","09.DANIEL HERNANDEZ","080509"]
[null,null,null,null,null,null,"HUANCAVELICA","TAYACAJA","11.HUACHOCOLPA","080511"]
[null,null,null,null,null,null,"HUANCAVELICA","TAYACAJA","12.HUARIBAMBA","080512"]
[null,null,null,null,null,null,"HUANCAVELICA","TAYACAJA","15.ÑAHUIMPUQUIO","080515"]
[null,null,null,null,null,null,"HUANCAVELICA","TAYACAJA","17.PAZOS","080517"]
[null,null,null,null,null,null,"HUANCAVELICA","TAYACAJA","18.QUISHUAR","080518"]
[null,null,null,null,null,null,"HUANCAVELICA","TAYACAJA","19.SALCABAMBA","080519"]
[null,null,null,null,null,null,"HUANCAVELICA","TAYACAJA","20.SAN MARCOS DE ROCCHAC","080520"]
[null,null,null,null,null,null,"HUANCAVELICA","TAYACAJA","23.SURCUBAMBA","080523"]
[null,null,null,null,null,null,"HUANCAVELICA","TAYACAJA","25.TINTAY PUNCU","080525"]
[null,null,null,null,null,null,"HUANCAVELICA","TAYACAJA","26.SALCAHUASI","080526"]
[null,null,null,null,null,null,"HUANCAVELICA","HUAYTARA","01.AYAVI","080601"]
[null,null,null,null,null,null,"HUANCAVELICA","HUAYTARA","02.CORDOVA","080602"]
[null,null,null,null,null,null,"HUANCAVELICA","HUAYTARA","03.HUAYACUNDO ARMA","080603"]
[null,null,null,null,null,null,"HUANCAVELICA","HUAYTARA","04.HUAYTARA","080604"]
[null,null,null,null,null,null,"HUANCAVELICA","HUAYTARA","05.LARAMARCA","080605"]
[null,null,null,null,null,null,"HUANCAVELICA","HUAYTARA","06.OCOYO","080606"]
[null,null,null,null,null,null,"HUANCAVELICA","HUAYTARA","07.PILPICHACA","080607"]
[null,null,null,null,null,null,"HUANCAVELICA","HUAYTARA","08.QUERCO","080608"]
[null,null,null,null,null,null,"HUANCAVELICA","HUAYTARA","09.QUITO ARMA","080609"]
[null,null,null,null,null,null,"HUANCAVELICA","HUAYTARA","10.SAN ANTONIO DE CUSICANCHA","080610"]
[null,null,null,null,null,null,"HUANCAVELICA","HUAYTARA","11.SAN FRANCISCO DE SANGAYAICO","080611"]
[null,null,null,null,null,null,"HUANCAVELICA","HUAYTARA","12.SAN ISIDRO","080612"]
[null,null,null,null,null,null,"HUANCAVELICA","HUAYTARA","13.SANTIAGO DE CHOCORVOS","080613"]
[null,null,null,null,null,null,"HUANCAVELICA","HUAYTARA","14.SANTIAGO DE QUIRAHUARA","080614"]
[null,null,null,null,null,null,"HUANCAVELICA","HUAYTARA","15.SANTO DOMINGO DE CAPILLAS","080615"]
[null,null,null,null,null,null,"HUANCAVELICA","HUAYTARA","16.TAMBO","080616"]
[null,null,null,null,null,null,"HUANCAVELICA","CHURCAMPA","01.CHURCAMPA","080701"]
[null,null,null,null,null,null,"HUANCAVELICA","CHURCAMPA","02.ANCO","080702"]
[null,null,null,null,null,null,"HUANCAVELICA","CHURCAMPA","03.CHINCHIHUASI","080703"]
[null,null,null,null,null,null,"HUANCAVELICA","CHURCAMPA","04.EL CARMEN","080704"]
[null,null,null,null,null,null,"HUANCAVELICA","CHURCAMPA","05.LA MERCED","080705"]
[null,null,null,null,null,null,"HUANCAVELICA","CHURCAMPA","06.LOCROJA","080706"]
[null,null,null,null,null,null,"HUANCAVELICA","CHURCAMPA","07.PAUCARBAMBA","080707"]
[null,null,null,null,null,null,"HUANCAVELICA","CHURCAMPA","08.SAN MIGUEL DE MAYOCC","080708"]
[null,null,null,null,null,null,"HUANCAVELICA","CHURCAMPA","09.SAN PEDRO DE CORIS","080709"]
[null,null,null,null,null,null,"HUANCAVELICA","CHURCAMPA","10.PACHAMARCA","080710"]
[null,null,null,null,null,null,"HUANCAVELICA","CHURCAMPA","11.COSME","080711"]
[null,null,null,null,null,null,"HUANUCO","HUANUCO","01.HUANUCO","090101"]
[null,null,null,null,null,null,"HUANUCO","HUANUCO","02.CHINCHAO","090102"]
[null,null,null,null,null,null,"HUANUCO","HUANUCO","03.CHURUBAMBA","090103"]
[null,null,null,null,null,null,"HUANUCO","HUANUCO","04.MARGOS","090104"]
[null,null,null,null,null,null,"HUANUCO","HUANUCO","05.QUISQUI","090105"]
[null,null,null,null,null,null,"HUANUCO","HUANUCO","06.SAN FRANCISCO DE CAYRAN","090106"]
[null,null,null,null,null,null,"HUANUCO","HUANUCO","07.SAN PEDRO DE CHAULAN","090107"]
[null,null,null,null,null,null,"HUANUCO","HUANUCO","08.SANTA MARIA DEL VALLE","090108"]
[null,null,null,null,null,null,"HUANUCO","HUANUCO","09.YARUMAYO","090109"]
[null,null,null,null,null,null,"HUANUCO","HUANUCO","10.AMARILIS","090110"]
[null,null,null,null,null,null,"HUANUCO","HUANUCO","11.PILLCO MARCA","090111"]
[null,null,null,null,null,null,"HUANUCO","HUANUCO","12.YACUS","090112"]
[null,null,null,null,null,null,"HUANUCO","AMBO","01.AMBO","090201"]
[null,null,null,null,null,null,"HUANUCO","AMBO","02.CAYNA","090202"]
[null,null,null,null,null,null,"HUANUCO","AMBO","03.COLPAS","090203"]
[null,null,null,null,null,null,"HUANUCO","AMBO","04.CONCHAMARCA","090204"]
[null,null,null,null,null,null,"HUANUCO","AMBO","05.HUACAR","090205"]
[null,null,null,null,null,null,"HUANUCO","AMBO","06.SAN FRANCISCO","090206"]
[null,null,null,null,null,null,"HUANUCO","AMBO","07.SAN RAFAEL","090207"]
[null,null,null,null,null,null,"HUANUCO","AMBO","08.TOMAY-KICHWA","090208"]
[null,null,null,null,null,null,"HUANUCO","DOS DE MAYO","01.LA UNION","090301"]
[null,null,null,null,null,null,"HUANUCO","DOS DE MAYO","07.CHUQUIS","090307"]
[null,null,null,null,null,null,"HUANUCO","DOS DE MAYO","12.MARIAS","090312"]
[null,null,null,null,null,null,"HUANUCO","DOS DE MAYO","14.PACHAS","090314"]
[null,null,null,null,null,null,"HUANUCO","DOS DE MAYO","16.QUIVILLA","090316"]
[null,null,null,null,null,null,"HUANUCO","DOS DE MAYO","17.RIPAN","090317"]
[null,null,null,null,null,null,"HUANUCO","DOS DE MAYO","21.SHUNQUI","090321"]
[null,null,null,null,null,null,"HUANUCO","DOS DE MAYO","22.SILLAPATA","090322"]
[null,null,null,null,null,null,"HUANUCO","DOS DE MAYO","23.YANAS","090323"]
[null,null,null,null,null,null,"HUANUCO","HUAMALIES","01.LLATA","090401"]
[null,null,null,null,null,null,"HUANUCO","HUAMALIES","02.ARANCAY","090402"]
[null,null,null,null,null,null,"HUANUCO","HUAMALIES","03.CHAVIN DE PARIARCA","090403"]
[null,null,null,null,null,null,"HUANUCO","HUAMALIES","04.JACAS GRANDE","090404"]
[null,null,null,null,null,null,"HUANUCO","HUAMALIES","05.JIRCAN","090405"]
[null,null,null,null,null,null,"HUANUCO","HUAMALIES","06.MIRAFLORES","090406"]
[null,null,null,null,null,null,"HUANUCO","HUAMALIES","07.MONZON","090407"]
[null,null,null,null,null,null,"HUANUCO","HUAMALIES","08.PUNCHAO","090408"]
[null,null,null,null,null,null,"HUANUCO","HUAMALIES","09.PUÑOS","090409"]
[null,null,null,null,null,null,"HUANUCO","HUAMALIES","10.SINGA","090410"]
[null,null,null,null,null,null,"HUANUCO","HUAMALIES","11.TANTAMAYO","090411"]
[null,null,null,null,null,null,"HUANUCO","MARAÑON","01.HUACRACHUCO","090501"]
[null,null,null,null,null,null,"HUANUCO","MARAÑON","02.CHOLON","090502"]
[null,null,null,null,null,null,"HUANUCO","MARAÑON","05.SAN BUENAVENTURA","090505"]
[null,null,null,null,null,null,"HUANUCO","LEONCIO PRADO","01.RUPA-RUPA","090601"]
[null,null,null,null,null,null,"HUANUCO","LEONCIO PRADO","02.DANIEL ALOMIA ROBLES","090602"]
[null,null,null,null,null,null,"HUANUCO","LEONCIO PRADO","03.HERMILIO VALDIZAN","090603"]
[null,null,null,null,null,null,"HUANUCO","LEONCIO PRADO","04.LUYANDO","090604"]
[null,null,null,null,null,null,"HUANUCO","LEONCIO PRADO","05.MARIANO DAMASO BERAUN","090605"]
[null,null,null,null,null,null,"HUANUCO","LEONCIO PRADO","06.JOSE CRESPO Y CASTILLO","090606"]
[null,null,null,null,null,null,"HUANUCO","PACHITEA","01.PANAO","090701"]
[null,null,null,null,null,null,"HUANUCO","PACHITEA","02.CHAGLLA","090702"]
[null,null,null,null,null,null,"HUANUCO","PACHITEA","04.MOLINO","090704"]
[null,null,null,null,null,null,"HUANUCO","PACHITEA","06.UMARI","090706"]
[null,null,null,null,null,null,"HUANUCO","PUERTO INCA","01.HONORIA","090801"]
[null,null,null,null,null,null,"HUANUCO","PUERTO INCA","02.PUERTO INCA","090802"]
[null,null,null,null,null,null,"HUANUCO","PUERTO INCA","03.CODO DEL POZUZO","090803"]
[null,null,null,null,null,null,"HUANUCO","PUERTO INCA","04.TOURNAVISTA","090804"]
[null,null,null,null,null,null,"HUANUCO","PUERTO INCA","05.YUYAPICHIS","090805"]
[null,null,null,null,null,null,"HUANUCO","HUACAYBAMBA","01.HUACAYBAMBA","090901"]
[null,null,null,null,null,null,"HUANUCO","HUACAYBAMBA","02.PINRA","090902"]
[null,null,null,null,null,null,"HUANUCO","HUACAYBAMBA","03.CANCHABAMBA","090903"]
[null,null,null,null,null,null,"HUANUCO","HUACAYBAMBA","04.COCHABAMBA","090904"]
[null,null,null,null,null,null,"HUANUCO","LAURICOCHA","01.JESUS","091001"]
[null,null,null,null,null,null,"HUANUCO","LAURICOCHA","02.BAÑOS","091002"]
[null,null,null,null,null,null,"HUANUCO","LAURICOCHA","03.SAN FRANCISCO DE ASIS","091003"]
[null,null,null,null,null,null,"HUANUCO","LAURICOCHA","04.QUEROPALCA","091004"]
[null,null,null,null,null,null,"HUANUCO","LAURICOCHA","05.SAN MIGUEL DE CAURI","091005"]
[null,null,null,null,null,null,"HUANUCO","LAURICOCHA","06.RONDOS","091006"]
[null,null,null,null,null,null,"HUANUCO","LAURICOCHA","07.JIVIA","091007"]
[null,null,null,null,null,null,"HUANUCO","YAROWILCA","01.CHAVINILLO","091101"]
[null,null,null,null,null,null,"HUANUCO","YAROWILCA","02.APARICIO POMARES","091102"]
[null,null,null,null,null,null,"HUANUCO","YAROWILCA","03.CAHUAC","091103"]
[null,null,null,null,null,null,"HUANUCO","YAROWILCA","04.CHACABAMBA","091104"]
[null,null,null,null,null,null,"HUANUCO","YAROWILCA","05.JACAS CHICO","091105"]
[null,null,null,null,null,null,"HUANUCO","YAROWILCA","06.OBAS","091106"]
[null,null,null,null,null,null,"HUANUCO","YAROWILCA","07.PAMPAMARCA","091107"]
[null,null,null,null,null,null,"HUANUCO","YAROWILCA","08.CHORAS","091108"]
[null,null,null,null,null,null,"ICA","ICA","01.ICA","100101"]
[null,null,null,null,null,null,"ICA","ICA","02.LA TINGUIÑA","100102"]
[null,null,null,null,null,null,"ICA","ICA","03.LOS AQUIJES","100103"]
[null,null,null,null,null,null,"ICA","ICA","04.PARCONA","100104"]
[null,null,null,null,null,null,"ICA","ICA","05.PUEBLO NUEVO","100105"]
[null,null,null,null,null,null,"ICA","ICA","06.SALAS","100106"]
[null,null,null,null,null,null,"ICA","ICA","07.SAN JOSE DE LOS MOLINOS","100107"]
[null,null,null,null,null,null,"ICA","ICA","08.SAN JUAN BAUTISTA","100108"]
[null,null,null,null,null,null,"ICA","ICA","09.SANTIAGO","100109"]
[null,null,null,null,null,null,"ICA","ICA","10.SUBTANJALLA","100110"]
[null,null,null,null,null,null,"ICA","ICA","11.YAUCA DEL ROSARIO","100111"]
[null,null,null,null,null,null,"ICA","ICA","12.TATE","100112"]
[null,null,null,null,null,null,"ICA","ICA","13.PACHACUTEC","100113"]
[null,null,null,null,null,null,"ICA","ICA","14.OCUCAJE","100114"]
[null,null,null,null,null,null,"ICA","CHINCHA","01.CHINCHA ALTA","100201"]
[null,null,null,null,null,null,"ICA","CHINCHA","02.CHAVIN","100202"]
[null,null,null,null,null,null,"ICA","CHINCHA","03.CHINCHA BAJA","100203"]
[null,null,null,null,null,null,"ICA","CHINCHA","04.EL CARMEN","100204"]
[null,null,null,null,null,null,"ICA","CHINCHA","05.GROCIO PRADO","100205"]
[null,null,null,null,null,null,"ICA","CHINCHA","06.SAN PEDRO DE HUACARPANA","100206"]
[null,null,null,null,null,null,"ICA","CHINCHA","07.SUNAMPE","100207"]
[null,null,null,null,null,null,"ICA","CHINCHA","08.TAMBO DE MORA","100208"]
[null,null,null,null,null,null,"ICA","CHINCHA","09.ALTO LARAN","100209"]
[null,null,null,null,null,null,"ICA","CHINCHA","10.PUEBLO NUEVO","100210"]
[null,null,null,null,null,null,"ICA","CHINCHA","11.SAN JUAN DE YANAC","100211"]
[null,null,null,null,null,null,"ICA","NAZCA","01.NAZCA","100301"]
[null,null,null,null,null,null,"ICA","NAZCA","02.CHANGUILLO","100302"]
[null,null,null,null,null,null,"ICA","NAZCA","03.EL INGENIO","100303"]
[null,null,null,null,null,null,"ICA","NAZCA","04.MARCONA","100304"]
[null,null,null,null,null,null,"ICA","NAZCA","05.VISTA ALEGRE","100305"]
[null,null,null,null,null,null,"ICA","PISCO","01.PISCO","100401"]
[null,null,null,null,null,null,"ICA","PISCO","02.HUANCANO","100402"]
[null,null,null,null,null,null,"ICA","PISCO","03.HUMAY","100403"]
[null,null,null,null,null,null,"ICA","PISCO","04.INDEPENDENCIA","100404"]
[null,null,null,null,null,null,"ICA","PISCO","05.PARACAS","100405"]
[null,null,null,null,null,null,"ICA","PISCO","06.SAN ANDRES","100406"]
[null,null,null,null,null,null,"ICA","PISCO","07.SAN CLEMENTE","100407"]
[null,null,null,null,null,null,"ICA","PISCO","08.TUPAC AMARU INCA","100408"]
[null,null,null,null,null,null,"ICA","PALPA","01.PALPA","100501"]
[null,null,null,null,null,null,"ICA","PALPA","02.LLIPATA","100502"]
[null,null,null,null,null,null,"ICA","PALPA","03.RIO GRANDE","100503"]
[null,null,null,null,null,null,"ICA","PALPA","04.SANTA CRUZ","100504"]
[null,null,null,null,null,null,"ICA","PALPA","05.TIBILLO","100505"]
[null,null,null,null,null,null,"JUNIN","HUANCAYO","01.HUANCAYO","110101"]
[null,null,null,null,null,null,"JUNIN","HUANCAYO","03.CARHUACALLANGA","110103"]
[null,null,null,null,null,null,"JUNIN","HUANCAYO","04.COLCA","110104"]
[null,null,null,null,null,null,"JUNIN","HUANCAYO","05.CULLHUAS","110105"]
[null,null,null,null,null,null,"JUNIN","HUANCAYO","06.CHACAPAMPA","110106"]
[null,null,null,null,null,null,"JUNIN","HUANCAYO","07.CHICCHE","110107"]
[null,null,null,null,null,null,"JUNIN","HUANCAYO","08.CHILCA","110108"]
[null,null,null,null,null,null,"JUNIN","HUANCAYO","09.CHONGOS ALTO","110109"]
[null,null,null,null,null,null,"JUNIN","HUANCAYO","12.CHUPURO","110112"]
[null,null,null,null,null,null,"JUNIN","HUANCAYO","13.EL TAMBO","110113"]
[null,null,null,null,null,null,"JUNIN","HUANCAYO","14.HUACRAPUQUIO","110114"]
[null,null,null,null,null,null,"JUNIN","HUANCAYO","16.HUALHUAS","110116"]
[null,null,null,null,null,null,"JUNIN","HUANCAYO","18.HUANCAN","110118"]
[null,null,null,null,null,null,"JUNIN","HUANCAYO","19.HUASICANCHA","110119"]
[null,null,null,null,null,null,"JUNIN","HUANCAYO","20.HUAYUCACHI","110120"]
[null,null,null,null,null,null,"JUNIN","HUANCAYO","21.INGENIO","110121"]
[null,null,null,null,null,null,"JUNIN","HUANCAYO","22.PARIAHUANCA","110122"]
[null,null,null,null,null,null,"JUNIN","HUANCAYO","23.PILCOMAYO","110123"]
[null,null,null,null,null,null,"JUNIN","HUANCAYO","24.PUCARA","110124"]
[null,null,null,null,null,null,"JUNIN","HUANCAYO","25.QUICHUAY","110125"]
[null,null,null,null,null,null,"JUNIN","HUANCAYO","26.QUILCAS","110126"]
[null,null,null,null,null,null,"JUNIN","HUANCAYO","27.SAN AGUSTIN","110127"]
[null,null,null,null,null,null,"JUNIN","HUANCAYO","28.SAN JERONIMO DE TUNAN","110128"]
[null,null,null,null,null,null,"JUNIN","HUANCAYO","31.SANTO DOMINGO DE ACOBAMBA","110131"]
[null,null,null,null,null,null,"JUNIN","HUANCAYO","32.SAÑO","110132"]
[null,null,null,null,null,null,"JUNIN","HUANCAYO","33.SAPALLANGA","110133"]
[null,null,null,null,null,null,"JUNIN","HUANCAYO","34.SICAYA","110134"]
[null,null,null,null,null,null,"JUNIN","HUANCAYO","36.VIQUES","110136"]
[null,null,null,null,null,null,"JUNIN","CONCEPCION","01.CONCEPCION","110201"]
[null,null,null,null,null,null,"JUNIN","CONCEPCION","02.ACO","110202"]
[null,null,null,null,null,null,"JUNIN","CONCEPCION","03.ANDAMARCA","110203"]
[null,null,null,null,null,null,"JUNIN","CONCEPCION","04.COMAS","110204"]
[null,null,null,null,null,null,"JUNIN","CONCEPCION","05.COCHAS","110205"]
[null,null,null,null,null,null,"JUNIN","CONCEPCION","06.CHAMBARA","110206"]
[null,null,null,null,null,null,"JUNIN","CONCEPCION","07.HEROINAS TOLEDO","110207"]
[null,null,null,null,null,null,"JUNIN","CONCEPCION","08.MANZANARES","110208"]
[null,null,null,null,null,null,"JUNIN","CONCEPCION","09.MARISCAL CASTILLA","110209"]
[null,null,null,null,null,null,"JUNIN","CONCEPCION","10.MATAHUASI","110210"]
[null,null,null,null,null,null,"JUNIN","CONCEPCION","11.MITO","110211"]
[null,null,null,null,null,null,"JUNIN","CONCEPCION","12.NUEVE DE JULIO","110212"]
[null,null,null,null,null,null,"JUNIN","CONCEPCION","13.ORCOTUNA","110213"]
[null,null,null,null,null,null,"JUNIN","CONCEPCION","14.SANTA ROSA DE OCOPA","110214"]
[null,null,null,null,null,null,"JUNIN","CONCEPCION","15.SAN JOSE DE QUERO","110215"]
[null,null,null,null,null,null,"JUNIN","JAUJA","01.JAUJA","110301"]
[null,null,null,null,null,null,"JUNIN","JAUJA","02.ACOLLA","110302"]
[null,null,null,null,null,null,"JUNIN","JAUJA","03.APATA","110303"]
[null,null,null,null,null,null,"JUNIN","JAUJA","04.ATAURA","110304"]
[null,null,null,null,null,null,"JUNIN","JAUJA","05.CANCHAYLLO","110305"]
[null,null,null,null,null,null,"JUNIN","JAUJA","06.EL MANTARO","110306"]
[null,null,null,null,null,null,"JUNIN","JAUJA","07.HUAMALI","110307"]
[null,null,null,null,null,null,"JUNIN","JAUJA","08.HUARIPAMPA","110308"]
[null,null,null,null,null,null,"JUNIN","JAUJA","09.HUERTAS","110309"]
[null,null,null,null,null,null,"JUNIN","JAUJA","10.JANJAILLO","110310"]
[null,null,null,null,null,null,"JUNIN","JAUJA","11.JULCAN","110311"]
[null,null,null,null,null,null,"JUNIN","JAUJA","12.LEONOR ORDOÑEZ","110312"]
[null,null,null,null,null,null,"JUNIN","JAUJA","13.LLOCLLAPAMPA","110313"]
[null,null,null,null,null,null,"JUNIN","JAUJA","14.MARCO","110314"]
[null,null,null,null,null,null,"JUNIN","JAUJA","15.MASMA","110315"]
[null,null,null,null,null,null,"JUNIN","JAUJA","16.MOLINOS","110316"]
[null,null,null,null,null,null,"JUNIN","JAUJA","17.MONOBAMBA","110317"]
[null,null,null,null,null,null,"JUNIN","JAUJA","18.MUQUI","110318"]
[null,null,null,null,null,null,"JUNIN","JAUJA","19.MUQUIYAUYO","110319"]
[null,null,null,null,null,null,"JUNIN","JAUJA","20.PACA","110320"]
[null,null,null,null,null,null,"JUNIN","JAUJA","21.PACCHA","110321"]
[null,null,null,null,null,null,"JUNIN","JAUJA","22.PANCAN","110322"]
[null,null,null,null,null,null,"JUNIN","JAUJA","23.PARCO","110323"]
[null,null,null,null,null,null,"JUNIN","JAUJA","24.POMACANCHA","110324"]
[null,null,null,null,null,null,"JUNIN","JAUJA","25.RICRAN","110325"]
[null,null,null,null,null,null,"JUNIN","JAUJA","26.SAN LORENZO","110326"]
[null,null,null,null,null,null,"JUNIN","JAUJA","27.SAN PEDRO DE CHUNAN","110327"]
[null,null,null,null,null,null,"JUNIN","JAUJA","28.SINCOS","110328"]
[null,null,null,null,null,null,"JUNIN","JAUJA","29.TUNAN MARCA","110329"]
[null,null,null,null,null,null,"JUNIN","JAUJA","30.YAULI","110330"]
[null,null,null,null,null,null,"JUNIN","JAUJA","31.CURICACA","110331"]
[null,null,null,null,null,null,"JUNIN","JAUJA","32.MASMA CHICCHE","110332"]
[null,null,null,null,null,null,"JUNIN","JAUJA","33.SAUSA","110333"]
[null,null,null,null,null,null,"JUNIN","JAUJA","34.YAUYOS","110334"]
[null,null,null,null,null,null,"JUNIN","JUNIN","01.JUNIN","110401"]
[null,null,null,null,null,null,"JUNIN","JUNIN","02.CARHUAMAYO","110402"]
[null,null,null,null,null,null,"JUNIN","JUNIN","03.ONDORES","110403"]
[null,null,null,null,null,null,"JUNIN","JUNIN","04.ULCUMAYO","110404"]
[null,null,null,null,null,null,"JUNIN","TARMA","01.TARMA","110501"]
[null,null,null,null,null,null,"JUNIN","TARMA","02.ACOBAMBA","110502"]
[null,null,null,null,null,null,"JUNIN","TARMA","03.HUARICOLCA","110503"]
[null,null,null,null,null,null,"JUNIN","TARMA","04.HUASAHUASI","110504"]
[null,null,null,null,null,null,"JUNIN","TARMA","05.LA UNION","110505"]
[null,null,null,null,null,null,"JUNIN","TARMA","06.PALCA","110506"]
[null,null,null,null,null,null,"JUNIN","TARMA","07.PALCAMAYO","110507"]
[null,null,null,null,null,null,"JUNIN","TARMA","08.SAN PEDRO DE CAJAS","110508"]
[null,null,null,null,null,null,"JUNIN","TARMA","09.TAPO","110509"]
[null,null,null,null,null,null,"JUNIN","YAULI","01.LA OROYA","110601"]
[null,null,null,null,null,null,"JUNIN","YAULI","02.CHACAPALPA","110602"]
[null,null,null,null,null,null,"JUNIN","YAULI","03.HUAY HUAY","110603"]
[null,null,null,null,null,null,"JUNIN","YAULI","04.MARCAPOMACOCHA","110604"]
[null,null,null,null,null,null,"JUNIN","YAULI","05.MOROCOCHA","110605"]
[null,null,null,null,null,null,"JUNIN","YAULI","06.PACCHA","110606"]
[null,null,null,null,null,null,"JUNIN","YAULI","07.SANTA BARBARA DE CARHUACAYAN","110607"]
[null,null,null,null,null,null,"JUNIN","YAULI","08.SUITUCANCHA","110608"]
[null,null,null,null,null,null,"JUNIN","YAULI","09.YAULI","110609"]
[null,null,null,null,null,null,"JUNIN","YAULI","10.SANTA ROSA DE SACCO","110610"]
[null,null,null,null,null,null,"JUNIN","SATIPO","01.SATIPO","110701"]
[null,null,null,null,null,null,"JUNIN","SATIPO","02.COVIRIALI","110702"]
[null,null,null,null,null,null,"JUNIN","SATIPO","03.LLAYLLA","110703"]
[null,null,null,null,null,null,"JUNIN","SATIPO","04.MAZAMARI","110704"]
[null,null,null,null,null,null,"JUNIN","SATIPO","05.PAMPA HERMOSA","110705"]
[null,null,null,null,null,null,"JUNIN","SATIPO","06.PANGOA","110706"]
[null,null,null,null,null,null,"JUNIN","SATIPO","07.RIO NEGRO","110707"]
[null,null,null,null,null,null,"JUNIN","SATIPO","08.RIO TAMBO","110708"]
[null,null,null,null,null,null,"JUNIN","CHANCHAMAYO","01.CHANCHAMAYO","110801"]
[null,null,null,null,null,null,"JUNIN","CHANCHAMAYO","02.SAN RAMON","110802"]
[null,null,null,null,null,null,"JUNIN","CHANCHAMAYO","03.VITOC","110803"]
[null,null,null,null,null,null,"JUNIN","CHANCHAMAYO","04.SAN LUIS DE SHUARO","110804"]
[null,null,null,null,null,null,"JUNIN","CHANCHAMAYO","05.PICHANAQUI","110805"]
[null,null,null,null,null,null,"JUNIN","CHANCHAMAYO","06.PERENE","110806"]
[null,null,null,null,null,null,"JUNIN","CHUPACA","01.CHUPACA","110901"]
[null,null,null,null,null,null,"JUNIN","CHUPACA","02.AHUAC","110902"]
[null,null,null,null,null,null,"JUNIN","CHUPACA","03.CHONGOS BAJO","110903"]
[null,null,null,null,null,null,"JUNIN","CHUPACA","04.HUACHAC","110904"]
[null,null,null,null,null,null,"JUNIN","CHUPACA","05.HUAMANCACA CHICO","110905"]
[null,null,null,null,null,null,"JUNIN","CHUPACA","06.SAN JUAN DE YSCOS","110906"]
[null,null,null,null,null,null,"JUNIN","CHUPACA","07.SAN JUAN DE JARPA","110907"]
[null,null,null,null,null,null,"JUNIN","CHUPACA","08.TRES DE DICIEMBRE","110908"]
[null,null,null,null,null,null,"JUNIN","CHUPACA","09.YANACANCHA","110909"]
[null,null,null,null,null,null,"LA LIBERTAD","TRUJILLO","01.TRUJILLO","120101"]
[null,null,null,null,null,null,"LA LIBERTAD","TRUJILLO","02.HUANCHACO","120102"]
[null,null,null,null,null,null,"LA LIBERTAD","TRUJILLO","03.LAREDO","120103"]
[null,null,null,null,null,null,"LA LIBERTAD","TRUJILLO","04.MOCHE","120104"]
[null,null,null,null,null,null,"LA LIBERTAD","TRUJILLO","05.SALAVERRY","120105"]
[null,null,null,null,null,null,"LA LIBERTAD","TRUJILLO","06.SIMBAL","120106"]
[null,null,null,null,null,null,"LA LIBERTAD","TRUJILLO","07.VICTOR LARCO HERRERA","120107"]
[null,null,null,null,null,null,"LA LIBERTAD","TRUJILLO","09.POROTO","120109"]
[null,null,null,null,null,null,"LA LIBERTAD","TRUJILLO","10.EL PORVENIR","120110"]
[null,null,null,null,null,null,"LA LIBERTAD","TRUJILLO","11.LA ESPERANZA","120111"]
[null,null,null,null,null,null,"LA LIBERTAD","TRUJILLO","12.FLORENCIA DE MORA","120112"]
[null,null,null,null,null,null,"LA LIBERTAD","BOLIVAR","01.BOLIVAR","120201"]
[null,null,null,null,null,null,"LA LIBERTAD","BOLIVAR","02.BAMBAMARCA","120202"]
[null,null,null,null,null,null,"LA LIBERTAD","BOLIVAR","03.CONDORMARCA","120203"]
[null,null,null,null,null,null,"LA LIBERTAD","BOLIVAR","04.LONGOTEA","120204"]
[null,null,null,null,null,null,"LA LIBERTAD","BOLIVAR","05.UCUNCHA","120205"]
[null,null,null,null,null,null,"LA LIBERTAD","BOLIVAR","06.UCHUMARCA","120206"]
[null,null,null,null,null,null,"LA LIBERTAD","SANCHEZ CARRION","01.HUAMACHUCO","120301"]
[null,null,null,null,null,null,"LA LIBERTAD","SANCHEZ CARRION","02.COCHORCO","120302"]
[null,null,null,null,null,null,"LA LIBERTAD","SANCHEZ CARRION","03.CURGOS","120303"]
[null,null,null,null,null,null,"LA LIBERTAD","SANCHEZ CARRION","04.CHUGAY","120304"]
[null,null,null,null,null,null,"LA LIBERTAD","SANCHEZ CARRION","05.MARCABAL","120305"]
[null,null,null,null,null,null,"LA LIBERTAD","SANCHEZ CARRION","06.SANAGORAN","120306"]
[null,null,null,null,null,null,"LA LIBERTAD","SANCHEZ CARRION","07.SARIN","120307"]
[null,null,null,null,null,null,"LA LIBERTAD","SANCHEZ CARRION","08.SARTIMBAMBA","120308"]
[null,null,null,null,null,null,"LA LIBERTAD","OTUZCO","01.OTUZCO","120401"]
[null,null,null,null,null,null,"LA LIBERTAD","OTUZCO","02.AGALLPAMPA","120402"]
[null,null,null,null,null,null,"LA LIBERTAD","OTUZCO","03.CHARAT","120403"]
[null,null,null,null,null,null,"LA LIBERTAD","OTUZCO","04.HUARANCHAL","120404"]
[null,null,null,null,null,null,"LA LIBERTAD","OTUZCO","05.LA CUESTA","120405"]
[null,null,null,null,null,null,"LA LIBERTAD","OTUZCO","08.PARANDAY","120408"]
[null,null,null,null,null,null,"LA LIBERTAD","OTUZCO","09.SALPO","120409"]
[null,null,null,null,null,null,"LA LIBERTAD","OTUZCO","10.SINSICAP","120410"]
[null,null,null,null,null,null,"LA LIBERTAD","OTUZCO","11.USQUIL","120411"]
[null,null,null,null,null,null,"LA LIBERTAD","OTUZCO","13.MACHE","120413"]
[null,null,null,null,null,null,"LA LIBERTAD","PACASMAYO","01.SAN PEDRO DE LLOC","120501"]
[null,null,null,null,null,null,"LA LIBERTAD","PACASMAYO","03.GUADALUPE","120503"]
[null,null,null,null,null,null,"LA LIBERTAD","PACASMAYO","04.JEQUETEPEQUE","120504"]
[null,null,null,null,null,null,"LA LIBERTAD","PACASMAYO","06.PACASMAYO","120506"]
[null,null,null,null,null,null,"LA LIBERTAD","PACASMAYO","08.SAN JOSE","120508"]
[null,null,null,null,null,null,"LA LIBERTAD","PATAZ","01.TAYABAMBA","120601"]
[null,null,null,null,null,null,"LA LIBERTAD","PATAZ","02.BULDIBUYO","120602"]
[null,null,null,null,null,null,"LA LIBERTAD","PATAZ","03.CHILLIA","120603"]
[null,null,null,null,null,null,"LA LIBERTAD","PATAZ","04.HUAYLILLAS","120604"]
[null,null,null,null,null,null,"LA LIBERTAD","PATAZ","05.HUANCASPATA","120605"]
[null,null,null,null,null,null,"LA LIBERTAD","PATAZ","06.HUAYO","120606"]
[null,null,null,null,null,null,"LA LIBERTAD","PATAZ","07.ONGON","120607"]
[null,null,null,null,null,null,"LA LIBERTAD","PATAZ","08.PARCOY","120608"]
[null,null,null,null,null,null,"LA LIBERTAD","PATAZ","09.PATAZ","120609"]
[null,null,null,null,null,null,"LA LIBERTAD","PATAZ","10.PIAS","120610"]
[null,null,null,null,null,null,"LA LIBERTAD","PATAZ","11.TAURIJA","120611"]
[null,null,null,null,null,null,"LA LIBERTAD","PATAZ","12.URPAY","120612"]
[null,null,null,null,null,null,"LA LIBERTAD","PATAZ","13.SANTIAGO DE CHALLAS","120613"]
[null,null,null,null,null,null,"LA LIBERTAD","SANTIAGO DE CHUCO","01.SANTIAGO DE CHUCO","120701"]
[null,null,null,null,null,null,"LA LIBERTAD","SANTIAGO DE CHUCO","02.CACHICADAN","120702"]
[null,null,null,null,null,null,"LA LIBERTAD","SANTIAGO DE CHUCO","03.MOLLEBAMBA","120703"]
[null,null,null,null,null,null,"LA LIBERTAD","SANTIAGO DE CHUCO","04.MOLLEPATA","120704"]
[null,null,null,null,null,null,"LA LIBERTAD","SANTIAGO DE CHUCO","05.QUIRUVILCA","120705"]
[null,null,null,null,null,null,"LA LIBERTAD","SANTIAGO DE CHUCO","06.SANTA CRUZ DE CHUCA","120706"]
[null,null,null,null,null,null,"LA LIBERTAD","SANTIAGO DE CHUCO","07.SITABAMBA","120707"]
[null,null,null,null,null,null,"LA LIBERTAD","SANTIAGO DE CHUCO","08.ANGASMARCA","120708"]
[null,null,null,null,null,null,"LA LIBERTAD","ASCOPE","01.ASCOPE","120801"]
[null,null,null,null,null,null,"LA LIBERTAD","ASCOPE","02.CHICAMA","120802"]
[null,null,null,null,null,null,"LA LIBERTAD","ASCOPE","03.CHOCOPE","120803"]
[null,null,null,null,null,null,"LA LIBERTAD","ASCOPE","04.SANTIAGO DE CAO","120804"]
[null,null,null,null,null,null,"LA LIBERTAD","ASCOPE","05.MAGDALENA DE CAO","120805"]
[null,null,null,null,null,null,"LA LIBERTAD","ASCOPE","06.PAIJAN","120806"]
[null,null,null,null,null,null,"LA LIBERTAD","ASCOPE","07.RAZURI","120807"]
[null,null,null,null,null,null,"LA LIBERTAD","ASCOPE","08.CASA GRANDE","120808"]
[null,null,null,null,null,null,"LA LIBERTAD","CHEPEN","01.CHEPEN","120901"]
[null,null,null,null,null,null,"LA LIBERTAD","CHEPEN","02.PACANGA","120902"]
[null,null,null,null,null,null,"LA LIBERTAD","CHEPEN","03.PUEBLO NUEVO","120903"]
[null,null,null,null,null,null,"LA LIBERTAD","JULCAN","01.JULCAN","121001"]
[null,null,null,null,null,null,"LA LIBERTAD","JULCAN","02.CARABAMBA","121002"]
[null,null,null,null,null,null,"LA LIBERTAD","JULCAN","03.CALAMARCA","121003"]
[null,null,null,null,null,null,"LA LIBERTAD","JULCAN","04.HUASO","121004"]
[null,null,null,null,null,null,"LA LIBERTAD","GRAN CHIMU","01.CASCAS","121101"]
[null,null,null,null,null,null,"LA LIBERTAD","GRAN CHIMU","02.LUCMA","121102"]
[null,null,null,null,null,null,"LA LIBERTAD","GRAN CHIMU","03.MARMOT","121103"]
[null,null,null,null,null,null,"LA LIBERTAD","GRAN CHIMU","04.SAYAPULLO","121104"]
[null,null,null,null,null,null,"LA LIBERTAD","VIRU","01.VIRU","121201"]
[null,null,null,null,null,null,"LA LIBERTAD","VIRU","02.CHAO","121202"]
[null,null,null,null,null,null,"LA LIBERTAD","VIRU","03.GUADALUPITO","121203"]
[null,null,null,null,null,null,"LAMBAYEQUE","CHICLAYO","01.CHICLAYO","130101"]
[null,null,null,null,null,null,"LAMBAYEQUE","CHICLAYO","02.CHONGOYAPE","130102"]
[null,null,null,null,null,null,"LAMBAYEQUE","CHICLAYO","03.ETEN","130103"]
[null,null,null,null,null,null,"LAMBAYEQUE","CHICLAYO","04.ETEN PUERTO","130104"]
[null,null,null,null,null,null,"LAMBAYEQUE","CHICLAYO","05.LAGUNAS","130105"]
[null,null,null,null,null,null,"LAMBAYEQUE","CHICLAYO","06.MONSEFU","130106"]
[null,null,null,null,null,null,"LAMBAYEQUE","CHICLAYO","07.NUEVA ARICA","130107"]
[null,null,null,null,null,null,"LAMBAYEQUE","CHICLAYO","08.OYOTUN","130108"]
[null,null,null,null,null,null,"LAMBAYEQUE","CHICLAYO","09.PICSI","130109"]
[null,null,null,null,null,null,"LAMBAYEQUE","CHICLAYO","10.PIMENTEL","130110"]
[null,null,null,null,null,null,"LAMBAYEQUE","CHICLAYO","11.REQUE","130111"]
[null,null,null,null,null,null,"LAMBAYEQUE","CHICLAYO","12.JOSE LEONARDO ORTIZ","130112"]
[null,null,null,null,null,null,"LAMBAYEQUE","CHICLAYO","13.SANTA ROSA","130113"]
[null,null,null,null,null,null,"LAMBAYEQUE","CHICLAYO","14.SAÑA","130114"]
[null,null,null,null,null,null,"LAMBAYEQUE","CHICLAYO","15.LA VICTORIA","130115"]
[null,null,null,null,null,null,"LAMBAYEQUE","CHICLAYO","16.CAYALTI","130116"]
[null,null,null,null,null,null,"LAMBAYEQUE","CHICLAYO","17.PATAPO","130117"]
[null,null,null,null,null,null,"LAMBAYEQUE","CHICLAYO","18.POMALCA","130118"]
[null,null,null,null,null,null,"LAMBAYEQUE","CHICLAYO","19.PUCALA","130119"]
[null,null,null,null,null,null,"LAMBAYEQUE","CHICLAYO","20.TUMAN","130120"]
[null,null,null,null,null,null,"LAMBAYEQUE","FERREÑAFE","01.FERREÑAFE","130201"]
[null,null,null,null,null,null,"LAMBAYEQUE","FERREÑAFE","02.INCAHUASI","130202"]
[null,null,null,null,null,null,"LAMBAYEQUE","FERREÑAFE","03.CAÑARIS","130203"]
[null,null,null,null,null,null,"LAMBAYEQUE","FERREÑAFE","04.PITIPO","130204"]
[null,null,null,null,null,null,"LAMBAYEQUE","FERREÑAFE","05.PUEBLO NUEVO","130205"]
[null,null,null,null,null,null,"LAMBAYEQUE","FERREÑAFE","06.MANUEL ANTONIO MESONES MURO","130206"]
[null,null,null,null,null,null,"LAMBAYEQUE","LAMBAYEQUE","01.LAMBAYEQUE","130301"]
[null,null,null,null,null,null,"LAMBAYEQUE","LAMBAYEQUE","02.CHOCHOPE","130302"]
[null,null,null,null,null,null,"LAMBAYEQUE","LAMBAYEQUE","03.ILLIMO","130303"]
[null,null,null,null,null,null,"LAMBAYEQUE","LAMBAYEQUE","04.JAYANCA","130304"]
[null,null,null,null,null,null,"LAMBAYEQUE","LAMBAYEQUE","05.MOCHUMI","130305"]
[null,null,null,null,null,null,"LAMBAYEQUE","LAMBAYEQUE","06.MORROPE","130306"]
[null,null,null,null,null,null,"LAMBAYEQUE","LAMBAYEQUE","07.MOTUPE","130307"]
[null,null,null,null,null,null,"LAMBAYEQUE","LAMBAYEQUE","08.OLMOS","130308"]
[null,null,null,null,null,null,"LAMBAYEQUE","LAMBAYEQUE","09.PACORA","130309"]
[null,null,null,null,null,null,"LAMBAYEQUE","LAMBAYEQUE","10.SALAS","130310"]
[null,null,null,null,null,null,"LAMBAYEQUE","LAMBAYEQUE","11.SAN JOSE","130311"]
[null,null,null,null,null,null,"LAMBAYEQUE","LAMBAYEQUE","12.TUCUME","130312"]
[null,null,null,null,null,null,"LIMA","LIMA","01.LIMA","140101"]
[null,null,null,null,null,null,"LIMA","LIMA","02.ANCON","140102"]
[null,null,null,null,null,null,"LIMA","LIMA","03.ATE","140103"]
[null,null,null,null,null,null,"LIMA","LIMA","04.BREÑA","140104"]
[null,null,null,null,null,null,"LIMA","LIMA","05.CARABAYLLO","140105"]
[null,null,null,null,null,null,"LIMA","LIMA","06.COMAS","140106"]
[null,null,null,null,null,null,"LIMA","LIMA","07.CHACLACAYO","140107"]
[null,null,null,null,null,null,"LIMA","LIMA","08.CHORRILLOS","140108"]
[null,null,null,null,null,null,"LIMA","LIMA","09.LA VICTORIA","140109"]
[null,null,null,null,null,null,"LIMA","LIMA","10.LA MOLINA","140110"]
[null,null,null,null,null,null,"LIMA","LIMA","11.LINCE","140111"]
[null,null,null,null,null,null,"LIMA","LIMA","12.LURIGANCHO","140112"]
[null,null,null,null,null,null,"LIMA","LIMA","13.LURIN","140113"]
[null,null,null,null,null,null,"LIMA","LIMA","14.MAGDALENA DEL MAR","140114"]
[null,null,null,null,null,null,"LIMA","LIMA","15.MIRAFLORES","140115"]
[null,null,null,null,null,null,"LIMA","LIMA","16.PACHACAMAC","140116"]
[null,null,null,null,null,null,"LIMA","LIMA","17.PUEBLO LIBRE","140117"]
[null,null,null,null,null,null,"LIMA","LIMA","18.PUCUSANA","140118"]
[null,null,null,null,null,null,"LIMA","LIMA","19.PUENTE PIEDRA","140119"]
[null,null,null,null,null,null,"LIMA","LIMA","20.PUNTA HERMOSA","140120"]
[null,null,null,null,null,null,"LIMA","LIMA","21.PUNTA NEGRA","140121"]
[null,null,null,null,null,null,"LIMA","LIMA","22.RIMAC","140122"]
[null,null,null,null,null,null,"LIMA","LIMA","23.SAN BARTOLO","140123"]
[null,null,null,null,null,null,"LIMA","LIMA","24.SAN ISIDRO","140124"]
[null,null,null,null,null,null,"LIMA","LIMA","25.BARRANCO","140125"]
[null,null,null,null,null,null,"LIMA","LIMA","26.SAN MARTIN DE PORRES","140126"]
[null,null,null,null,null,null,"LIMA","LIMA","27.SAN MIGUEL","140127"]
[null,null,null,null,null,null,"LIMA","LIMA","28.SANTA MARIA DEL MAR","140128"]
[null,null,null,null,null,null,"LIMA","LIMA","29.SANTA ROSA","140129"]
[null,null,null,null,null,null,"LIMA","LIMA","30.SANTIAGO DE SURCO","140130"]
[null,null,null,null,null,null,"LIMA","LIMA","31.SURQUILLO","140131"]
[null,null,null,null,null,null,"LIMA","LIMA","32.VILLA MARIA DEL TRIUNFO","140132"]
[null,null,null,null,null,null,"LIMA","LIMA","33.JESUS MARIA","140133"]
[null,null,null,null,null,null,"LIMA","LIMA","34.INDEPENDENCIA","140134"]
[null,null,null,null,null,null,"LIMA","LIMA","35.EL AGUSTINO","140135"]
[null,null,null,null,null,null,"LIMA","LIMA","36.SAN JUAN DE MIRAFLORES","140136"]
[null,null,null,null,null,null,"LIMA","LIMA","37.SAN JUAN DE LURIGANCHO","140137"]
[null,null,null,null,null,null,"LIMA","LIMA","38.SAN LUIS","140138"]
[null,null,null,null,null,null,"LIMA","LIMA","39.CIENEGUILLA","140139"]
[null,null,null,null,null,null,"LIMA","LIMA","40.SAN BORJA","140140"]
[null,null,null,null,null,null,"LIMA","LIMA","41.VILLA EL SALVADOR","140141"]
[null,null,null,null,null,null,"LIMA","LIMA","42.LOS OLIVOS","140142"]
[null,null,null,null,null,null,"LIMA","LIMA","43.SANTA ANITA","140143"]
[null,null,null,null,null,null,"LIMA","CAJATAMBO","01.CAJATAMBO","140201"]
[null,null,null,null,null,null,"LIMA","CAJATAMBO","05.COPA","140205"]
[null,null,null,null,null,null,"LIMA","CAJATAMBO","06.GORGOR","140206"]
[null,null,null,null,null,null,"LIMA","CAJATAMBO","07.HUANCAPON","140207"]
[null,null,null,null,null,null,"LIMA","CAJATAMBO","08.MANAS","140208"]
[null,null,null,null,null,null,"LIMA","CANTA","01.CANTA","140301"]
[null,null,null,null,null,null,"LIMA","CANTA","02.ARAHUAY","140302"]
[null,null,null,null,null,null,"LIMA","CANTA","03.HUAMANTANGA","140303"]
[null,null,null,null,null,null,"LIMA","CANTA","04.HUAROS","140304"]
[null,null,null,null,null,null,"LIMA","CANTA","05.LACHAQUI","140305"]
[null,null,null,null,null,null,"LIMA","CANTA","06.SAN BUENAVENTURA","140306"]
[null,null,null,null,null,null,"LIMA","CANTA","07.SANTA ROSA DE QUIVES","140307"]
[null,null,null,null,null,null,"LIMA","CAÑETE","01.SAN VICENTE DE CAÑETE","140401"]
[null,null,null,null,null,null,"LIMA","CAÑETE","02.CALANGO","140402"]
[null,null,null,null,null,null,"LIMA","CAÑETE","03.CERRO AZUL","140403"]
[null,null,null,null,null,null,"LIMA","CAÑETE","04.COAYLLO","140404"]
[null,null,null,null,null,null,"LIMA","CAÑETE","05.CHILCA","140405"]
[null,null,null,null,null,null,"LIMA","CAÑETE","06.IMPERIAL","140406"]
[null,null,null,null,null,null,"LIMA","CAÑETE","07.LUNAHUANA","140407"]
[null,null,null,null,null,null,"LIMA","CAÑETE","08.MALA","140408"]
[null,null,null,null,null,null,"LIMA","CAÑETE","09.NUEVO IMPERIAL","140409"]
[null,null,null,null,null,null,"LIMA","CAÑETE","10.PACARAN","140410"]
[null,null,null,null,null,null,"LIMA","CAÑETE","11.QUILMANA","140411"]
[null,null,null,null,null,null,"LIMA","CAÑETE","12.SAN ANTONIO","140412"]
[null,null,null,null,null,null,"LIMA","CAÑETE","13.SAN LUIS","140413"]
[null,null,null,null,null,null,"LIMA","CAÑETE","14.SANTA CRUZ DE FLORES","140414"]
[null,null,null,null,null,null,"LIMA","CAÑETE","15.ZUÑIGA","140415"]
[null,null,null,null,null,null,"LIMA","CAÑETE","16.ASIA","140416"]
[null,null,null,null,null,null,"LIMA","HUAURA","01.HUACHO","140501"]
[null,null,null,null,null,null,"LIMA","HUAURA","02.AMBAR","140502"]
[null,null,null,null,null,null,"LIMA","HUAURA","04.CALETA DE CARQUIN","140504"]
[null,null,null,null,null,null,"LIMA","HUAURA","05.CHECRAS","140505"]
[null,null,null,null,null,null,"LIMA","HUAURA","06.HUALMAY","140506"]
[null,null,null,null,null,null,"LIMA","HUAURA","07.HUAURA","140507"]
[null,null,null,null,null,null,"LIMA","HUAURA","08.LEONCIO PRADO","140508"]
[null,null,null,null,null,null,"LIMA","HUAURA","09.PACCHO","140509"]
[null,null,null,null,null,null,"LIMA","HUAURA","11.SANTA LEONOR","140511"]
[null,null,null,null,null,null,"LIMA","HUAURA","12.SANTA MARIA","140512"]
[null,null,null,null,null,null,"LIMA","HUAURA","13.SAYAN","140513"]
[null,null,null,null,null,null,"LIMA","HUAURA","16.VEGUETA","140516"]
[null,null,null,null,null,null,"LIMA","HUAROCHIRI","01.MATUCANA","140601"]
[null,null,null,null,null,null,"LIMA","HUAROCHIRI","02.ANTIOQUIA","140602"]
[null,null,null,null,null,null,"LIMA","HUAROCHIRI","03.CALLAHUANCA","140603"]
[null,null,null,null,null,null,"LIMA","HUAROCHIRI","04.CARAMPOMA","140604"]
[null,null,null,null,null,null,"LIMA","HUAROCHIRI","05.CASTA","140605"]
[null,null,null,null,null,null,"LIMA","HUAROCHIRI","06.SAN JOSE DE LOS CHORRILLOS","140606"]
[null,null,null,null,null,null,"LIMA","HUAROCHIRI","07.CHICLA","140607"]
[null,null,null,null,null,null,"LIMA","HUAROCHIRI","08.HUANZA","140608"]
[null,null,null,null,null,null,"LIMA","HUAROCHIRI","09.HUAROCHIRI","140609"]
[null,null,null,null,null,null,"LIMA","HUAROCHIRI","10.LAHUAYTAMBO","140610"]
[null,null,null,null,null,null,"LIMA","HUAROCHIRI","11.LANGA","140611"]
[null,null,null,null,null,null,"LIMA","HUAROCHIRI","12.MARIATANA","140612"]
[null,null,null,null,null,null,"LIMA","HUAROCHIRI","13.RICARDO PALMA","140613"]
[null,null,null,null,null,null,"LIMA","HUAROCHIRI","14.SAN ANDRES DE TUPICOCHA","140614"]
[null,null,null,null,null,null,"LIMA","HUAROCHIRI","15.SAN ANTONIO","140615"]
[null,null,null,null,null,null,"LIMA","HUAROCHIRI","16.SAN BARTOLOME","140616"]
[null,null,null,null,null,null,"LIMA","HUAROCHIRI","17.SAN DAMIAN","140617"]
[null,null,null,null,null,null,"LIMA","HUAROCHIRI","18.SANGALLAYA","140618"]
[null,null,null,null,null,null,"LIMA","HUAROCHIRI","19.SAN JUAN DE TANTARANCHE","140619"]
[null,null,null,null,null,null,"LIMA","HUAROCHIRI","20.SAN LORENZO DE QUINTI","140620"]
[null,null,null,null,null,null,"LIMA","HUAROCHIRI","21.SAN MATEO","140621"]
[null,null,null,null,null,null,"LIMA","HUAROCHIRI","22.SAN MATEO DE OTAO","140622"]
[null,null,null,null,null,null,"LIMA","HUAROCHIRI","23.SAN PEDRO DE HUANCAYRE","140623"]
[null,null,null,null,null,null,"LIMA","HUAROCHIRI","24.SANTA CRUZ DE COCACHACRA","140624"]
[null,null,null,null,null,null,"LIMA","HUAROCHIRI","25.SANTA EULALIA","140625"]
[null,null,null,null,null,null,"LIMA","HUAROCHIRI","26.SANTIAGO DE ANCHUCAYA","140626"]
[null,null,null,null,null,null,"LIMA","HUAROCHIRI","27.SANTIAGO DE TUNA","140627"]
[null,null,null,null,null,null,"LIMA","HUAROCHIRI","28.SANTO DOMINGO DE LOS OLLEROS","140628"]
[null,null,null,null,null,null,"LIMA","HUAROCHIRI","29.SURCO","140629"]
[null,null,null,null,null,null,"LIMA","HUAROCHIRI","30.HUACHUPAMPA","140630"]
[null,null,null,null,null,null,"LIMA","HUAROCHIRI","31.LARAOS","140631"]
[null,null,null,null,null,null,"LIMA","HUAROCHIRI","32.SAN JUAN DE IRIS","140632"]
[null,null,null,null,null,null,"LIMA","YAUYOS","01.YAUYOS","140701"]
[null,null,null,null,null,null,"LIMA","YAUYOS","02.ALIS","140702"]
[null,null,null,null,null,null,"LIMA","YAUYOS","03.ALLAUCA","140703"]
[null,null,null,null,null,null,"LIMA","YAUYOS","04.AYAVIRI","140704"]
[null,null,null,null,null,null,"LIMA","YAUYOS","05.AZANGARO","140705"]
[null,null,null,null,null,null,"LIMA","YAUYOS","06.CACRA","140706"]
[null,null,null,null,null,null,"LIMA","YAUYOS","07.CARANIA","140707"]
[null,null,null,null,null,null,"LIMA","YAUYOS","08.COCHAS","140708"]
[null,null,null,null,null,null,"LIMA","YAUYOS","09.COLONIA","140709"]
[null,null,null,null,null,null,"LIMA","YAUYOS","10.CHOCOS","140710"]
[null,null,null,null,null,null,"LIMA","YAUYOS","11.HUAMPARA","140711"]
[null,null,null,null,null,null,"LIMA","YAUYOS","12.HUANCAYA","140712"]
[null,null,null,null,null,null,"LIMA","YAUYOS","13.HUANGASCAR","140713"]
[null,null,null,null,null,null,"LIMA","YAUYOS","14.HUANTAN","140714"]
[null,null,null,null,null,null,"LIMA","YAUYOS","15.HUAÑEC","140715"]
[null,null,null,null,null,null,"LIMA","YAUYOS","16.LARAOS","140716"]
[null,null,null,null,null,null,"LIMA","YAUYOS","17.LINCHA","140717"]
[null,null,null,null,null,null,"LIMA","YAUYOS","18.MIRAFLORES","140718"]
[null,null,null,null,null,null,"LIMA","YAUYOS","19.OMAS","140719"]
[null,null,null,null,null,null,"LIMA","YAUYOS","20.QUINCHES","140720"]
[null,null,null,null,null,null,"LIMA","YAUYOS","21.QUINOCAY","140721"]
[null,null,null,null,null,null,"LIMA","YAUYOS","22.SAN JOAQUIN","140722"]
[null,null,null,null,null,null,"LIMA","YAUYOS","23.SAN PEDRO DE PILAS","140723"]
[null,null,null,null,null,null,"LIMA","YAUYOS","24.TANTA","140724"]
[null,null,null,null,null,null,"LIMA","YAUYOS","25.TAURIPAMPA","140725"]
[null,null,null,null,null,null,"LIMA","YAUYOS","26.TUPE","140726"]
[null,null,null,null,null,null,"LIMA","YAUYOS","27.TOMAS","140727"]
[null,null,null,null,null,null,"LIMA","YAUYOS","28.VIÑAC","140728"]
[null,null,null,null,null,null,"LIMA","YAUYOS","29.VITIS","140729"]
[null,null,null,null,null,null,"LIMA","YAUYOS","30.HONGOS","140730"]
[null,null,null,null,null,null,"LIMA","YAUYOS","31.MADEAN","140731"]
[null,null,null,null,null,null,"LIMA","YAUYOS","32.PUTINZA","140732"]
[null,null,null,null,null,null,"LIMA","YAUYOS","33.CATAHUASI","140733"]
[null,null,null,null,null,null,"LIMA","HUARAL","01.HUARAL","140801"]
[null,null,null,null,null,null,"LIMA","HUARAL","02.ATAVILLOS ALTO","140802"]
[null,null,null,null,null,null,"LIMA","HUARAL","03.ATAVILLOS BAJO","140803"]
[null,null,null,null,null,null,"LIMA","HUARAL","04.AUCALLAMA","140804"]
[null,null,null,null,null,null,"LIMA","HUARAL","05.CHANCAY","140805"]
[null,null,null,null,null,null,"LIMA","HUARAL","06.IHUARI","140806"]
[null,null,null,null,null,null,"LIMA","HUARAL","07.LAMPIAN","140807"]
[null,null,null,null,null,null,"LIMA","HUARAL","08.PACARAOS","140808"]
[null,null,null,null,null,null,"LIMA","HUARAL","09.SAN MIGUEL DE ACOS","140809"]
[null,null,null,null,null,null,"LIMA","HUARAL","10.VEINTISIETE DE NOVIEMBRE","140810"]
[null,null,null,null,null,null,"LIMA","HUARAL","11.SANTA CRUZ DE ANDAMARCA","140811"]
[null,null,null,null,null,null,"LIMA","HUARAL","12.SUMBILCA","140812"]
[null,null,null,null,null,null,"LIMA","BARRANCA","01.BARRANCA","140901"]
[null,null,null,null,null,null,"LIMA","BARRANCA","02.PARAMONGA","140902"]
[null,null,null,null,null,null,"LIMA","BARRANCA","03.PATIVILCA","140903"]
[null,null,null,null,null,null,"LIMA","BARRANCA","04.SUPE","140904"]
[null,null,null,null,null,null,"LIMA","BARRANCA","05.SUPE PUERTO","140905"]
[null,null,null,null,null,null,"LIMA","OYON","01.OYON","141001"]
[null,null,null,null,null,null,"LIMA","OYON","02.NAVAN","141002"]
[null,null,null,null,null,null,"LIMA","OYON","03.CAUJUL","141003"]
[null,null,null,null,null,null,"LIMA","OYON","04.ANDAJES","141004"]
[null,null,null,null,null,null,"LIMA","OYON","05.PACHANGARA","141005"]
[null,null,null,null,null,null,"LIMA","OYON","06.COCHAMARCA","141006"]
[null,null,null,null,null,null,"LORETO","MAYNAS","01.IQUITOS","150101"]
[null,null,null,null,null,null,"LORETO","MAYNAS","02.ALTO NANAY","150102"]
[null,null,null,null,null,null,"LORETO","MAYNAS","03.FERNANDO LORES","150103"]
[null,null,null,null,null,null,"LORETO","MAYNAS","04.LAS AMAZONAS","150104"]
[null,null,null,null,null,null,"LORETO","MAYNAS","05.MAZAN","150105"]
[null,null,null,null,null,null,"LORETO","MAYNAS","06.NAPO","150106"]
[null,null,null,null,null,null,"LORETO","MAYNAS","07.PUTUMAYO","150107"]
[null,null,null,null,null,null,"LORETO","MAYNAS","08.TORRES CAUSANA","150108"]
[null,null,null,null,null,null,"LORETO","MAYNAS","10.INDIANA","150110"]
[null,null,null,null,null,null,"LORETO","MAYNAS","11.PUNCHANA","150111"]
[null,null,null,null,null,null,"LORETO","MAYNAS","12.BELEN","150112"]
[null,null,null,null,null,null,"LORETO","MAYNAS","13.SAN JUAN BAUTISTA","150113"]
[null,null,null,null,null,null,"LORETO","MAYNAS","14.TENIENTE MANUEL CLAVERO","150114"]
[null,null,null,null,null,null,"LORETO","ALTO AMAZONAS","01.YURIMAGUAS","150201"]
[null,null,null,null,null,null,"LORETO","ALTO AMAZONAS","02.BALSAPUERTO","150202"]
[null,null,null,null,null,null,"LORETO","ALTO AMAZONAS","05.JEBEROS","150205"]
[null,null,null,null,null,null,"LORETO","ALTO AMAZONAS","06.LAGUNAS","150206"]
[null,null,null,null,null,null,"LORETO","ALTO AMAZONAS","10.SANTA CRUZ","150210"]
[null,null,null,null,null,null,"LORETO","ALTO AMAZONAS","11.TENIENTE CESAR LOPEZ ROJAS","150211"]
[null,null,null,null,null,null,"LORETO","LORETO","01.NAUTA","150301"]
[null,null,null,null,null,null,"LORETO","LORETO","02.PARINARI","150302"]
[null,null,null,null,null,null,"LORETO","LORETO","03.TIGRE","150303"]
[null,null,null,null,null,null,"LORETO","LORETO","04.URARINAS","150304"]
[null,null,null,null,null,null,"LORETO","LORETO","05.TROMPETEROS","150305"]
[null,null,null,null,null,null,"LORETO","REQUENA","01.REQUENA","150401"]
[null,null,null,null,null,null,"LORETO","REQUENA","02.ALTO TAPICHE","150402"]
[null,null,null,null,null,null,"LORETO","REQUENA","03.CAPELO","150403"]
[null,null,null,null,null,null,"LORETO","REQUENA","04.EMILIO SAN MARTIN","150404"]
[null,null,null,null,null,null,"LORETO","REQUENA","05.MAQUIA","150405"]
[null,null,null,null,null,null,"LORETO","REQUENA","06.PUINAHUA","150406"]
[null,null,null,null,null,null,"LORETO","REQUENA","07.SAQUENA","150407"]
[null,null,null,null,null,null,"LORETO","REQUENA","08.SOPLIN","150408"]
[null,null,null,null,null,null,"LORETO","REQUENA","09.TAPICHE","150409"]
[null,null,null,null,null,null,"LORETO","REQUENA","10.JENARO HERRERA","150410"]
[null,null,null,null,null,null,"LORETO","REQUENA","11.YAQUERANA","150411"]
[null,null,null,null,null,null,"LORETO","UCAYALI","01.CONTAMANA","150501"]
[null,null,null,null,null,null,"LORETO","UCAYALI","02.VARGAS GUERRA","150502"]
[null,null,null,null,null,null,"LORETO","UCAYALI","03.PADRE MARQUEZ","150503"]
[null,null,null,null,null,null,"LORETO","UCAYALI","04.PAMPA HERMOSA","150504"]
[null,null,null,null,null,null,"LORETO","UCAYALI","05.SARAYACU","150505"]
[null,null,null,null,null,null,"LORETO","UCAYALI","06.INAHUAYA","150506"]
[null,null,null,null,null,null,"LORETO","MARISCAL RAMON CASTILLA","01.RAMON CASTILLA","150601"]
[null,null,null,null,null,null,"LORETO","MARISCAL RAMON CASTILLA","02.PEBAS","150602"]
[null,null,null,null,null,null,"LORETO","MARISCAL RAMON CASTILLA","03.YAVARI","150603"]
[null,null,null,null,null,null,"LORETO","MARISCAL RAMON CASTILLA","04.SAN PABLO","150604"]
[null,null,null,null,null,null,"LORETO","DATEM DEL MARAÑON","01.BARRANCA","150701"]
[null,null,null,null,null,null,"LORETO","DATEM DEL MARAÑON","02.ANDOAS","150702"]
[null,null,null,null,null,null,"LORETO","DATEM DEL MARAÑON","03.CAHUAPANAS","150703"]
[null,null,null,null,null,null,"LORETO","DATEM DEL MARAÑON","04.MANSERICHE","150704"]
[null,null,null,null,null,null,"LORETO","DATEM DEL MARAÑON","05.MORONA","150705"]
[null,null,null,null,null,null,"LORETO","DATEM DEL MARAÑON","06.PASTAZA","150706"]
[null,null,null,null,null,null,"MADRE DE DIOS","TAMBOPATA","01.TAMBOPATA","160101"]
[null,null,null,null,null,null,"MADRE DE DIOS","TAMBOPATA","02.INAMBARI","160102"]
[null,null,null,null,null,null,"MADRE DE DIOS","TAMBOPATA","03.LAS PIEDRAS","160103"]
[null,null,null,null,null,null,"MADRE DE DIOS","TAMBOPATA","04.LABERINTO","160104"]
[null,null,null,null,null,null,"MADRE DE DIOS","MANU","01.MANU","160201"]
[null,null,null,null,null,null,"MADRE DE DIOS","MANU","02.FITZCARRALD","160202"]
[null,null,null,null,null,null,"MADRE DE DIOS","MANU","03.MADRE DE DIOS","160203"]
[null,null,null,null,null,null,"MADRE DE DIOS","MANU","04.HUEPETUHE","160204"]
[null,null,null,null,null,null,"MADRE DE DIOS","TAHUAMANU","01.IÑAPARI","160301"]
[null,null,null,null,null,null,"MADRE DE DIOS","TAHUAMANU","02.IBERIA","160302"]
[null,null,null,null,null,null,"MADRE DE DIOS","TAHUAMANU","03.TAHUAMANU","160303"]
[null,null,null,null,null,null,"MOQUEGUA","MARISCAL NIETO","01.MOQUEGUA","170101"]
[null,null,null,null,null,null,"MOQUEGUA","MARISCAL NIETO","02.CARUMAS","170102"]
[null,null,null,null,null,null,"MOQUEGUA","MARISCAL NIETO","03.CUCHUMBAYA","170103"]
[null,null,null,null,null,null,"MOQUEGUA","MARISCAL NIETO","04.SAN CRISTOBAL","170104"]
[null,null,null,null,null,null,"MOQUEGUA","MARISCAL NIETO","05.TORATA","170105"]
[null,null,null,null,null,null,"MOQUEGUA","MARISCAL NIETO","06.SAMEGUA","170106"]
[null,null,null,null,null,null,"MOQUEGUA","GENERAL SANCHEZ CERRO","01.OMATE","170201"]
[null,null,null,null,null,null,"MOQUEGUA","GENERAL SANCHEZ CERRO","02.COALAQUE","170202"]
[null,null,null,null,null,null,"MOQUEGUA","GENERAL SANCHEZ CERRO","03.CHOJATA","170203"]
[null,null,null,null,null,null,"MOQUEGUA","GENERAL SANCHEZ CERRO","04.ICHUÑA","170204"]
[null,null,null,null,null,null,"MOQUEGUA","GENERAL SANCHEZ CERRO","05.LA CAPILLA","170205"]
[null,null,null,null,null,null,"MOQUEGUA","GENERAL SANCHEZ CERRO","06.LLOQUE","170206"]
[null,null,null,null,null,null,"MOQUEGUA","GENERAL SANCHEZ CERRO","07.MATALAQUE","170207"]
[null,null,null,null,null,null,"MOQUEGUA","GENERAL SANCHEZ CERRO","08.PUQUINA","170208"]
[null,null,null,null,null,null,"MOQUEGUA","GENERAL SANCHEZ CERRO","09.QUINISTAQUILLAS","170209"]
[null,null,null,null,null,null,"MOQUEGUA","GENERAL SANCHEZ CERRO","10.UBINAS","170210"]
[null,null,null,null,null,null,"MOQUEGUA","GENERAL SANCHEZ CERRO","11.YUNGA","170211"]
[null,null,null,null,null,null,"MOQUEGUA","ILO","01.ILO","170301"]
[null,null,null,null,null,null,"MOQUEGUA","ILO","02.EL ALGARROBAL","170302"]
[null,null,null,null,null,null,"MOQUEGUA","ILO","03.PACOCHA","170303"]
[null,null,null,null,null,null,"PASCO","PASCO","01.CHAUPIMARCA","180101"]
[null,null,null,null,null,null,"PASCO","PASCO","03.HUACHON","180103"]
[null,null,null,null,null,null,"PASCO","PASCO","04.HUARIACA","180104"]
[null,null,null,null,null,null,"PASCO","PASCO","05.HUAYLLAY","180105"]
[null,null,null,null,null,null,"PASCO","PASCO","06.NINACACA","180106"]
[null,null,null,null,null,null,"PASCO","PASCO","07.PALLANCHACRA","180107"]
[null,null,null,null,null,null,"PASCO","PASCO","08.PAUCARTAMBO","180108"]
[null,null,null,null,null,null,"PASCO","PASCO","09.SAN FCO DE ASIS DE YARUSYACAN","180109"]
[null,null,null,null,null,null,"PASCO","PASCO","10.SIMON BOLIVAR","180110"]
[null,null,null,null,null,null,"PASCO","PASCO","11.TICLACAYAN","180111"]
[null,null,null,null,null,null,"PASCO","PASCO","12.TINYAHUARCO","180112"]
[null,null,null,null,null,null,"PASCO","PASCO","13.VICCO","180113"]
[null,null,null,null,null,null,"PASCO","PASCO","14.YANACANCHA","180114"]
[null,null,null,null,null,null,"PASCO","DANIEL ALCIDES CARRION","01.YANAHUANCA","180201"]
[null,null,null,null,null,null,"PASCO","DANIEL ALCIDES CARRION","02.CHACAYAN","180202"]
[null,null,null,null,null,null,"PASCO","DANIEL ALCIDES CARRION","03.GOYLLARISQUIZGA","180203"]
[null,null,null,null,null,null,"PASCO","DANIEL ALCIDES CARRION","04.PAUCAR","180204"]
[null,null,null,null,null,null,"PASCO","DANIEL ALCIDES CARRION","05.SAN PEDRO DE PILLAO","180205"]
[null,null,null,null,null,null,"PASCO","DANIEL ALCIDES CARRION","06.SANTA ANA DE TUSI","180206"]
[null,null,null,null,null,null,"PASCO","DANIEL ALCIDES CARRION","07.TAPUC","180207"]
[null,null,null,null,null,null,"PASCO","DANIEL ALCIDES CARRION","08.VILCABAMBA","180208"]
[null,null,null,null,null,null,"PASCO","OXAPAMPA","01.OXAPAMPA","180301"]
[null,null,null,null,null,null,"PASCO","OXAPAMPA","02.CHONTABAMBA","180302"]
[null,null,null,null,null,null,"PASCO","OXAPAMPA","03.HUANCABAMBA","180303"]
[null,null,null,null,null,null,"PASCO","OXAPAMPA","04.PUERTO BERMUDEZ","180304"]
[null,null,null,null,null,null,"PASCO","OXAPAMPA","05.VILLA RICA","180305"]
[null,null,null,null,null,null,"PASCO","OXAPAMPA","06.POZUZO","180306"]
[null,null,null,null,null,null,"PASCO","OXAPAMPA","07.PALCAZU","180307"]
[null,null,null,null,null,null,"PASCO","OXAPAMPA","08.CONSTITUCION","180308"]
[null,null,null,null,null,null,"PIURA","PIURA","01.PIURA","190101"]
[null,null,null,null,null,null,"PIURA","PIURA","03.CASTILLA","190103"]
[null,null,null,null,null,null,"PIURA","PIURA","04.CATACAOS","190104"]
[null,null,null,null,null,null,"PIURA","PIURA","05.LA ARENA","190105"]
[null,null,null,null,null,null,"PIURA","PIURA","06.LA UNION","190106"]
[null,null,null,null,null,null,"PIURA","PIURA","07.LAS LOMAS","190107"]
[null,null,null,null,null,null,"PIURA","PIURA","09.TAMBO GRANDE","190109"]
[null,null,null,null,null,null,"PIURA","PIURA","13.CURA MORI","190113"]
[null,null,null,null,null,null,"PIURA","PIURA","14.EL TALLAN","190114"]
[null,null,null,null,null,null,"PIURA","AYABACA","01.AYABACA","190201"]
[null,null,null,null,null,null,"PIURA","AYABACA","02.FRIAS","190202"]
[null,null,null,null,null,null,"PIURA","AYABACA","03.LAGUNAS","190203"]
[null,null,null,null,null,null,"PIURA","AYABACA","04.MONTERO","190204"]
[null,null,null,null,null,null,"PIURA","AYABACA","05.PACAIPAMPA","190205"]
[null,null,null,null,null,null,"PIURA","AYABACA","06.SAPILLICA","190206"]
[null,null,null,null,null,null,"PIURA","AYABACA","07.SICCHEZ","190207"]
[null,null,null,null,null,null,"PIURA","AYABACA","08.SUYO","190208"]
[null,null,null,null,null,null,"PIURA","AYABACA","09.JILILI","190209"]
[null,null,null,null,null,null,"PIURA","AYABACA","10.PAIMAS","190210"]
[null,null,null,null,null,null,"PIURA","HUANCABAMBA","01.HUANCABAMBA","190301"]
[null,null,null,null,null,null,"PIURA","HUANCABAMBA","02.CANCHAQUE","190302"]
[null,null,null,null,null,null,"PIURA","HUANCABAMBA","03.HUARMACA","190303"]
[null,null,null,null,null,null,"PIURA","HUANCABAMBA","04.SONDOR","190304"]
[null,null,null,null,null,null,"PIURA","HUANCABAMBA","05.SONDORILLO","190305"]
[null,null,null,null,null,null,"PIURA","HUANCABAMBA","06.EL CARMEN DE LA FRONTERA","190306"]
[null,null,null,null,null,null,"PIURA","HUANCABAMBA","07.SAN MIGUEL DE EL FAIQUE","190307"]
[null,null,null,null,null,null,"PIURA","HUANCABAMBA","08.LALAQUIZ","190308"]
[null,null,null,null,null,null,"PIURA","MORROPON","01.CHULUCANAS","190401"]
[null,null,null,null,null,null,"PIURA","MORROPON","02.BUENOS AIRES","190402"]
[null,null,null,null,null,null,"PIURA","MORROPON","03.CHALACO","190403"]
[null,null,null,null,null,null,"PIURA","MORROPON","04.MORROPON","190404"]
[null,null,null,null,null,null,"PIURA","MORROPON","05.SALITRAL","190405"]
[null,null,null,null,null,null,"PIURA","MORROPON","06.SANTA CATALINA DE MOSSA","190406"]
[null,null,null,null,null,null,"PIURA","MORROPON","07.SANTO DOMINGO","190407"]
[null,null,null,null,null,null,"PIURA","MORROPON","08.LA MATANZA","190408"]
[null,null,null,null,null,null,"PIURA","MORROPON","09.YAMANGO","190409"]
[null,null,null,null,null,null,"PIURA","MORROPON","10.SAN JUAN DE BIGOTE","190410"]
[null,null,null,null,null,null,"PIURA","PAITA","01.PAITA","190501"]
[null,null,null,null,null,null,"PIURA","PAITA","02.AMOTAPE","190502"]
[null,null,null,null,null,null,"PIURA","PAITA","03.ARENAL","190503"]
[null,null,null,null,null,null,"PIURA","PAITA","04.LA HUACA","190504"]
[null,null,null,null,null,null,"PIURA","PAITA","05.COLAN","190505"]
[null,null,null,null,null,null,"PIURA","PAITA","06.TAMARINDO","190506"]
[null,null,null,null,null,null,"PIURA","PAITA","07.VICHAYAL","190507"]
[null,null,null,null,null,null,"PIURA","SULLANA","01.SULLANA","190601"]
[null,null,null,null,null,null,"PIURA","SULLANA","02.BELLAVISTA","190602"]
[null,null,null,null,null,null,"PIURA","SULLANA","03.LANCONES","190603"]
[null,null,null,null,null,null,"PIURA","SULLANA","04.MARCAVELICA","190604"]
[null,null,null,null,null,null,"PIURA","SULLANA","05.MIGUEL CHECA","190605"]
[null,null,null,null,null,null,"PIURA","SULLANA","06.QUERECOTILLO","190606"]
[null,null,null,null,null,null,"PIURA","SULLANA","07.SALITRAL","190607"]
[null,null,null,null,null,null,"PIURA","SULLANA","08.IGNACIO ESCUDERO","190608"]
[null,null,null,null,null,null,"PIURA","TALARA","01.PARIÑAS","190701"]
[null,null,null,null,null,null,"PIURA","TALARA","02.EL ALTO","190702"]
[null,null,null,null,null,null,"PIURA","TALARA","03.LA BREA","190703"]
[null,null,null,null,null,null,"PIURA","TALARA","04.LOBITOS","190704"]
[null,null,null,null,null,null,"PIURA","TALARA","05.MANCORA","190705"]
[null,null,null,null,null,null,"PIURA","TALARA","06.LOS ORGANOS","190706"]
[null,null,null,null,null,null,"PIURA","SECHURA","01.SECHURA","190801"]
[null,null,null,null,null,null,"PIURA","SECHURA","02.VICE","190802"]
[null,null,null,null,null,null,"PIURA","SECHURA","03.BERNAL","190803"]
[null,null,null,null,null,null,"PIURA","SECHURA","04.BELLAVISTA DE LA UNION","190804"]
[null,null,null,null,null,null,"PIURA","SECHURA","05.CRISTO NOS VALGA","190805"]
[null,null,null,null,null,null,"PIURA","SECHURA","06.RINCONADA-LLICUAR","190806"]
[null,null,null,null,null,null,"PUNO","PUNO","01.PUNO","200101"]
[null,null,null,null,null,null,"PUNO","PUNO","02.ACORA","200102"]
[null,null,null,null,null,null,"PUNO","PUNO","03.ATUNCOLLA","200103"]
[null,null,null,null,null,null,"PUNO","PUNO","04.CAPACHICA","200104"]
[null,null,null,null,null,null,"PUNO","PUNO","05.COATA","200105"]
[null,null,null,null,null,null,"PUNO","PUNO","06.CHUCUITO","200106"]
[null,null,null,null,null,null,"PUNO","PUNO","07.HUATA","200107"]
[null,null,null,null,null,null,"PUNO","PUNO","08.MAÑAZO","200108"]
[null,null,null,null,null,null,"PUNO","PUNO","09.PAUCARCOLLA","200109"]
[null,null,null,null,null,null,"PUNO","PUNO","10.PICHACANI","200110"]
[null,null,null,null,null,null,"PUNO","PUNO","11.SAN ANTONIO","200111"]
[null,null,null,null,null,null,"PUNO","PUNO","12.TIQUILLACA","200112"]
[null,null,null,null,null,null,"PUNO","PUNO","13.VILQUE","200113"]
[null,null,null,null,null,null,"PUNO","PUNO","14.PLATERIA","200114"]
[null,null,null,null,null,null,"PUNO","PUNO","15.AMANTANI","200115"]
[null,null,null,null,null,null,"PUNO","AZANGARO","01.AZANGARO","200201"]
[null,null,null,null,null,null,"PUNO","AZANGARO","02.ACHAYA","200202"]
[null,null,null,null,null,null,"PUNO","AZANGARO","03.ARAPA","200203"]
[null,null,null,null,null,null,"PUNO","AZANGARO","04.ASILLO","200204"]
[null,null,null,null,null,null,"PUNO","AZANGARO","05.CAMINACA","200205"]
[null,null,null,null,null,null,"PUNO","AZANGARO","06.CHUPA","200206"]
[null,null,null,null,null,null,"PUNO","AZANGARO","07.JOSE DOMINGO CHOQUEHUANCA","200207"]
[null,null,null,null,null,null,"PUNO","AZANGARO","08.MUÑANI","200208"]
[null,null,null,null,null,null,"PUNO","AZANGARO","10.POTONI","200210"]
[null,null,null,null,null,null,"PUNO","AZANGARO","12.SAMAN","200212"]
[null,null,null,null,null,null,"PUNO","AZANGARO","13.SAN ANTON","200213"]
[null,null,null,null,null,null,"PUNO","AZANGARO","14.SAN JOSE","200214"]
[null,null,null,null,null,null,"PUNO","AZANGARO","15.SAN JUAN DE SALINAS","200215"]
[null,null,null,null,null,null,"PUNO","AZANGARO","16.SANTIAGO DE PUPUJA","200216"]
[null,null,null,null,null,null,"PUNO","AZANGARO","17.TIRAPATA","200217"]
[null,null,null,null,null,null,"PUNO","CARABAYA","01.MACUSANI","200301"]
[null,null,null,null,null,null,"PUNO","CARABAYA","02.AJOYANI","200302"]
[null,null,null,null,null,null,"PUNO","CARABAYA","03.AYAPATA","200303"]
[null,null,null,null,null,null,"PUNO","CARABAYA","04.COASA","200304"]
[null,null,null,null,null,null,"PUNO","CARABAYA","05.CORANI","200305"]
[null,null,null,null,null,null,"PUNO","CARABAYA","06.CRUCERO","200306"]
[null,null,null,null,null,null,"PUNO","CARABAYA","07.ITUATA","200307"]
[null,null,null,null,null,null,"PUNO","CARABAYA","08.OLLACHEA","200308"]
[null,null,null,null,null,null,"PUNO","CARABAYA","09.SAN GABAN","200309"]
[null,null,null,null,null,null,"PUNO","CARABAYA","10.USICAYOS","200310"]
[null,null,null,null,null,null,"PUNO","CHUCUITO","01.JULI","200401"]
[null,null,null,null,null,null,"PUNO","CHUCUITO","02.DESAGUADERO","200402"]
[null,null,null,null,null,null,"PUNO","CHUCUITO","03.HUACULLANI","200403"]
[null,null,null,null,null,null,"PUNO","CHUCUITO","06.PISACOMA","200406"]
[null,null,null,null,null,null,"PUNO","CHUCUITO","07.POMATA","200407"]
[null,null,null,null,null,null,"PUNO","CHUCUITO","10.ZEPITA","200410"]
[null,null,null,null,null,null,"PUNO","CHUCUITO","12.KELLUYO","200412"]
[null,null,null,null,null,null,"PUNO","HUANCANE","01.HUANCANE","200501"]
[null,null,null,null,null,null,"PUNO","HUANCANE","02.COJATA","200502"]
[null,null,null,null,null,null,"PUNO","HUANCANE","04.INCHUPALLA","200504"]
[null,null,null,null,null,null,"PUNO","HUANCANE","06.PUSI","200506"]
[null,null,null,null,null,null,"PUNO","HUANCANE","07.ROSASPATA","200507"]
[null,null,null,null,null,null,"PUNO","HUANCANE","08.TARACO","200508"]
[null,null,null,null,null,null,"PUNO","HUANCANE","09.VILQUE CHICO","200509"]
[null,null,null,null,null,null,"PUNO","HUANCANE","11.HUATASANI","200511"]
[null,null,null,null,null,null,"PUNO","LAMPA","01.LAMPA","200601"]
[null,null,null,null,null,null,"PUNO","LAMPA","02.CABANILLA","200602"]
[null,null,null,null,null,null,"PUNO","LAMPA","03.CALAPUJA","200603"]
[null,null,null,null,null,null,"PUNO","LAMPA","04.NICASIO","200604"]
[null,null,null,null,null,null,"PUNO","LAMPA","05.OCUVIRI","200605"]
[null,null,null,null,null,null,"PUNO","LAMPA","06.PALCA","200606"]
[null,null,null,null,null,null,"PUNO","LAMPA","07.PARATIA","200607"]
[null,null,null,null,null,null,"PUNO","LAMPA","08.PUCARA","200608"]
[null,null,null,null,null,null,"PUNO","LAMPA","09.SANTA LUCIA","200609"]
[null,null,null,null,null,null,"PUNO","LAMPA","10.VILAVILA","200610"]
[null,null,null,null,null,null,"PUNO","MELGAR","01.AYAVIRI","200701"]
[null,null,null,null,null,null,"PUNO","MELGAR","02.ANTAUTA","200702"]
[null,null,null,null,null,null,"PUNO","MELGAR","03.CUPI","200703"]
[null,null,null,null,null,null,"PUNO","MELGAR","04.LLALLI","200704"]
[null,null,null,null,null,null,"PUNO","MELGAR","05.MACARI","200705"]
[null,null,null,null,null,null,"PUNO","MELGAR","06.NUÑOA","200706"]
[null,null,null,null,null,null,"PUNO","MELGAR","07.ORURILLO","200707"]
[null,null,null,null,null,null,"PUNO","MELGAR","08.SANTA ROSA","200708"]
[null,null,null,null,null,null,"PUNO","MELGAR","09.UMACHIRI","200709"]
[null,null,null,null,null,null,"PUNO","SANDIA","01.SANDIA","200801"]
[null,null,null,null,null,null,"PUNO","SANDIA","03.CUYOCUYO","200803"]
[null,null,null,null,null,null,"PUNO","SANDIA","04.LIMBANI","200804"]
[null,null,null,null,null,null,"PUNO","SANDIA","05.PHARA","200805"]
[null,null,null,null,null,null,"PUNO","SANDIA","06.PATAMBUCO","200806"]
[null,null,null,null,null,null,"PUNO","SANDIA","07.QUIACA","200807"]
[null,null,null,null,null,null,"PUNO","SANDIA","08.SAN JUAN DEL ORO","200808"]
[null,null,null,null,null,null,"PUNO","SANDIA","10.YANAHUAYA","200810"]
[null,null,null,null,null,null,"PUNO","SANDIA","11.ALTO INAMBARI","200811"]
[null,null,null,null,null,null,"PUNO","SANDIA","12.SAN PEDRO DE PUTINA PUNCO","200812"]
[null,null,null,null,null,null,"PUNO","SAN ROMAN","01.JULIACA","200901"]
[null,null,null,null,null,null,"PUNO","SAN ROMAN","02.CABANA","200902"]
[null,null,null,null,null,null,"PUNO","SAN ROMAN","03.CABANILLAS","200903"]
[null,null,null,null,null,null,"PUNO","SAN ROMAN","04.CARACOTO","200904"]
[null,null,null,null,null,null,"PUNO","YUNGUYO","01.YUNGUYO","201001"]
[null,null,null,null,null,null,"PUNO","YUNGUYO","02.UNICACHI","201002"]
[null,null,null,null,null,null,"PUNO","YUNGUYO","03.ANAPIA","201003"]
[null,null,null,null,null,null,"PUNO","YUNGUYO","04.COPANI","201004"]
[null,null,null,null,null,null,"PUNO","YUNGUYO","05.CUTURAPI","201005"]
[null,null,null,null,null,null,"PUNO","YUNGUYO","06.OLLARAYA","201006"]
[null,null,null,null,null,null,"PUNO","YUNGUYO","07.TINICACHI","201007"]
[null,null,null,null,null,null,"PUNO","SAN ANTONIO DE PUTINA","01.PUTINA","201101"]
[null,null,null,null,null,null,"PUNO","SAN ANTONIO DE PUTINA","02.PEDRO VILCA APAZA","201102"]
[null,null,null,null,null,null,"PUNO","SAN ANTONIO DE PUTINA","03.QUILCAPUNCU","201103"]
[null,null,null,null,null,null,"PUNO","SAN ANTONIO DE PUTINA","04.ANANEA","201104"]
[null,null,null,null,null,null,"PUNO","SAN ANTONIO DE PUTINA","05.SINA","201105"]
[null,null,null,null,null,null,"PUNO","EL COLLAO","01.ILAVE","201201"]
[null,null,null,null,null,null,"PUNO","EL COLLAO","02.PILCUYO","201202"]
[null,null,null,null,null,null,"PUNO","EL COLLAO","03.SANTA ROSA","201203"]
[null,null,null,null,null,null,"PUNO","EL COLLAO","04.CAPASO","201204"]
[null,null,null,null,null,null,"PUNO","EL COLLAO","05.CONDURIRI","201205"]
[null,null,null,null,null,null,"PUNO","MOHO","01.MOHO","201301"]
[null,null,null,null,null,null,"PUNO","MOHO","02.CONIMA","201302"]
[null,null,null,null,null,null,"PUNO","MOHO","03.TILALI","201303"]
[null,null,null,null,null,null,"PUNO","MOHO","04.HUAYRAPATA","201304"]
[null,null,null,null,null,null,"SAN MARTIN","MOYOBAMBA","01.MOYOBAMBA","210101"]
[null,null,null,null,null,null,"SAN MARTIN","MOYOBAMBA","02.CALZADA","210102"]
[null,null,null,null,null,null,"SAN MARTIN","MOYOBAMBA","03.HABANA","210103"]
[null,null,null,null,null,null,"SAN MARTIN","MOYOBAMBA","04.JEPELACIO","210104"]
[null,null,null,null,null,null,"SAN MARTIN","MOYOBAMBA","05.SORITOR","210105"]
[null,null,null,null,null,null,"SAN MARTIN","MOYOBAMBA","06.YANTALO","210106"]
[null,null,null,null,null,null,"SAN MARTIN","HUALLAGA","01.SAPOSOA","210201"]
[null,null,null,null,null,null,"SAN MARTIN","HUALLAGA","02.PISCOYACU","210202"]
[null,null,null,null,null,null,"SAN MARTIN","HUALLAGA","03.SACANCHE","210203"]
[null,null,null,null,null,null,"SAN MARTIN","HUALLAGA","04.TINGO DE SAPOSOA","210204"]
[null,null,null,null,null,null,"SAN MARTIN","HUALLAGA","05.ALTO SAPOSOA","210205"]
[null,null,null,null,null,null,"SAN MARTIN","HUALLAGA","06.EL ESLABON","210206"]
[null,null,null,null,null,null,"SAN MARTIN","LAMAS","01.LAMAS","210301"]
[null,null,null,null,null,null,"SAN MARTIN","LAMAS","03.BARRANQUITA","210303"]
[null,null,null,null,null,null,"SAN MARTIN","LAMAS","04.CAYNARACHI","210304"]
[null,null,null,null,null,null,"SAN MARTIN","LAMAS","05.CUÑUMBUQUI","210305"]
[null,null,null,null,null,null,"SAN MARTIN","LAMAS","06.PINTO RECODO","210306"]
[null,null,null,null,null,null,"SAN MARTIN","LAMAS","07.RUMISAPA","210307"]
[null,null,null,null,null,null,"SAN MARTIN","LAMAS","11.SHANAO","210311"]
[null,null,null,null,null,null,"SAN MARTIN","LAMAS","13.TABALOSOS","210313"]
[null,null,null,null,null,null,"SAN MARTIN","LAMAS","14.ZAPATERO","210314"]
[null,null,null,null,null,null,"SAN MARTIN","LAMAS","15.ALONSO DE ALVARADO","210315"]
[null,null,null,null,null,null,"SAN MARTIN","LAMAS","16.SAN ROQUE DE CUMBAZA","210316"]
[null,null,null,null,null,null,"SAN MARTIN","MARISCAL CACERES","01.JUANJUI","210401"]
[null,null,null,null,null,null,"SAN MARTIN","MARISCAL CACERES","02.CAMPANILLA","210402"]
[null,null,null,null,null,null,"SAN MARTIN","MARISCAL CACERES","03.HUICUNGO","210403"]
[null,null,null,null,null,null,"SAN MARTIN","MARISCAL CACERES","04.PACHIZA","210404"]
[null,null,null,null,null,null,"SAN MARTIN","MARISCAL CACERES","05.PAJARILLO","210405"]
[null,null,null,null,null,null,"SAN MARTIN","RIOJA","01.RIOJA","210501"]
[null,null,null,null,null,null,"SAN MARTIN","RIOJA","02.POSIC","210502"]
[null,null,null,null,null,null,"SAN MARTIN","RIOJA","03.YORONGOS","210503"]
[null,null,null,null,null,null,"SAN MARTIN","RIOJA","04.YURACYACU","210504"]
[null,null,null,null,null,null,"SAN MARTIN","RIOJA","05.NUEVA CAJAMARCA","210505"]
[null,null,null,null,null,null,"SAN MARTIN","RIOJA","06.ELIAS SOPLIN VARGAS","210506"]
[null,null,null,null,null,null,"SAN MARTIN","RIOJA","07.SAN FERNANDO","210507"]
[null,null,null,null,null,null,"SAN MARTIN","RIOJA","08.PARDO MIGUEL","210508"]
[null,null,null,null,null,null,"SAN MARTIN","RIOJA","09.AWAJUN","210509"]
[null,null,null,null,null,null,"SAN MARTIN","SAN MARTIN","01.TARAPOTO","210601"]
[null,null,null,null,null,null,"SAN MARTIN","SAN MARTIN","02.ALBERTO LEVEAU","210602"]
[null,null,null,null,null,null,"SAN MARTIN","SAN MARTIN","04.CACATACHI","210604"]
[null,null,null,null,null,null,"SAN MARTIN","SAN MARTIN","06.CHAZUTA","210606"]
[null,null,null,null,null,null,"SAN MARTIN","SAN MARTIN","07.CHIPURANA","210607"]
[null,null,null,null,null,null,"SAN MARTIN","SAN MARTIN","08.EL PORVENIR","210608"]
[null,null,null,null,null,null,"SAN MARTIN","SAN MARTIN","09.HUIMBAYOC","210609"]
[null,null,null,null,null,null,"SAN MARTIN","SAN MARTIN","10.JUAN GUERRA","210610"]
[null,null,null,null,null,null,"SAN MARTIN","SAN MARTIN","11.MORALES","210611"]
[null,null,null,null,null,null,"SAN MARTIN","SAN MARTIN","12.PAPAPLAYA","210612"]
[null,null,null,null,null,null,"SAN MARTIN","SAN MARTIN","16.SAN ANTONIO","210616"]
[null,null,null,null,null,null,"SAN MARTIN","SAN MARTIN","19.SAUCE","210619"]
[null,null,null,null,null,null,"SAN MARTIN","SAN MARTIN","20.SHAPAJA","210620"]
[null,null,null,null,null,null,"SAN MARTIN","SAN MARTIN","21.LA BANDA DE SHILCAYO","210621"]
[null,null,null,null,null,null,"SAN MARTIN","BELLAVISTA","01.BELLAVISTA","210701"]
[null,null,null,null,null,null,"SAN MARTIN","BELLAVISTA","02.SAN RAFAEL","210702"]
[null,null,null,null,null,null,"SAN MARTIN","BELLAVISTA","03.SAN PABLO","210703"]
[null,null,null,null,null,null,"SAN MARTIN","BELLAVISTA","04.ALTO BIAVO","210704"]
[null,null,null,null,null,null,"SAN MARTIN","BELLAVISTA","05.HUALLAGA","210705"]
[null,null,null,null,null,null,"SAN MARTIN","BELLAVISTA","06.BAJO BIAVO","210706"]
[null,null,null,null,null,null,"SAN MARTIN","TOCACHE","01.TOCACHE","210801"]
[null,null,null,null,null,null,"SAN MARTIN","TOCACHE","02.NUEVO PROGRESO","210802"]
[null,null,null,null,null,null,"SAN MARTIN","TOCACHE","03.POLVORA","210803"]
[null,null,null,null,null,null,"SAN MARTIN","TOCACHE","04.SHUNTE","210804"]
[null,null,null,null,null,null,"SAN MARTIN","TOCACHE","05.UCHIZA","210805"]
[null,null,null,null,null,null,"SAN MARTIN","PICOTA","01.PICOTA","210901"]
[null,null,null,null,null,null,"SAN MARTIN","PICOTA","02.BUENOS AIRES","210902"]
[null,null,null,null,null,null,"SAN MARTIN","PICOTA","03.CASPIZAPA","210903"]
[null,null,null,null,null,null,"SAN MARTIN","PICOTA","04.PILLUANA","210904"]
[null,null,null,null,null,null,"SAN MARTIN","PICOTA","05.PUCACACA","210905"]
[null,null,null,null,null,null,"SAN MARTIN","PICOTA","06.SAN CRISTOBAL","210906"]
[null,null,null,null,null,null,"SAN MARTIN","PICOTA","07.SAN HILARION","210907"]
[null,null,null,null,null,null,"SAN MARTIN","PICOTA","08.TINGO DE PONASA","210908"]
[null,null,null,null,null,null,"SAN MARTIN","PICOTA","09.TRES UNIDOS","210909"]
[null,null,null,null,null,null,"SAN MARTIN","PICOTA","10.SHAMBOYACU","210910"]
[null,null,null,null,null,null,"SAN MARTIN","EL DORADO","01.SAN JOSE DE SISA","211001"]
[null,null,null,null,null,null,"SAN MARTIN","EL DORADO","02.AGUA BLANCA","211002"]
[null,null,null,null,null,null,"SAN MARTIN","EL DORADO","03.SHATOJA","211003"]
[null,null,null,null,null,null,"SAN MARTIN","EL DORADO","04.SAN MARTIN","211004"]
[null,null,null,null,null,null,"SAN MARTIN","EL DORADO","05.SANTA ROSA","211005"]
[null,null,null,null,null,null,"TACNA","TACNA","01.TACNA","220101"]
[null,null,null,null,null,null,"TACNA","TACNA","02.CALANA","220102"]
[null,null,null,null,null,null,"TACNA","TACNA","04.INCLAN","220104"]
[null,null,null,null,null,null,"TACNA","TACNA","07.PACHIA","220107"]
[null,null,null,null,null,null,"TACNA","TACNA","08.PALCA","220108"]
[null,null,null,null,null,null,"TACNA","TACNA","09.POCOLLAY","220109"]
[null,null,null,null,null,null,"TACNA","TACNA","10.SAMA","220110"]
[null,null,null,null,null,null,"TACNA","TACNA","11.ALTO DE LA ALIANZA","220111"]
[null,null,null,null,null,null,"TACNA","TACNA","12.CIUDAD NUEVA","220112"]
[null,null,null,null,null,null,"TACNA","TACNA","13.CORONEL GREGORIO ALBARRACIN L.","220113"]
[null,null,null,null,null,null,"TACNA","TARATA","01.TARATA","220201"]
[null,null,null,null,null,null,"TACNA","TARATA","05.HEROES ALBARRACIN","220205"]
[null,null,null,null,null,null,"TACNA","TARATA","06.ESTIQUE","220206"]
[null,null,null,null,null,null,"TACNA","TARATA","07.ESTIQUE PAMPA","220207"]
[null,null,null,null,null,null,"TACNA","TARATA","10.SITAJARA","220210"]
[null,null,null,null,null,null,"TACNA","TARATA","11.SUSAPAYA","220211"]
[null,null,null,null,null,null,"TACNA","TARATA","12.TARUCACHI","220212"]
[null,null,null,null,null,null,"TACNA","TARATA","13.TICACO","220213"]
[null,null,null,null,null,null,"TACNA","JORGE BASADRE","01.LOCUMBA","220301"]
[null,null,null,null,null,null,"TACNA","JORGE BASADRE","02.ITE","220302"]
[null,null,null,null,null,null,"TACNA","JORGE BASADRE","03.ILABAYA","220303"]
[null,null,null,null,null,null,"TACNA","CANDARAVE","01.CANDARAVE","220401"]
[null,null,null,null,null,null,"TACNA","CANDARAVE","02.CAIRANI","220402"]
[null,null,null,null,null,null,"TACNA","CANDARAVE","03.CURIBAYA","220403"]
[null,null,null,null,null,null,"TACNA","CANDARAVE","04.HUANUARA","220404"]
[null,null,null,null,null,null,"TACNA","CANDARAVE","05.QUILAHUANI","220405"]
[null,null,null,null,null,null,"TACNA","CANDARAVE","06.CAMILACA","220406"]
[null,null,null,null,null,null,"TUMBES","TUMBES","01.TUMBES","230101"]
[null,null,null,null,null,null,"TUMBES","TUMBES","02.CORRALES","230102"]
[null,null,null,null,null,null,"TUMBES","TUMBES","03.LA CRUZ","230103"]
[null,null,null,null,null,null,"TUMBES","TUMBES","04.PAMPAS DE HOSPITAL","230104"]
[null,null,null,null,null,null,"TUMBES","TUMBES","05.SAN JACINTO","230105"]
[null,null,null,null,null,null,"TUMBES","TUMBES","06.SAN JUAN DE LA VIRGEN","230106"]
[null,null,null,null,null,null,"TUMBES","CONTRALMIRANTE VILLAR","01.ZORRITOS","230201"]
[null,null,null,null,null,null,"TUMBES","CONTRALMIRANTE VILLAR","02.CASITAS","230202"]
[null,null,null,null,null,null,"TUMBES","CONTRALMIRANTE VILLAR","03.CANOAS DE PUNTA SAL","230203"]
[null,null,null,null,null,null,"TUMBES","ZARUMILLA","01.ZARUMILLA","230301"]
[null,null,null,null,null,null,"TUMBES","ZARUMILLA","02.MATAPALO","230302"]
[null,null,null,null,null,null,"TUMBES","ZARUMILLA","03.PAPAYAL","230303"]
[null,null,null,null,null,null,"TUMBES","ZARUMILLA","04.AGUAS VERDES","230304"]
[null,null,null,null,null,null,"CALLAO","CALLAO","01.CALLAO","240101"]
[null,null,null,null,null,null,"CALLAO","CALLAO","02.BELLAVISTA","240102"]
[null,null,null,null,null,null,"CALLAO","CALLAO","03.LA PUNTA","240103"]
[null,null,null,null,null,null,"CALLAO","CALLAO","04.CARMEN DE LA LEGUA-REYNOSO","240104"]
[null,null,null,null,null,null,"CALLAO","CALLAO","05.LA PERLA","240105"]
[null,null,null,null,null,null,"CALLAO","CALLAO","06.VENTANILLA","240106"]
[null,null,null,null,null,null,"UCAYALI","CORONEL PORTILLO","01.CALLERIA","250101"]
[null,null,null,null,null,null,"UCAYALI","CORONEL PORTILLO","02.YARINACOCHA","250102"]
[null,null,null,null,null,null,"UCAYALI","CORONEL PORTILLO","03.MASISEA","250103"]
[null,null,null,null,null,null,"UCAYALI","CORONEL PORTILLO","04.CAMPOVERDE","250104"]
[null,null,null,null,null,null,"UCAYALI","CORONEL PORTILLO","05.IPARIA","250105"]
[null,null,null,null,null,null,"UCAYALI","CORONEL PORTILLO","06.NUEVA REQUENA","250106"]
[null,null,null,null,null,null,"UCAYALI","CORONEL PORTILLO","07.MANANTAY","250107"]
[null,null,null,null,null,null,"UCAYALI","PADRE ABAD","01.PADRE ABAD","250201"]
[null,null,null,null,null,null,"UCAYALI","PADRE ABAD","02.IRAZOLA","250202"]
[null,null,null,null,null,null,"UCAYALI","PADRE ABAD","03.CURIMANA","250203"]
[null,null,null,null,null,null,"UCAYALI","ATALAYA","01.RAIMONDI","250301"]
[null,null,null,null,null,null,"UCAYALI","ATALAYA","02.TAHUANIA","250302"]
[null,null,null,null,null,null,"UCAYALI","ATALAYA","03.YURUA","250303"]
[null,null,null,null,null,null,"UCAYALI","ATALAYA","04.SEPAHUA","250304"]
[null,null,null,null,null,null,"UCAYALI","PURUS","01.PURUS","250401"]

{"sheet":"ANEXO 2","index":4,"n_rows":1839,"n_cols":9,"rows_kept":1839,"cut":false,"hidden":false,"merged":[]}
["UBIGEO_RENIEC","DEPARTAMENTO","PROVINCIA","DISTRITO",null,null,"PROVINCIA",null,"DEPARTAMENTO"]
["010101","AMAZONAS","CHACHAPOYAS","CHACHAPOYAS",null,null,{"$f":"CONCATENATE(MID(A2,5,2),\".\",D2)","v":"01.CHACHAPOYAS"},null,"01.CHACHAPOYAS"]
["010102","AMAZONAS","CHACHAPOYAS","ASUNCION",null,null,{"$f":"CONCATENATE(MID(A3,5,2),\".\",D3)","v":"02.ASUNCION"},null,"02.ASUNCION"]
["010103","AMAZONAS","CHACHAPOYAS","BALSAS",null,null,"03.BALSAS",null,"03.BALSAS"]
["010104","AMAZONAS","CHACHAPOYAS","CHETO",null,null,"04.CHETO",null,"04.CHETO"]
["010105","AMAZONAS","CHACHAPOYAS","CHILIQUIN",null,null,"05.CHILIQUIN",null,"05.CHILIQUIN"]
["010106","AMAZONAS","CHACHAPOYAS","CHUQUIBAMBA",null,null,"06.CHUQUIBAMBA",null,"06.CHUQUIBAMBA"]
["010107","AMAZONAS","CHACHAPOYAS","GRANADA",null,null,"07.GRANADA",null,"07.GRANADA"]
["010108","AMAZONAS","CHACHAPOYAS","HUANCAS",null,null,"08.HUANCAS",null,"08.HUANCAS"]
["010109","AMAZONAS","CHACHAPOYAS","LA JALCA",null,null,"09.LA JALCA",null,"09.LA_JALCA"]
["010110","AMAZONAS","CHACHAPOYAS","LEIMEBAMBA",null,null,"10.LEIMEBAMBA",null,"10.LEIMEBAMBA"]
["010111","AMAZONAS","CHACHAPOYAS","LEVANTO",null,null,"11.LEVANTO",null,"11.LEVANTO"]
["010112","AMAZONAS","CHACHAPOYAS","MAGDALENA",null,null,"12.MAGDALENA",null,"12.MAGDALENA"]
["010113","AMAZONAS","CHACHAPOYAS","MARISCAL CASTILLA",null,null,"13.MARISCAL CASTILLA",null,"13.MARISCAL_CASTILLA"]
["010114","AMAZONAS","CHACHAPOYAS","MOLINOPAMPA",null,null,"14.MOLINOPAMPA",null,"14.MOLINOPAMPA"]
["010115","AMAZONAS","CHACHAPOYAS","MONTEVIDEO",null,null,"15.MONTEVIDEO",null,"15.MONTEVIDEO"]
["010116","AMAZONAS","CHACHAPOYAS","OLLEROS",null,null,"16.OLLEROS",null,"16.OLLEROS"]
["010117","AMAZONAS","CHACHAPOYAS","QUINJALCA",null,null,"17.QUINJALCA",null,"17.QUINJALCA"]
["010118","AMAZONAS","CHACHAPOYAS","SAN FRANCISCO DE DAGUAS",null,null,"18.SAN FRANCISCO DE DAGUAS",null,"18.SAN_FRANCISCO_DE_DAGUAS"]
["010119","AMAZONAS","CHACHAPOYAS","SAN ISIDRO DE MAINO",null,null,"19.SAN ISIDRO DE MAINO",null,"19.SAN_ISIDRO_DE_MAINO"]
["010120","AMAZONAS","CHACHAPOYAS","SOLOCO",null,null,"20.SOLOCO",null,"20.SOLOCO"]
["010121","AMAZONAS","CHACHAPOYAS","SONCHE",null,null,"21.SONCHE",null,"21.SONCHE"]
["010201","AMAZONAS","BAGUA","LA PECA",null,null,"01.LA PECA",null,"01.LA_PECA"]
["010202","AMAZONAS","BAGUA","ARAMANGO",null,null,"02.ARAMANGO",null,"02.ARAMANGO"]
["010203","AMAZONAS","BAGUA","COPALLIN",null,null,"03.COPALLIN",null,"03.COPALLIN"]
["010204","AMAZONAS","BAGUA","EL PARCO",null,null,"04.EL PARCO",null,"04.EL_PARCO"]
["010205","AMAZONAS","BAGUA","BAGUA",null,null,"05.BAGUA",null,"05.BAGUA"]
["010206","AMAZONAS","BAGUA","IMAZA",null,null,"06.IMAZA",null,"06.IMAZA"]
["010301","AMAZONAS","BONGARA","JUMBILLA",null,null,"01.JUMBILLA",null,"01.JUMBILLA"]
["010302","AMAZONAS","BONGARA","COROSHA",null,null,"02.COROSHA",null,"02.COROSHA"]
["010303","AMAZONAS","BONGARA","CUISPES",null,null,"03.CUISPES",null,"03.CUISPES"]
["010304","AMAZONAS","BONGARA","CHISQUILLA",null,null,"04.CHISQUILLA",null,"04.CHISQUILLA"]
["010305","AMAZONAS","BONGARA","CHURUJA",null,null,"05.CHURUJA",null,"05.CHURUJA"]
["010306","AMAZONAS","BONGARA","FLORIDA",null,null,"06.FLORIDA",null,"06.FLORIDA"]
["010307","AMAZONAS","BONGARA","RECTA",null,null,"07.RECTA",null,"07.RECTA"]
["010308","AMAZONAS","BONGARA","SAN CARLOS",null,null,"08.SAN CARLOS",null,"08.SAN_CARLOS"]
["010309","AMAZONAS","BONGARA","SHIPASBAMBA",null,null,"09.SHIPASBAMBA",null,"09.SHIPASBAMBA"]
["010310","AMAZONAS","BONGARA","VALERA",null,null,"10.VALERA",null,"10.VALERA"]
["010311","AMAZONAS","BONGARA","YAMBRASBAMBA",null,null,"11.YAMBRASBAMBA",null,"11.YAMBRASBAMBA"]
["010312","AMAZONAS","BONGARA","JAZAN",null,null,"12.JAZAN",null,"12.JAZAN"]
["010401","AMAZONAS","LUYA","LAMUD",null,null,"01.LAMUD",null,"01.LAMUD"]
["010402","AMAZONAS","LUYA","CAMPORREDONDO",null,null,"02.CAMPORREDONDO",null,"02.CAMPORREDONDO"]
["010403","AMAZONAS","LUYA","COCABAMBA",null,null,"03.COCABAMBA",null,"03.COCABAMBA"]
["010404","AMAZONAS","LUYA","COLCAMAR",null,null,"04.COLCAMAR",null,"04.COLCAMAR"]
["010405","AMAZONAS","LUYA","CONILA",null,null,"05.CONILA",null,"05.CONILA"]
["010406","AMAZONAS","LUYA","INGUILPATA",null,null,"06.INGUILPATA",null,"06.INGUILPATA"]
["010407","AMAZONAS","LUYA","LONGUITA",null,null,"07.LONGUITA",null,"07.LONGUITA"]
["010408","AMAZONAS","LUYA","LONYA CHICO",null,null,"08.LONYA CHICO",null,"08.LONYA_CHICO"]
["010409","AMAZONAS","LUYA","LUYA",null,null,"09.LUYA",null,"09.LUYA"]
["010410","AMAZONAS","LUYA","LUYA VIEJO",null,null,"10.LUYA VIEJO",null,"10.LUYA_VIEJO"]
["010411","AMAZONAS","LUYA","MARIA",null,null,"11.MARIA",null,"11.MARIA"]
["010412","AMAZONAS","LUYA","OCALLI",null,null,"12.OCALLI",null,"12.OCALLI"]
["010413","AMAZONAS","LUYA","OCUMAL",null,null,"13.OCUMAL",null,"13.OCUMAL"]
["010414","AMAZONAS","LUYA","PISUQUIA",null,null,"14.PISUQUIA",null,"14.PISUQUIA"]
["010415","AMAZONAS","LUYA","SAN CRISTOBAL",null,null,"15.SAN CRISTOBAL",null,"15.SAN_CRISTOBAL"]
["010416","AMAZONAS","LUYA","SAN FRANCISCO DE YESO",null,null,"16.SAN FRANCISCO DE YESO",null,"16.SAN_FRANCISCO_DE_YESO"]
["010417","AMAZONAS","LUYA","SAN JERONIMO",null,null,"17.SAN JERONIMO",null,"17.SAN_JERONIMO"]
["010418","AMAZONAS","LUYA","SAN JUAN DE LOPECANCHA",null,null,"18.SAN JUAN DE LOPECANCHA",null,"18.SAN_JUAN_DE_LOPECANCHA"]
["010419","AMAZONAS","LUYA","SANTA CATALINA",null,null,"19.SANTA CATALINA",null,"19.SANTA_CATALINA"]
["010420","AMAZONAS","LUYA","SANTO TOMAS",null,null,"20.SANTO TOMAS",null,"20.SANTO_TOMAS"]
["010421","AMAZONAS","LUYA","TINGO",null,null,"21.TINGO",null,"21.TINGO"]
["010422","AMAZONAS","LUYA","TRITA",null,null,"22.TRITA",null,"22.TRITA"]
["010423","AMAZONAS","LUYA","PROVIDENCIA",null,null,"23.PROVIDENCIA",null,"23.PROVIDENCIA"]
["010501","AMAZONAS","RODRIGUEZ DE MENDOZA","SAN NICOLAS",null,null,"01.SAN NICOLAS",null,"01.SAN_NICOLAS"]
["010502","AMAZONAS","RODRIGUEZ DE MENDOZA","COCHAMAL",null,null,"02.COCHAMAL",null,"02.COCHAMAL"]
["010503","AMAZONAS","RODRIGUEZ DE MENDOZA","CHIRIMOTO",null,null,"03.CHIRIMOTO",null,"03.CHIRIMOTO"]
["010504","AMAZONAS","RODRIGUEZ DE MENDOZA","HUAMBO",null,null,{"$f":"CONCATENATE(MID(A67,5,2),\".\",D67)","v":"04.HUAMBO"},null,"04.HUAMBO"]
["010505","AMAZONAS","RODRIGUEZ DE MENDOZA","LIMABAMBA",null,null,"05.LIMABAMBA",null,"05.LIMABAMBA"]
["010506","AMAZONAS","RODRIGUEZ DE MENDOZA","LONGAR",null,null,"06.LONGAR",null,"06.LONGAR"]
["010507","AMAZONAS","RODRIGUEZ DE MENDOZA","MILPUCC",null,null,"07.MILPUCC",null,"07.MILPUCC"]
["010508","AMAZONAS","RODRIGUEZ DE MENDOZA","MARISCAL BENAVIDES",null,null,"08.MARISCAL BENAVIDES",null,"08.MARISCAL_BENAVIDES"]
["010509","AMAZONAS","RODRIGUEZ DE MENDOZA","OMIA",null,null,"09.OMIA",null,"09.OMIA"]
["010510","AMAZONAS","RODRIGUEZ DE MENDOZA","SANTA ROSA",null,null,"10.SANTA ROSA",null,"10.SANTA_ROSA"]
["010511","AMAZONAS","RODRIGUEZ DE MENDOZA","TOTORA",null,null,"11.TOTORA",null,"11.TOTORA"]
["010512","AMAZONAS","RODRIGUEZ DE MENDOZA","VISTA ALEGRE",null,null,"12.VISTA ALEGRE",null,"12.VISTA_ALEGRE"]
["010601","AMAZONAS","CONDORCANQUI","NIEVA",null,null,"01.NIEVA",null,"01.NIEVA"]
["010602","AMAZONAS","CONDORCANQUI","RIO SANTIAGO",null,null,"02.RIO SANTIAGO",null,"02.RIO_SANTIAGO"]
["010603","AMAZONAS","CONDORCANQUI","EL CENEPA",null,null,"03.EL CENEPA",null,"03.EL_CENEPA"]
["010701","AMAZONAS","UTCUBAMBA","BAGUA GRANDE",null,null,"01.BAGUA GRANDE",null,"01.BAGUA_GRANDE"]
["010702","AMAZONAS","UTCUBAMBA","CAJARURO",null,null,"02.CAJARURO",null,"02.CAJARURO"]
["010703","AMAZONAS","UTCUBAMBA","CUMBA",null,null,"03.CUMBA",null,"03.CUMBA"]
["010704","AMAZONAS","UTCUBAMBA","EL MILAGRO",null,null,"04.EL MILAGRO",null,"04.EL_MILAGRO"]
["010705","AMAZONAS","UTCUBAMBA","JAMALCA",null,null,"05.JAMALCA",null,"05.JAMALCA"]
["010706","AMAZONAS","UTCUBAMBA","LONYA GRANDE",null,null,"06.LONYA GRANDE",null,"06.LONYA_GRANDE"]
["010707","AMAZONAS","UTCUBAMBA","YAMON",null,null,"07.YAMON",null,"07.YAMON"]
["020101","ANCASH","HUARAZ","HUARAZ",null,null,"01.HUARAZ",null,"01.HUARAZ"]
["020102","ANCASH","HUARAZ","INDEPENDENCIA",null,null,"02.INDEPENDENCIA",null,"02.INDEPENDENCIA"]
["020103","ANCASH","HUARAZ","COCHABAMBA",null,null,"03.COCHABAMBA",null,"03.COCHABAMBA"]
["020104","ANCASH","HUARAZ","COLCABAMBA",null,null,"04.COLCABAMBA",null,"04.COLCABAMBA"]
["020105","ANCASH","HUARAZ","HUANCHAY",null,null,"05.HUANCHAY",null,"05.HUANCHAY"]
["020106","ANCASH","HUARAZ","JANGAS",null,null,"06.JANGAS",null,"06.JANGAS"]
["020107","ANCASH","HUARAZ","LA LIBERTAD",null,null,"07.LA LIBERTAD",null,"07.LA_LIBERTAD"]
["020108","ANCASH","HUARAZ","OLLEROS",null,null,"08.OLLEROS",null,"08.OLLEROS"]
["020109","ANCASH","HUARAZ","PAMPAS GRANDE",null,null,"09.PAMPAS GRANDE",null,"09.PAMPAS_GRANDE"]
["020110","ANCASH","HUARAZ","PARIACOTO",null,null,"10.PARIACOTO",null,"10.PARIACOTO"]
["020111","ANCASH","HUARAZ","PIRA",null,null,"11.PIRA",null,"11.PIRA"]
["020112","ANCASH","HUARAZ","TARICA",null,null,"12.TARICA",null,"12.TARICA"]
["020201","ANCASH","AIJA","AIJA",null,null,"01.AIJA",null,"01.AIJA"]
["020203","ANCASH","AIJA","CORIS",null,null,"03.CORIS",null,"03.CORIS"]
["020205","ANCASH","AIJA","HUACLLAN",null,null,"05.HUACLLAN",null,"05.HUACLLAN"]
["020206","ANCASH","AIJA","LA MERCED",null,null,"06.LA MERCED",null,"06.LA_MERCED"]
["020208","ANCASH","AIJA","SUCCHA",null,null,"08.SUCCHA",null,"08.SUCCHA"]
["020301","ANCASH","BOLOGNESI","CHIQUIAN",null,null,"01.CHIQUIAN",null,"01.CHIQUIAN"]
["020302","ANCASH","BOLOGNESI","ABELARDO PARDO LEZAMETA",null,null,"02.ABELARDO PARDO LEZAMETA",null,"02.ABELARDO_PARDO_LEZAMETA"]
["020304","ANCASH","BOLOGNESI","AQUIA",null,null,"04.AQUIA",null,"04.AQUIA"]
["020305","ANCASH","BOLOGNESI","CAJACAY",null,null,"05.CAJACAY",null,"05.CAJACAY"]
["020310","ANCASH","BOLOGNESI","HUAYLLACAYAN",null,null,"10.HUAYLLACAYAN",null,"10.HUAYLLACAYAN"]
["020311","ANCASH","BOLOGNESI","HUASTA",null,null,"11.HUASTA",null,"11.HUASTA"]
["020313","ANCASH","BOLOGNESI","MANGAS",null,null,"13.MANGAS",null,"13.MANGAS"]
["020315","ANCASH","BOLOGNESI","PACLLON",null,null,"15.PACLLON",null,"15.PACLLON"]
["020317","ANCASH","BOLOGNESI","SAN MIGUEL DE CORPANQUI",null,null,"17.SAN MIGUEL DE CORPANQUI",null,"17.SAN_MIGUEL_DE_CORPANQUI"]
["020320","ANCASH","BOLOGNESI","TICLLOS",null,null,"20.TICLLOS",null,"20.TICLLOS"]
["020321","ANCASH","BOLOGNESI","ANTONIO RAIMONDI",null,null,"21.ANTONIO RAIMONDI",null,"21.ANTONIO_RAIMONDI"]
["020322","ANCASH","BOLOGNESI","CANIS",null,null,"22.CANIS",null,"22.CANIS"]
["020323","ANCASH","BOLOGNESI","COLQUIOC",null,null,"23.COLQUIOC",null,"23.COLQUIOC"]
["020324","ANCASH","BOLOGNESI","LA PRIMAVERA",null,null,"24.LA PRIMAVERA",null,"24.LA_PRIMAVERA"]
["020325","ANCASH","BOLOGNESI","HUALLANCA",null,null,"25.HUALLANCA",null,"25.HUALLANCA"]
["020401","ANCASH","CARHUAZ","CARHUAZ",null,null,"01.CARHUAZ",null,"01.CARHUAZ"]
["020402","ANCASH","CARHUAZ","ACOPAMPA",null,null,"02.ACOPAMPA",null,"02.ACOPAMPA"]
["020403","ANCASH","CARHUAZ","AMASHCA",null,null,"03.AMASHCA",null,"03.AMASHCA"]
["020404","ANCASH","CARHUAZ","ANTA",null,null,"04.ANTA",null,"04.ANTA"]
["020405","ANCASH","CARHUAZ","ATAQUERO",null,null,"05.ATAQUERO",null,"05.ATAQUERO"]
["020406","ANCASH","CARHUAZ","MARCARA",null,null,"06.MARCARA",null,"06.MARCARA"]
["020407","ANCASH","CARHUAZ","PARIAHUANCA",null,null,"07.PARIAHUANCA",null,"07.PARIAHUANCA"]
["020408","ANCASH","CARHUAZ","SAN MIGUEL DE ACO",null,null,"08.SAN MIGUEL DE ACO",null,"08.SAN_MIGUEL_DE_ACO"]
["020409","ANCASH","CARHUAZ","SHILLA",null,null,"09.SHILLA",null,"09.SHILLA"]
["020410","ANCASH","CARHUAZ","TINCO",null,null,"10.TINCO",null,"10.TINCO"]
["020411","ANCASH","CARHUAZ","YUNGAR",null,null,"11.YUNGAR",null,"11.YUNGAR"]
["020501","ANCASH","CASMA","CASMA",null,null,"01.CASMA",null,"01.CASMA"]
["020502","ANCASH","CASMA","BUENA VISTA ALTA",null,null,"02.BUENA VISTA ALTA",null,"02.BUENA_VISTA_ALTA"]
["020503","ANCASH","CASMA","COMANDANTE NOEL",null,null,{"$f":"CONCATENATE(MID(A131,5,2),\".\",D131)","v":"03.COMANDANTE NOEL"},null,"03.COMANDANTE_NOEL"]
["020505","ANCASH","CASMA","YAUTAN",null,null,"05.YAUTAN",null,"05.YAUTAN"]
["020601","ANCASH","CORONGO","CORONGO",null,null,"01.CORONGO",null,"01.CORONGO"]
["020602","ANCASH","CORONGO","ACO",null,null,"02.ACO",null,"02.ACO"]
["020603","ANCASH","CORONGO","BAMBAS",null,null,"03.BAMBAS",null,"03.BAMBAS"]
["020604","ANCASH","CORONGO","CUSCA",null,null,"04.CUSCA",null,"04.CUSCA"]
["020605","ANCASH","CORONGO","LA PAMPA",null,null,"05.LA PAMPA",null,"05.LA_PAMPA"]
["020606","ANCASH","CORONGO","YANAC",null,null,"06.YANAC",null,"06.YANAC"]
["020607","ANCASH","CORONGO","YUPAN",null,null,"07.YUPAN",null,"07.YUPAN"]
["020701","ANCASH","HUAYLAS","CARAZ",null,null,"01.CARAZ",null,"01.CARAZ"]
["020702","ANCASH","HUAYLAS","HUALLANCA",null,null,"02.HUALLANCA",null,"02.HUALLANCA"]
["020703","ANCASH","HUAYLAS","HUATA",null,null,"03.HUATA",null,"03.HUATA"]
["020704","ANCASH","HUAYLAS","HUAYLAS",null,null,"04.HUAYLAS",null,"04.HUAYLAS"]
["020705","ANCASH","HUAYLAS","MATO",null,null,"05.MATO",null,"05.MATO"]
["020706","ANCASH","HUAYLAS","PAMPAROMAS",null,null,"06.PAMPAROMAS",null,"06.PAMPAROMAS"]
["020707","ANCASH","HUAYLAS","PUEBLO LIBRE",null,null,"07.PUEBLO LIBRE",null,"07.PUEBLO_LIBRE"]
["020708","ANCASH","HUAYLAS","SANTA CRUZ",null,null,"08.SANTA CRUZ",null,"08.SANTA_CRUZ"]
["020709","ANCASH","HUAYLAS","YURACMARCA",null,null,"09.YURACMARCA",null,"09.YURACMARCA"]
["020710","ANCASH","HUAYLAS","SANTO TORIBIO",null,null,"10.SANTO TORIBIO",null,"10.SANTO_TORIBIO"]
["020801","ANCASH","HUARI","HUARI",null,null,"01.HUARI",null,"01.HUARI"]
["020802","ANCASH","HUARI","CAJAY",null,null,"02.CAJAY",null,"02.CAJAY"]
["020803","ANCASH","HUARI","CHAVIN DE HUANTAR",null,null,"03.CHAVIN DE HUANTAR",null,"03.CHAVIN_DE_HUANTAR"]
["020804","ANCASH","HUARI","HUACACHI",null,null,"04.HUACACHI",null,"04.HUACACHI"]
["020805","ANCASH","HUARI","HUACHIS",null,null,"05.HUACHIS",null,"05.HUACHIS"]
["020806","ANCASH","HUARI","HUACCHIS",null,null,"06.HUACCHIS",null,"06.HUACCHIS"]
["020807","ANCASH","HUARI","HUANTAR",null,null,"07.HUANTAR",null,"07.HUANTAR"]
["020808","ANCASH","HUARI","MASIN",null,null,"08.MASIN",null,"08.MASIN"]
["020809","ANCASH","HUARI","PAUCAS",null,null,"09.PAUCAS",null,"09.PAUCAS"]
["020810","ANCASH","HUARI","PONTO",null,null,"10.PONTO",null,"10.PONTO"]
["020811","ANCASH","HUARI","RAHUAPAMPA",null,null,"11.RAHUAPAMPA",null,"11.RAHUAPAMPA"]
["020812","ANCASH","HUARI","RAPAYAN",null,null,"12.RAPAYAN",null,"12.RAPAYAN"]
["020813","ANCASH","HUARI","SAN MARCOS",null,null,"13.SAN MARCOS",null,"13.SAN_MARCOS"]
["020814","ANCASH","HUARI","SAN PEDRO DE CHANA",null,null,"14.SAN PEDRO DE CHANA",null,"14.SAN_PEDRO_DE_CHANA"]
["020815","ANCASH","HUARI","UCO",null,null,"15.UCO",null,"15.UCO"]
["020816","ANCASH","HUARI","ANRA",null,null,"16.ANRA",null,"16.ANRA"]
["020901","ANCASH","MARISCAL LUZURIAGA","PISCOBAMBA",null,null,"01.PISCOBAMBA",null,"01.PISCOBAMBA"]
["020902","ANCASH","MARISCAL LUZURIAGA","CASCA",null,null,"02.CASCA",null,"02.CASCA"]
["020903","ANCASH","MARISCAL LUZURIAGA","LUCMA",null,null,"03.LUCMA",null,"03.LUCMA"]
["020904","ANCASH","MARISCAL LUZURIAGA","FIDEL OLIVAS ESCUDERO",null,null,"04.FIDEL OLIVAS ESCUDERO",null,"04.FIDEL_OLIVAS_ESCUDERO"]
["020905","ANCASH","MARISCAL LUZURIAGA","LLAMA",null,null,"05.LLAMA",null,"05.LLAMA"]
["020906","ANCASH","MARISCAL LUZURIAGA","LLUMPA",null,null,"06.LLUMPA",null,"06.LLUMPA"]
["020907","ANCASH","MARISCAL LUZURIAGA","MUSGA",null,null,"07.MUSGA",null,"07.MUSGA"]
["020908","ANCASH","MARISCAL LUZURIAGA","ELEAZAR GUZMAN BARRON",null,null,"08.ELEAZAR GUZMAN BARRON",null,"08.ELEAZAR_GUZMAN_BARRON"]
["021001","ANCASH","PALLASCA","CABANA",null,null,"01.CABANA",null,"01.CABANA"]
["021002","ANCASH","PALLASCA","BOLOGNESI",null,null,"02.BOLOGNESI",null,"02.BOLOGNESI"]
["021003","ANCASH","PALLASCA","CONCHUCOS",null,null,"03.CONCHUCOS",null,"03.CONCHUCOS"]
["021004","ANCASH","PALLASCA","HUACASCHUQUE",null,null,"04.HUACASCHUQUE",null,"04.HUACASCHUQUE"]
["021005","ANCASH","PALLASCA","HUANDOVAL",null,null,"05.HUANDOVAL",null,"05.HUANDOVAL"]
["021006","ANCASH","PALLASCA","LACABAMBA",null,null,"06.LACABAMBA",null,"06.LACABAMBA"]
["021007","ANCASH","PALLASCA","LLAPO",null,null,"07.LLAPO",null,"07.LLAPO"]
["021008","ANCASH","PALLASCA","PALLASCA",null,null,"08.PALLASCA",null,"08.PALLASCA"]
["021009","ANCASH","PALLASCA","PAMPAS",null,null,"09.PAMPAS",null,"09.PAMPAS"]
["021010","ANCASH","PALLASCA","SANTA ROSA",null,null,"10.SANTA ROSA",null,"10.SANTA_ROSA"]
["021011","ANCASH","PALLASCA","TAUCA",null,null,"11.TAUCA",null,"11.TAUCA"]
["021101","ANCASH","POMABAMBA","POMABAMBA",null,null,"01.POMABAMBA",null,"01.POMABAMBA"]
["021102","ANCASH","POMABAMBA","HUAYLLAN",null,null,"02.HUAYLLAN",null,"02.HUAYLLAN"]
["021103","ANCASH","POMABAMBA","PAROBAMBA",null,null,"03.PAROBAMBA",null,"03.PAROBAMBA"]
["021104","ANCASH","POMABAMBA","QUINUABAMBA",null,null,"04.QUINUABAMBA",null,"04.QUINUABAMBA"]
["021201","ANCASH","RECUAY","RECUAY",null,null,"01.RECUAY",null,"01.RECUAY"]
["021202","ANCASH","RECUAY","COTAPARACO",null,null,"02.COTAPARACO",null,"02.COTAPARACO"]
["021203","ANCASH","RECUAY","HUAYLLAPAMPA",null,null,"03.HUAYLLAPAMPA",null,"03.HUAYLLAPAMPA"]
["021204","ANCASH","RECUAY","MARCA",null,null,"04.MARCA",null,"04.MARCA"]
["021205","ANCASH","RECUAY","PAMPAS CHICO",null,null,"05.PAMPAS CHICO",null,"05.PAMPAS_CHICO"]
["021206","ANCASH","RECUAY","PARARIN",null,null,"06.PARARIN",null,"06.PARARIN"]
["021207","ANCASH","RECUAY","TAPACOCHA",null,null,{"$f":"CONCATENATE(MID(A195,5,2),\".\",D195)","v":"07.TAPACOCHA"},null,"07.TAPACOCHA"]
["021208","ANCASH","RECUAY","TICAPAMPA",null,null,"08.TICAPAMPA",null,"08.TICAPAMPA"]
["021209","ANCASH","RECUAY","LLACLLIN",null,null,"09.LLACLLIN",null,"09.LLACLLIN"]
["021210","ANCASH","RECUAY","CATAC",null,null,"10.CATAC",null,"10.CATAC"]
["021301","ANCASH","SANTA","CHIMBOTE",null,null,"01.CHIMBOTE",null,"01.CHIMBOTE"]
["021302","ANCASH","SANTA","CACERES DEL PERU",null,null,"02.CACERES DEL PERU",null,"02.CACERES_DEL_PERU"]
["021303","ANCASH","SANTA","MACATE",null,null,"03.MACATE",null,"03.MACATE"]
["021304","ANCASH","SANTA","MORO",null,null,"04.MORO",null,"04.MORO"]
["021305","ANCASH","SANTA","NEPEÑA",null,null,"05.NEPEÑA",null,"05.NEPEÑA"]
["021306","ANCASH","SANTA","SAMANCO",null,null,"06.SAMANCO",null,"06.SAMANCO"]
["021307","ANCASH","SANTA","SANTA",null,null,"07.SANTA",null,"07.SANTA"]
["021308","ANCASH","SANTA","COISHCO",null,null,"08.COISHCO",null,"08.COISHCO"]
["021309","ANCASH","SANTA","NUEVO CHIMBOTE",null,null,"09.NUEVO CHIMBOTE",null,"09.NUEVO_CHIMBOTE"]
["021401","ANCASH","SIHUAS","SIHUAS",null,null,"01.SIHUAS",null,"01.SIHUAS"]
["021402","ANCASH","SIHUAS","ALFONSO UGARTE",null,null,"02.ALFONSO UGARTE",null,"02.ALFONSO_UGARTE"]
["021403","ANCASH","SIHUAS","CHINGALPO",null,null,"03.CHINGALPO",null,"03.CHINGALPO"]
["021404","ANCASH","SIHUAS","HUAYLLABAMBA",null,null,"04.HUAYLLABAMBA",null,"04.HUAYLLABAMBA"]
["021405","ANCASH","SIHUAS","QUICHES",null,null,"05.QUICHES",null,"05.QUICHES"]
["021406","ANCASH","SIHUAS","SICSIBAMBA",null,null,"06.SICSIBAMBA",null,"06.SICSIBAMBA"]
["021407","ANCASH","SIHUAS","ACOBAMBA",null,null,"07.ACOBAMBA",null,"07.ACOBAMBA"]
["021408","ANCASH","SIHUAS","CASHAPAMPA",null,null,"08.CASHAPAMPA",null,"08.CASHAPAMPA"]
["021409","ANCASH","SIHUAS","RAGASH",null,null,"09.RAGASH",null,"09.RAGASH"]
["021410","ANCASH","SIHUAS","SAN JUAN",null,null,"10.SAN JUAN",null,"10.SAN_JUAN"]
["021501","ANCASH","YUNGAY","YUNGAY",null,null,"01.YUNGAY",null,"01.YUNGAY"]
["021502","ANCASH","YUNGAY","CASCAPARA",null,null,"02.CASCAPARA",null,"02.CASCAPARA"]
["021503","ANCASH","YUNGAY","MANCOS",null,null,"03.MANCOS",null,"03.MANCOS"]
["021504","ANCASH","YUNGAY","MATACOTO",null,null,"04.MATACOTO",null,"04.MATACOTO"]
["021505","ANCASH","YUNGAY","QUILLO",null,null,"05.QUILLO",null,"05.QUILLO"]
["021506","ANCASH","YUNGAY","RANRAHIRCA",null,null,"06.RANRAHIRCA",null,"06.RANRAHIRCA"]
["021507","ANCASH","YUNGAY","SHUPLUY",null,null,"07.SHUPLUY",null,"07.SHUPLUY"]
["021508","ANCASH","YUNGAY","YANAMA",null,null,"08.YANAMA",null,"08.YANAMA"]
["021601","ANCASH","ANTONIO RAIMONDI","LLAMELLIN",null,null,"01.LLAMELLIN",null,"01.LLAMELLIN"]
["021602","ANCASH","ANTONIO RAIMONDI","ACZO",null,null,"02.ACZO",null,"02.ACZO"]
["021603","ANCASH","ANTONIO RAIMONDI","CHACCHO",null,null,"03.CHACCHO",null,"03.CHACCHO"]
["021604","ANCASH","ANTONIO RAIMONDI","CHINGAS",null,null,"04.CHINGAS",null,"04.CHINGAS"]
["021605","ANCASH","ANTONIO RAIMONDI","MIRGAS",null,null,"05.MIRGAS",null,"05.MIRGAS"]
["021606","ANCASH","ANTONIO RAIMONDI","SAN JUAN DE RONTOY",null,null,"06.SAN JUAN DE RONTOY",null,"06.SAN_JUAN_DE_RONTOY"]
["021701","ANCASH","CARLOS FERMIN FITZCARRALD","SAN LUIS",null,null,"01.SAN LUIS",null,"01.SAN_LUIS"]
["021702","ANCASH","CARLOS FERMIN FITZCARRALD","YAUYA",null,null,"02.YAUYA",null,"02.YAUYA"]
["021703","ANCASH","CARLOS FERMIN FITZCARRALD","SAN NICOLAS",null,null,"03.SAN NICOLAS",null,"03.SAN_NICOLAS"]
["021801","ANCASH","ASUNCION","CHACAS",null,null,"01.CHACAS",null,"01.CHACAS"]
["021802","ANCASH","ASUNCION","ACOCHACA",null,null,"02.ACOCHACA",null,"02.ACOCHACA"]
["021901","ANCASH","HUARMEY","HUARMEY",null,null,"01.HUARMEY",null,"01.HUARMEY"]
["021902","ANCASH","HUARMEY","COCHAPETI",null,null,"02.COCHAPETI",null,"02.COCHAPETI"]
["021903","ANCASH","HUARMEY","HUAYAN",null,null,"03.HUAYAN",null,"03.HUAYAN"]
["021904","ANCASH","HUARMEY","MALVAS",null,null,"04.MALVAS",null,"04.MALVAS"]
["021905","ANCASH","HUARMEY","CULEBRAS",null,null,"05.CULEBRAS",null,"05.CULEBRAS"]
["022001","ANCASH","OCROS","ACAS",null,null,"01.ACAS",null,"01.ACAS"]
["022002","ANCASH","OCROS","CAJAMARQUILLA",null,null,"02.CAJAMARQUILLA",null,"02.CAJAMARQUILLA"]
["022003","ANCASH","OCROS","CARHUAPAMPA",null,null,"03.CARHUAPAMPA",null,"03.CARHUAPAMPA"]
["022004","ANCASH","OCROS","COCHAS",null,null,"04.COCHAS",null,"04.COCHAS"]
["022005","ANCASH","OCROS","CONGAS",null,null,"05.CONGAS",null,"05.CONGAS"]
["022006","ANCASH","OCROS","LLIPA",null,null,"06.LLIPA",null,"06.LLIPA"]
["022007","ANCASH","OCROS","OCROS",null,null,"07.OCROS",null,"07.OCROS"]
["022008","ANCASH","OCROS","SAN CRISTOBAL DE RAJAN",null,null,"08.SAN CRISTOBAL DE RAJAN",null,"08.SAN_CRISTOBAL_DE_RAJAN"]
["022009","ANCASH","OCROS","SAN PEDRO",null,null,"09.SAN PEDRO",null,"09.SAN_PEDRO"]
["022010","ANCASH","OCROS","SANTIAGO DE CHILCAS",null,null,"10.SANTIAGO DE CHILCAS",null,"10.SANTIAGO_DE_CHILCAS"]
["030101","APURIMAC","ABANCAY","ABANCAY",null,null,"01.ABANCAY",null,"01.ABANCAY"]
["030102","APURIMAC","ABANCAY","CIRCA",null,null,"02.CIRCA",null,"02.CIRCA"]
["030103","APURIMAC","ABANCAY","CURAHUASI",null,null,"03.CURAHUASI",null,"03.CURAHUASI"]
["030104","APURIMAC","ABANCAY","CHACOCHE",null,null,"04.CHACOCHE",null,"04.CHACOCHE"]
["030105","APURIMAC","ABANCAY","HUANIPACA",null,null,"05.HUANIPACA",null,"05.HUANIPACA"]
["030106","APURIMAC","ABANCAY","LAMBRAMA",null,null,"06.LAMBRAMA",null,"06.LAMBRAMA"]
["030107","APURIMAC","ABANCAY","PICHIRHUA",null,null,"07.PICHIRHUA",null,"07.PICHIRHUA"]
["030108","APURIMAC","ABANCAY","SAN PEDRO DE CACHORA",null,null,{"$f":"CONCATENATE(MID(A259,5,2),\".\",D259)","v":"08.SAN PEDRO DE CACHORA"},null,"08.SAN_PEDRO_DE_CACHORA"]
["030109","APURIMAC","ABANCAY","TAMBURCO",null,null,"09.TAMBURCO",null,"09.TAMBURCO"]
["030201","APURIMAC","AYMARAES","CHALHUANCA",null,null,"01.CHALHUANCA",null,"01.CHALHUANCA"]
["030202","APURIMAC","AYMARAES","CAPAYA",null,null,"02.CAPAYA",null,"02.CAPAYA"]
["030203","APURIMAC","AYMARAES","CARAYBAMBA",null,null,"03.CARAYBAMBA",null,"03.CARAYBAMBA"]
["030204","APURIMAC","AYMARAES","COLCABAMBA",null,null,"04.COLCABAMBA",null,"04.COLCABAMBA"]
["030205","APURIMAC","AYMARAES","COTARUSE",null,null,"05.COTARUSE",null,"05.COTARUSE"]
["030206","APURIMAC","AYMARAES","CHAPIMARCA",null,null,"06.CHAPIMARCA",null,"06.CHAPIMARCA"]
["030207","APURIMAC","AYMARAES","HUAYLLO",null,null,"07.HUAYLLO",null,"07.HUAYLLO"]
["030208","APURIMAC","AYMARAES","LUCRE",null,null,"08.LUCRE",null,"08.LUCRE"]
["030209","APURIMAC","AYMARAES","POCOHUANCA",null,null,"09.POCOHUANCA",null,"09.POCOHUANCA"]
["030210","APURIMAC","AYMARAES","SAÑAYCA",null,null,"10.SAÑAYCA",null,"10.SAÑAYCA"]
["030211","APURIMAC","AYMARAES","SORAYA",null,null,"11.SORAYA",null,"11.SORAYA"]
["030212","APURIMAC","AYMARAES","TAPAIRIHUA",null,null,"12.TAPAIRIHUA",null,"12.TAPAIRIHUA"]
["030213","APURIMAC","AYMARAES","TINTAY",null,null,"13.TINTAY",null,"13.TINTAY"]
["030214","APURIMAC","AYMARAES","TORAYA",null,null,"14.TORAYA",null,"14.TORAYA"]
["030215","APURIMAC","AYMARAES","YANACA",null,null,"15.YANACA",null,"15.YANACA"]
["030216","APURIMAC","AYMARAES","SAN JUAN DE CHACÑA",null,null,"16.SAN JUAN DE CHACÑA",null,"16.SAN_JUAN_DE_CHACÑA"]
["030217","APURIMAC","AYMARAES","JUSTO APU SAHUARAURA",null,null,"17.JUSTO APU SAHUARAURA",null,"17.JUSTO_APU_SAHUARAURA"]
["030301","APURIMAC","ANDAHUAYLAS","ANDAHUAYLAS",null,null,"01.ANDAHUAYLAS",null,"01.ANDAHUAYLAS"]
["030302","APURIMAC","ANDAHUAYLAS","ANDARAPA",null,null,"02.ANDARAPA",null,"02.ANDARAPA"]
["030303","APURIMAC","ANDAHUAYLAS","CHIARA",null,null,"03.CHIARA",null,"03.CHIARA"]
["030304","APURIMAC","ANDAHUAYLAS","HUANCARAMA",null,null,"04.HUANCARAMA",null,"04.HUANCARAMA"]
["030305","APURIMAC","ANDAHUAYLAS","HUANCARAY",null,null,"05.HUANCARAY",null,"05.HUANCARAY"]
["030306","APURIMAC","ANDAHUAYLAS","KISHUARA",null,null,"06.KISHUARA",null,"06.KISHUARA"]
["030307","APURIMAC","ANDAHUAYLAS","PACOBAMBA",null,null,"07.PACOBAMBA",null,"07.PACOBAMBA"]
["030308","APURIMAC","ANDAHUAYLAS","PAMPACHIRI",null,null,"08.PAMPACHIRI",null,"08.PAMPACHIRI"]
["030309","APURIMAC","ANDAHUAYLAS","SAN ANTONIO DE CACHI",null,null,"09.SAN ANTONIO DE CACHI",null,"09.SAN_ANTONIO_DE_CACHI"]
["030310","APURIMAC","ANDAHUAYLAS","SAN JERONIMO",null,null,"10.SAN JERONIMO",null,"10.SAN_JERONIMO"]
["030311","APURIMAC","ANDAHUAYLAS","TALAVERA",null,null,"11.TALAVERA",null,"11.TALAVERA"]
["030312","APURIMAC","ANDAHUAYLAS","TURPO",null,null,"12.TURPO",null,"12.TURPO"]
["030313","APURIMAC","ANDAHUAYLAS","PACUCHA",null,null,"13.PACUCHA",null,"13.PACUCHA"]
["030314","APURIMAC","ANDAHUAYLAS","POMACOCHA",null,null,"14.POMACOCHA",null,"14.POMACOCHA"]
["030315","APURIMAC","ANDAHUAYLAS","SANTA MARIA DE CHICMO",null,null,"15.SANTA MARIA DE CHICMO",null,"15.SANTA_MARIA_DE_CHICMO"]
["030316","APURIMAC","ANDAHUAYLAS","TUMAY HUARACA",null,null,"16.TUMAY HUARACA",null,"16.TUMAY_HUARACA"]
["030317","APURIMAC","ANDAHUAYLAS","HUAYANA",null,null,"17.HUAYANA",null,"17.HUAYANA"]
["030318","APURIMAC","ANDAHUAYLAS","SAN MIGUEL DE CHACCRAMPA",null,null,"18.SAN MIGUEL DE CHACCRAMPA",null,"18.SAN_MIGUEL_DE_CHACCRAMPA"]
["030319","APURIMAC","ANDAHUAYLAS","KAQUIABAMBA",null,null,"19.KAQUIABAMBA",null,"19.KAQUIABAMBA"]
["030401","APURIMAC","ANTABAMBA","ANTABAMBA",null,null,"01.ANTABAMBA",null,"01.ANTABAMBA"]
["030402","APURIMAC","ANTABAMBA","EL ORO",null,null,"02.EL ORO",null,"02.EL_ORO"]
["030403","APURIMAC","ANTABAMBA","HUAQUIRCA",null,null,"03.HUAQUIRCA",null,"03.HUAQUIRCA"]
["030404","APURIMAC","ANTABAMBA","JUAN ESPINOZA MEDRANO",null,null,"04.JUAN ESPINOZA MEDRANO",null,"04.JUAN_ESPINOZA_MEDRANO"]
["030405","APURIMAC","ANTABAMBA","OROPESA",null,null,"05.OROPESA",null,"05.OROPESA"]
["030406","APURIMAC","ANTABAMBA","PACHACONAS",null,null,"06.PACHACONAS",null,"06.PACHACONAS"]
["030407","APURIMAC","ANTABAMBA","SABAINO",null,null,"07.SABAINO",null,"07.SABAINO"]
["030501","APURIMAC","COTABAMBAS","TAMBOBAMBA",null,null,"01.TAMBOBAMBA",null,"01.TAMBOBAMBA"]
["030502","APURIMAC","COTABAMBAS","COYLLURQUI",null,null,"02.COYLLURQUI",null,"02.COYLLURQUI"]
["030503","APURIMAC","COTABAMBAS","COTABAMBAS",null,null,"03.COTABAMBAS",null,"03.COTABAMBAS"]
["030504","APURIMAC","COTABAMBAS","HAQUIRA",null,null,"04.HAQUIRA",null,"04.HAQUIRA"]
["030505","APURIMAC","COTABAMBAS","MARA",null,null,"05.MARA",null,"05.MARA"]
["030506","APURIMAC","COTABAMBAS","CHALLHUAHUACHO",null,null,"06.CHALLHUAHUACHO",null,"06.CHALLHUAHUACHO"]
["030601","APURIMAC","GRAU","CHUQUIBAMBILLA",null,null,"01.CHUQUIBAMBILLA",null,"01.CHUQUIBAMBILLA"]
["030602","APURIMAC","GRAU","CURPAHUASI",null,null,"02.CURPAHUASI",null,"02.CURPAHUASI"]
["030603","APURIMAC","GRAU","HUAILLATI",null,null,"03.HUAILLATI",null,"03.HUAILLATI"]
["030604","APURIMAC","GRAU","MAMARA",null,null,"04.MAMARA",null,"04.MAMARA"]
["030605","APURIMAC","GRAU","MARISCAL GAMARRA",null,null,"05.MARISCAL GAMARRA",null,"05.MARISCAL_GAMARRA"]
["030606","APURIMAC","GRAU","MICAELA BASTIDAS",null,null,"06.MICAELA BASTIDAS",null,"06.MICAELA_BASTIDAS"]
["030607","APURIMAC","GRAU","PROGRESO",null,null,"07.PROGRESO",null,"07.PROGRESO"]
["030608","APURIMAC","GRAU","PATAYPAMPA",null,null,"08.PATAYPAMPA",null,"08.PATAYPAMPA"]
["030609","APURIMAC","GRAU","SAN ANTONIO",null,null,"09.SAN ANTONIO",null,"09.SAN_ANTONIO"]
["030610","APURIMAC","GRAU","TURPAY",null,null,"10.TURPAY",null,"10.TURPAY"]
["030611","APURIMAC","GRAU","VILCABAMBA",null,null,"11.VILCABAMBA",null,"11.VILCABAMBA"]
["030612","APURIMAC","GRAU","VIRUNDO",null,null,"12.VIRUNDO",null,"12.VIRUNDO"]
["030613","APURIMAC","GRAU","SANTA ROSA",null,null,"13.SANTA ROSA",null,"13.SANTA_ROSA"]
["030614","APURIMAC","GRAU","CURASCO",null,null,{"$f":"CONCATENATE(MID(A323,5,2),\".\",D323)","v":"14.CURASCO"},null,"14.CURASCO"]
["030701","APURIMAC","CHINCHEROS","CHINCHEROS",null,null,"01.CHINCHEROS",null,"01.CHINCHEROS"]
["030702","APURIMAC","CHINCHEROS","ONGOY",null,null,"02.ONGOY",null,"02.ONGOY"]
["030703","APURIMAC","CHINCHEROS","OCOBAMBA",null,null,"03.OCOBAMBA",null,"03.OCOBAMBA"]
["030704","APURIMAC","CHINCHEROS","COCHARCAS",null,null,"04.COCHARCAS",null,"04.COCHARCAS"]
["030705","APURIMAC","CHINCHEROS","ANCO HUALLO",null,null,"05.ANCO HUALLO",null,"05.ANCO_HUALLO"]
["030706","APURIMAC","CHINCHEROS","HUACCANA",null,null,"06.HUACCANA",null,"06.HUACCANA"]
["030707","APURIMAC","CHINCHEROS","URANMARCA",null,null,"07.URANMARCA",null,"07.URANMARCA"]
["030708","APURIMAC","CHINCHEROS","RANRACANCHA",null,null,"08.RANRACANCHA",null,"08.RANRACANCHA"]
["040101","AREQUIPA","AREQUIPA","AREQUIPA",null,null,"01.AREQUIPA",null,"01.AREQUIPA"]
["040102","AREQUIPA","AREQUIPA","CAYMA",null,null,"02.CAYMA",null,"02.CAYMA"]
["040103","AREQUIPA","AREQUIPA","CERRO COLORADO",null,null,"03.CERRO COLORADO",null,"03.CERRO_COLORADO"]
["040104","AREQUIPA","AREQUIPA","CHARACATO",null,null,"04.CHARACATO",null,"04.CHARACATO"]
["040105","AREQUIPA","AREQUIPA","CHIGUATA",null,null,"05.CHIGUATA",null,"05.CHIGUATA"]
["040106","AREQUIPA","AREQUIPA","LA JOYA",null,null,"06.LA JOYA",null,"06.LA_JOYA"]
["040107","AREQUIPA","AREQUIPA","MIRAFLORES",null,null,"07.MIRAFLORES",null,"07.MIRAFLORES"]
["040108","AREQUIPA","AREQUIPA","MOLLEBAYA",null,null,"08.MOLLEBAYA",null,"08.MOLLEBAYA"]
["040109","AREQUIPA","AREQUIPA","PAUCARPATA",null,null,"09.PAUCARPATA",null,"09.PAUCARPATA"]
["040110","AREQUIPA","AREQUIPA","POCSI",null,null,"10.POCSI",null,"10.POCSI"]
["040111","AREQUIPA","AREQUIPA","POLOBAYA",null,null,"11.POLOBAYA",null,"11.POLOBAYA"]
["040112","AREQUIPA","AREQUIPA","QUEQUEÑA",null,null,"12.QUEQUEÑA",null,"12.QUEQUEÑA"]
["040113","AREQUIPA","AREQUIPA","SABANDIA",null,null,"13.SABANDIA",null,"13.SABANDIA"]
["040114","AREQUIPA","AREQUIPA","SACHACA",null,null,"14.SACHACA",null,"14.SACHACA"]
["040115","AREQUIPA","AREQUIPA","SAN JUAN DE SIGUAS",null,null,"15.SAN JUAN DE SIGUAS",null,"15.SAN_JUAN_DE_SIGUAS"]
["040116","AREQUIPA","AREQUIPA","SAN JUAN DE TARUCANI",null,null,"16.SAN JUAN DE TARUCANI",null,"16.SAN_JUAN_DE_TARUCANI"]
["040117","AREQUIPA","AREQUIPA","SANTA ISABEL DE SIGUAS",null,null,"17.SANTA ISABEL DE SIGUAS",null,"17.SANTA_ISABEL_DE_SIGUAS"]
["040118","AREQUIPA","AREQUIPA","SANTA RITA DE SIHUAS",null,null,"18.SANTA RITA DE SIHUAS",null,"18.SANTA_RITA_DE_SIHUAS"]
["040119","AREQUIPA","AREQUIPA","SOCABAYA",null,null,"19.SOCABAYA",null,"19.SOCABAYA"]
["040120","AREQUIPA","AREQUIPA","TIABAYA",null,null,"20.TIABAYA",null,"20.TIABAYA"]
["040121","AREQUIPA","AREQUIPA","UCHUMAYO",null,null,"21.UCHUMAYO",null,"21.UCHUMAYO"]
["040122","AREQUIPA","AREQUIPA","VITOR",null,null,"22.VITOR",null,"22.VITOR"]
["040123","AREQUIPA","AREQUIPA","YANAHUARA",null,null,"23.YANAHUARA",null,"23.YANAHUARA"]
["040124","AREQUIPA","AREQUIPA","YARABAMBA",null,null,"24.YARABAMBA",null,"24.YARABAMBA"]
["040125","AREQUIPA","AREQUIPA","YURA",null,null,"25.YURA",null,"25.YURA"]
["040126","AREQUIPA","AREQUIPA","MARIANO MELGAR",null,null,"26.MARIANO MELGAR",null,"26.MARIANO_MELGAR"]
["040127","AREQUIPA","AREQUIPA","JACOBO HUNTER",null,null,"27.JACOBO HUNTER",null,"27.JACOBO_HUNTER"]
["040128","AREQUIPA","AREQUIPA","ALTO SELVA ALEGRE",null,null,"28.ALTO SELVA ALEGRE",null,"28.ALTO_SELVA_ALEGRE"]
["040129","AREQUIPA","AREQUIPA","JOSE LUIS BUSTAMANTE Y RIVERO",null,null,"29.JOSE LUIS BUSTAMANTE Y RIVERO",null,"29.JOSE_LUIS_BUSTAMANTE_Y_RIVERO"]
["040201","AREQUIPA","CAYLLOMA","CHIVAY",null,null,"01.CHIVAY",null,"01.CHIVAY"]
["040202","AREQUIPA","CAYLLOMA","ACHOMA",null,null,"02.ACHOMA",null,"02.ACHOMA"]
["040203","AREQUIPA","CAYLLOMA","CABANACONDE",null,null,"03.CABANACONDE",null,"03.CABANACONDE"]
["040204","AREQUIPA","CAYLLOMA","CAYLLOMA",null,null,"04.CAYLLOMA",null,"04.CAYLLOMA"]
["040205","AREQUIPA","CAYLLOMA","CALLALLI",null,null,"05.CALLALLI",null,"05.CALLALLI"]
["040206","AREQUIPA","CAYLLOMA","COPORAQUE",null,null,"06.COPORAQUE",null,"06.COPORAQUE"]
["040207","AREQUIPA","CAYLLOMA","HUAMBO",null,null,"07.HUAMBO",null,"07.HUAMBO"]
["040208","AREQUIPA","CAYLLOMA","HUANCA",null,null,"08.HUANCA",null,"08.HUANCA"]
["040209","AREQUIPA","CAYLLOMA","ICHUPAMPA",null,null,"09.ICHUPAMPA",null,"09.ICHUPAMPA"]
["040210","AREQUIPA","CAYLLOMA","LARI",null,null,"10.LARI",null,"10.LARI"]
["040211","AREQUIPA","CAYLLOMA","LLUTA",null,null,"11.LLUTA",null,"11.LLUTA"]
["040212","AREQUIPA","CAYLLOMA","MACA",null,null,"12.MACA",null,"12.MACA"]
["040213","AREQUIPA","CAYLLOMA","MADRIGAL",null,null,"13.MADRIGAL",null,"13.MADRIGAL"]
["040214","AREQUIPA","CAYLLOMA","SAN ANTONIO DE CHUCA",null,null,"14.SAN ANTONIO DE CHUCA",null,"14.SAN_ANTONIO_DE_CHUCA"]
["040215","AREQUIPA","CAYLLOMA","SIBAYO",null,null,"15.SIBAYO",null,"15.SIBAYO"]
["040216","AREQUIPA","CAYLLOMA","TAPAY",null,null,"16.TAPAY",null,"16.TAPAY"]
["040217","AREQUIPA","CAYLLOMA","TISCO",null,null,"17.TISCO",null,"17.TISCO"]
["040218","AREQUIPA","CAYLLOMA","TUTI",null,null,"18.TUTI",null,"18.TUTI"]
["040219","AREQUIPA","CAYLLOMA","YANQUE",null,null,"19.YANQUE",null,"19.YANQUE"]
["040220","AREQUIPA","CAYLLOMA","MAJES",null,null,"20.MAJES",null,"20.MAJES"]
["040301","AREQUIPA","CAMANA","CAMANA",null,null,"01.CAMANA",null,"01.CAMANA"]
["040302","AREQUIPA","CAMANA","JOSE MARIA QUIMPER",null,null,"02.JOSE MARIA QUIMPER",null,"02.JOSE_MARIA_QUIMPER"]
["040303","AREQUIPA","CAMANA","MARIANO NICOLAS VALCARCEL",null,null,"03.MARIANO NICOLAS VALCARCEL",null,"03.MARIANO_NICOLAS_VALCARCEL"]
["040304","AREQUIPA","CAMANA","MARISCAL CACERES",null,null,"04.MARISCAL CACERES",null,"04.MARISCAL_CACERES"]
["040305","AREQUIPA","CAMANA","NICOLAS DE PIEROLA",null,null,"05.NICOLAS DE PIEROLA",null,"05.NICOLAS_DE_PIEROLA"]
["040306","AREQUIPA","CAMANA","OCOÑA",null,null,"06.OCOÑA",null,"06.OCOÑA"]
["040307","AREQUIPA","CAMANA","QUILCA",null,null,{"$f":"CONCATENATE(MID(A387,5,2),\".\",D387)","v":"07.QUILCA"},null,"07.QUILCA"]
["040308","AREQUIPA","CAMANA","SAMUEL PASTOR",null,null,"08.SAMUEL PASTOR",null,"08.SAMUEL_PASTOR"]
["040401","AREQUIPA","CARAVELI","CARAVELI",null,null,"01.CARAVELI",null,"01.CARAVELI"]
["040402","AREQUIPA","CARAVELI","ACARI",null,null,"02.ACARI",null,"02.ACARI"]
["040403","AREQUIPA","CARAVELI","ATICO",null,null,"03.ATICO",null,"03.ATICO"]
["040404","AREQUIPA","CARAVELI","ATIQUIPA",null,null,"04.ATIQUIPA",null,"04.ATIQUIPA"]
["040405","AREQUIPA","CARAVELI","BELLA UNION",null,null,"05.BELLA UNION",null,"05.BELLA_UNION"]
["040406","AREQUIPA","CARAVELI","CAHUACHO",null,null,"06.CAHUACHO",null,"06.CAHUACHO"]
["040407","AREQUIPA","CARAVELI","CHALA",null,null,"07.CHALA",null,"07.CHALA"]
["040408","AREQUIPA","CARAVELI","CHAPARRA",null,null,"08.CHAPARRA",null,"08.CHAPARRA"]
["040409","AREQUIPA","CARAVELI","HUANUHUANU",null,null,"09.HUANUHUANU",null,"09.HUANUHUANU"]
["040410","AREQUIPA","CARAVELI","JAQUI",null,null,"10.JAQUI",null,"10.JAQUI"]
["040411","AREQUIPA","CARAVELI","LOMAS",null,null,"11.LOMAS",null,"11.LOMAS"]
["040412","AREQUIPA","CARAVELI","QUICACHA",null,null,"12.QUICACHA",null,"12.QUICACHA"]
["040413","AREQUIPA","CARAVELI","YAUCA",null,null,"13.YAUCA",null,"13.YAUCA"]
["040501","AREQUIPA","CASTILLA","APLAO",null,null,"01.APLAO",null,"01.APLAO"]
["040502","AREQUIPA","CASTILLA","ANDAGUA",null,null,"02.ANDAGUA",null,"02.ANDAGUA"]
["040503","AREQUIPA","CASTILLA","AYO",null,null,"03.AYO",null,"03.AYO"]
["040504","AREQUIPA","CASTILLA","CHACHAS",null,null,"04.CHACHAS",null,"04.CHACHAS"]
["040505","AREQUIPA","CASTILLA","CHILCAYMARCA",null,null,"05.CHILCAYMARCA",null,"05.CHILCAYMARCA"]
["040506","AREQUIPA","CASTILLA","CHOCO",null,null,"06.CHOCO",null,"06.CHOCO"]
["040507","AREQUIPA","CASTILLA","HUANCARQUI",null,null,"07.HUANCARQUI",null,"07.HUANCARQUI"]
["040508","AREQUIPA","CASTILLA","MACHAGUAY",null,null,"08.MACHAGUAY",null,"08.MACHAGUAY"]
["040509","AREQUIPA","CASTILLA","ORCOPAMPA",null,null,"09.ORCOPAMPA",null,"09.ORCOPAMPA"]
["040510","AREQUIPA","CASTILLA","PAMPACOLCA",null,null,"10.PAMPACOLCA",null,"10.PAMPACOLCA"]
["040511","AREQUIPA","CASTILLA","TIPAN",null,null,"11.TIPAN",null,"11.TIPAN"]
["040512","AREQUIPA","CASTILLA","URACA",null,null,"12.URACA",null,"12.URACA"]
["040513","AREQUIPA","CASTILLA","UÑON",null,null,"13.UÑON",null,"13.UÑON"]
["040514","AREQUIPA","CASTILLA","VIRACO",null,null,"14.VIRACO",null,"14.VIRACO"]
["040601","AREQUIPA","CONDESUYOS","CHUQUIBAMBA",null,null,"01.CHUQUIBAMBA",null,"01.CHUQUIBAMBA"]
["040602","AREQUIPA","CONDESUYOS","ANDARAY",null,null,"02.ANDARAY",null,"02.ANDARAY"]
["040603","AREQUIPA","CONDESUYOS","CAYARANI",null,null,"03.CAYARANI",null,"03.CAYARANI"]
["040604","AREQUIPA","CONDESUYOS","CHICHAS",null,null,"04.CHICHAS",null,"04.CHICHAS"]
["040605","AREQUIPA","CONDESUYOS","IRAY",null,null,"05.IRAY",null,"05.IRAY"]
["040606","AREQUIPA","CONDESUYOS","SALAMANCA",null,null,"06.SALAMANCA",null,"06.SALAMANCA"]
["040607","AREQUIPA","CONDESUYOS","YANAQUIHUA",null,null,"07.YANAQUIHUA",null,"07.YANAQUIHUA"]
["040608","AREQUIPA","CONDESUYOS","RIO GRANDE",null,null,"08.RIO GRANDE",null,"08.RIO_GRANDE"]
["040701","AREQUIPA","ISLAY","MOLLENDO",null,null,"01.MOLLENDO",null,"01.MOLLENDO"]
["040702","AREQUIPA","ISLAY","COCACHACRA",null,null,"02.COCACHACRA",null,"02.COCACHACRA"]
["040703","AREQUIPA","ISLAY","DEAN VALDIVIA",null,null,"03.DEAN VALDIVIA",null,"03.DEAN_VALDIVIA"]
["040704","AREQUIPA","ISLAY","ISLAY",null,null,"04.ISLAY",null,"04.ISLAY"]
["040705","AREQUIPA","ISLAY","MEJIA",null,null,"05.MEJIA",null,"05.MEJIA"]
["040706","AREQUIPA","ISLAY","PUNTA DE BOMBON",null,null,"06.PUNTA DE BOMBON",null,"06.PUNTA_DE_BOMBON"]
["040801","AREQUIPA","LA UNION","COTAHUASI",null,null,"01.COTAHUASI",null,"01.COTAHUASI"]
["040802","AREQUIPA","LA UNION","ALCA",null,null,"02.ALCA",null,"02.ALCA"]
["040803","AREQUIPA","LA UNION","CHARCANA",null,null,"03.CHARCANA",null,"03.CHARCANA"]
["040804","AREQUIPA","LA UNION","HUAYNACOTAS",null,null,"04.HUAYNACOTAS",null,"04.HUAYNACOTAS"]
["040805","AREQUIPA","LA UNION","PAMPAMARCA",null,null,"05.PAMPAMARCA",null,"05.PAMPAMARCA"]
["040806","AREQUIPA","LA UNION","PUYCA",null,null,"06.PUYCA",null,"06.PUYCA"]
["040807","AREQUIPA","LA UNION","QUECHUALLA",null,null,"07.QUECHUALLA",null,"07.QUECHUALLA"]
["040808","AREQUIPA","LA UNION","SAYLA",null,null,"08.SAYLA",null,"08.SAYLA"]
["040809","AREQUIPA","LA UNION","TAURIA",null,null,"09.TAURIA",null,"09.TAURIA"]
["040810","AREQUIPA","LA UNION","TOMEPAMPA",null,null,"10.TOMEPAMPA",null,"10.TOMEPAMPA"]
["040811","AREQUIPA","LA UNION","TORO",null,null,"11.TORO",null,"11.TORO"]
["050101","AYACUCHO","HUAMANGA","AYACUCHO",null,null,"01.AYACUCHO",null,"01.AYACUCHO"]
["050102","AYACUCHO","HUAMANGA","ACOS VINCHOS",null,null,"02.ACOS VINCHOS",null,"02.ACOS_VINCHOS"]
["050103","AYACUCHO","HUAMANGA","CARMEN ALTO",null,null,"03.CARMEN ALTO",null,"03.CARMEN_ALTO"]
["050104","AYACUCHO","HUAMANGA","CHIARA",null,null,"04.CHIARA",null,"04.CHIARA"]
["050105","AYACUCHO","HUAMANGA","QUINUA",null,null,"05.QUINUA",null,"05.QUINUA"]
["050106","AYACUCHO","HUAMANGA","SAN JOSE DE TICLLAS",null,null,"06.SAN JOSE DE TICLLAS",null,"06.SAN_JOSE_DE_TICLLAS"]
["050107","AYACUCHO","HUAMANGA","SAN JUAN BAUTISTA",null,null,"07.SAN JUAN BAUTISTA",null,"07.SAN_JUAN_BAUTISTA"]
["050108","AYACUCHO","HUAMANGA","SANTIAGO DE PISCHA",null,null,"08.SANTIAGO DE PISCHA",null,"08.SANTIAGO_DE_PISCHA"]
["050109","AYACUCHO","HUAMANGA","VINCHOS",null,null,"09.VINCHOS",null,"09.VINCHOS"]
["050110","AYACUCHO","HUAMANGA","TAMBILLO",null,null,"10.TAMBILLO",null,"10.TAMBILLO"]
["050111","AYACUCHO","HUAMANGA","ACOCRO",null,null,{"$f":"CONCATENATE(MID(A451,5,2),\".\",D451)","v":"11.ACOCRO"},null,"11.ACOCRO"]
["050112","AYACUCHO","HUAMANGA","SOCOS",null,null,"12.SOCOS",null,"12.SOCOS"]
["050113","AYACUCHO","HUAMANGA","OCROS",null,null,"13.OCROS",null,"13.OCROS"]
["050114","AYACUCHO","HUAMANGA","PACAYCASA",null,null,"14.PACAYCASA",null,"14.PACAYCASA"]
["050115","AYACUCHO","HUAMANGA","JESUS NAZARENO",null,null,"15.JESUS NAZARENO",null,"15.JESUS_NAZARENO"]
["050201","AYACUCHO","CANGALLO","CANGALLO",null,null,"01.CANGALLO",null,"01.CANGALLO"]
["050204","AYACUCHO","CANGALLO","CHUSCHI",null,null,"04.CHUSCHI",null,"04.CHUSCHI"]
["050206","AYACUCHO","CANGALLO","LOS MOROCHUCOS",null,null,"06.LOS MOROCHUCOS",null,"06.LOS_MOROCHUCOS"]
["050207","AYACUCHO","CANGALLO","PARAS",null,null,"07.PARAS",null,"07.PARAS"]
["050208","AYACUCHO","CANGALLO","TOTOS",null,null,"08.TOTOS",null,"08.TOTOS"]
["050211","AYACUCHO","CANGALLO","MARIA PARADO DE BELLIDO",null,null,"11.MARIA PARADO DE BELLIDO",null,"11.MARIA_PARADO_DE_BELLIDO"]
["050301","AYACUCHO","HUANTA","HUANTA",null,null,"01.HUANTA",null,"01.HUANTA"]
["050302","AYACUCHO","HUANTA","AYAHUANCO",null,null,"02.AYAHUANCO",null,"02.AYAHUANCO"]
["050303","AYACUCHO","HUANTA","HUAMANGUILLA",null,null,"03.HUAMANGUILLA",null,"03.HUAMANGUILLA"]
["050304","AYACUCHO","HUANTA","IGUAIN",null,null,"04.IGUAIN",null,"04.IGUAIN"]
["050305","AYACUCHO","HUANTA","LURICOCHA",null,null,"05.LURICOCHA",null,"05.LURICOCHA"]
["050307","AYACUCHO","HUANTA","SANTILLANA",null,null,"07.SANTILLANA",null,"07.SANTILLANA"]
["050308","AYACUCHO","HUANTA","SIVIA",null,null,"08.SIVIA",null,"08.SIVIA"]
["050309","AYACUCHO","HUANTA","LLOCHEGUA",null,null,"09.LLOCHEGUA",null,"09.LLOCHEGUA"]
["050401","AYACUCHO","LA MAR","SAN MIGUEL",null,null,"01.SAN MIGUEL",null,"01.SAN_MIGUEL"]
["050402","AYACUCHO","LA MAR","ANCO",null,null,"02.ANCO",null,"02.ANCO"]
["050403","AYACUCHO","LA MAR","AYNA",null,null,"03.AYNA",null,"03.AYNA"]
["050404","AYACUCHO","LA MAR","CHILCAS",null,null,"04.CHILCAS",null,"04.CHILCAS"]
["050405","AYACUCHO","LA MAR","CHUNGUI",null,null,"05.CHUNGUI",null,"05.CHUNGUI"]
["050406","AYACUCHO","LA MAR","TAMBO",null,null,"06.TAMBO",null,"06.TAMBO"]
["050407","AYACUCHO","LA MAR","LUIS CARRANZA",null,null,"07.LUIS CARRANZA",null,"07.LUIS_CARRANZA"]
["050408","AYACUCHO","LA MAR","SANTA ROSA",null,null,"08.SANTA ROSA",null,"08.SANTA_ROSA"]
["050409","AYACUCHO","LA MAR","SAMUGARI",null,null,"09.SAMUGARI",null,"09.SAMUGARI"]
["050501","AYACUCHO","LUCANAS","PUQUIO",null,null,"01.PUQUIO",null,"01.PUQUIO"]
["050502","AYACUCHO","LUCANAS","AUCARA",null,null,"02.AUCARA",null,"02.AUCARA"]
["050503","AYACUCHO","LUCANAS","CABANA",null,null,"03.CABANA",null,"03.CABANA"]
["050504","AYACUCHO","LUCANAS","CARMEN SALCEDO",null,null,"04.CARMEN SALCEDO",null,"04.CARMEN_SALCEDO"]
["050506","AYACUCHO","LUCANAS","CHAVIÑA",null,null,"06.CHAVIÑA",null,"06.CHAVIÑA"]
["050508","AYACUCHO","LUCANAS","CHIPAO",null,null,"08.CHIPAO",null,"08.CHIPAO"]
["050510","AYACUCHO","LUCANAS","HUAC-HUAS",null,null,"10.HUAC-HUAS",null,"10.HUAC-HUAS"]
["050511","AYACUCHO","LUCANAS","LARAMATE",null,null,"11.LARAMATE",null,"11.LARAMATE"]
["050512","AYACUCHO","LUCANAS","LEONCIO PRADO",null,null,"12.LEONCIO PRADO",null,"12.LEONCIO_PRADO"]
["050513","AYACUCHO","LUCANAS","LUCANAS",null,null,"13.LUCANAS",null,"13.LUCANAS"]
["050514","AYACUCHO","LUCANAS","LLAUTA",null,null,"14.LLAUTA",null,"14.LLAUTA"]
["050516","AYACUCHO","LUCANAS","OCAÑA",null,null,"16.OCAÑA",null,"16.OCAÑA"]
["050517","AYACUCHO","LUCANAS","OTOCA",null,null,"17.OTOCA",null,"17.OTOCA"]
["050520","AYACUCHO","LUCANAS","SANCOS",null,null,"20.SANCOS",null,"20.SANCOS"]
["050521","AYACUCHO","LUCANAS","SAN JUAN",null,null,"21.SAN JUAN",null,"21.SAN_JUAN"]
["050522","AYACUCHO","LUCANAS","SAN PEDRO",null,null,"22.SAN PEDRO",null,"22.SAN_PEDRO"]
["050524","AYACUCHO","LUCANAS","SANTA ANA DE HUAYCAHUACHO",null,null,"24.SANTA ANA DE HUAYCAHUACHO",null,"24.SANTA_ANA_DE_HUAYCAHUACHO"]
["050525","AYACUCHO","LUCANAS","SANTA LUCIA",null,null,"25.SANTA LUCIA",null,"25.SANTA_LUCIA"]
["050529","AYACUCHO","LUCANAS","SAISA",null,null,"29.SAISA",null,"29.SAISA"]
["050531","AYACUCHO","LUCANAS","SAN PEDRO DE PALCO",null,null,"31.SAN PEDRO DE PALCO",null,"31.SAN_PEDRO_DE_PALCO"]
["050532","AYACUCHO","LUCANAS","SAN CRISTOBAL",null,null,"32.SAN CRISTOBAL",null,"32.SAN_CRISTOBAL"]
["050601","AYACUCHO","PARINACOCHAS","CORACORA",null,null,"01.CORACORA",null,"01.CORACORA"]
["050604","AYACUCHO","PARINACOCHAS","CORONEL CASTAÑEDA",null,null,"04.CORONEL CASTAÑEDA",null,"04.CORONEL_CASTAÑEDA"]
["050605","AYACUCHO","PARINACOCHAS","CHUMPI",null,null,"05.CHUMPI",null,"05.CHUMPI"]
["050608","AYACUCHO","PARINACOCHAS","PACAPAUSA",null,null,"08.PACAPAUSA",null,"08.PACAPAUSA"]
["050611","AYACUCHO","PARINACOCHAS","PULLO",null,null,"11.PULLO",null,"11.PULLO"]
["050612","AYACUCHO","PARINACOCHAS","PUYUSCA",null,null,"12.PUYUSCA",null,"12.PUYUSCA"]
["050615","AYACUCHO","PARINACOCHAS","SAN FRANCISCO DE RAVACAYCO",null,null,"15.SAN FRANCISCO DE RAVACAYCO",null,"15.SAN_FRANCISCO_DE_RAVACAYCO"]
["050616","AYACUCHO","PARINACOCHAS","UPAHUACHO",null,null,"16.UPAHUACHO",null,"16.UPAHUACHO"]
["050701","AYACUCHO","VICTOR FAJARDO","HUANCAPI",null,null,"01.HUANCAPI",null,"01.HUANCAPI"]
["050702","AYACUCHO","VICTOR FAJARDO","ALCAMENCA",null,null,"02.ALCAMENCA",null,"02.ALCAMENCA"]
["050703","AYACUCHO","VICTOR FAJARDO","APONGO",null,null,"03.APONGO",null,"03.APONGO"]
["050704","AYACUCHO","VICTOR FAJARDO","CANARIA",null,null,"04.CANARIA",null,"04.CANARIA"]
["050706","AYACUCHO","VICTOR FAJARDO","CAYARA",null,null,"06.CAYARA",null,"06.CAYARA"]
["050707","AYACUCHO","VICTOR FAJARDO","COLCA",null,null,"07.COLCA",null,"07.COLCA"]
["050708","AYACUCHO","VICTOR FAJARDO","HUALLA",null,null,"08.HUALLA",null,"08.HUALLA"]
["050709","AYACUCHO","VICTOR FAJARDO","HUAMANQUIQUIA",null,null,{"$f":"CONCATENATE(MID(A515,5,2),\".\",D515)","v":"09.HUAMANQUIQUIA"},null,"09.HUAMANQUIQUIA"]
["050710","AYACUCHO","VICTOR FAJARDO","HUANCARAYLLA",null,null,"10.HUANCARAYLLA",null,"10.HUANCARAYLLA"]
["050713","AYACUCHO","VICTOR FAJARDO","SARHUA",null,null,"13.SARHUA",null,"13.SARHUA"]
["050714","AYACUCHO","VICTOR FAJARDO","VILCANCHOS",null,null,"14.VILCANCHOS",null,"14.VILCANCHOS"]
["050715","AYACUCHO","VICTOR FAJARDO","ASQUIPATA",null,null,"15.ASQUIPATA",null,"15.ASQUIPATA"]
["050801","AYACUCHO","HUANCA SANCOS","SANCOS",null,null,"01.SANCOS",null,"01.SANCOS"]
["050802","AYACUCHO","HUANCA SANCOS","SACSAMARCA",null,null,"02.SACSAMARCA",null,"02.SACSAMARCA"]
["050803","AYACUCHO","HUANCA SANCOS","SANTIAGO DE LUCANAMARCA",null,null,"03.SANTIAGO DE LUCANAMARCA",null,"03.SANTIAGO_DE_LUCANAMARCA"]
["050804","AYACUCHO","HUANCA SANCOS","CARAPO",null,null,"04.CARAPO",null,"04.CARAPO"]
["050901","AYACUCHO","VILCAS HUAMAN","VILCAS HUAMAN",null,null,"01.VILCAS HUAMAN",null,"01.VILCAS_HUAMAN"]
["050902","AYACUCHO","VILCAS HUAMAN","VISCHONGO",null,null,"02.VISCHONGO",null,"02.VISCHONGO"]
["050903","AYACUCHO","VILCAS HUAMAN","ACCOMARCA",null,null,"03.ACCOMARCA",null,"03.ACCOMARCA"]
["050904","AYACUCHO","VILCAS HUAMAN","CARHUANCA",null,null,"04.CARHUANCA",null,"04.CARHUANCA"]
["050905","AYACUCHO","VILCAS HUAMAN","CONCEPCION",null,null,"05.CONCEPCION",null,"05.CONCEPCION"]
["050906","AYACUCHO","VILCAS HUAMAN","HUAMBALPA",null,null,"06.HUAMBALPA",null,"06.HUAMBALPA"]
["050907","AYACUCHO","VILCAS HUAMAN","SAURAMA",null,null,"07.SAURAMA",null,"07.SAURAMA"]
["050908","AYACUCHO","VILCAS HUAMAN","INDEPENDENCIA",null,null,"08.INDEPENDENCIA",null,"08.INDEPENDENCIA"]
["051001","AYACUCHO","PAUCAR DEL SARA SARA","PAUSA",null,null,"01.PAUSA",null,"01.PAUSA"]
["051002","AYACUCHO","PAUCAR DEL SARA SARA","COLTA",null,null,"02.COLTA",null,"02.COLTA"]
["051003","AYACUCHO","PAUCAR DEL SARA SARA","CORCULLA",null,null,"03.CORCULLA",null,"03.CORCULLA"]
["051004","AYACUCHO","PAUCAR DEL SARA SARA","LAMPA",null,null,"04.LAMPA",null,"04.LAMPA"]
["051005","AYACUCHO","PAUCAR DEL SARA SARA","MARCABAMBA",null,null,"05.MARCABAMBA",null,"05.MARCABAMBA"]
["051006","AYACUCHO","PAUCAR DEL SARA SARA","OYOLO",null,null,"06.OYOLO",null,"06.OYOLO"]
["051007","AYACUCHO","PAUCAR DEL SARA SARA","PARARCA",null,null,"07.PARARCA",null,"07.PARARCA"]
["051008","AYACUCHO","PAUCAR DEL SARA SARA","SAN JAVIER DE ALPABAMBA",null,null,"08.SAN JAVIER DE ALPABAMBA",null,"08.SAN_JAVIER_DE_ALPABAMBA"]
["051009","AYACUCHO","PAUCAR DEL SARA SARA","SAN JOSE DE USHUA",null,null,"09.SAN JOSE DE USHUA",null,"09.SAN_JOSE_DE_USHUA"]
["051010","AYACUCHO","PAUCAR DEL SARA SARA","SARA SARA",null,null,"10.SARA SARA",null,"10.SARA_SARA"]
["051101","AYACUCHO","SUCRE","QUEROBAMBA",null,null,"01.QUEROBAMBA",null,"01.QUEROBAMBA"]
["051102","AYACUCHO","SUCRE","BELEN",null,null,"02.BELEN",null,"02.BELEN"]
["051103","AYACUCHO","SUCRE","CHALCOS",null,null,"03.CHALCOS",null,"03.CHALCOS"]
["051104","AYACUCHO","SUCRE","SAN SALVADOR DE QUIJE",null,null,"04.SAN SALVADOR DE QUIJE",null,"04.SAN_SALVADOR_DE_QUIJE"]
["051105","AYACUCHO","SUCRE","PAICO",null,null,"05.PAICO",null,"05.PAICO"]
["051106","AYACUCHO","SUCRE","SANTIAGO DE PAUCARAY",null,null,"06.SANTIAGO DE PAUCARAY",null,"06.SANTIAGO_DE_PAUCARAY"]
["051107","AYACUCHO","SUCRE","SAN PEDRO DE LARCAY",null,null,"07.SAN PEDRO DE LARCAY",null,"07.SAN_PEDRO_DE_LARCAY"]
["051108","AYACUCHO","SUCRE","SORAS",null,null,"08.SORAS",null,"08.SORAS"]
["051109","AYACUCHO","SUCRE","HUACAÑA",null,null,"09.HUACAÑA",null,"09.HUACAÑA"]
["051110","AYACUCHO","SUCRE","CHILCAYOC",null,null,"10.CHILCAYOC",null,"10.CHILCAYOC"]
["051111","AYACUCHO","SUCRE","MORCOLLA",null,null,"11.MORCOLLA",null,"11.MORCOLLA"]
["060101","CAJAMARCA","CAJAMARCA","CAJAMARCA",null,null,"01.CAJAMARCA",null,"01.CAJAMARCA"]
["060102","CAJAMARCA","CAJAMARCA","ASUNCION",null,null,"02.ASUNCION",null,"02.ASUNCION"]
["060103","CAJAMARCA","CAJAMARCA","COSPAN",null,null,"03.COSPAN",null,"03.COSPAN"]
["060104","CAJAMARCA","CAJAMARCA","CHETILLA",null,null,"04.CHETILLA",null,"04.CHETILLA"]
["060105","CAJAMARCA","CAJAMARCA","ENCAÑADA",null,null,"05.ENCAÑADA",null,"05.ENCAÑADA"]
["060106","CAJAMARCA","CAJAMARCA","JESUS",null,null,"06.JESUS",null,"06.JESUS"]
["060107","CAJAMARCA","CAJAMARCA","LOS BAÑOS DEL INCA",null,null,"07.LOS BAÑOS DEL INCA",null,"07.LOS_BAÑOS_DEL_INCA"]
["060108","CAJAMARCA","CAJAMARCA","LLACANORA",null,null,"08.LLACANORA",null,"08.LLACANORA"]
["060109","CAJAMARCA","CAJAMARCA","MAGDALENA",null,null,"09.MAGDALENA",null,"09.MAGDALENA"]
["060110","CAJAMARCA","CAJAMARCA","MATARA",null,null,"10.MATARA",null,"10.MATARA"]
["060111","CAJAMARCA","CAJAMARCA","NAMORA",null,null,"11.NAMORA",null,"11.NAMORA"]
["060112","CAJAMARCA","CAJAMARCA","SAN JUAN",null,null,"12.SAN JUAN",null,"12.SAN_JUAN"]
["060201","CAJAMARCA","CAJABAMBA","CAJABAMBA",null,null,"01.CAJABAMBA",null,"01.CAJABAMBA"]
["060202","CAJAMARCA","CAJABAMBA","CACHACHI",null,null,"02.CACHACHI",null,"02.CACHACHI"]
["060203","CAJAMARCA","CAJABAMBA","CONDEBAMBA",null,null,"03.CONDEBAMBA",null,"03.CONDEBAMBA"]
["060205","CAJAMARCA","CAJABAMBA","SITACOCHA",null,null,"05.SITACOCHA",null,"05.SITACOCHA"]
["060301","CAJAMARCA","CELENDIN","CELENDIN",null,null,"01.CELENDIN",null,"01.CELENDIN"]
["060302","CAJAMARCA","CELENDIN","CORTEGANA",null,null,"02.CORTEGANA",null,"02.CORTEGANA"]
["060303","CAJAMARCA","CELENDIN","CHUMUCH",null,null,"03.CHUMUCH",null,"03.CHUMUCH"]
["060304","CAJAMARCA","CELENDIN","HUASMIN",null,null,"04.HUASMIN",null,"04.HUASMIN"]
["060305","CAJAMARCA","CELENDIN","JORGE CHAVEZ",null,null,"05.JORGE CHAVEZ",null,"05.JORGE_CHAVEZ"]
["060306","CAJAMARCA","CELENDIN","JOSE GALVEZ",null,null,"06.JOSE GALVEZ",null,"06.JOSE_GALVEZ"]
["060307","CAJAMARCA","CELENDIN","MIGUEL IGLESIAS",null,null,"07.MIGUEL IGLESIAS",null,"07.MIGUEL_IGLESIAS"]
["060308","CAJAMARCA","CELENDIN","OXAMARCA",null,null,"08.OXAMARCA",null,"08.OXAMARCA"]
["060309","CAJAMARCA","CELENDIN","SOROCHUCO",null,null,"09.SOROCHUCO",null,"09.SOROCHUCO"]
["060310","CAJAMARCA","CELENDIN","SUCRE",null,null,"10.SUCRE",null,"10.SUCRE"]
["060311","CAJAMARCA","CELENDIN","UTCO",null,null,{"$f":"CONCATENATE(MID(A579,5,2),\".\",D579)","v":"11.UTCO"},null,"11.UTCO"]
["060312","CAJAMARCA","CELENDIN","LA LIBERTAD DE PALLAN",null,null,"12.LA LIBERTAD DE PALLAN",null,"12.LA_LIBERTAD_DE_PALLAN"]
["060401","CAJAMARCA","CONTUMAZA","CONTUMAZA",null,null,"01.CONTUMAZA",null,"01.CONTUMAZA"]
["060403","CAJAMARCA","CONTUMAZA","CHILETE",null,null,"03.CHILETE",null,"03.CHILETE"]
["060404","CAJAMARCA","CONTUMAZA","GUZMANGO",null,null,"04.GUZMANGO",null,"04.GUZMANGO"]
["060405","CAJAMARCA","CONTUMAZA","SAN BENITO",null,null,"05.SAN BENITO",null,"05.SAN_BENITO"]
["060406","CAJAMARCA","CONTUMAZA","CUPISNIQUE",null,null,"06.CUPISNIQUE",null,"06.CUPISNIQUE"]
["060407","CAJAMARCA","CONTUMAZA","TANTARICA",null,null,"07.TANTARICA",null,"07.TANTARICA"]
["060408","CAJAMARCA","CONTUMAZA","YONAN",null,null,"08.YONAN",null,"08.YONAN"]
["060409","CAJAMARCA","CONTUMAZA","SANTA CRUZ DE TOLED",null,null,"09.SANTA CRUZ DE TOLED",null,"09.SANTA_CRUZ_DE_TOLED"]
["060501","CAJAMARCA","CUTERVO","CUTERVO",null,null,"01.CUTERVO",null,"01.CUTERVO"]
["060502","CAJAMARCA","CUTERVO","CALLAYUC",null,null,"02.CALLAYUC",null,"02.CALLAYUC"]
["060503","CAJAMARCA","CUTERVO","CUJILLO",null,null,"03.CUJILLO",null,"03.CUJILLO"]
["060504","CAJAMARCA","CUTERVO","CHOROS",null,null,"04.CHOROS",null,"04.CHOROS"]
["060505","CAJAMARCA","CUTERVO","LA RAMADA",null,null,"05.LA RAMADA",null,"05.LA_RAMADA"]
["060506","CAJAMARCA","CUTERVO","PIMPINGOS",null,null,"06.PIMPINGOS",null,"06.PIMPINGOS"]
["060507","CAJAMARCA","CUTERVO","QUEROCOTILLO",null,null,"07.QUEROCOTILLO",null,"07.QUEROCOTILLO"]
["060508","CAJAMARCA","CUTERVO","SAN ANDRES DE CUTERVO",null,null,"08.SAN ANDRES DE CUTERVO",null,"08.SAN_ANDRES_DE_CUTERVO"]
["060509","CAJAMARCA","CUTERVO","SAN JUAN DE CUTERVO",null,null,"09.SAN JUAN DE CUTERVO",null,"09.SAN_JUAN_DE_CUTERVO"]
["060510","CAJAMARCA","CUTERVO","SAN LUIS DE LUCMA",null,null,"10.SAN LUIS DE LUCMA",null,"10.SAN_LUIS_DE_LUCMA"]
["060511","CAJAMARCA","CUTERVO","SANTA CRUZ",null,null,"11.SANTA CRUZ",null,"11.SANTA_CRUZ"]
["060512","CAJAMARCA","CUTERVO","SANTO DOMINGO DE LA CAPILLA",null,null,"12.SANTO DOMINGO DE LA CAPILLA",null,"12.SANTO_DOMINGO_DE_LA_CAPILLA"]
["060513","CAJAMARCA","CUTERVO","SANTO TOMAS",null,null,"13.SANTO TOMAS",null,"13.SANTO_TOMAS"]
["060514","CAJAMARCA","CUTERVO","SOCOTA",null,null,"14.SOCOTA",null,"14.SOCOTA"]
["060515","CAJAMARCA","CUTERVO","TORIBIO CASANOVA",null,null,"15.TORIBIO CASANOVA",null,"15.TORIBIO_CASANOVA"]
["060601","CAJAMARCA","CHOTA","CHOTA",null,null,"01.CHOTA",null,"01.CHOTA"]
["060602","CAJAMARCA","CHOTA","ANGUIA",null,null,"02.ANGUIA",null,"02.ANGUIA"]
["060603","CAJAMARCA","CHOTA","COCHABAMBA",null,null,"03.COCHABAMBA",null,"03.COCHABAMBA"]
["060604","CAJAMARCA","CHOTA","CONCHAN",null,null,"04.CONCHAN",null,"04.CONCHAN"]
["060605","CAJAMARCA","CHOTA","CHADIN",null,null,"05.CHADIN",null,"05.CHADIN"]
["060606","CAJAMARCA","CHOTA","CHIGUIRIP",null,null,"06.CHIGUIRIP",null,"06.CHIGUIRIP"]
["060607","CAJAMARCA","CHOTA","CHIMBAN",null,null,"07.CHIMBAN",null,"07.CHIMBAN"]
["060608","CAJAMARCA","CHOTA","HUAMBOS",null,null,"08.HUAMBOS",null,"08.HUAMBOS"]
["060609","CAJAMARCA","CHOTA","LAJAS",null,null,"09.LAJAS",null,"09.LAJAS"]
["060610","CAJAMARCA","CHOTA","LLAMA",null,null,"10.LLAMA",null,"10.LLAMA"]
["060611","CAJAMARCA","CHOTA","MIRACOSTA",null,null,"11.MIRACOSTA",null,"11.MIRACOSTA"]
["060612","CAJAMARCA","CHOTA","PACCHA",null,null,"12.PACCHA",null,"12.PACCHA"]
["060613","CAJAMARCA","CHOTA","PION",null,null,"13.PION",null,"13.PION"]
["060614","CAJAMARCA","CHOTA","QUEROCOTO",null,null,"14.QUEROCOTO",null,"14.QUEROCOTO"]
["060615","CAJAMARCA","CHOTA","TACABAMBA",null,null,"15.TACABAMBA",null,"15.TACABAMBA"]
["060616","CAJAMARCA","CHOTA","TOCMOCHE",null,null,"16.TOCMOCHE",null,"16.TOCMOCHE"]
["060617","CAJAMARCA","CHOTA","SAN JUAN DE LICUPIS",null,null,"17.SAN JUAN DE LICUPIS",null,"17.SAN_JUAN_DE_LICUPIS"]
["060618","CAJAMARCA","CHOTA","CHOROPAMPA",null,null,"18.CHOROPAMPA",null,"18.CHOROPAMPA"]
["060619","CAJAMARCA","CHOTA","CHALAMARCA",null,null,"19.CHALAMARCA",null,"19.CHALAMARCA"]
["060701","CAJAMARCA","HUALGAYOC","BAMBAMARCA",null,null,"01.BAMBAMARCA",null,"01.BAMBAMARCA"]
["060702","CAJAMARCA","HUALGAYOC","CHUGUR",null,null,"02.CHUGUR",null,"02.CHUGUR"]
["060703","CAJAMARCA","HUALGAYOC","HUALGAYOC",null,null,"03.HUALGAYOC",null,"03.HUALGAYOC"]
["060801","CAJAMARCA","JAEN","JAEN",null,null,"01.JAEN",null,"01.JAEN"]
["060802","CAJAMARCA","JAEN","BELLAVISTA",null,null,"02.BELLAVISTA",null,"02.BELLAVISTA"]
["060803","CAJAMARCA","JAEN","COLASAY",null,null,"03.COLASAY",null,"03.COLASAY"]
["060804","CAJAMARCA","JAEN","CHONTALI",null,null,"04.CHONTALI",null,"04.CHONTALI"]
["060805","CAJAMARCA","JAEN","POMAHUACA",null,null,"05.POMAHUACA",null,"05.POMAHUACA"]
["060806","CAJAMARCA","JAEN","PUCARA",null,null,"06.PUCARA",null,"06.PUCARA"]
["060807","CAJAMARCA","JAEN","SALLIQUE",null,null,"07.SALLIQUE",null,"07.SALLIQUE"]
["060808","CAJAMARCA","JAEN","SAN FELIPE",null,null,"08.SAN FELIPE",null,"08.SAN_FELIPE"]
["060809","CAJAMARCA","JAEN","SAN JOSE DEL ALTO",null,null,"09.SAN JOSE DEL ALTO",null,"09.SAN_JOSE_DEL_ALTO"]
["060810","CAJAMARCA","JAEN","SANTA ROSA",null,null,"10.SANTA ROSA",null,"10.SANTA_ROSA"]
["060811","CAJAMARCA","JAEN","LAS PIRIAS",null,null,"11.LAS PIRIAS",null,"11.LAS_PIRIAS"]
["060812","CAJAMARCA","JAEN","HUABAL",null,null,"12.HUABAL",null,"12.HUABAL"]
["060901","CAJAMARCA","SANTA CRUZ","SANTA CRUZ",null,null,"01.SANTA CRUZ",null,"01.SANTA_CRUZ"]
["060902","CAJAMARCA","SANTA CRUZ","CATACHE",null,null,"02.CATACHE",null,"02.CATACHE"]
["060903","CAJAMARCA","SANTA CRUZ","CHANCAYBAÑOS",null,null,"03.CHANCAYBAÑOS",null,"03.CHANCAYBAÑOS"]
["060904","CAJAMARCA","SANTA CRUZ","LA ESPERANZA",null,null,"04.LA ESPERANZA",null,"04.LA_ESPERANZA"]
["060905","CAJAMARCA","SANTA CRUZ","NINABAMBA",null,null,"05.NINABAMBA",null,"05.NINABAMBA"]
["060906","CAJAMARCA","SANTA CRUZ","PULAN",null,null,{"$f":"CONCATENATE(MID(A643,5,2),\".\",D643)","v":"06.PULAN"},null,"06.PULAN"]
["060907","CAJAMARCA","SANTA CRUZ","SEXI",null,null,"07.SEXI",null,"07.SEXI"]
["060908","CAJAMARCA","SANTA CRUZ","UTICYACU",null,null,"08.UTICYACU",null,"08.UTICYACU"]
["060909","CAJAMARCA","SANTA CRUZ","YAUYUCAN",null,null,"09.YAUYUCAN",null,"09.YAUYUCAN"]
["060910","CAJAMARCA","SANTA CRUZ","ANDABAMBA",null,null,"10.ANDABAMBA",null,"10.ANDABAMBA"]
["060911","CAJAMARCA","SANTA CRUZ","SAUCEPAMPA",null,null,"11.SAUCEPAMPA",null,"11.SAUCEPAMPA"]
["061001","CAJAMARCA","SAN MIGUEL","SAN MIGUEL",null,null,"01.SAN MIGUEL",null,"01.SAN_MIGUEL"]
["061002","CAJAMARCA","SAN MIGUEL","CALQUIS",null,null,"02.CALQUIS",null,"02.CALQUIS"]
["061003","CAJAMARCA","SAN MIGUEL","LA FLORIDA",null,null,"03.LA FLORIDA",null,"03.LA_FLORIDA"]
["061004","CAJAMARCA","SAN MIGUEL","LLAPA",null,null,"04.LLAPA",null,"04.LLAPA"]
["061005","CAJAMARCA","SAN MIGUEL","NANCHOC",null,null,"05.NANCHOC",null,"05.NANCHOC"]
["061006","CAJAMARCA","SAN MIGUEL","NIEPOS",null,null,"06.NIEPOS",null,"06.NIEPOS"]
["061007","CAJAMARCA","SAN MIGUEL","SAN GREGORIO",null,null,"07.SAN GREGORIO",null,"07.SAN_GREGORIO"]
["061008","CAJAMARCA","SAN MIGUEL","SAN SILVESTRE DE COCHAN",null,null,"08.SAN SILVESTRE DE COCHAN",null,"08.SAN_SILVESTRE_DE_COCHAN"]
["061009","CAJAMARCA","SAN MIGUEL","EL PRADO",null,null,"09.EL PRADO",null,"09.EL_PRADO"]
["061010","CAJAMARCA","SAN MIGUEL","UNION AGUA BLANCA",null,null,"10.UNION AGUA BLANCA",null,"10.UNION_AGUA_BLANCA"]
["061011","CAJAMARCA","SAN MIGUEL","TONGOD",null,null,"11.TONGOD",null,"11.TONGOD"]
["061012","CAJAMARCA","SAN MIGUEL","CATILLUC",null,null,"12.CATILLUC",null,"12.CATILLUC"]
["061013","CAJAMARCA","SAN MIGUEL","BOLIVAR",null,null,"13.BOLIVAR",null,"13.BOLIVAR"]
["061101","CAJAMARCA","SAN IGNACIO","SAN IGNACIO",null,null,"01.SAN IGNACIO",null,"01.SAN_IGNACIO"]
["061102","CAJAMARCA","SAN IGNACIO","CHIRINOS",null,null,"02.CHIRINOS",null,"02.CHIRINOS"]
["061103","CAJAMARCA","SAN IGNACIO","HUARANGO",null,null,"03.HUARANGO",null,"03.HUARANGO"]
["061104","CAJAMARCA","SAN IGNACIO","NAMBALLE",null,null,"04.NAMBALLE",null,"04.NAMBALLE"]
["061105","CAJAMARCA","SAN IGNACIO","LA COIPA",null,null,"05.LA COIPA",null,"05.LA_COIPA"]
["061106","CAJAMARCA","SAN IGNACIO","SAN JOSE DE LOURDES",null,null,"06.SAN JOSE DE LOURDES",null,"06.SAN_JOSE_DE_LOURDES"]
["061107","CAJAMARCA","SAN IGNACIO","TABACONAS",null,null,"07.TABACONAS",null,"07.TABACONAS"]
["061201","CAJAMARCA","SAN MARCOS","PEDRO GALVEZ",null,null,"01.PEDRO GALVEZ",null,"01.PEDRO_GALVEZ"]
["061202","CAJAMARCA","SAN MARCOS","ICHOCAN",null,null,"02.ICHOCAN",null,"02.ICHOCAN"]
["061203","CAJAMARCA","SAN MARCOS","GREGORIO PITA",null,null,"03.GREGORIO PITA",null,"03.GREGORIO_PITA"]
["061204","CAJAMARCA","SAN MARCOS","JOSE MANUEL QUIROZ",null,null,"04.JOSE MANUEL QUIROZ",null,"04.JOSE_MANUEL_QUIROZ"]
["061205","CAJAMARCA","SAN MARCOS","EDUARDO VILLANUEVA",null,null,"05.EDUARDO VILLANUEVA",null,"05.EDUARDO_VILLANUEVA"]
["061206","CAJAMARCA","SAN MARCOS","JOSE SABOGAL",null,null,"06.JOSE SABOGAL",null,"06.JOSE_SABOGAL"]
["061207","CAJAMARCA","SAN MARCOS","CHANCAY",null,null,"07.CHANCAY",null,"07.CHANCAY"]
["061301","CAJAMARCA","SAN PABLO","SAN PABLO",null,null,"01.SAN PABLO",null,"01.SAN_PABLO"]
["061302","CAJAMARCA","SAN PABLO","SAN BERNARDINO",null,null,"02.SAN BERNARDINO",null,"02.SAN_BERNARDINO"]
["061303","CAJAMARCA","SAN PABLO","SAN LUIS",null,null,"03.SAN LUIS",null,"03.SAN_LUIS"]
["061304","CAJAMARCA","SAN PABLO","TUMBADEN",null,null,"04.TUMBADEN",null,"04.TUMBADEN"]
["070101","CUSCO","CUSCO","CUSCO",null,null,"01.CUSCO",null,"01.CUSCO"]
["070102","CUSCO","CUSCO","CCORCA",null,null,"02.CCORCA",null,"02.CCORCA"]
["070103","CUSCO","CUSCO","POROY",null,null,"03.POROY",null,"03.POROY"]
["070104","CUSCO","CUSCO","SAN JERONIMO",null,null,"04.SAN JERONIMO",null,"04.SAN_JERONIMO"]
["070105","CUSCO","CUSCO","SAN SEBASTIAN",null,null,"05.SAN SEBASTIAN",null,"05.SAN_SEBASTIAN"]
["070106","CUSCO","CUSCO","SANTIAGO",null,null,"06.SANTIAGO",null,"06.SANTIAGO"]
["070107","CUSCO","CUSCO","SAYLLA",null,null,"07.SAYLLA",null,"07.SAYLLA"]
["070108","CUSCO","CUSCO","WANCHAQ",null,null,"08.WANCHAQ",null,"08.WANCHAQ"]
["070201","CUSCO","ACOMAYO","ACOMAYO",null,null,"01.ACOMAYO",null,"01.ACOMAYO"]
["070202","CUSCO","ACOMAYO","ACOPIA",null,null,"02.ACOPIA",null,"02.ACOPIA"]
["070203","CUSCO","ACOMAYO","ACOS",null,null,"03.ACOS",null,"03.ACOS"]
["070204","CUSCO","ACOMAYO","POMACANCHI",null,null,"04.POMACANCHI",null,"04.POMACANCHI"]
["070205","CUSCO","ACOMAYO","RONDOCAN",null,null,"05.RONDOCAN",null,"05.RONDOCAN"]
["070206","CUSCO","ACOMAYO","SANGARARA",null,null,"06.SANGARARA",null,"06.SANGARARA"]
["070207","CUSCO","ACOMAYO","MOSOC LLACTA",null,null,"07.MOSOC LLACTA",null,"07.MOSOC_LLACTA"]
["070301","CUSCO","ANTA","ANTA",null,null,"01.ANTA",null,"01.ANTA"]
["070302","CUSCO","ANTA","CHINCHAYPUJIO",null,null,"02.CHINCHAYPUJIO",null,"02.CHINCHAYPUJIO"]
["070303","CUSCO","ANTA","HUAROCONDO",null,null,"03.HUAROCONDO",null,"03.HUAROCONDO"]
["070304","CUSCO","ANTA","LIMATAMBO",null,null,"04.LIMATAMBO",null,"04.LIMATAMBO"]
["070305","CUSCO","ANTA","MOLLEPATA",null,null,"05.MOLLEPATA",null,"05.MOLLEPATA"]
["070306","CUSCO","ANTA","PUCYURA",null,null,"06.PUCYURA",null,"06.PUCYURA"]
["070307","CUSCO","ANTA","ZURITE",null,null,"07.ZURITE",null,"07.ZURITE"]
["070308","CUSCO","ANTA","CACHIMAYO",null,null,"08.CACHIMAYO",null,"08.CACHIMAYO"]
["070309","CUSCO","ANTA","ANCAHUASI",null,null,"09.ANCAHUASI",null,"09.ANCAHUASI"]
["070401","CUSCO","CALCA","CALCA",null,null,"01.CALCA",null,"01.CALCA"]
["070402","CUSCO","CALCA","COYA",null,null,"02.COYA",null,"02.COYA"]
["070403","CUSCO","CALCA","LAMAY",null,null,"03.LAMAY",null,"03.LAMAY"]
["070404","CUSCO","CALCA","LARES",null,null,{"$f":"CONCATENATE(MID(A707,5,2),\".\",D707)","v":"04.LARES"},null,"04.LARES"]
["070405","CUSCO","CALCA","PISAC",null,null,"05.PISAC",null,"05.PISAC"]
["070406","CUSCO","CALCA","SAN SALVADOR",null,null,"06.SAN SALVADOR",null,"06.SAN_SALVADOR"]
["070407","CUSCO","CALCA","TARAY",null,null,"07.TARAY",null,"07.TARAY"]
["070408","CUSCO","CALCA","YANATILE",null,null,"08.YANATILE",null,"08.YANATILE"]
["070501","CUSCO","CANAS","YANAOCA",null,null,"01.YANAOCA",null,"01.YANAOCA"]
["070502","CUSCO","CANAS","CHECCA",null,null,"02.CHECCA",null,"02.CHECCA"]
["070503","CUSCO","CANAS","KUNTURKANKI",null,null,"03.KUNTURKANKI",null,"03.KUNTURKANKI"]
["070504","CUSCO","CANAS","LANGUI",null,null,"04.LANGUI",null,"04.LANGUI"]
["070505","CUSCO","CANAS","LAYO",null,null,"05.LAYO",null,"05.LAYO"]
["070506","CUSCO","CANAS","PAMPAMARCA",null,null,"06.PAMPAMARCA",null,"06.PAMPAMARCA"]
["070507","CUSCO","CANAS","QUEHUE",null,null,"07.QUEHUE",null,"07.QUEHUE"]
["070508","CUSCO","CANAS","TUPAC AMARU",null,null,"08.TUPAC AMARU",null,"08.TUPAC_AMARU"]
["070601","CUSCO","CANCHIS","SICUANI",null,null,"01.SICUANI",null,"01.SICUANI"]
["070602","CUSCO","CANCHIS","COMBAPATA",null,null,"02.COMBAPATA",null,"02.COMBAPATA"]
["070603","CUSCO","CANCHIS","CHECACUPE",null,null,"03.CHECACUPE",null,"03.CHECACUPE"]
["070604","CUSCO","CANCHIS","MARANGANI",null,null,"04.MARANGANI",null,"04.MARANGANI"]
["070605","CUSCO","CANCHIS","PITUMARCA",null,null,"05.PITUMARCA",null,"05.PITUMARCA"]
["070606","CUSCO","CANCHIS","SAN PABLO",null,null,"06.SAN PABLO",null,"06.SAN_PABLO"]
["070607","CUSCO","CANCHIS","SAN PEDRO",null,null,"07.SAN PEDRO",null,"07.SAN_PEDRO"]
["070608","CUSCO","CANCHIS","TINTA",null,null,"08.TINTA",null,"08.TINTA"]
["070701","CUSCO","CHUMBIVILCAS","SANTO TOMAS",null,null,"01.SANTO TOMAS",null,"01.SANTO_TOMAS"]
["070702","CUSCO","CHUMBIVILCAS","CAPACMARCA",null,null,"02.CAPACMARCA",null,"02.CAPACMARCA"]
["070703","CUSCO","CHUMBIVILCAS","COLQUEMARCA",null,null,"03.COLQUEMARCA",null,"03.COLQUEMARCA"]
["070704","CUSCO","CHUMBIVILCAS","CHAMACA",null,null,"04.CHAMACA",null,"04.CHAMACA"]
["070705","CUSCO","CHUMBIVILCAS","LIVITACA",null,null,"05.LIVITACA",null,"05.LIVITACA"]
["070706","CUSCO","CHUMBIVILCAS","LLUSCO",null,null,"06.LLUSCO",null,"06.LLUSCO"]
["070707","CUSCO","CHUMBIVILCAS","QUIÑOTA",null,null,"07.QUIÑOTA",null,"07.QUIÑOTA"]
["070708","CUSCO","CHUMBIVILCAS","VELILLE",null,null,"08.VELILLE",null,"08.VELILLE"]
["070801","CUSCO","ESPINAR","ESPINAR",null,null,"01.ESPINAR",null,"01.ESPINAR"]
["070802","CUSCO","ESPINAR","CONDOROMA",null,null,"02.CONDOROMA",null,"02.CONDOROMA"]
["070803","CUSCO","ESPINAR","COPORAQUE",null,null,"03.COPORAQUE",null,"03.COPORAQUE"]
["070804","CUSCO","ESPINAR","OCORURO",null,null,"04.OCORURO",null,"04.OCORURO"]
["070805","CUSCO","ESPINAR","PALLPATA",null,null,"05.PALLPATA",null,"05.PALLPATA"]
["070806","CUSCO","ESPINAR","PICHIGUA",null,null,"06.PICHIGUA",null,"06.PICHIGUA"]
["070807","CUSCO","ESPINAR","SUYCKUTAMBO",null,null,"07.SUYCKUTAMBO",null,"07.SUYCKUTAMBO"]
["070808","CUSCO","ESPINAR","ALTO PICHIGUA",null,null,"08.ALTO PICHIGUA",null,"08.ALTO_PICHIGUA"]
["070901","CUSCO","LA CONVENCION","SANTA ANA",null,null,"01.SANTA ANA",null,"01.SANTA_ANA"]
["070902","CUSCO","LA CONVENCION","ECHARATE",null,null,"02.ECHARATE",null,"02.ECHARATE"]
["070903","CUSCO","LA CONVENCION","HUAYOPATA",null,null,"03.HUAYOPATA",null,"03.HUAYOPATA"]
["070904","CUSCO","LA CONVENCION","MARANURA",null,null,"04.MARANURA",null,"04.MARANURA"]
["070905","CUSCO","LA CONVENCION","OCOBAMBA",null,null,"05.OCOBAMBA",null,"05.OCOBAMBA"]
["070906","CUSCO","LA CONVENCION","SANTA TERESA",null,null,"06.SANTA TERESA",null,"06.SANTA_TERESA"]
["070907","CUSCO","LA CONVENCION","VILCABAMBA",null,null,"07.VILCABAMBA",null,"07.VILCABAMBA"]
["070908","CUSCO","LA CONVENCION","QUELLOUNO",null,null,"08.QUELLOUNO",null,"08.QUELLOUNO"]
["070909","CUSCO","LA CONVENCION","KIMBIRI",null,null,"09.KIMBIRI",null,"09.KIMBIRI"]
["070910","CUSCO","LA CONVENCION","PICHARI",null,null,"10.PICHARI",null,"10.PICHARI"]
["071001","CUSCO","PARURO","PARURO",null,null,"01.PARURO",null,"01.PARURO"]
["071002","CUSCO","PARURO","ACCHA",null,null,"02.ACCHA",null,"02.ACCHA"]
["071003","CUSCO","PARURO","CCAPI",null,null,"03.CCAPI",null,"03.CCAPI"]
["071004","CUSCO","PARURO","COLCHA",null,null,"04.COLCHA",null,"04.COLCHA"]
["071005","CUSCO","PARURO","HUANOQUITE",null,null,"05.HUANOQUITE",null,"05.HUANOQUITE"]
["071006","CUSCO","PARURO","OMACHA",null,null,"06.OMACHA",null,"06.OMACHA"]
["071007","CUSCO","PARURO","YAURISQUE",null,null,"07.YAURISQUE",null,"07.YAURISQUE"]
["071008","CUSCO","PARURO","PACCARITAMBO",null,null,"08.PACCARITAMBO",null,"08.PACCARITAMBO"]
["071009","CUSCO","PARURO","PILLPINTO",null,null,"09.PILLPINTO",null,"09.PILLPINTO"]
["071101","CUSCO","PAUCARTAMBO","PAUCARTAMBO",null,null,"01.PAUCARTAMBO",null,"01.PAUCARTAMBO"]
["071102","CUSCO","PAUCARTAMBO","CAICAY",null,null,"02.CAICAY",null,"02.CAICAY"]
["071103","CUSCO","PAUCARTAMBO","COLQUEPATA",null,null,"03.COLQUEPATA",null,"03.COLQUEPATA"]
["071104","CUSCO","PAUCARTAMBO","CHALLABAMBA",null,null,"04.CHALLABAMBA",null,"04.CHALLABAMBA"]
["071105","CUSCO","PAUCARTAMBO","KOSÑIPATA",null,null,"05.KOSÑIPATA",null,"05.KOSÑIPATA"]
["071106","CUSCO","PAUCARTAMBO","HUANCARANI",null,null,"06.HUANCARANI",null,"06.HUANCARANI"]
["071201","CUSCO","QUISPICANCHI","URCOS",null,null,"01.URCOS",null,"01.URCOS"]
["071202","CUSCO","QUISPICANCHI","ANDAHUAYLILLAS",null,null,"02.ANDAHUAYLILLAS",null,"02.ANDAHUAYLILLAS"]
["071203","CUSCO","QUISPICANCHI","CAMANTI",null,null,{"$f":"CONCATENATE(MID(A771,5,2),\".\",D771)","v":"03.CAMANTI"},null,"03.CAMANTI"]
["071204","CUSCO","QUISPICANCHI","CCARHUAYO",null,null,"04.CCARHUAYO",null,"04.CCARHUAYO"]
["071205","CUSCO","QUISPICANCHI","CCATCA",null,null,"05.CCATCA",null,"05.CCATCA"]
["071206","CUSCO","QUISPICANCHI","CUSIPATA",null,null,"06.CUSIPATA",null,"06.CUSIPATA"]
["071207","CUSCO","QUISPICANCHI","HUARO",null,null,"07.HUARO",null,"07.HUARO"]
["071208","CUSCO","QUISPICANCHI","LUCRE",null,null,"08.LUCRE",null,"08.LUCRE"]
["071209","CUSCO","QUISPICANCHI","MARCAPATA",null,null,"09.MARCAPATA",null,"09.MARCAPATA"]
["071210","CUSCO","QUISPICANCHI","OCONGATE",null,null,"10.OCONGATE",null,"10.OCONGATE"]
["071211","CUSCO","QUISPICANCHI","OROPESA",null,null,"11.OROPESA",null,"11.OROPESA"]
["071212","CUSCO","QUISPICANCHI","QUIQUIJANA",null,null,"12.QUIQUIJANA",null,"12.QUIQUIJANA"]
["071301","CUSCO","URUBAMBA","URUBAMBA",null,null,"01.URUBAMBA",null,"01.URUBAMBA"]
["071302","CUSCO","URUBAMBA","CHINCHERO",null,null,"02.CHINCHERO",null,"02.CHINCHERO"]
["071303","CUSCO","URUBAMBA","HUAYLLABAMBA",null,null,"03.HUAYLLABAMBA",null,"03.HUAYLLABAMBA"]
["071304","CUSCO","URUBAMBA","MACHUPICCHU",null,null,"04.MACHUPICCHU",null,"04.MACHUPICCHU"]
["071305","CUSCO","URUBAMBA","MARAS",null,null,"05.MARAS",null,"05.MARAS"]
["071306","CUSCO","URUBAMBA","OLLANTAYTAMBO",null,null,"06.OLLANTAYTAMBO",null,"06.OLLANTAYTAMBO"]
["071307","CUSCO","URUBAMBA","YUCAY",null,null,"07.YUCAY",null,"07.YUCAY"]
["080101","HUANCAVELICA","HUANCAVELICA","HUANCAVELICA",null,null,"01.HUANCAVELICA",null,"01.HUANCAVELICA"]
["080102","HUANCAVELICA","HUANCAVELICA","ACOBAMBILLA",null,null,"02.ACOBAMBILLA",null,"02.ACOBAMBILLA"]
["080103","HUANCAVELICA","HUANCAVELICA","ACORIA",null,null,"03.ACORIA",null,"03.ACORIA"]
["080104","HUANCAVELICA","HUANCAVELICA","CONAYCA",null,null,"04.CONAYCA",null,"04.CONAYCA"]
["080105","HUANCAVELICA","HUANCAVELICA","CUENCA",null,null,"05.CUENCA",null,"05.CUENCA"]
["080106","HUANCAVELICA","HUANCAVELICA","HUACHOCOLPA",null,null,"06.HUACHOCOLPA",null,"06.HUACHOCOLPA"]
["080108","HUANCAVELICA","HUANCAVELICA","HUAYLLAHUARA",null,null,"08.HUAYLLAHUARA",null,"08.HUAYLLAHUARA"]
["080109","HUANCAVELICA","HUANCAVELICA","IZCUCHACA",null,null,"09.IZCUCHACA",null,"09.IZCUCHACA"]
["080110","HUANCAVELICA","HUANCAVELICA","LARIA",null,null,"10.LARIA",null,"10.LARIA"]
["080111","HUANCAVELICA","HUANCAVELICA","MANTA",null,null,"11.MANTA",null,"11.MANTA"]
["080112","HUANCAVELICA","HUANCAVELICA","MARISCAL CACERES",null,null,"12.MARISCAL CACERES",null,"12.MARISCAL_CACERES"]
["080113","HUANCAVELICA","HUANCAVELICA","MOYA",null,null,"13.MOYA",null,"13.MOYA"]
["080114","HUANCAVELICA","HUANCAVELICA","NUEVO OCCORO",null,null,"14.NUEVO OCCORO",null,"14.NUEVO_OCCORO"]
["080115","HUANCAVELICA","HUANCAVELICA","PALCA",null,null,"15.PALCA",null,"15.PALCA"]
["080116","HUANCAVELICA","HUANCAVELICA","PILCHACA",null,null,"16.PILCHACA",null,"16.PILCHACA"]
["080117","HUANCAVELICA","HUANCAVELICA","VILCA",null,null,"17.VILCA",null,"17.VILCA"]
["080118","HUANCAVELICA","HUANCAVELICA","YAULI",null,null,"18.YAULI",null,"18.YAULI"]
["080119","HUANCAVELICA","HUANCAVELICA","ASCENSION",null,null,"19.ASCENSION",null,"19.ASCENSION"]
["080120","HUANCAVELICA","HUANCAVELICA","HUANDO",null,null,"20.HUANDO",null,"20.HUANDO"]
["080201","HUANCAVELICA","ACOBAMBA","ACOBAMBA",null,null,"01.ACOBAMBA",null,"01.ACOBAMBA"]
["080202","HUANCAVELICA","ACOBAMBA","ANTA",null,null,"02.ANTA",null,"02.ANTA"]
["080203","HUANCAVELICA","ACOBAMBA","ANDABAMBA",null,null,"03.ANDABAMBA",null,"03.ANDABAMBA"]
["080204","HUANCAVELICA","ACOBAMBA","CAJA",null,null,"04.CAJA",null,"04.CAJA"]
["080205","HUANCAVELICA","ACOBAMBA","MARCAS",null,null,"05.MARCAS",null,"05.MARCAS"]
["080206","HUANCAVELICA","ACOBAMBA","PAUCARA",null,null,"06.PAUCARA",null,"06.PAUCARA"]
["080207","HUANCAVELICA","ACOBAMBA","POMACOCHA",null,null,"07.POMACOCHA",null,"07.POMACOCHA"]
["080208","HUANCAVELICA","ACOBAMBA","ROSARIO",null,null,"08.ROSARIO",null,"08.ROSARIO"]
["080301","HUANCAVELICA","ANGARAES","LIRCAY",null,null,"01.LIRCAY",null,"01.LIRCAY"]
["080302","HUANCAVELICA","ANGARAES","ANCHONGA",null,null,"02.ANCHONGA",null,"02.ANCHONGA"]
["080303","HUANCAVELICA","ANGARAES","CALLANMARCA",null,null,"03.CALLANMARCA",null,"03.CALLANMARCA"]
["080304","HUANCAVELICA","ANGARAES","CONGALLA",null,null,"04.CONGALLA",null,"04.CONGALLA"]
["080305","HUANCAVELICA","ANGARAES","CHINCHO",null,null,"05.CHINCHO",null,"05.CHINCHO"]
["080306","HUANCAVELICA","ANGARAES","HUALLAY-GRANDE",null,null,"06.HUALLAY-GRANDE",null,"06.HUALLAY-GRANDE"]
["080307","HUANCAVELICA","ANGARAES","HUANCA-HUANCA",null,null,"07.HUANCA-HUANCA",null,"07.HUANCA-HUANCA"]
["080308","HUANCAVELICA","ANGARAES","JULCAMARCA",null,null,"08.JULCAMARCA",null,"08.JULCAMARCA"]
["080309","HUANCAVELICA","ANGARAES","SAN ANTONIO DE ANTAPARCO",null,null,"09.SAN ANTONIO DE ANTAPARCO",null,"09.SAN_ANTONIO_DE_ANTAPARCO"]
["080310","HUANCAVELICA","ANGARAES","SANTO TOMAS DE PATA",null,null,"10.SANTO TOMAS DE PATA",null,"10.SANTO_TOMAS_DE_PATA"]
["080311","HUANCAVELICA","ANGARAES","SECCLLA",null,null,"11.SECCLLA",null,"11.SECCLLA"]
["080312","HUANCAVELICA","ANGARAES","CCOCHACCASA",null,null,"12.CCOCHACCASA",null,"12.CCOCHACCASA"]
["080401","HUANCAVELICA","CASTROVIRREYNA","CASTROVIRREYNA",null,null,"01.CASTROVIRREYNA",null,"01.CASTROVIRREYNA"]
["080402","HUANCAVELICA","CASTROVIRREYNA","ARMA",null,null,"02.ARMA",null,"02.ARMA"]
["080403","HUANCAVELICA","CASTROVIRREYNA","AURAHUA",null,null,"03.AURAHUA",null,"03.AURAHUA"]
["080405","HUANCAVELICA","CASTROVIRREYNA","CAPILLAS",null,null,"05.CAPILLAS",null,"05.CAPILLAS"]
["080406","HUANCAVELICA","CASTROVIRREYNA","COCAS",null,null,"06.COCAS",null,"06.COCAS"]
["080408","HUANCAVELICA","CASTROVIRREYNA","CHUPAMARCA",null,null,"08.CHUPAMARCA",null,"08.CHUPAMARCA"]
["080409","HUANCAVELICA","CASTROVIRREYNA","HUACHOS",null,null,"09.HUACHOS",null,"09.HUACHOS"]
["080410","HUANCAVELICA","CASTROVIRREYNA","HUAMATAMBO",null,null,"10.HUAMATAMBO",null,"10.HUAMATAMBO"]
["080414","HUANCAVELICA","CASTROVIRREYNA","MOLLEPAMPA",null,null,{"$f":"CONCATENATE(MID(A835,5,2),\".\",D835)","v":"14.MOLLEPAMPA"},null,"14.MOLLEPAMPA"]
["080422","HUANCAVELICA","CASTROVIRREYNA","SAN JUAN",null,null,"22.SAN JUAN",null,"22.SAN_JUAN"]
["080427","HUANCAVELICA","CASTROVIRREYNA","TANTARA",null,null,"27.TANTARA",null,"27.TANTARA"]
["080428","HUANCAVELICA","CASTROVIRREYNA","TICRAPO",null,null,"28.TICRAPO",null,"28.TICRAPO"]
["080429","HUANCAVELICA","CASTROVIRREYNA","SANTA ANA",null,null,"29.SANTA ANA",null,"29.SANTA_ANA"]
["080501","HUANCAVELICA","TAYACAJA","PAMPAS",null,null,"01.PAMPAS",null,"01.PAMPAS"]
["080502","HUANCAVELICA","TAYACAJA","ACOSTAMBO",null,null,"02.ACOSTAMBO",null,"02.ACOSTAMBO"]
["080503","HUANCAVELICA","TAYACAJA","ACRAQUIA",null,null,"03.ACRAQUIA",null,"03.ACRAQUIA"]
["080504","HUANCAVELICA","TAYACAJA","AHUAYCHA",null,null,"04.AHUAYCHA",null,"04.AHUAYCHA"]
["080506","HUANCAVELICA","TAYACAJA","COLCABAMBA",null,null,"06.COLCABAMBA",null,"06.COLCABAMBA"]
["080509","HUANCAVELICA","TAYACAJA","DANIEL HERNANDEZ",null,null,"09.DANIEL HERNANDEZ",null,"09.DANIEL_HERNANDEZ"]
["080511","HUANCAVELICA","TAYACAJA","HUACHOCOLPA",null,null,"11.HUACHOCOLPA",null,"11.HUACHOCOLPA"]
["080512","HUANCAVELICA","TAYACAJA","HUARIBAMBA",null,null,"12.HUARIBAMBA",null,"12.HUARIBAMBA"]
["080515","HUANCAVELICA","TAYACAJA","ÑAHUIMPUQUIO",null,null,"15.ÑAHUIMPUQUIO",null,"15.ÑAHUIMPUQUIO"]
["080517","HUANCAVELICA","TAYACAJA","PAZOS",null,null,"17.PAZOS",null,"17.PAZOS"]
["080518","HUANCAVELICA","TAYACAJA","QUISHUAR",null,null,"18.QUISHUAR",null,"18.QUISHUAR"]
["080519","HUANCAVELICA","TAYACAJA","SALCABAMBA",null,null,"19.SALCABAMBA",null,"19.SALCABAMBA"]
["080520","HUANCAVELICA","TAYACAJA","SAN MARCOS DE ROCCHAC",null,null,"20.SAN MARCOS DE ROCCHAC",null,"20.SAN_MARCOS_DE_ROCCHAC"]
["080523","HUANCAVELICA","TAYACAJA","SURCUBAMBA",null,null,"23.SURCUBAMBA",null,"23.SURCUBAMBA"]
["080525","HUANCAVELICA","TAYACAJA","TINTAY PUNCU",null,null,"25.TINTAY PUNCU",null,"25.TINTAY_PUNCU"]
["080526","HUANCAVELICA","TAYACAJA","SALCAHUASI",null,null,"26.SALCAHUASI",null,"26.SALCAHUASI"]
["080601","HUANCAVELICA","HUAYTARA","AYAVI",null,null,"01.AYAVI",null,"01.AYAVI"]
["080602","HUANCAVELICA","HUAYTARA","CORDOVA",null,null,"02.CORDOVA",null,"02.CORDOVA"]
["080603","HUANCAVELICA","HUAYTARA","HUAYACUNDO ARMA",null,null,"03.HUAYACUNDO ARMA",null,"03.HUAYACUNDO_ARMA"]
["080604","HUANCAVELICA","HUAYTARA","HUAYTARA",null,null,"04.HUAYTARA",null,"04.HUAYTARA"]
["080605","HUANCAVELICA","HUAYTARA","LARAMARCA",null,null,"05.LARAMARCA",null,"05.LARAMARCA"]
["080606","HUANCAVELICA","HUAYTARA","OCOYO",null,null,"06.OCOYO",null,"06.OCOYO"]
["080607","HUANCAVELICA","HUAYTARA","PILPICHACA",null,null,"07.PILPICHACA",null,"07.PILPICHACA"]
["080608","HUANCAVELICA","HUAYTARA","QUERCO",null,null,"08.QUERCO",null,"08.QUERCO"]
["080609","HUANCAVELICA","HUAYTARA","QUITO ARMA",null,null,"09.QUITO ARMA",null,"09.QUITO_ARMA"]
["080610","HUANCAVELICA","HUAYTARA","SAN ANTONIO DE CUSICANCHA",null,null,"10.SAN ANTONIO DE CUSICANCHA",null,"10.SAN_ANTONIO_DE_CUSICANCHA"]
["080611","HUANCAVELICA","HUAYTARA","SAN FRANCISCO DE SANGAYAICO",null,null,"11.SAN FRANCISCO DE SANGAYAICO",null,"11.SAN_FRANCISCO_DE_SANGAYAICO"]
["080612","HUANCAVELICA","HUAYTARA","SAN ISIDRO",null,null,"12.SAN ISIDRO",null,"12.SAN_ISIDRO"]
["080613","HUANCAVELICA","HUAYTARA","SANTIAGO DE CHOCORVOS",null,null,"13.SANTIAGO DE CHOCORVOS",null,"13.SANTIAGO_DE_CHOCORVOS"]
["080614","HUANCAVELICA","HUAYTARA","SANTIAGO DE QUIRAHUARA",null,null,"14.SANTIAGO DE QUIRAHUARA",null,"14.SANTIAGO_DE_QUIRAHUARA"]
["080615","HUANCAVELICA","HUAYTARA","SANTO DOMINGO DE CAPILLAS",null,null,"15.SANTO DOMINGO DE CAPILLAS",null,"15.SANTO_DOMINGO_DE_CAPILLAS"]
["080616","HUANCAVELICA","HUAYTARA","TAMBO",null,null,"16.TAMBO",null,"16.TAMBO"]
["080701","HUANCAVELICA","CHURCAMPA","CHURCAMPA",null,null,"01.CHURCAMPA",null,"01.CHURCAMPA"]
["080702","HUANCAVELICA","CHURCAMPA","ANCO",null,null,"02.ANCO",null,"02.ANCO"]
["080703","HUANCAVELICA","CHURCAMPA","CHINCHIHUASI",null,null,"03.CHINCHIHUASI",null,"03.CHINCHIHUASI"]
["080704","HUANCAVELICA","CHURCAMPA","EL CARMEN",null,null,"04.EL CARMEN",null,"04.EL_CARMEN"]
["080705","HUANCAVELICA","CHURCAMPA","LA MERCED",null,null,"05.LA MERCED",null,"05.LA_MERCED"]
["080706","HUANCAVELICA","CHURCAMPA","LOCROJA",null,null,"06.LOCROJA",null,"06.LOCROJA"]
["080707","HUANCAVELICA","CHURCAMPA","PAUCARBAMBA",null,null,"07.PAUCARBAMBA",null,"07.PAUCARBAMBA"]
["080708","HUANCAVELICA","CHURCAMPA","SAN MIGUEL DE MAYOCC",null,null,"08.SAN MIGUEL DE MAYOCC",null,"08.SAN_MIGUEL_DE_MAYOCC"]
["080709","HUANCAVELICA","CHURCAMPA","SAN PEDRO DE CORIS",null,null,"09.SAN PEDRO DE CORIS",null,"09.SAN_PEDRO_DE_CORIS"]
["080710","HUANCAVELICA","CHURCAMPA","PACHAMARCA",null,null,"10.PACHAMARCA",null,"10.PACHAMARCA"]
["080711","HUANCAVELICA","CHURCAMPA","COSME",null,null,"11.COSME",null,"11.COSME"]
["090101","HUANUCO","HUANUCO","HUANUCO",null,null,"01.HUANUCO",null,"01.HUANUCO"]
["090102","HUANUCO","HUANUCO","CHINCHAO",null,null,"02.CHINCHAO",null,"02.CHINCHAO"]
["090103","HUANUCO","HUANUCO","CHURUBAMBA",null,null,"03.CHURUBAMBA",null,"03.CHURUBAMBA"]
["090104","HUANUCO","HUANUCO","MARGOS",null,null,"04.MARGOS",null,"04.MARGOS"]
["090105","HUANUCO","HUANUCO","QUISQUI",null,null,"05.QUISQUI",null,"05.QUISQUI"]
["090106","HUANUCO","HUANUCO","SAN FRANCISCO DE CAYRAN",null,null,"06.SAN FRANCISCO DE CAYRAN",null,"06.SAN_FRANCISCO_DE_CAYRAN"]
["090107","HUANUCO","HUANUCO","SAN PEDRO DE CHAULAN",null,null,"07.SAN PEDRO DE CHAULAN",null,"07.SAN_PEDRO_DE_CHAULAN"]
["090108","HUANUCO","HUANUCO","SANTA MARIA DEL VALLE",null,null,"08.SANTA MARIA DEL VALLE",null,"08.SANTA_MARIA_DEL_VALLE"]
["090109","HUANUCO","HUANUCO","YARUMAYO",null,null,"09.YARUMAYO",null,"09.YARUMAYO"]
["090110","HUANUCO","HUANUCO","AMARILIS",null,null,"10.AMARILIS",null,"10.AMARILIS"]
["090111","HUANUCO","HUANUCO","PILLCO MARCA",null,null,"11.PILLCO MARCA",null,"11.PILLCO_MARCA"]
["090112","HUANUCO","HUANUCO","YACUS",null,null,"12.YACUS",null,"12.YACUS"]
["090201","HUANUCO","AMBO","AMBO",null,null,"01.AMBO",null,"01.AMBO"]
["090202","HUANUCO","AMBO","CAYNA",null,null,"02.CAYNA",null,"02.CAYNA"]
["090203","HUANUCO","AMBO","COLPAS",null,null,"03.COLPAS",null,"03.COLPAS"]
["090204","HUANUCO","AMBO","CONCHAMARCA",null,null,"04.CONCHAMARCA",null,"04.CONCHAMARCA"]
["090205","HUANUCO","AMBO","HUACAR",null,null,{"$f":"CONCATENATE(MID(A899,5,2),\".\",D899)","v":"05.HUACAR"},null,"05.HUACAR"]
["090206","HUANUCO","AMBO","SAN FRANCISCO",null,null,"06.SAN FRANCISCO",null,"06.SAN_FRANCISCO"]
["090207","HUANUCO","AMBO","SAN RAFAEL",null,null,"07.SAN RAFAEL",null,"07.SAN_RAFAEL"]
["090208","HUANUCO","AMBO","TOMAY-KICHWA",null,null,"08.TOMAY-KICHWA",null,"08.TOMAY-KICHWA"]
["090301","HUANUCO","DOS DE MAYO","LA UNION",null,null,"01.LA UNION",null,"01.LA_UNION"]
["090307","HUANUCO","DOS DE MAYO","CHUQUIS",null,null,"07.CHUQUIS",null,"07.CHUQUIS"]
["090312","HUANUCO","DOS DE MAYO","MARIAS",null,null,"12.MARIAS",null,"12.MARIAS"]
["090314","HUANUCO","DOS DE MAYO","PACHAS",null,null,"14.PACHAS",null,"14.PACHAS"]
["090316","HUANUCO","DOS DE MAYO","QUIVILLA",null,null,"16.QUIVILLA",null,"16.QUIVILLA"]
["090317","HUANUCO","DOS DE MAYO","RIPAN",null,null,"17.RIPAN",null,"17.RIPAN"]
["090321","HUANUCO","DOS DE MAYO","SHUNQUI",null,null,"21.SHUNQUI",null,"21.SHUNQUI"]
["090322","HUANUCO","DOS DE MAYO","SILLAPATA",null,null,"22.SILLAPATA",null,"22.SILLAPATA"]
["090323","HUANUCO","DOS DE MAYO","YANAS",null,null,"23.YANAS",null,"23.YANAS"]
["090401","HUANUCO","HUAMALIES","LLATA",null,null,"01.LLATA",null,"01.LLATA"]
["090402","HUANUCO","HUAMALIES","ARANCAY",null,null,"02.ARANCAY",null,"02.ARANCAY"]
["090403","HUANUCO","HUAMALIES","CHAVIN DE PARIARCA",null,null,"03.CHAVIN DE PARIARCA",null,"03.CHAVIN_DE_PARIARCA"]
["090404","HUANUCO","HUAMALIES","JACAS GRANDE",null,null,"04.JACAS GRANDE",null,"04.JACAS_GRANDE"]
["090405","HUANUCO","HUAMALIES","JIRCAN",null,null,"05.JIRCAN",null,"05.JIRCAN"]
["090406","HUANUCO","HUAMALIES","MIRAFLORES",null,null,"06.MIRAFLORES",null,"06.MIRAFLORES"]
["090407","HUANUCO","HUAMALIES","MONZON",null,null,"07.MONZON",null,"07.MONZON"]
["090408","HUANUCO","HUAMALIES","PUNCHAO",null,null,"08.PUNCHAO",null,"08.PUNCHAO"]
["090409","HUANUCO","HUAMALIES","PUÑOS",null,null,"09.PUÑOS",null,"09.PUÑOS"]
["090410","HUANUCO","HUAMALIES","SINGA",null,null,"10.SINGA",null,"10.SINGA"]
["090411","HUANUCO","HUAMALIES","TANTAMAYO",null,null,"11.TANTAMAYO",null,"11.TANTAMAYO"]
["090501","HUANUCO","MARAÑON","HUACRACHUCO",null,null,"01.HUACRACHUCO",null,"01.HUACRACHUCO"]
["090502","HUANUCO","MARAÑON","CHOLON",null,null,"02.CHOLON",null,"02.CHOLON"]
["090505","HUANUCO","MARAÑON","SAN BUENAVENTURA",null,null,"05.SAN BUENAVENTURA",null,"05.SAN_BUENAVENTURA"]
["090601","HUANUCO","LEONCIO PRADO","RUPA-RUPA",null,null,"01.RUPA-RUPA",null,"01.RUPA-RUPA"]
["090602","HUANUCO","LEONCIO PRADO","DANIEL ALOMIA ROBLES",null,null,"02.DANIEL ALOMIA ROBLES",null,"02.DANIEL_ALOMIA_ROBLES"]
["090603","HUANUCO","LEONCIO PRADO","HERMILIO VALDIZAN",null,null,"03.HERMILIO VALDIZAN",null,"03.HERMILIO_VALDIZAN"]
["090604","HUANUCO","LEONCIO PRADO","LUYANDO",null,null,"04.LUYANDO",null,"04.LUYANDO"]
["090605","HUANUCO","LEONCIO PRADO","MARIANO DAMASO BERAUN",null,null,"05.MARIANO DAMASO BERAUN",null,"05.MARIANO_DAMASO_BERAUN"]
["090606","HUANUCO","LEONCIO PRADO","JOSE CRESPO Y CASTILLO",null,null,"06.JOSE CRESPO Y CASTILLO",null,"06.JOSE_CRESPO_Y_CASTILLO"]
["090701","HUANUCO","PACHITEA","PANAO",null,null,"01.PANAO",null,"01.PANAO"]
["090702","HUANUCO","PACHITEA","CHAGLLA",null,null,"02.CHAGLLA",null,"02.CHAGLLA"]
["090704","HUANUCO","PACHITEA","MOLINO",null,null,"04.MOLINO",null,"04.MOLINO"]
["090706","HUANUCO","PACHITEA","UMARI",null,null,"06.UMARI",null,"06.UMARI"]
["090801","HUANUCO","PUERTO INCA","HONORIA",null,null,"01.HONORIA",null,"01.HONORIA"]
["090802","HUANUCO","PUERTO INCA","PUERTO INCA",null,null,"02.PUERTO INCA",null,"02.PUERTO_INCA"]
["090803","HUANUCO","PUERTO INCA","CODO DEL POZUZO",null,null,"03.CODO DEL POZUZO",null,"03.CODO_DEL_POZUZO"]
["090804","HUANUCO","PUERTO INCA","TOURNAVISTA",null,null,"04.TOURNAVISTA",null,"04.TOURNAVISTA"]
["090805","HUANUCO","PUERTO INCA","YUYAPICHIS",null,null,"05.YUYAPICHIS",null,"05.YUYAPICHIS"]
["090901","HUANUCO","HUACAYBAMBA","HUACAYBAMBA",null,null,"01.HUACAYBAMBA",null,"01.HUACAYBAMBA"]
["090902","HUANUCO","HUACAYBAMBA","PINRA",null,null,"02.PINRA",null,"02.PINRA"]
["090903","HUANUCO","HUACAYBAMBA","CANCHABAMBA",null,null,"03.CANCHABAMBA",null,"03.CANCHABAMBA"]
["090904","HUANUCO","HUACAYBAMBA","COCHABAMBA",null,null,"04.COCHABAMBA",null,"04.COCHABAMBA"]
["091001","HUANUCO","LAURICOCHA","JESUS",null,null,"01.JESUS",null,"01.JESUS"]
["091002","HUANUCO","LAURICOCHA","BAÑOS",null,null,"02.BAÑOS",null,"02.BAÑOS"]
["091003","HUANUCO","LAURICOCHA","SAN FRANCISCO DE ASIS",null,null,"03.SAN FRANCISCO DE ASIS",null,"03.SAN_FRANCISCO_DE_ASIS"]
["091004","HUANUCO","LAURICOCHA","QUEROPALCA",null,null,"04.QUEROPALCA",null,"04.QUEROPALCA"]
["091005","HUANUCO","LAURICOCHA","SAN MIGUEL DE CAURI",null,null,"05.SAN MIGUEL DE CAURI",null,"05.SAN_MIGUEL_DE_CAURI"]
["091006","HUANUCO","LAURICOCHA","RONDOS",null,null,"06.RONDOS",null,"06.RONDOS"]
["091007","HUANUCO","LAURICOCHA","JIVIA",null,null,"07.JIVIA",null,"07.JIVIA"]
["091101","HUANUCO","YAROWILCA","CHAVINILLO",null,null,"01.CHAVINILLO",null,"01.CHAVINILLO"]
["091102","HUANUCO","YAROWILCA","APARICIO POMARES",null,null,"02.APARICIO POMARES",null,"02.APARICIO_POMARES"]
["091103","HUANUCO","YAROWILCA","CAHUAC",null,null,"03.CAHUAC",null,"03.CAHUAC"]
["091104","HUANUCO","YAROWILCA","CHACABAMBA",null,null,"04.CHACABAMBA",null,"04.CHACABAMBA"]
["091105","HUANUCO","YAROWILCA","JACAS CHICO",null,null,"05.JACAS CHICO",null,"05.JACAS_CHICO"]
["091106","HUANUCO","YAROWILCA","OBAS",null,null,"06.OBAS",null,"06.OBAS"]
["091107","HUANUCO","YAROWILCA","PAMPAMARCA",null,null,"07.PAMPAMARCA",null,"07.PAMPAMARCA"]
["091108","HUANUCO","YAROWILCA","CHORAS",null,null,"08.CHORAS",null,"08.CHORAS"]
["100101","ICA","ICA","ICA",null,null,"01.ICA",null,"01.ICA"]
["100102","ICA","ICA","LA TINGUIÑA",null,null,"02.LA TINGUIÑA",null,"02.LA_TINGUIÑA"]
["100103","ICA","ICA","LOS AQUIJES",null,null,"03.LOS AQUIJES",null,"03.LOS_AQUIJES"]
["100104","ICA","ICA","PARCONA",null,null,{"$f":"CONCATENATE(MID(A963,5,2),\".\",D963)","v":"04.PARCONA"},null,"04.PARCONA"]
["100105","ICA","ICA","PUEBLO NUEVO",null,null,"05.PUEBLO NUEVO",null,"05.PUEBLO_NUEVO"]
["100106","ICA","ICA","SALAS",null,null,"06.SALAS",null,"06.SALAS"]
["100107","ICA","ICA","SAN JOSE DE LOS MOLINOS",null,null,"07.SAN JOSE DE LOS MOLINOS",null,"07.SAN_JOSE_DE_LOS_MOLINOS"]
["100108","ICA","ICA","SAN JUAN BAUTISTA",null,null,"08.SAN JUAN BAUTISTA",null,"08.SAN_JUAN_BAUTISTA"]
["100109","ICA","ICA","SANTIAGO",null,null,"09.SANTIAGO",null,"09.SANTIAGO"]
["100110","ICA","ICA","SUBTANJALLA",null,null,"10.SUBTANJALLA",null,"10.SUBTANJALLA"]
["100111","ICA","ICA","YAUCA DEL ROSARIO",null,null,"11.YAUCA DEL ROSARIO",null,"11.YAUCA_DEL_ROSARIO"]
["100112","ICA","ICA","TATE",null,null,"12.TATE",null,"12.TATE"]
["100113","ICA","ICA","PACHACUTEC",null,null,"13.PACHACUTEC",null,"13.PACHACUTEC"]
["100114","ICA","ICA","OCUCAJE",null,null,"14.OCUCAJE",null,"14.OCUCAJE"]
["100201","ICA","CHINCHA","CHINCHA ALTA",null,null,"01.CHINCHA ALTA",null,"01.CHINCHA_ALTA"]
["100202","ICA","CHINCHA","CHAVIN",null,null,"02.CHAVIN",null,"02.CHAVIN"]
["100203","ICA","CHINCHA","CHINCHA BAJA",null,null,"03.CHINCHA BAJA",null,"03.CHINCHA_BAJA"]
["100204","ICA","CHINCHA","EL CARMEN",null,null,"04.EL CARMEN",null,"04.EL_CARMEN"]
["100205","ICA","CHINCHA","GROCIO PRADO",null,null,"05.GROCIO PRADO",null,"05.GROCIO_PRADO"]
["100206","ICA","CHINCHA","SAN PEDRO DE HUACARPANA",null,null,"06.SAN PEDRO DE HUACARPANA",null,"06.SAN_PEDRO_DE_HUACARPANA"]
["100207","ICA","CHINCHA","SUNAMPE",null,null,"07.SUNAMPE",null,"07.SUNAMPE"]
["100208","ICA","CHINCHA","TAMBO DE MORA",null,null,"08.TAMBO DE MORA",null,"08.TAMBO_DE_MORA"]
["100209","ICA","CHINCHA","ALTO LARAN",null,null,"09.ALTO LARAN",null,"09.ALTO_LARAN"]
["100210","ICA","CHINCHA","PUEBLO NUEVO",null,null,"10.PUEBLO NUEVO",null,"10.PUEBLO_NUEVO"]
["100211","ICA","CHINCHA","SAN JUAN DE YANAC",null,null,"11.SAN JUAN DE YANAC",null,"11.SAN_JUAN_DE_YANAC"]
["100301","ICA","NAZCA","NAZCA",null,null,"01.NAZCA",null,"01.NAZCA"]
["100302","ICA","NAZCA","CHANGUILLO",null,null,"02.CHANGUILLO",null,"02.CHANGUILLO"]
["100303","ICA","NAZCA","EL INGENIO",null,null,"03.EL INGENIO",null,"03.EL_INGENIO"]
["100304","ICA","NAZCA","MARCONA",null,null,"04.MARCONA",null,"04.MARCONA"]
["100305","ICA","NAZCA","VISTA ALEGRE",null,null,"05.VISTA ALEGRE",null,"05.VISTA_ALEGRE"]
["100401","ICA","PISCO","PISCO",null,null,"01.PISCO",null,"01.PISCO"]
["100402","ICA","PISCO","HUANCANO",null,null,"02.HUANCANO",null,"02.HUANCANO"]
["100403","ICA","PISCO","HUMAY",null,null,"03.HUMAY",null,"03.HUMAY"]
["100404","ICA","PISCO","INDEPENDENCIA",null,null,"04.INDEPENDENCIA",null,"04.INDEPENDENCIA"]
["100405","ICA","PISCO","PARACAS",null,null,"05.PARACAS",null,"05.PARACAS"]
["100406","ICA","PISCO","SAN ANDRES",null,null,"06.SAN ANDRES",null,"06.SAN_ANDRES"]
["100407","ICA","PISCO","SAN CLEMENTE",null,null,"07.SAN CLEMENTE",null,"07.SAN_CLEMENTE"]
["100408","ICA","PISCO","TUPAC AMARU INCA",null,null,"08.TUPAC AMARU INCA",null,"08.TUPAC_AMARU_INCA"]
["100501","ICA","PALPA","PALPA",null,null,"01.PALPA",null,"01.PALPA"]
["100502","ICA","PALPA","LLIPATA",null,null,"02.LLIPATA",null,"02.LLIPATA"]
["100503","ICA","PALPA","RIO GRANDE",null,null,"03.RIO GRANDE",null,"03.RIO_GRANDE"]
["100504","ICA","PALPA","SANTA CRUZ",null,null,"04.SANTA CRUZ",null,"04.SANTA_CRUZ"]
["100505","ICA","PALPA","TIBILLO",null,null,"05.TIBILLO",null,"05.TIBILLO"]
["110101","JUNIN","HUANCAYO","HUANCAYO",null,null,"01.HUANCAYO",null,"01.HUANCAYO"]
["110103","JUNIN","HUANCAYO","CARHUACALLANGA",null,null,"03.CARHUACALLANGA",null,"03.CARHUACALLANGA"]
["110104","JUNIN","HUANCAYO","COLCA",null,null,"04.COLCA",null,"04.COLCA"]
["110105","JUNIN","HUANCAYO","CULLHUAS",null,null,"05.CULLHUAS",null,"05.CULLHUAS"]
["110106","JUNIN","HUANCAYO","CHACAPAMPA",null,null,"06.CHACAPAMPA",null,"06.CHACAPAMPA"]
["110107","JUNIN","HUANCAYO","CHICCHE",null,null,"07.CHICCHE",null,"07.CHICCHE"]
["110108","JUNIN","HUANCAYO","CHILCA",null,null,"08.CHILCA",null,"08.CHILCA"]
["110109","JUNIN","HUANCAYO","CHONGOS ALTO",null,null,"09.CHONGOS ALTO",null,"09.CHONGOS_ALTO"]
["110112","JUNIN","HUANCAYO","CHUPURO",null,null,"12.CHUPURO",null,"12.CHUPURO"]
["110113","JUNIN","HUANCAYO","EL TAMBO",null,null,"13.EL TAMBO",null,"13.EL_TAMBO"]
["110114","JUNIN","HUANCAYO","HUACRAPUQUIO",null,null,"14.HUACRAPUQUIO",null,"14.HUACRAPUQUIO"]
["110116","JUNIN","HUANCAYO","HUALHUAS",null,null,"16.HUALHUAS",null,"16.HUALHUAS"]
["110118","JUNIN","HUANCAYO","HUANCAN",null,null,"18.HUANCAN",null,"18.HUANCAN"]
["110119","JUNIN","HUANCAYO","HUASICANCHA",null,null,"19.HUASICANCHA",null,"19.HUASICANCHA"]
["110120","JUNIN","HUANCAYO","HUAYUCACHI",null,null,"20.HUAYUCACHI",null,"20.HUAYUCACHI"]
["110121","JUNIN","HUANCAYO","INGENIO",null,null,"21.INGENIO",null,"21.INGENIO"]
["110122","JUNIN","HUANCAYO","PARIAHUANCA",null,null,"22.PARIAHUANCA",null,"22.PARIAHUANCA"]
["110123","JUNIN","HUANCAYO","PILCOMAYO",null,null,"23.PILCOMAYO",null,"23.PILCOMAYO"]
["110124","JUNIN","HUANCAYO","PUCARA",null,null,"24.PUCARA",null,"24.PUCARA"]
["110125","JUNIN","HUANCAYO","QUICHUAY",null,null,"25.QUICHUAY",null,"25.QUICHUAY"]
["110126","JUNIN","HUANCAYO","QUILCAS",null,null,"26.QUILCAS",null,"26.QUILCAS"]
["110127","JUNIN","HUANCAYO","SAN AGUSTIN",null,null,"27.SAN AGUSTIN",null,"27.SAN_AGUSTIN"]
["110128","JUNIN","HUANCAYO","SAN JERONIMO DE TUNAN",null,null,"28.SAN JERONIMO DE TUNAN",null,"28.SAN_JERONIMO_DE_TUNAN"]
["110131","JUNIN","HUANCAYO","SANTO DOMINGO DE ACOBAMBA",null,null,"31.SANTO DOMINGO DE ACOBAMBA",null,"31.SANTO_DOMINGO_DE_ACOBAMBA"]
["110132","JUNIN","HUANCAYO","SAÑO",null,null,{"$f":"CONCATENATE(MID(A1027,5,2),\".\",D1027)","v":"32.SAÑO"},null,"32.SAÑO"]
["110133","JUNIN","HUANCAYO","SAPALLANGA",null,null,"33.SAPALLANGA",null,"33.SAPALLANGA"]
["110134","JUNIN","HUANCAYO","SICAYA",null,null,"34.SICAYA",null,"34.SICAYA"]
["110136","JUNIN","HUANCAYO","VIQUES",null,null,"36.VIQUES",null,"36.VIQUES"]
["110201","JUNIN","CONCEPCION","CONCEPCION",null,null,"01.CONCEPCION",null,"01.CONCEPCION"]
["110202","JUNIN","CONCEPCION","ACO",null,null,"02.ACO",null,"02.ACO"]
["110203","JUNIN","CONCEPCION","ANDAMARCA",null,null,"03.ANDAMARCA",null,"03.ANDAMARCA"]
["110204","JUNIN","CONCEPCION","COMAS",null,null,"04.COMAS",null,"04.COMAS"]
["110205","JUNIN","CONCEPCION","COCHAS",null,null,"05.COCHAS",null,"05.COCHAS"]
["110206","JUNIN","CONCEPCION","CHAMBARA",null,null,"06.CHAMBARA",null,"06.CHAMBARA"]
["110207","JUNIN","CONCEPCION","HEROINAS TOLEDO",null,null,"07.HEROINAS TOLEDO",null,"07.HEROINAS_TOLEDO"]
["110208","JUNIN","CONCEPCION","MANZANARES",null,null,"08.MANZANARES",null,"08.MANZANARES"]
["110209","JUNIN","CONCEPCION","MARISCAL CASTILLA",null,null,"09.MARISCAL CASTILLA",null,"09.MARISCAL_CASTILLA"]
["110210","JUNIN","CONCEPCION","MATAHUASI",null,null,"10.MATAHUASI",null,"10.MATAHUASI"]
["110211","JUNIN","CONCEPCION","MITO",null,null,"11.MITO",null,"11.MITO"]
["110212","JUNIN","CONCEPCION","NUEVE DE JULIO",null,null,"12.NUEVE DE JULIO",null,"12.NUEVE_DE_JULIO"]
["110213","JUNIN","CONCEPCION","ORCOTUNA",null,null,"13.ORCOTUNA",null,"13.ORCOTUNA"]
["110214","JUNIN","CONCEPCION","SANTA ROSA DE OCOPA",null,null,"14.SANTA ROSA DE OCOPA",null,"14.SANTA_ROSA_DE_OCOPA"]
["110215","JUNIN","CONCEPCION","SAN JOSE DE QUERO",null,null,"15.SAN JOSE DE QUERO",null,"15.SAN_JOSE_DE_QUERO"]
["110301","JUNIN","JAUJA","JAUJA",null,null,"01.JAUJA",null,"01.JAUJA"]
["110302","JUNIN","JAUJA","ACOLLA",null,null,"02.ACOLLA",null,"02.ACOLLA"]
["110303","JUNIN","JAUJA","APATA",null,null,"03.APATA",null,"03.APATA"]
["110304","JUNIN","JAUJA","ATAURA",null,null,"04.ATAURA",null,"04.ATAURA"]
["110305","JUNIN","JAUJA","CANCHAYLLO",null,null,"05.CANCHAYLLO",null,"05.CANCHAYLLO"]
["110306","JUNIN","JAUJA","EL MANTARO",null,null,"06.EL MANTARO",null,"06.EL_MANTARO"]
["110307","JUNIN","JAUJA","HUAMALI",null,null,"07.HUAMALI",null,"07.HUAMALI"]
["110308","JUNIN","JAUJA","HUARIPAMPA",null,null,"08.HUARIPAMPA",null,"08.HUARIPAMPA"]
["110309","JUNIN","JAUJA","HUERTAS",null,null,"09.HUERTAS",null,"09.HUERTAS"]
["110310","JUNIN","JAUJA","JANJAILLO",null,null,"10.JANJAILLO",null,"10.JANJAILLO"]
["110311","JUNIN","JAUJA","JULCAN",null,null,"11.JULCAN",null,"11.JULCAN"]
["110312","JUNIN","JAUJA","LEONOR ORDOÑEZ",null,null,"12.LEONOR ORDOÑEZ",null,"12.LEONOR_ORDOÑEZ"]
["110313","JUNIN","JAUJA","LLOCLLAPAMPA",null,null,"13.LLOCLLAPAMPA",null,"13.LLOCLLAPAMPA"]
["110314","JUNIN","JAUJA","MARCO",null,null,"14.MARCO",null,"14.MARCO"]
["110315","JUNIN","JAUJA","MASMA",null,null,"15.MASMA",null,"15.MASMA"]
["110316","JUNIN","JAUJA","MOLINOS",null,null,"16.MOLINOS",null,"16.MOLINOS"]
["110317","JUNIN","JAUJA","MONOBAMBA",null,null,"17.MONOBAMBA",null,"17.MONOBAMBA"]
["110318","JUNIN","JAUJA","MUQUI",null,null,"18.MUQUI",null,"18.MUQUI"]
["110319","JUNIN","JAUJA","MUQUIYAUYO",null,null,"19.MUQUIYAUYO",null,"19.MUQUIYAUYO"]
["110320","JUNIN","JAUJA","PACA",null,null,"20.PACA",null,"20.PACA"]
["110321","JUNIN","JAUJA","PACCHA",null,null,"21.PACCHA",null,"21.PACCHA"]
["110322","JUNIN","JAUJA","PANCAN",null,null,"22.PANCAN",null,"22.PANCAN"]
["110323","JUNIN","JAUJA","PARCO",null,null,"23.PARCO",null,"23.PARCO"]
["110324","JUNIN","JAUJA","POMACANCHA",null,null,"24.POMACANCHA",null,"24.POMACANCHA"]
["110325","JUNIN","JAUJA","RICRAN",null,null,"25.RICRAN",null,"25.RICRAN"]
["110326","JUNIN","JAUJA","SAN LORENZO",null,null,"26.SAN LORENZO",null,"26.SAN_LORENZO"]
["110327","JUNIN","JAUJA","SAN PEDRO DE CHUNAN",null,null,"27.SAN PEDRO DE CHUNAN",null,"27.SAN_PEDRO_DE_CHUNAN"]
["110328","JUNIN","JAUJA","SINCOS",null,null,"28.SINCOS",null,"28.SINCOS"]
["110329","JUNIN","JAUJA","TUNAN MARCA",null,null,"29.TUNAN MARCA",null,"29.TUNAN_MARCA"]
["110330","JUNIN","JAUJA","YAULI",null,null,"30.YAULI",null,"30.YAULI"]
["110331","JUNIN","JAUJA","CURICACA",null,null,"31.CURICACA",null,"31.CURICACA"]
["110332","JUNIN","JAUJA","MASMA CHICCHE",null,null,"32.MASMA CHICCHE",null,"32.MASMA_CHICCHE"]
["110333","JUNIN","JAUJA","SAUSA",null,null,"33.SAUSA",null,"33.SAUSA"]
["110334","JUNIN","JAUJA","YAUYOS",null,null,"34.YAUYOS",null,"34.YAUYOS"]
["110401","JUNIN","JUNIN","JUNIN",null,null,"01.JUNIN",null,"01.JUNIN"]
["110402","JUNIN","JUNIN","CARHUAMAYO",null,null,"02.CARHUAMAYO",null,"02.CARHUAMAYO"]
["110403","JUNIN","JUNIN","ONDORES",null,null,"03.ONDORES",null,"03.ONDORES"]
["110404","JUNIN","JUNIN","ULCUMAYO",null,null,"04.ULCUMAYO",null,"04.ULCUMAYO"]
["110501","JUNIN","TARMA","TARMA",null,null,"01.TARMA",null,"01.TARMA"]
["110502","JUNIN","TARMA","ACOBAMBA",null,null,"02.ACOBAMBA",null,"02.ACOBAMBA"]
["110503","JUNIN","TARMA","HUARICOLCA",null,null,"03.HUARICOLCA",null,"03.HUARICOLCA"]
["110504","JUNIN","TARMA","HUASAHUASI",null,null,"04.HUASAHUASI",null,"04.HUASAHUASI"]
["110505","JUNIN","TARMA","LA UNION",null,null,"05.LA UNION",null,"05.LA_UNION"]
["110506","JUNIN","TARMA","PALCA",null,null,"06.PALCA",null,"06.PALCA"]
["110507","JUNIN","TARMA","PALCAMAYO",null,null,"07.PALCAMAYO",null,"07.PALCAMAYO"]
["110508","JUNIN","TARMA","SAN PEDRO DE CAJAS",null,null,{"$f":"CONCATENATE(MID(A1091,5,2),\".\",D1091)","v":"08.SAN PEDRO DE CAJAS"},null,"08.SAN_PEDRO_DE_CAJAS"]
["110509","JUNIN","TARMA","TAPO",null,null,"09.TAPO",null,"09.TAPO"]
["110601","JUNIN","YAULI","LA OROYA",null,null,"01.LA OROYA",null,"01.LA_OROYA"]
["110602","JUNIN","YAULI","CHACAPALPA",null,null,"02.CHACAPALPA",null,"02.CHACAPALPA"]
["110603","JUNIN","YAULI","HUAY HUAY",null,null,"03.HUAY HUAY",null,"03.HUAY_HUAY"]
["110604","JUNIN","YAULI","MARCAPOMACOCHA",null,null,"04.MARCAPOMACOCHA",null,"04.MARCAPOMACOCHA"]
["110605","JUNIN","YAULI","MOROCOCHA",null,null,"05.MOROCOCHA",null,"05.MOROCOCHA"]
["110606","JUNIN","YAULI","PACCHA",null,null,"06.PACCHA",null,"06.PACCHA"]
["110607","JUNIN","YAULI","SANTA BARBARA DE CARHUACAYAN",null,null,"07.SANTA BARBARA DE CARHUACAYAN",null,"07.SANTA_BARBARA_DE_CARHUACAYAN"]
["110608","JUNIN","YAULI","SUITUCANCHA",null,null,"08.SUITUCANCHA",null,"08.SUITUCANCHA"]
["110609","JUNIN","YAULI","YAULI",null,null,"09.YAULI",null,"09.YAULI"]
["110610","JUNIN","YAULI","SANTA ROSA DE SACCO",null,null,"10.SANTA ROSA DE SACCO",null,"10.SANTA_ROSA_DE_SACCO"]
["110701","JUNIN","SATIPO","SATIPO",null,null,"01.SATIPO",null,"01.SATIPO"]
["110702","JUNIN","SATIPO","COVIRIALI",null,null,"02.COVIRIALI",null,"02.COVIRIALI"]
["110703","JUNIN","SATIPO","LLAYLLA",null,null,"03.LLAYLLA",null,"03.LLAYLLA"]
["110704","JUNIN","SATIPO","MAZAMARI",null,null,"04.MAZAMARI",null,"04.MAZAMARI"]
["110705","JUNIN","SATIPO","PAMPA HERMOSA",null,null,"05.PAMPA HERMOSA",null,"05.PAMPA_HERMOSA"]
["110706","JUNIN","SATIPO","PANGOA",null,null,"06.PANGOA",null,"06.PANGOA"]
["110707","JUNIN","SATIPO","RIO NEGRO",null,null,"07.RIO NEGRO",null,"07.RIO_NEGRO"]
["110708","JUNIN","SATIPO","RIO TAMBO",null,null,"08.RIO TAMBO",null,"08.RIO_TAMBO"]
["110801","JUNIN","CHANCHAMAYO","CHANCHAMAYO",null,null,"01.CHANCHAMAYO",null,"01.CHANCHAMAYO"]
["110802","JUNIN","CHANCHAMAYO","SAN RAMON",null,null,"02.SAN RAMON",null,"02.SAN_RAMON"]
["110803","JUNIN","CHANCHAMAYO","VITOC",null,null,"03.VITOC",null,"03.VITOC"]
["110804","JUNIN","CHANCHAMAYO","SAN LUIS DE SHUARO",null,null,"04.SAN LUIS DE SHUARO",null,"04.SAN_LUIS_DE_SHUARO"]
["110805","JUNIN","CHANCHAMAYO","PICHANAQUI",null,null,"05.PICHANAQUI",null,"05.PICHANAQUI"]
["110806","JUNIN","CHANCHAMAYO","PERENE",null,null,"06.PERENE",null,"06.PERENE"]
["110901","JUNIN","CHUPACA","CHUPACA",null,null,"01.CHUPACA",null,"01.CHUPACA"]
["110902","JUNIN","CHUPACA","AHUAC",null,null,"02.AHUAC",null,"02.AHUAC"]
["110903","JUNIN","CHUPACA","CHONGOS BAJO",null,null,"03.CHONGOS BAJO",null,"03.CHONGOS_BAJO"]
["110904","JUNIN","CHUPACA","HUACHAC",null,null,"04.HUACHAC",null,"04.HUACHAC"]
["110905","JUNIN","CHUPACA","HUAMANCACA CHICO",null,null,"05.HUAMANCACA CHICO",null,"05.HUAMANCACA_CHICO"]
["110906","JUNIN","CHUPACA","SAN JUAN DE YSCOS",null,null,"06.SAN JUAN DE YSCOS",null,"06.SAN_JUAN_DE_YSCOS"]
["110907","JUNIN","CHUPACA","SAN JUAN DE JARPA",null,null,"07.SAN JUAN DE JARPA",null,"07.SAN_JUAN_DE_JARPA"]
["110908","JUNIN","CHUPACA","TRES DE DICIEMBRE",null,null,"08.TRES DE DICIEMBRE",null,"08.TRES_DE_DICIEMBRE"]
["110909","JUNIN","CHUPACA","YANACANCHA",null,null,"09.YANACANCHA",null,"09.YANACANCHA"]
["120101","LA LIBERTAD","TRUJILLO","TRUJILLO",null,null,"01.TRUJILLO",null,"01.TRUJILLO"]
["120102","LA LIBERTAD","TRUJILLO","HUANCHACO",null,null,"02.HUANCHACO",null,"02.HUANCHACO"]
["120103","LA LIBERTAD","TRUJILLO","LAREDO",null,null,"03.LAREDO",null,"03.LAREDO"]
["120104","LA LIBERTAD","TRUJILLO","MOCHE",null,null,"04.MOCHE",null,"04.MOCHE"]
["120105","LA LIBERTAD","TRUJILLO","SALAVERRY",null,null,"05.SALAVERRY",null,"05.SALAVERRY"]
["120106","LA LIBERTAD","TRUJILLO","SIMBAL",null,null,"06.SIMBAL",null,"06.SIMBAL"]
["120107","LA LIBERTAD","TRUJILLO","VICTOR LARCO HERRERA",null,null,"07.VICTOR LARCO HERRERA",null,"07.VICTOR_LARCO_HERRERA"]
["120109","LA LIBERTAD","TRUJILLO","POROTO",null,null,"09.POROTO",null,"09.POROTO"]
["120110","LA LIBERTAD","TRUJILLO","EL PORVENIR",null,null,"10.EL PORVENIR",null,"10.EL_PORVENIR"]
["120111","LA LIBERTAD","TRUJILLO","LA ESPERANZA",null,null,"11.LA ESPERANZA",null,"11.LA_ESPERANZA"]
["120112","LA LIBERTAD","TRUJILLO","FLORENCIA DE MORA",null,null,"12.FLORENCIA DE MORA",null,"12.FLORENCIA_DE_MORA"]
["120201","LA LIBERTAD","BOLIVAR","BOLIVAR",null,null,"01.BOLIVAR",null,"01.BOLIVAR"]
["120202","LA LIBERTAD","BOLIVAR","BAMBAMARCA",null,null,"02.BAMBAMARCA",null,"02.BAMBAMARCA"]
["120203","LA LIBERTAD","BOLIVAR","CONDORMARCA",null,null,"03.CONDORMARCA",null,"03.CONDORMARCA"]
["120204","LA LIBERTAD","BOLIVAR","LONGOTEA",null,null,"04.LONGOTEA",null,"04.LONGOTEA"]
["120205","LA LIBERTAD","BOLIVAR","UCUNCHA",null,null,"05.UCUNCHA",null,"05.UCUNCHA"]
["120206","LA LIBERTAD","BOLIVAR","UCHUMARCA",null,null,"06.UCHUMARCA",null,"06.UCHUMARCA"]
["120301","LA LIBERTAD","SANCHEZ CARRION","HUAMACHUCO",null,null,"01.HUAMACHUCO",null,"01.HUAMACHUCO"]
["120302","LA LIBERTAD","SANCHEZ CARRION","COCHORCO",null,null,"02.COCHORCO",null,"02.COCHORCO"]
["120303","LA LIBERTAD","SANCHEZ CARRION","CURGOS",null,null,"03.CURGOS",null,"03.CURGOS"]
["120304","LA LIBERTAD","SANCHEZ CARRION","CHUGAY",null,null,"04.CHUGAY",null,"04.CHUGAY"]
["120305","LA LIBERTAD","SANCHEZ CARRION","MARCABAL",null,null,"05.MARCABAL",null,"05.MARCABAL"]
["120306","LA LIBERTAD","SANCHEZ CARRION","SANAGORAN",null,null,"06.SANAGORAN",null,"06.SANAGORAN"]
["120307","LA LIBERTAD","SANCHEZ CARRION","SARIN",null,null,"07.SARIN",null,"07.SARIN"]
["120308","LA LIBERTAD","SANCHEZ CARRION","SARTIMBAMBA",null,null,"08.SARTIMBAMBA",null,"08.SARTIMBAMBA"]
["120401","LA LIBERTAD","OTUZCO","OTUZCO",null,null,"01.OTUZCO",null,"01.OTUZCO"]
["120402","LA LIBERTAD","OTUZCO","AGALLPAMPA",null,null,"02.AGALLPAMPA",null,"02.AGALLPAMPA"]
["120403","LA LIBERTAD","OTUZCO","CHARAT",null,null,"03.CHARAT",null,"03.CHARAT"]
["120404","LA LIBERTAD","OTUZCO","HUARANCHAL",null,null,"04.HUARANCHAL",null,"04.HUARANCHAL"]
["120405","LA LIBERTAD","OTUZCO","LA CUESTA",null,null,{"$f":"CONCATENATE(MID(A1155,5,2),\".\",D1155)","v":"05.LA CUESTA"},null,"05.LA_CUESTA"]
["120408","LA LIBERTAD","OTUZCO","PARANDAY",null,null,"08.PARANDAY",null,"08.PARANDAY"]
["120409","LA LIBERTAD","OTUZCO","SALPO",null,null,"09.SALPO",null,"09.SALPO"]
["120410","LA LIBERTAD","OTUZCO","SINSICAP",null,null,"10.SINSICAP",null,"10.SINSICAP"]
["120411","LA LIBERTAD","OTUZCO","USQUIL",null,null,"11.USQUIL",null,"11.USQUIL"]
["120413","LA LIBERTAD","OTUZCO","MACHE",null,null,"13.MACHE",null,"13.MACHE"]
["120501","LA LIBERTAD","PACASMAYO","SAN PEDRO DE LLOC",null,null,"01.SAN PEDRO DE LLOC",null,"01.SAN_PEDRO_DE_LLOC"]
["120503","LA LIBERTAD","PACASMAYO","GUADALUPE",null,null,"03.GUADALUPE",null,"03.GUADALUPE"]
["120504","LA LIBERTAD","PACASMAYO","JEQUETEPEQUE",null,null,"04.JEQUETEPEQUE",null,"04.JEQUETEPEQUE"]
["120506","LA LIBERTAD","PACASMAYO","PACASMAYO",null,null,"06.PACASMAYO",null,"06.PACASMAYO"]
["120508","LA LIBERTAD","PACASMAYO","SAN JOSE",null,null,"08.SAN JOSE",null,"08.SAN_JOSE"]
["120601","LA LIBERTAD","PATAZ","TAYABAMBA",null,null,"01.TAYABAMBA",null,"01.TAYABAMBA"]
["120602","LA LIBERTAD","PATAZ","BULDIBUYO",null,null,"02.BULDIBUYO",null,"02.BULDIBUYO"]
["120603","LA LIBERTAD","PATAZ","CHILLIA",null,null,"03.CHILLIA",null,"03.CHILLIA"]
["120604","LA LIBERTAD","PATAZ","HUAYLILLAS",null,null,"04.HUAYLILLAS",null,"04.HUAYLILLAS"]
["120605","LA LIBERTAD","PATAZ","HUANCASPATA",null,null,"05.HUANCASPATA",null,"05.HUANCASPATA"]
["120606","LA LIBERTAD","PATAZ","HUAYO",null,null,"06.HUAYO",null,"06.HUAYO"]
["120607","LA LIBERTAD","PATAZ","ONGON",null,null,"07.ONGON",null,"07.ONGON"]
["120608","LA LIBERTAD","PATAZ","PARCOY",null,null,"08.PARCOY",null,"08.PARCOY"]
["120609","LA LIBERTAD","PATAZ","PATAZ",null,null,"09.PATAZ",null,"09.PATAZ"]
["120610","LA LIBERTAD","PATAZ","PIAS",null,null,"10.PIAS",null,"10.PIAS"]
["120611","LA LIBERTAD","PATAZ","TAURIJA",null,null,"11.TAURIJA",null,"11.TAURIJA"]
["120612","LA LIBERTAD","PATAZ","URPAY",null,null,"12.URPAY",null,"12.URPAY"]
["120613","LA LIBERTAD","PATAZ","SANTIAGO DE CHALLAS",null,null,"13.SANTIAGO DE CHALLAS",null,"13.SANTIAGO_DE_CHALLAS"]
["120701","LA LIBERTAD","SANTIAGO DE CHUCO","SANTIAGO DE CHUCO",null,null,"01.SANTIAGO DE CHUCO",null,"01.SANTIAGO_DE_CHUCO"]
["120702","LA LIBERTAD","SANTIAGO DE CHUCO","CACHICADAN",null,null,"02.CACHICADAN",null,"02.CACHICADAN"]
["120703","LA LIBERTAD","SANTIAGO DE CHUCO","MOLLEBAMBA",null,null,"03.MOLLEBAMBA",null,"03.MOLLEBAMBA"]
["120704","LA LIBERTAD","SANTIAGO DE CHUCO","MOLLEPATA",null,null,"04.MOLLEPATA",null,"04.MOLLEPATA"]
["120705","LA LIBERTAD","SANTIAGO DE CHUCO","QUIRUVILCA",null,null,"05.QUIRUVILCA",null,"05.QUIRUVILCA"]
["120706","LA LIBERTAD","SANTIAGO DE CHUCO","SANTA CRUZ DE CHUCA",null,null,"06.SANTA CRUZ DE CHUCA",null,"06.SANTA_CRUZ_DE_CHUCA"]
["120707","LA LIBERTAD","SANTIAGO DE CHUCO","SITABAMBA",null,null,"07.SITABAMBA",null,"07.SITABAMBA"]
["120708","LA LIBERTAD","SANTIAGO DE CHUCO","ANGASMARCA",null,null,"08.ANGASMARCA",null,"08.ANGASMARCA"]
["120801","LA LIBERTAD","ASCOPE","ASCOPE",null,null,"01.ASCOPE",null,"01.ASCOPE"]
["120802","LA LIBERTAD","ASCOPE","CHICAMA",null,null,"02.CHICAMA",null,"02.CHICAMA"]
["120803","LA LIBERTAD","ASCOPE","CHOCOPE",null,null,"03.CHOCOPE",null,"03.CHOCOPE"]
["120804","LA LIBERTAD","ASCOPE","SANTIAGO DE CAO",null,null,"04.SANTIAGO DE CAO",null,"04.SANTIAGO_DE_CAO"]
["120805","LA LIBERTAD","ASCOPE","MAGDALENA DE CAO",null,null,"05.MAGDALENA DE CAO",null,"05.MAGDALENA_DE_CAO"]
["120806","LA LIBERTAD","ASCOPE","PAIJAN",null,null,"06.PAIJAN",null,"06.PAIJAN"]
["120807","LA LIBERTAD","ASCOPE","RAZURI",null,null,"07.RAZURI",null,"07.RAZURI"]
["120808","LA LIBERTAD","ASCOPE","CASA GRANDE",null,null,"08.CASA GRANDE",null,"08.CASA_GRANDE"]
["120901","LA LIBERTAD","CHEPEN","CHEPEN",null,null,"01.CHEPEN",null,"01.CHEPEN"]
["120902","LA LIBERTAD","CHEPEN","PACANGA",null,null,"02.PACANGA",null,"02.PACANGA"]
["120903","LA LIBERTAD","CHEPEN","PUEBLO NUEVO",null,null,"03.PUEBLO NUEVO",null,"03.PUEBLO_NUEVO"]
["121001","LA LIBERTAD","JULCAN","JULCAN",null,null,"01.JULCAN",null,"01.JULCAN"]
["121002","LA LIBERTAD","JULCAN","CARABAMBA",null,null,"02.CARABAMBA",null,"02.CARABAMBA"]
["121003","LA LIBERTAD","JULCAN","CALAMARCA",null,null,"03.CALAMARCA",null,"03.CALAMARCA"]
["121004","LA LIBERTAD","JULCAN","HUASO",null,null,"04.HUASO",null,"04.HUASO"]
["121101","LA LIBERTAD","GRAN CHIMU","CASCAS",null,null,"01.CASCAS",null,"01.CASCAS"]
["121102","LA LIBERTAD","GRAN CHIMU","LUCMA",null,null,"02.LUCMA",null,"02.LUCMA"]
["121103","LA LIBERTAD","GRAN CHIMU","MARMOT",null,null,"03.MARMOT",null,"03.MARMOT"]
["121104","LA LIBERTAD","GRAN CHIMU","SAYAPULLO",null,null,"04.SAYAPULLO",null,"04.SAYAPULLO"]
["121201","LA LIBERTAD","VIRU","VIRU",null,null,"01.VIRU",null,"01.VIRU"]
["121202","LA LIBERTAD","VIRU","CHAO",null,null,"02.CHAO",null,"02.CHAO"]
["121203","LA LIBERTAD","VIRU","GUADALUPITO",null,null,"03.GUADALUPITO",null,"03.GUADALUPITO"]
["130101","LAMBAYEQUE","CHICLAYO","CHICLAYO",null,null,"01.CHICLAYO",null,"01.CHICLAYO"]
["130102","LAMBAYEQUE","CHICLAYO","CHONGOYAPE",null,null,"02.CHONGOYAPE",null,"02.CHONGOYAPE"]
["130103","LAMBAYEQUE","CHICLAYO","ETEN",null,null,"03.ETEN",null,"03.ETEN"]
["130104","LAMBAYEQUE","CHICLAYO","ETEN PUERTO",null,null,"04.ETEN PUERTO",null,"04.ETEN_PUERTO"]
["130105","LAMBAYEQUE","CHICLAYO","LAGUNAS",null,null,"05.LAGUNAS",null,"05.LAGUNAS"]
["130106","LAMBAYEQUE","CHICLAYO","MONSEFU",null,null,"06.MONSEFU",null,"06.MONSEFU"]
["130107","LAMBAYEQUE","CHICLAYO","NUEVA ARICA",null,null,"07.NUEVA ARICA",null,"07.NUEVA_ARICA"]
["130108","LAMBAYEQUE","CHICLAYO","OYOTUN",null,null,"08.OYOTUN",null,"08.OYOTUN"]
["130109","LAMBAYEQUE","CHICLAYO","PICSI",null,null,"09.PICSI",null,"09.PICSI"]
["130110","LAMBAYEQUE","CHICLAYO","PIMENTEL",null,null,"10.PIMENTEL",null,"10.PIMENTEL"]
["130111","LAMBAYEQUE","CHICLAYO","REQUE",null,null,{"$f":"CONCATENATE(MID(A1219,5,2),\".\",D1219)","v":"11.REQUE"},null,"11.REQUE"]
["130112","LAMBAYEQUE","CHICLAYO","JOSE LEONARDO ORTIZ",null,null,"12.JOSE LEONARDO ORTIZ",null,"12.JOSE_LEONARDO_ORTIZ"]
["130113","LAMBAYEQUE","CHICLAYO","SANTA ROSA",null,null,"13.SANTA ROSA",null,"13.SANTA_ROSA"]
["130114","LAMBAYEQUE","CHICLAYO","SAÑA",null,null,"14.SAÑA",null,"14.SAÑA"]
["130115","LAMBAYEQUE","CHICLAYO","LA VICTORIA",null,null,"15.LA VICTORIA",null,"15.LA_VICTORIA"]
["130116","LAMBAYEQUE","CHICLAYO","CAYALTI",null,null,"16.CAYALTI",null,"16.CAYALTI"]
["130117","LAMBAYEQUE","CHICLAYO","PATAPO",null,null,"17.PATAPO",null,"17.PATAPO"]
["130118","LAMBAYEQUE","CHICLAYO","POMALCA",null,null,"18.POMALCA",null,"18.POMALCA"]
["130119","LAMBAYEQUE","CHICLAYO","PUCALA",null,null,"19.PUCALA",null,"19.PUCALA"]
["130120","LAMBAYEQUE","CHICLAYO","TUMAN",null,null,"20.TUMAN",null,"20.TUMAN"]
["130201","LAMBAYEQUE","FERREÑAFE","FERREÑAFE",null,null,"01.FERREÑAFE",null,"01.FERREÑAFE"]
["130202","LAMBAYEQUE","FERREÑAFE","INCAHUASI",null,null,"02.INCAHUASI",null,"02.INCAHUASI"]
["130203","LAMBAYEQUE","FERREÑAFE","CAÑARIS",null,null,"03.CAÑARIS",null,"03.CAÑARIS"]
["130204","LAMBAYEQUE","FERREÑAFE","PITIPO",null,null,"04.PITIPO",null,"04.PITIPO"]
["130205","LAMBAYEQUE","FERREÑAFE","PUEBLO NUEVO",null,null,"05.PUEBLO NUEVO",null,"05.PUEBLO_NUEVO"]
["130206","LAMBAYEQUE","FERREÑAFE","MANUEL ANTONIO MESONES MURO",null,null,"06.MANUEL ANTONIO MESONES MURO",null,"06.MANUEL_ANTONIO_MESONES_MURO"]
["130301","LAMBAYEQUE","LAMBAYEQUE","LAMBAYEQUE",null,null,"01.LAMBAYEQUE",null,"01.LAMBAYEQUE"]
["130302","LAMBAYEQUE","LAMBAYEQUE","CHOCHOPE",null,null,"02.CHOCHOPE",null,"02.CHOCHOPE"]
["130303","LAMBAYEQUE","LAMBAYEQUE","ILLIMO",null,null,"03.ILLIMO",null,"03.ILLIMO"]
["130304","LAMBAYEQUE","LAMBAYEQUE","JAYANCA",null,null,"04.JAYANCA",null,"04.JAYANCA"]
["130305","LAMBAYEQUE","LAMBAYEQUE","MOCHUMI",null,null,"05.MOCHUMI",null,"05.MOCHUMI"]
["130306","LAMBAYEQUE","LAMBAYEQUE","MORROPE",null,null,"06.MORROPE",null,"06.MORROPE"]
["130307","LAMBAYEQUE","LAMBAYEQUE","MOTUPE",null,null,"07.MOTUPE",null,"07.MOTUPE"]
["130308","LAMBAYEQUE","LAMBAYEQUE","OLMOS",null,null,"08.OLMOS",null,"08.OLMOS"]
["130309","LAMBAYEQUE","LAMBAYEQUE","PACORA",null,null,"09.PACORA",null,"09.PACORA"]
["130310","LAMBAYEQUE","LAMBAYEQUE","SALAS",null,null,"10.SALAS",null,"10.SALAS"]
["130311","LAMBAYEQUE","LAMBAYEQUE","SAN JOSE",null,null,"11.SAN JOSE",null,"11.SAN_JOSE"]
["130312","LAMBAYEQUE","LAMBAYEQUE","TUCUME",null,null,"12.TUCUME",null,"12.TUCUME"]
["140101","LIMA","LIMA","LIMA",null,null,"01.LIMA",null,"01.LIMA"]
["140102","LIMA","LIMA","ANCON",null,null,"02.ANCON",null,"02.ANCON"]
["140103","LIMA","LIMA","ATE",null,null,"03.ATE",null,"03.ATE"]
["140104","LIMA","LIMA","BREÑA",null,null,"04.BREÑA",null,"04.BREÑA"]
["140105","LIMA","LIMA","CARABAYLLO",null,null,"05.CARABAYLLO",null,"05.CARABAYLLO"]
["140106","LIMA","LIMA","COMAS",null,null,"06.COMAS",null,"06.COMAS"]
["140107","LIMA","LIMA","CHACLACAYO",null,null,"07.CHACLACAYO",null,"07.CHACLACAYO"]
["140108","LIMA","LIMA","CHORRILLOS",null,null,"08.CHORRILLOS",null,"08.CHORRILLOS"]
["140109","LIMA","LIMA","LA VICTORIA",null,null,"09.LA VICTORIA",null,"09.LA_VICTORIA"]
["140110","LIMA","LIMA","LA MOLINA",null,null,"10.LA MOLINA",null,"10.LA_MOLINA"]
["140111","LIMA","LIMA","LINCE",null,null,"11.LINCE",null,"11.LINCE"]
["140112","LIMA","LIMA","LURIGANCHO",null,null,"12.LURIGANCHO",null,"12.LURIGANCHO"]
["140113","LIMA","LIMA","LURIN",null,null,"13.LURIN",null,"13.LURIN"]
["140114","LIMA","LIMA","MAGDALENA DEL MAR",null,null,"14.MAGDALENA DEL MAR",null,"14.MAGDALENA_DEL_MAR"]
["140115","LIMA","LIMA","MIRAFLORES",null,null,"15.MIRAFLORES",null,"15.MIRAFLORES"]
["140116","LIMA","LIMA","PACHACAMAC",null,null,"16.PACHACAMAC",null,"16.PACHACAMAC"]
["140117","LIMA","LIMA","PUEBLO LIBRE",null,null,"17.PUEBLO LIBRE",null,"17.PUEBLO_LIBRE"]
["140118","LIMA","LIMA","PUCUSANA",null,null,"18.PUCUSANA",null,"18.PUCUSANA"]
["140119","LIMA","LIMA","PUENTE PIEDRA",null,null,"19.PUENTE PIEDRA",null,"19.PUENTE_PIEDRA"]
["140120","LIMA","LIMA","PUNTA HERMOSA",null,null,"20.PUNTA HERMOSA",null,"20.PUNTA_HERMOSA"]
["140121","LIMA","LIMA","PUNTA NEGRA",null,null,"21.PUNTA NEGRA",null,"21.PUNTA_NEGRA"]
["140122","LIMA","LIMA","RIMAC",null,null,"22.RIMAC",null,"22.RIMAC"]
["140123","LIMA","LIMA","SAN BARTOLO",null,null,"23.SAN BARTOLO",null,"23.SAN_BARTOLO"]
["140124","LIMA","LIMA","SAN ISIDRO",null,null,"24.SAN ISIDRO",null,"24.SAN_ISIDRO"]
["140125","LIMA","LIMA","BARRANCO",null,null,"25.BARRANCO",null,"25.BARRANCO"]
["140126","LIMA","LIMA","SAN MARTIN DE PORRES",null,null,"26.SAN MARTIN DE PORRES",null,"26.SAN_MARTIN_DE_PORRES"]
["140127","LIMA","LIMA","SAN MIGUEL",null,null,"27.SAN MIGUEL",null,"27.SAN_MIGUEL"]
["140128","LIMA","LIMA","SANTA MARIA DEL MAR",null,null,"28.SANTA MARIA DEL MAR",null,"28.SANTA_MARIA_DEL_MAR"]
["140129","LIMA","LIMA","SANTA ROSA",null,null,"29.SANTA ROSA",null,"29.SANTA_ROSA"]
["140130","LIMA","LIMA","SANTIAGO DE SURCO",null,null,"30.SANTIAGO DE SURCO",null,"30.SANTIAGO_DE_SURCO"]
["140131","LIMA","LIMA","SURQUILLO",null,null,"31.SURQUILLO",null,"31.SURQUILLO"]
["140132","LIMA","LIMA","VILLA MARIA DEL TRIUNFO",null,null,"32.VILLA MARIA DEL TRIUNFO",null,"32.VILLA_MARIA_DEL_TRIUNFO"]
["140133","LIMA","LIMA","JESUS MARIA",null,null,"33.JESUS MARIA",null,"33.JESUS_MARIA"]
["140134","LIMA","LIMA","INDEPENDENCIA",null,null,"34.INDEPENDENCIA",null,"34.INDEPENDENCIA"]
["140135","LIMA","LIMA","EL AGUSTINO",null,null,"35.EL AGUSTINO",null,"35.EL_AGUSTINO"]
["140136","LIMA","LIMA","SAN JUAN DE MIRAFLORES",null,null,"36.SAN JUAN DE MIRAFLORES",null,"36.SAN_JUAN_DE_MIRAFLORES"]
["140137","LIMA","LIMA","SAN JUAN DE LURIGANCHO",null,null,{"$f":"CONCATENATE(MID(A1283,5,2),\".\",D1283)","v":"37.SAN JUAN DE LURIGANCHO"},null,"37.SAN_JUAN_DE_LURIGANCHO"]
["140138","LIMA","LIMA","SAN LUIS",null,null,"38.SAN LUIS",null,"38.SAN_LUIS"]
["140139","LIMA","LIMA","CIENEGUILLA",null,null,"39.CIENEGUILLA",null,"39.CIENEGUILLA"]
["140140","LIMA","LIMA","SAN BORJA",null,null,"40.SAN BORJA",null,"40.SAN_BORJA"]
["140141","LIMA","LIMA","VILLA EL SALVADOR",null,null,"41.VILLA EL SALVADOR",null,"41.VILLA_EL_SALVADOR"]
["140142","LIMA","LIMA","LOS OLIVOS",null,null,"42.LOS OLIVOS",null,"42.LOS_OLIVOS"]
["140143","LIMA","LIMA","SANTA ANITA",null,null,"43.SANTA ANITA",null,"43.SANTA_ANITA"]
["140201","LIMA","CAJATAMBO","CAJATAMBO",null,null,"01.CAJATAMBO",null,"01.CAJATAMBO"]
["140205","LIMA","CAJATAMBO","COPA",null,null,"05.COPA",null,"05.COPA"]
["140206","LIMA","CAJATAMBO","GORGOR",null,null,"06.GORGOR",null,"06.GORGOR"]
["140207","LIMA","CAJATAMBO","HUANCAPON",null,null,"07.HUANCAPON",null,"07.HUANCAPON"]
["140208","LIMA","CAJATAMBO","MANAS",null,null,"08.MANAS",null,"08.MANAS"]
["140301","LIMA","CANTA","CANTA",null,null,"01.CANTA",null,"01.CANTA"]
["140302","LIMA","CANTA","ARAHUAY",null,null,"02.ARAHUAY",null,"02.ARAHUAY"]
["140303","LIMA","CANTA","HUAMANTANGA",null,null,"03.HUAMANTANGA",null,"03.HUAMANTANGA"]
["140304","LIMA","CANTA","HUAROS",null,null,"04.HUAROS",null,"04.HUAROS"]
["140305","LIMA","CANTA","LACHAQUI",null,null,"05.LACHAQUI",null,"05.LACHAQUI"]
["140306","LIMA","CANTA","SAN BUENAVENTURA",null,null,"06.SAN BUENAVENTURA",null,"06.SAN_BUENAVENTURA"]
["140307","LIMA","CANTA","SANTA ROSA DE QUIVES",null,null,"07.SANTA ROSA DE QUIVES",null,"07.SANTA_ROSA_DE_QUIVES"]
["140401","LIMA","CAÑETE","SAN VICENTE DE CAÑETE",null,null,"01.SAN VICENTE DE CAÑETE",null,"01.SAN_VICENTE_DE_CAÑETE"]
["140402","LIMA","CAÑETE","CALANGO",null,null,"02.CALANGO",null,"02.CALANGO"]
["140403","LIMA","CAÑETE","CERRO AZUL",null,null,"03.CERRO AZUL",null,"03.CERRO_AZUL"]
["140404","LIMA","CAÑETE","COAYLLO",null,null,"04.COAYLLO",null,"04.COAYLLO"]
["140405","LIMA","CAÑETE","CHILCA",null,null,"05.CHILCA",null,"05.CHILCA"]
["140406","LIMA","CAÑETE","IMPERIAL",null,null,"06.IMPERIAL",null,"06.IMPERIAL"]
["140407","LIMA","CAÑETE","LUNAHUANA",null,null,"07.LUNAHUANA",null,"07.LUNAHUANA"]
["140408","LIMA","CAÑETE","MALA",null,null,"08.MALA",null,"08.MALA"]
["140409","LIMA","CAÑETE","NUEVO IMPERIAL",null,null,"09.NUEVO IMPERIAL",null,"09.NUEVO_IMPERIAL"]
["140410","LIMA","CAÑETE","PACARAN",null,null,"10.PACARAN",null,"10.PACARAN"]
["140411","LIMA","CAÑETE","QUILMANA",null,null,"11.QUILMANA",null,"11.QUILMANA"]
["140412","LIMA","CAÑETE","SAN ANTONIO",null,null,"12.SAN ANTONIO",null,"12.SAN_ANTONIO"]
["140413","LIMA","CAÑETE","SAN LUIS",null,null,"13.SAN LUIS",null,"13.SAN_LUIS"]
["140414","LIMA","CAÑETE","SANTA CRUZ DE FLORES",null,null,"14.SANTA CRUZ DE FLORES",null,"14.SANTA_CRUZ_DE_FLORES"]
["140415","LIMA","CAÑETE","ZUÑIGA",null,null,"15.ZUÑIGA",null,"15.ZUÑIGA"]
["140416","LIMA","CAÑETE","ASIA",null,null,"16.ASIA",null,"16.ASIA"]
["140501","LIMA","HUAURA","HUACHO",null,null,"01.HUACHO",null,"01.HUACHO"]
["140502","LIMA","HUAURA","AMBAR",null,null,"02.AMBAR",null,"02.AMBAR"]
["140504","LIMA","HUAURA","CALETA DE CARQUIN",null,null,"04.CALETA DE CARQUIN",null,"04.CALETA_DE_CARQUIN"]
["140505","LIMA","HUAURA","CHECRAS",null,null,"05.CHECRAS",null,"05.CHECRAS"]
["140506","LIMA","HUAURA","HUALMAY",null,null,"06.HUALMAY",null,"06.HUALMAY"]
["140507","LIMA","HUAURA","HUAURA",null,null,"07.HUAURA",null,"07.HUAURA"]
["140508","LIMA","HUAURA","LEONCIO PRADO",null,null,"08.LEONCIO PRADO",null,"08.LEONCIO_PRADO"]
["140509","LIMA","HUAURA","PACCHO",null,null,"09.PACCHO",null,"09.PACCHO"]
["140511","LIMA","HUAURA","SANTA LEONOR",null,null,"11.SANTA LEONOR",null,"11.SANTA_LEONOR"]
["140512","LIMA","HUAURA","SANTA MARIA",null,null,"12.SANTA MARIA",null,"12.SANTA_MARIA"]
["140513","LIMA","HUAURA","SAYAN",null,null,"13.SAYAN",null,"13.SAYAN"]
["140516","LIMA","HUAURA","VEGUETA",null,null,"16.VEGUETA",null,"16.VEGUETA"]
["140601","LIMA","HUAROCHIRI","MATUCANA",null,null,"01.MATUCANA",null,"01.MATUCANA"]
["140602","LIMA","HUAROCHIRI","ANTIOQUIA",null,null,"02.ANTIOQUIA",null,"02.ANTIOQUIA"]
["140603","LIMA","HUAROCHIRI","CALLAHUANCA",null,null,"03.CALLAHUANCA",null,"03.CALLAHUANCA"]
["140604","LIMA","HUAROCHIRI","CARAMPOMA",null,null,"04.CARAMPOMA",null,"04.CARAMPOMA"]
["140605","LIMA","HUAROCHIRI","CASTA",null,null,"05.CASTA",null,"05.CASTA"]
["140606","LIMA","HUAROCHIRI","SAN JOSE DE LOS CHORRILLOS",null,null,"06.SAN JOSE DE LOS CHORRILLOS",null,"06.SAN_JOSE_DE_LOS_CHORRILLOS"]
["140607","LIMA","HUAROCHIRI","CHICLA",null,null,"07.CHICLA",null,"07.CHICLA"]
["140608","LIMA","HUAROCHIRI","HUANZA",null,null,"08.HUANZA",null,"08.HUANZA"]
["140609","LIMA","HUAROCHIRI","HUAROCHIRI",null,null,"09.HUAROCHIRI",null,"09.HUAROCHIRI"]
["140610","LIMA","HUAROCHIRI","LAHUAYTAMBO",null,null,"10.LAHUAYTAMBO",null,"10.LAHUAYTAMBO"]
["140611","LIMA","HUAROCHIRI","LANGA",null,null,"11.LANGA",null,"11.LANGA"]
["140612","LIMA","HUAROCHIRI","MARIATANA",null,null,"12.MARIATANA",null,"12.MARIATANA"]
["140613","LIMA","HUAROCHIRI","RICARDO PALMA",null,null,"13.RICARDO PALMA",null,"13.RICARDO_PALMA"]
["140614","LIMA","HUAROCHIRI","SAN ANDRES DE TUPICOCHA",null,null,"14.SAN ANDRES DE TUPICOCHA",null,"14.SAN_ANDRES_DE_TUPICOCHA"]
["140615","LIMA","HUAROCHIRI","SAN ANTONIO",null,null,"15.SAN ANTONIO",null,"15.SAN_ANTONIO"]
["140616","LIMA","HUAROCHIRI","SAN BARTOLOME",null,null,"16.SAN BARTOLOME",null,"16.SAN_BARTOLOME"]
["140617","LIMA","HUAROCHIRI","SAN DAMIAN",null,null,"17.SAN DAMIAN",null,"17.SAN_DAMIAN"]
["140618","LIMA","HUAROCHIRI","SANGALLAYA",null,null,{"$f":"CONCATENATE(MID(A1347,5,2),\".\",D1347)","v":"18.SANGALLAYA"},null,"18.SANGALLAYA"]
["140619","LIMA","HUAROCHIRI","SAN JUAN DE TANTARANCHE",null,null,"19.SAN JUAN DE TANTARANCHE",null,"19.SAN_JUAN_DE_TANTARANCHE"]
["140620","LIMA","HUAROCHIRI","SAN LORENZO DE QUINTI",null,null,"20.SAN LORENZO DE QUINTI",null,"20.SAN_LORENZO_DE_QUINTI"]
["140621","LIMA","HUAROCHIRI","SAN MATEO",null,null,"21.SAN MATEO",null,"21.SAN_MATEO"]
["140622","LIMA","HUAROCHIRI","SAN MATEO DE OTAO",null,null,"22.SAN MATEO DE OTAO",null,"22.SAN_MATEO_DE_OTAO"]
["140623","LIMA","HUAROCHIRI","SAN PEDRO DE HUANCAYRE",null,null,"23.SAN PEDRO DE HUANCAYRE",null,"23.SAN_PEDRO_DE_HUANCAYRE"]
["140624","LIMA","HUAROCHIRI","SANTA CRUZ DE COCACHACRA",null,null,"24.SANTA CRUZ DE COCACHACRA",null,"24.SANTA_CRUZ_DE_COCACHACRA"]
["140625","LIMA","HUAROCHIRI","SANTA EULALIA",null,null,"25.SANTA EULALIA",null,"25.SANTA_EULALIA"]
["140626","LIMA","HUAROCHIRI","SANTIAGO DE ANCHUCAYA",null,null,"26.SANTIAGO DE ANCHUCAYA",null,"26.SANTIAGO_DE_ANCHUCAYA"]
["140627","LIMA","HUAROCHIRI","SANTIAGO DE TUNA",null,null,"27.SANTIAGO DE TUNA",null,"27.SANTIAGO_DE_TUNA"]
["140628","LIMA","HUAROCHIRI","SANTO DOMINGO DE LOS OLLEROS",null,null,"28.SANTO DOMINGO DE LOS OLLEROS",null,"28.SANTO_DOMINGO_DE_LOS_OLLEROS"]
["140629","LIMA","HUAROCHIRI","SURCO",null,null,"29.SURCO",null,"29.SURCO"]
["140630","LIMA","HUAROCHIRI","HUACHUPAMPA",null,null,"30.HUACHUPAMPA",null,"30.HUACHUPAMPA"]
["140631","LIMA","HUAROCHIRI","LARAOS",null,null,"31.LARAOS",null,"31.LARAOS"]
["140632","LIMA","HUAROCHIRI","SAN JUAN DE IRIS",null,null,"32.SAN JUAN DE IRIS",null,"32.SAN_JUAN_DE_IRIS"]
["140701","LIMA","YAUYOS","YAUYOS",null,null,"01.YAUYOS",null,"01.YAUYOS"]
["140702","LIMA","YAUYOS","ALIS",null,null,"02.ALIS",null,"02.ALIS"]
["140703","LIMA","YAUYOS","ALLAUCA",null,null,"03.ALLAUCA",null,"03.ALLAUCA"]
["140704","LIMA","YAUYOS","AYAVIRI",null,null,"04.AYAVIRI",null,"04.AYAVIRI"]
["140705","LIMA","YAUYOS","AZANGARO",null,null,"05.AZANGARO",null,"05.AZANGARO"]
["140706","LIMA","YAUYOS","CACRA",null,null,"06.CACRA",null,"06.CACRA"]
["140707","LIMA","YAUYOS","CARANIA",null,null,"07.CARANIA",null,"07.CARANIA"]
["140708","LIMA","YAUYOS","COCHAS",null,null,"08.COCHAS",null,"08.COCHAS"]
["140709","LIMA","YAUYOS","COLONIA",null,null,"09.COLONIA",null,"09.COLONIA"]
["140710","LIMA","YAUYOS","CHOCOS",null,null,"10.CHOCOS",null,"10.CHOCOS"]
["140711","LIMA","YAUYOS","HUAMPARA",null,null,"11.HUAMPARA",null,"11.HUAMPARA"]
["140712","LIMA","YAUYOS","HUANCAYA",null,null,"12.HUANCAYA",null,"12.HUANCAYA"]
["140713","LIMA","YAUYOS","HUANGASCAR",null,null,"13.HUANGASCAR",null,"13.HUANGASCAR"]
["140714","LIMA","YAUYOS","HUANTAN",null,null,"14.HUANTAN",null,"14.HUANTAN"]
["140715","LIMA","YAUYOS","HUAÑEC",null,null,"15.HUAÑEC",null,"15.HUAÑEC"]
["140716","LIMA","YAUYOS","LARAOS",null,null,"16.LARAOS",null,"16.LARAOS"]
["140717","LIMA","YAUYOS","LINCHA",null,null,"17.LINCHA",null,"17.LINCHA"]
["140718","LIMA","YAUYOS","MIRAFLORES",null,null,"18.MIRAFLORES",null,"18.MIRAFLORES"]
["140719","LIMA","YAUYOS","OMAS",null,null,"19.OMAS",null,"19.OMAS"]
["140720","LIMA","YAUYOS","QUINCHES",null,null,"20.QUINCHES",null,"20.QUINCHES"]
["140721","LIMA","YAUYOS","QUINOCAY",null,null,"21.QUINOCAY",null,"21.QUINOCAY"]
["140722","LIMA","YAUYOS","SAN JOAQUIN",null,null,"22.SAN JOAQUIN",null,"22.SAN_JOAQUIN"]
["140723","LIMA","YAUYOS","SAN PEDRO DE PILAS",null,null,"23.SAN PEDRO DE PILAS",null,"23.SAN_PEDRO_DE_PILAS"]
["140724","LIMA","YAUYOS","TANTA",null,null,"24.TANTA",null,"24.TANTA"]
["140725","LIMA","YAUYOS","TAURIPAMPA",null,null,"25.TAURIPAMPA",null,"25.TAURIPAMPA"]
["140726","LIMA","YAUYOS","TUPE",null,null,"26.TUPE",null,"26.TUPE"]
["140727","LIMA","YAUYOS","TOMAS",null,null,"27.TOMAS",null,"27.TOMAS"]
["140728","LIMA","YAUYOS","VIÑAC",null,null,"28.VIÑAC",null,"28.VIÑAC"]
["140729","LIMA","YAUYOS","VITIS",null,null,"29.VITIS",null,"29.VITIS"]
["140730","LIMA","YAUYOS","HONGOS",null,null,"30.HONGOS",null,"30.HONGOS"]
["140731","LIMA","YAUYOS","MADEAN",null,null,"31.MADEAN",null,"31.MADEAN"]
["140732","LIMA","YAUYOS","PUTINZA",null,null,"32.PUTINZA",null,"32.PUTINZA"]
["140733","LIMA","YAUYOS","CATAHUASI",null,null,"33.CATAHUASI",null,"33.CATAHUASI"]
["140801","LIMA","HUARAL","HUARAL",null,null,"01.HUARAL",null,"01.HUARAL"]
["140802","LIMA","HUARAL","ATAVILLOS ALTO",null,null,"02.ATAVILLOS ALTO",null,"02.ATAVILLOS_ALTO"]
["140803","LIMA","HUARAL","ATAVILLOS BAJO",null,null,"03.ATAVILLOS BAJO",null,"03.ATAVILLOS_BAJO"]
["140804","LIMA","HUARAL","AUCALLAMA",null,null,"04.AUCALLAMA",null,"04.AUCALLAMA"]
["140805","LIMA","HUARAL","CHANCAY",null,null,"05.CHANCAY",null,"05.CHANCAY"]
["140806","LIMA","HUARAL","IHUARI",null,null,"06.IHUARI",null,"06.IHUARI"]
["140807","LIMA","HUARAL","LAMPIAN",null,null,"07.LAMPIAN",null,"07.LAMPIAN"]
["140808","LIMA","HUARAL","PACARAOS",null,null,"08.PACARAOS",null,"08.PACARAOS"]
["140809","LIMA","HUARAL","SAN MIGUEL DE ACOS",null,null,"09.SAN MIGUEL DE ACOS",null,"09.SAN_MIGUEL_DE_ACOS"]
["140810","LIMA","HUARAL","VEINTISIETE DE NOVIEMBRE",null,null,"10.VEINTISIETE DE NOVIEMBRE",null,"10.VEINTISIETE_DE_NOVIEMBRE"]
["140811","LIMA","HUARAL","SANTA CRUZ DE ANDAMARCA",null,null,"11.SANTA CRUZ DE ANDAMARCA",null,"11.SANTA_CRUZ_DE_ANDAMARCA"]
["140812","LIMA","HUARAL","SUMBILCA",null,null,"12.SUMBILCA",null,"12.SUMBILCA"]
["140901","LIMA","BARRANCA","BARRANCA",null,null,"01.BARRANCA",null,"01.BARRANCA"]
["140902","LIMA","BARRANCA","PARAMONGA",null,null,"02.PARAMONGA",null,"02.PARAMONGA"]
["140903","LIMA","BARRANCA","PATIVILCA",null,null,"03.PATIVILCA",null,"03.PATIVILCA"]
["140904","LIMA","BARRANCA","SUPE",null,null,"04.SUPE",null,"04.SUPE"]
["140905","LIMA","BARRANCA","SUPE PUERTO",null,null,{"$f":"CONCATENATE(MID(A1411,5,2),\".\",D1411)","v":"05.SUPE PUERTO"},null,"05.SUPE_PUERTO"]
["141001","LIMA","OYON","OYON",null,null,"01.OYON",null,"01.OYON"]
["141002","LIMA","OYON","NAVAN",null,null,"02.NAVAN",null,"02.NAVAN"]
["141003","LIMA","OYON","CAUJUL",null,null,"03.CAUJUL",null,"03.CAUJUL"]
["141004","LIMA","OYON","ANDAJES",null,null,"04.ANDAJES",null,"04.ANDAJES"]
["141005","LIMA","OYON","PACHANGARA",null,null,"05.PACHANGARA",null,"05.PACHANGARA"]
["141006","LIMA","OYON","COCHAMARCA",null,null,"06.COCHAMARCA",null,"06.COCHAMARCA"]
["150101","LORETO","MAYNAS","IQUITOS",null,null,"01.IQUITOS",null,"01.IQUITOS"]
["150102","LORETO","MAYNAS","ALTO NANAY",null,null,"02.ALTO NANAY",null,"02.ALTO_NANAY"]
["150103","LORETO","MAYNAS","FERNANDO LORES",null,null,"03.FERNANDO LORES",null,"03.FERNANDO_LORES"]
["150104","LORETO","MAYNAS","LAS AMAZONAS",null,null,"04.LAS AMAZONAS",null,"04.LAS_AMAZONAS"]
["150105","LORETO","MAYNAS","MAZAN",null,null,"05.MAZAN",null,"05.MAZAN"]
["150106","LORETO","MAYNAS","NAPO",null,null,"06.NAPO",null,"06.NAPO"]
["150107","LORETO","MAYNAS","PUTUMAYO",null,null,"07.PUTUMAYO",null,"07.PUTUMAYO"]
["150108","LORETO","MAYNAS","TORRES CAUSANA",null,null,"08.TORRES CAUSANA",null,"08.TORRES_CAUSANA"]
["150110","LORETO","MAYNAS","INDIANA",null,null,"10.INDIANA",null,"10.INDIANA"]
["150111","LORETO","MAYNAS","PUNCHANA",null,null,"11.PUNCHANA",null,"11.PUNCHANA"]
["150112","LORETO","MAYNAS","BELEN",null,null,"12.BELEN",null,"12.BELEN"]
["150113","LORETO","MAYNAS","SAN JUAN BAUTISTA",null,null,"13.SAN JUAN BAUTISTA",null,"13.SAN_JUAN_BAUTISTA"]
["150114","LORETO","MAYNAS","TENIENTE MANUEL CLAVERO",null,null,"14.TENIENTE MANUEL CLAVERO",null,"14.TENIENTE_MANUEL_CLAVERO"]
["150201","LORETO","ALTO AMAZONAS","YURIMAGUAS",null,null,"01.YURIMAGUAS",null,"01.YURIMAGUAS"]
["150202","LORETO","ALTO AMAZONAS","BALSAPUERTO",null,null,"02.BALSAPUERTO",null,"02.BALSAPUERTO"]
["150205","LORETO","ALTO AMAZONAS","JEBEROS",null,null,"05.JEBEROS",null,"05.JEBEROS"]
["150206","LORETO","ALTO AMAZONAS","LAGUNAS",null,null,"06.LAGUNAS",null,"06.LAGUNAS"]
["150210","LORETO","ALTO AMAZONAS","SANTA CRUZ",null,null,"10.SANTA CRUZ",null,"10.SANTA_CRUZ"]
["150211","LORETO","ALTO AMAZONAS","TENIENTE CESAR LOPEZ ROJAS",null,null,"11.TENIENTE CESAR LOPEZ ROJAS",null,"11.TENIENTE_CESAR_LOPEZ_ROJAS"]
["150301","LORETO","LORETO","NAUTA",null,null,"01.NAUTA",null,"01.NAUTA"]
["150302","LORETO","LORETO","PARINARI",null,null,"02.PARINARI",null,"02.PARINARI"]
["150303","LORETO","LORETO","TIGRE",null,null,"03.TIGRE",null,"03.TIGRE"]
["150304","LORETO","LORETO","URARINAS",null,null,"04.URARINAS",null,"04.URARINAS"]
["150305","LORETO","LORETO","TROMPETEROS",null,null,"05.TROMPETEROS",null,"05.TROMPETEROS"]
["150401","LORETO","REQUENA","REQUENA",null,null,"01.REQUENA",null,"01.REQUENA"]
["150402","LORETO","REQUENA","ALTO TAPICHE",null,null,"02.ALTO TAPICHE",null,"02.ALTO_TAPICHE"]
["150403","LORETO","REQUENA","CAPELO",null,null,"03.CAPELO",null,"03.CAPELO"]
["150404","LORETO","REQUENA","EMILIO SAN MARTIN",null,null,"04.EMILIO SAN MARTIN",null,"04.EMILIO_SAN_MARTIN"]
["150405","LORETO","REQUENA","MAQUIA",null,null,"05.MAQUIA",null,"05.MAQUIA"]
["150406","LORETO","REQUENA","PUINAHUA",null,null,"06.PUINAHUA",null,"06.PUINAHUA"]
["150407","LORETO","REQUENA","SAQUENA",null,null,"07.SAQUENA",null,"07.SAQUENA"]
["150408","LORETO","REQUENA","SOPLIN",null,null,"08.SOPLIN",null,"08.SOPLIN"]
["150409","LORETO","REQUENA","TAPICHE",null,null,"09.TAPICHE",null,"09.TAPICHE"]
["150410","LORETO","REQUENA","JENARO HERRERA",null,null,"10.JENARO HERRERA",null,"10.JENARO_HERRERA"]
["150411","LORETO","REQUENA","YAQUERANA",null,null,"11.YAQUERANA",null,"11.YAQUERANA"]
["150501","LORETO","UCAYALI","CONTAMANA",null,null,"01.CONTAMANA",null,"01.CONTAMANA"]
["150502","LORETO","UCAYALI","VARGAS GUERRA",null,null,"02.VARGAS GUERRA",null,"02.VARGAS_GUERRA"]
["150503","LORETO","UCAYALI","PADRE MARQUEZ",null,null,"03.PADRE MARQUEZ",null,"03.PADRE_MARQUEZ"]
["150504","LORETO","UCAYALI","PAMPA HERMOSA",null,null,"04.PAMPA HERMOSA",null,"04.PAMPA_HERMOSA"]
["150505","LORETO","UCAYALI","SARAYACU",null,null,"05.SARAYACU",null,"05.SARAYACU"]
["150506","LORETO","UCAYALI","INAHUAYA",null,null,"06.INAHUAYA",null,"06.INAHUAYA"]
["150601","LORETO","MARISCAL RAMON CASTILLA","RAMON CASTILLA",null,null,"01.RAMON CASTILLA",null,"01.RAMON_CASTILLA"]
["150602","LORETO","MARISCAL RAMON CASTILLA","PEBAS",null,null,"02.PEBAS",null,"02.PEBAS"]
["150603","LORETO","MARISCAL RAMON CASTILLA","YAVARI",null,null,"03.YAVARI",null,"03.YAVARI"]
["150604","LORETO","MARISCAL RAMON CASTILLA","SAN PABLO",null,null,"04.SAN PABLO",null,"04.SAN_PABLO"]
["150701","LORETO","DATEM DEL MARAÑON","BARRANCA",null,null,"01.BARRANCA",null,"01.BARRANCA"]
["150702","LORETO","DATEM DEL MARAÑON","ANDOAS",null,null,"02.ANDOAS",null,"02.ANDOAS"]
["150703","LORETO","DATEM DEL MARAÑON","CAHUAPANAS",null,null,"03.CAHUAPANAS",null,"03.CAHUAPANAS"]
["150704","LORETO","DATEM DEL MARAÑON","MANSERICHE",null,null,"04.MANSERICHE",null,"04.MANSERICHE"]
["150705","LORETO","DATEM DEL MARAÑON","MORONA",null,null,"05.MORONA",null,"05.MORONA"]
["150706","LORETO","DATEM DEL MARAÑON","PASTAZA",null,null,"06.PASTAZA",null,"06.PASTAZA"]
["160101","MADRE DE DIOS","TAMBOPATA","TAMBOPATA",null,null,"01.TAMBOPATA",null,"01.TAMBOPATA"]
["160102","MADRE DE DIOS","TAMBOPATA","INAMBARI",null,null,"02.INAMBARI",null,"02.INAMBARI"]
["160103","MADRE DE DIOS","TAMBOPATA","LAS PIEDRAS",null,null,"03.LAS PIEDRAS",null,"03.LAS_PIEDRAS"]
["160104","MADRE DE DIOS","TAMBOPATA","LABERINTO",null,null,"04.LABERINTO",null,"04.LABERINTO"]
["160201","MADRE DE DIOS","MANU","MANU",null,null,"01.MANU",null,"01.MANU"]
["160202","MADRE DE DIOS","MANU","FITZCARRALD",null,null,"02.FITZCARRALD",null,"02.FITZCARRALD"]
["160203","MADRE DE DIOS","MANU","MADRE DE DIOS",null,null,{"$f":"CONCATENATE(MID(A1475,5,2),\".\",D1475)","v":"03.MADRE DE DIOS"},null,"03.MADRE_DE_DIOS"]
["160204","MADRE DE DIOS","MANU","HUEPETUHE",null,null,"04.HUEPETUHE",null,"04.HUEPETUHE"]
["160301","MADRE DE DIOS","TAHUAMANU","IÑAPARI",null,null,"01.IÑAPARI",null,"01.IÑAPARI"]
["160302","MADRE DE DIOS","TAHUAMANU","IBERIA",null,null,"02.IBERIA",null,"02.IBERIA"]
["160303","MADRE DE DIOS","TAHUAMANU","TAHUAMANU",null,null,"03.TAHUAMANU",null,"03.TAHUAMANU"]
["170101","MOQUEGUA","MARISCAL NIETO","MOQUEGUA",null,null,"01.MOQUEGUA",null,"01.MOQUEGUA"]
["170102","MOQUEGUA","MARISCAL NIETO","CARUMAS",null,null,"02.CARUMAS",null,"02.CARUMAS"]
["170103","MOQUEGUA","MARISCAL NIETO","CUCHUMBAYA",null,null,"03.CUCHUMBAYA",null,"03.CUCHUMBAYA"]
["170104","MOQUEGUA","MARISCAL NIETO","SAN CRISTOBAL",null,null,"04.SAN CRISTOBAL",null,"04.SAN_CRISTOBAL"]
["170105","MOQUEGUA","MARISCAL NIETO","TORATA",null,null,"05.TORATA",null,"05.TORATA"]
["170106","MOQUEGUA","MARISCAL NIETO","SAMEGUA",null,null,"06.SAMEGUA",null,"06.SAMEGUA"]
["170201","MOQUEGUA","GENERAL SANCHEZ CERRO","OMATE",null,null,"01.OMATE",null,"01.OMATE"]
["170202","MOQUEGUA","GENERAL SANCHEZ CERRO","COALAQUE",null,null,"02.COALAQUE",null,"02.COALAQUE"]
["170203","MOQUEGUA","GENERAL SANCHEZ CERRO","CHOJATA",null,null,"03.CHOJATA",null,"03.CHOJATA"]
["170204","MOQUEGUA","GENERAL SANCHEZ CERRO","ICHUÑA",null,null,"04.ICHUÑA",null,"04.ICHUÑA"]
["170205","MOQUEGUA","GENERAL SANCHEZ CERRO","LA CAPILLA",null,null,"05.LA CAPILLA",null,"05.LA_CAPILLA"]
["170206","MOQUEGUA","GENERAL SANCHEZ CERRO","LLOQUE",null,null,"06.LLOQUE",null,"06.LLOQUE"]
["170207","MOQUEGUA","GENERAL SANCHEZ CERRO","MATALAQUE",null,null,"07.MATALAQUE",null,"07.MATALAQUE"]
["170208","MOQUEGUA","GENERAL SANCHEZ CERRO","PUQUINA",null,null,"08.PUQUINA",null,"08.PUQUINA"]
["170209","MOQUEGUA","GENERAL SANCHEZ CERRO","QUINISTAQUILLAS",null,null,"09.QUINISTAQUILLAS",null,"09.QUINISTAQUILLAS"]
["170210","MOQUEGUA","GENERAL SANCHEZ CERRO","UBINAS",null,null,"10.UBINAS",null,"10.UBINAS"]
["170211","MOQUEGUA","GENERAL SANCHEZ CERRO","YUNGA",null,null,"11.YUNGA",null,"11.YUNGA"]
["170301","MOQUEGUA","ILO","ILO",null,null,"01.ILO",null,"01.ILO"]
["170302","MOQUEGUA","ILO","EL ALGARROBAL",null,null,"02.EL ALGARROBAL",null,"02.EL_ALGARROBAL"]
["170303","MOQUEGUA","ILO","PACOCHA",null,null,"03.PACOCHA",null,"03.PACOCHA"]
["180101","PASCO","PASCO","CHAUPIMARCA",null,null,"01.CHAUPIMARCA",null,"01.CHAUPIMARCA"]
["180103","PASCO","PASCO","HUACHON",null,null,"03.HUACHON",null,"03.HUACHON"]
["180104","PASCO","PASCO","HUARIACA",null,null,"04.HUARIACA",null,"04.HUARIACA"]
["180105","PASCO","PASCO","HUAYLLAY",null,null,"05.HUAYLLAY",null,"05.HUAYLLAY"]
["180106","PASCO","PASCO","NINACACA",null,null,"06.NINACACA",null,"06.NINACACA"]
["180107","PASCO","PASCO","PALLANCHACRA",null,null,"07.PALLANCHACRA",null,"07.PALLANCHACRA"]
["180108","PASCO","PASCO","PAUCARTAMBO",null,null,"08.PAUCARTAMBO",null,"08.PAUCARTAMBO"]
["180109","PASCO","PASCO","SAN FCO DE ASIS DE YARUSYACAN",null,null,"09.SAN FCO DE ASIS DE YARUSYACAN",null,"09.SAN_FCO_DE_ASIS_DE_YARUSYACAN"]
["180110","PASCO","PASCO","SIMON BOLIVAR",null,null,"10.SIMON BOLIVAR",null,"10.SIMON_BOLIVAR"]
["180111","PASCO","PASCO","TICLACAYAN",null,null,"11.TICLACAYAN",null,"11.TICLACAYAN"]
["180112","PASCO","PASCO","TINYAHUARCO",null,null,"12.TINYAHUARCO",null,"12.TINYAHUARCO"]
["180113","PASCO","PASCO","VICCO",null,null,"13.VICCO",null,"13.VICCO"]
["180114","PASCO","PASCO","YANACANCHA",null,null,"14.YANACANCHA",null,"14.YANACANCHA"]
["180201","PASCO","DANIEL ALCIDES CARRION","YANAHUANCA",null,null,"01.YANAHUANCA",null,"01.YANAHUANCA"]
["180202","PASCO","DANIEL ALCIDES CARRION","CHACAYAN",null,null,"02.CHACAYAN",null,"02.CHACAYAN"]
["180203","PASCO","DANIEL ALCIDES CARRION","GOYLLARISQUIZGA",null,null,"03.GOYLLARISQUIZGA",null,"03.GOYLLARISQUIZGA"]
["180204","PASCO","DANIEL ALCIDES CARRION","PAUCAR",null,null,"04.PAUCAR",null,"04.PAUCAR"]
["180205","PASCO","DANIEL ALCIDES CARRION","SAN PEDRO DE PILLAO",null,null,"05.SAN PEDRO DE PILLAO",null,"05.SAN_PEDRO_DE_PILLAO"]
["180206","PASCO","DANIEL ALCIDES CARRION","SANTA ANA DE TUSI",null,null,"06.SANTA ANA DE TUSI",null,"06.SANTA_ANA_DE_TUSI"]
["180207","PASCO","DANIEL ALCIDES CARRION","TAPUC",null,null,"07.TAPUC",null,"07.TAPUC"]
["180208","PASCO","DANIEL ALCIDES CARRION","VILCABAMBA",null,null,"08.VILCABAMBA",null,"08.VILCABAMBA"]
["180301","PASCO","OXAPAMPA","OXAPAMPA",null,null,"01.OXAPAMPA",null,"01.OXAPAMPA"]
["180302","PASCO","OXAPAMPA","CHONTABAMBA",null,null,"02.CHONTABAMBA",null,"02.CHONTABAMBA"]
["180303","PASCO","OXAPAMPA","HUANCABAMBA",null,null,"03.HUANCABAMBA",null,"03.HUANCABAMBA"]
["180304","PASCO","OXAPAMPA","PUERTO BERMUDEZ",null,null,"04.PUERTO BERMUDEZ",null,"04.PUERTO_BERMUDEZ"]
["180305","PASCO","OXAPAMPA","VILLA RICA",null,null,"05.VILLA RICA",null,"05.VILLA_RICA"]
["180306","PASCO","OXAPAMPA","POZUZO",null,null,"06.POZUZO",null,"06.POZUZO"]
["180307","PASCO","OXAPAMPA","PALCAZU",null,null,"07.PALCAZU",null,"07.PALCAZU"]
["180308","PASCO","OXAPAMPA","CONSTITUCION",null,null,"08.CONSTITUCION",null,"08.CONSTITUCION"]
["190101","PIURA","PIURA","PIURA",null,null,"01.PIURA",null,"01.PIURA"]
["190103","PIURA","PIURA","CASTILLA",null,null,"03.CASTILLA",null,"03.CASTILLA"]
["190104","PIURA","PIURA","CATACAOS",null,null,"04.CATACAOS",null,"04.CATACAOS"]
["190105","PIURA","PIURA","LA ARENA",null,null,"05.LA ARENA",null,"05.LA_ARENA"]
["190106","PIURA","PIURA","LA UNION",null,null,"06.LA UNION",null,"06.LA_UNION"]
["190107","PIURA","PIURA","LAS LOMAS",null,null,"07.LAS LOMAS",null,"07.LAS_LOMAS"]
["190109","PIURA","PIURA","TAMBO GRANDE",null,null,"09.TAMBO GRANDE",null,"09.TAMBO_GRANDE"]
["190113","PIURA","PIURA","CURA MORI",null,null,"13.CURA MORI",null,"13.CURA_MORI"]
["190114","PIURA","PIURA","EL TALLAN",null,null,"14.EL TALLAN",null,"14.EL_TALLAN"]
["190201","PIURA","AYABACA","AYABACA",null,null,"01.AYABACA",null,"01.AYABACA"]
["190202","PIURA","AYABACA","FRIAS",null,null,{"$f":"CONCATENATE(MID(A1539,5,2),\".\",D1539)","v":"02.FRIAS"},null,"02.FRIAS"]
["190203","PIURA","AYABACA","LAGUNAS",null,null,"03.LAGUNAS",null,"03.LAGUNAS"]
["190204","PIURA","AYABACA","MONTERO",null,null,"04.MONTERO",null,"04.MONTERO"]
["190205","PIURA","AYABACA","PACAIPAMPA",null,null,"05.PACAIPAMPA",null,"05.PACAIPAMPA"]
["190206","PIURA","AYABACA","SAPILLICA",null,null,"06.SAPILLICA",null,"06.SAPILLICA"]
["190207","PIURA","AYABACA","SICCHEZ",null,null,"07.SICCHEZ",null,"07.SICCHEZ"]
["190208","PIURA","AYABACA","SUYO",null,null,"08.SUYO",null,"08.SUYO"]
["190209","PIURA","AYABACA","JILILI",null,null,"09.JILILI",null,"09.JILILI"]
["190210","PIURA","AYABACA","PAIMAS",null,null,"10.PAIMAS",null,"10.PAIMAS"]
["190301","PIURA","HUANCABAMBA","HUANCABAMBA",null,null,"01.HUANCABAMBA",null,"01.HUANCABAMBA"]
["190302","PIURA","HUANCABAMBA","CANCHAQUE",null,null,"02.CANCHAQUE",null,"02.CANCHAQUE"]
["190303","PIURA","HUANCABAMBA","HUARMACA",null,null,"03.HUARMACA",null,"03.HUARMACA"]
["190304","PIURA","HUANCABAMBA","SONDOR",null,null,"04.SONDOR",null,"04.SONDOR"]
["190305","PIURA","HUANCABAMBA","SONDORILLO",null,null,"05.SONDORILLO",null,"05.SONDORILLO"]
["190306","PIURA","HUANCABAMBA","EL CARMEN DE LA FRONTERA",null,null,"06.EL CARMEN DE LA FRONTERA",null,"06.EL_CARMEN_DE_LA_FRONTERA"]
["190307","PIURA","HUANCABAMBA","SAN MIGUEL DE EL FAIQUE",null,null,"07.SAN MIGUEL DE EL FAIQUE",null,"07.SAN_MIGUEL_DE_EL_FAIQUE"]
["190308","PIURA","HUANCABAMBA","LALAQUIZ",null,null,"08.LALAQUIZ",null,"08.LALAQUIZ"]
["190401","PIURA","MORROPON","CHULUCANAS",null,null,"01.CHULUCANAS",null,"01.CHULUCANAS"]
["190402","PIURA","MORROPON","BUENOS AIRES",null,null,"02.BUENOS AIRES",null,"02.BUENOS_AIRES"]
["190403","PIURA","MORROPON","CHALACO",null,null,"03.CHALACO",null,"03.CHALACO"]
["190404","PIURA","MORROPON","MORROPON",null,null,"04.MORROPON",null,"04.MORROPON"]
["190405","PIURA","MORROPON","SALITRAL",null,null,"05.SALITRAL",null,"05.SALITRAL"]
["190406","PIURA","MORROPON","SANTA CATALINA DE MOSSA",null,null,"06.SANTA CATALINA DE MOSSA",null,"06.SANTA_CATALINA_DE_MOSSA"]
["190407","PIURA","MORROPON","SANTO DOMINGO",null,null,"07.SANTO DOMINGO",null,"07.SANTO_DOMINGO"]
["190408","PIURA","MORROPON","LA MATANZA",null,null,"08.LA MATANZA",null,"08.LA_MATANZA"]
["190409","PIURA","MORROPON","YAMANGO",null,null,"09.YAMANGO",null,"09.YAMANGO"]
["190410","PIURA","MORROPON","SAN JUAN DE BIGOTE",null,null,"10.SAN JUAN DE BIGOTE",null,"10.SAN_JUAN_DE_BIGOTE"]
["190501","PIURA","PAITA","PAITA",null,null,"01.PAITA",null,"01.PAITA"]
["190502","PIURA","PAITA","AMOTAPE",null,null,"02.AMOTAPE",null,"02.AMOTAPE"]
["190503","PIURA","PAITA","ARENAL",null,null,"03.ARENAL",null,"03.ARENAL"]
["190504","PIURA","PAITA","LA HUACA",null,null,"04.LA HUACA",null,"04.LA_HUACA"]
["190505","PIURA","PAITA","COLAN",null,null,"05.COLAN",null,"05.COLAN"]
["190506","PIURA","PAITA","TAMARINDO",null,null,"06.TAMARINDO",null,"06.TAMARINDO"]
["190507","PIURA","PAITA","VICHAYAL",null,null,"07.VICHAYAL",null,"07.VICHAYAL"]
["190601","PIURA","SULLANA","SULLANA",null,null,"01.SULLANA",null,"01.SULLANA"]
["190602","PIURA","SULLANA","BELLAVISTA",null,null,"02.BELLAVISTA",null,"02.BELLAVISTA"]
["190603","PIURA","SULLANA","LANCONES",null,null,"03.LANCONES",null,"03.LANCONES"]
["190604","PIURA","SULLANA","MARCAVELICA",null,null,"04.MARCAVELICA",null,"04.MARCAVELICA"]
["190605","PIURA","SULLANA","MIGUEL CHECA",null,null,"05.MIGUEL CHECA",null,"05.MIGUEL_CHECA"]
["190606","PIURA","SULLANA","QUERECOTILLO",null,null,"06.QUERECOTILLO",null,"06.QUERECOTILLO"]
["190607","PIURA","SULLANA","SALITRAL",null,null,"07.SALITRAL",null,"07.SALITRAL"]
["190608","PIURA","SULLANA","IGNACIO ESCUDERO",null,null,"08.IGNACIO ESCUDERO",null,"08.IGNACIO_ESCUDERO"]
["190701","PIURA","TALARA","PARIÑAS",null,null,"01.PARIÑAS",null,"01.PARIÑAS"]
["190702","PIURA","TALARA","EL ALTO",null,null,"02.EL ALTO",null,"02.EL_ALTO"]
["190703","PIURA","TALARA","LA BREA",null,null,"03.LA BREA",null,"03.LA_BREA"]
["190704","PIURA","TALARA","LOBITOS",null,null,"04.LOBITOS",null,"04.LOBITOS"]
["190705","PIURA","TALARA","MANCORA",null,null,"05.MANCORA",null,"05.MANCORA"]
["190706","PIURA","TALARA","LOS ORGANOS",null,null,"06.LOS ORGANOS",null,"06.LOS_ORGANOS"]
["190801","PIURA","SECHURA","SECHURA",null,null,"01.SECHURA",null,"01.SECHURA"]
["190802","PIURA","SECHURA","VICE",null,null,"02.VICE",null,"02.VICE"]
["190803","PIURA","SECHURA","BERNAL",null,null,"03.BERNAL",null,"03.BERNAL"]
["190804","PIURA","SECHURA","BELLAVISTA DE LA UNION",null,null,"04.BELLAVISTA DE LA UNION",null,"04.BELLAVISTA_DE_LA_UNION"]
["190805","PIURA","SECHURA","CRISTO NOS VALGA",null,null,"05.CRISTO NOS VALGA",null,"05.CRISTO_NOS_VALGA"]
["190806","PIURA","SECHURA","RINCONADA-LLICUAR",null,null,"06.RINCONADA-LLICUAR",null,"06.RINCONADA-LLICUAR"]
["200101","PUNO","PUNO","PUNO",null,null,"01.PUNO",null,"01.PUNO"]
["200102","PUNO","PUNO","ACORA",null,null,"02.ACORA",null,"02.ACORA"]
["200103","PUNO","PUNO","ATUNCOLLA",null,null,"03.ATUNCOLLA",null,"03.ATUNCOLLA"]
["200104","PUNO","PUNO","CAPACHICA",null,null,"04.CAPACHICA",null,"04.CAPACHICA"]
["200105","PUNO","PUNO","COATA",null,null,"05.COATA",null,"05.COATA"]
["200106","PUNO","PUNO","CHUCUITO",null,null,"06.CHUCUITO",null,"06.CHUCUITO"]
["200107","PUNO","PUNO","HUATA",null,null,"07.HUATA",null,"07.HUATA"]
["200108","PUNO","PUNO","MAÑAZO",null,null,"08.MAÑAZO",null,"08.MAÑAZO"]
["200109","PUNO","PUNO","PAUCARCOLLA",null,null,"09.PAUCARCOLLA",null,"09.PAUCARCOLLA"]
["200110","PUNO","PUNO","PICHACANI",null,null,"10.PICHACANI",null,"10.PICHACANI"]
["200111","PUNO","PUNO","SAN ANTONIO",null,null,{"$f":"CONCATENATE(MID(A1603,5,2),\".\",D1603)","v":"11.SAN ANTONIO"},null,"11.SAN_ANTONIO"]
["200112","PUNO","PUNO","TIQUILLACA",null,null,"12.TIQUILLACA",null,"12.TIQUILLACA"]
["200113","PUNO","PUNO","VILQUE",null,null,"13.VILQUE",null,"13.VILQUE"]
["200114","PUNO","PUNO","PLATERIA",null,null,"14.PLATERIA",null,"14.PLATERIA"]
["200115","PUNO","PUNO","AMANTANI",null,null,"15.AMANTANI",null,"15.AMANTANI"]
["200201","PUNO","AZANGARO","AZANGARO",null,null,"01.AZANGARO",null,"01.AZANGARO"]
["200202","PUNO","AZANGARO","ACHAYA",null,null,"02.ACHAYA",null,"02.ACHAYA"]
["200203","PUNO","AZANGARO","ARAPA",null,null,"03.ARAPA",null,"03.ARAPA"]
["200204","PUNO","AZANGARO","ASILLO",null,null,"04.ASILLO",null,"04.ASILLO"]
["200205","PUNO","AZANGARO","CAMINACA",null,null,"05.CAMINACA",null,"05.CAMINACA"]
["200206","PUNO","AZANGARO","CHUPA",null,null,"06.CHUPA",null,"06.CHUPA"]
["200207","PUNO","AZANGARO","JOSE DOMINGO CHOQUEHUANCA",null,null,"07.JOSE DOMINGO CHOQUEHUANCA",null,"07.JOSE_DOMINGO_CHOQUEHUANCA"]
["200208","PUNO","AZANGARO","MUÑANI",null,null,"08.MUÑANI",null,"08.MUÑANI"]
["200210","PUNO","AZANGARO","POTONI",null,null,"10.POTONI",null,"10.POTONI"]
["200212","PUNO","AZANGARO","SAMAN",null,null,"12.SAMAN",null,"12.SAMAN"]
["200213","PUNO","AZANGARO","SAN ANTON",null,null,"13.SAN ANTON",null,"13.SAN_ANTON"]
["200214","PUNO","AZANGARO","SAN JOSE",null,null,"14.SAN JOSE",null,"14.SAN_JOSE"]
["200215","PUNO","AZANGARO","SAN JUAN DE SALINAS",null,null,"15.SAN JUAN DE SALINAS",null,"15.SAN_JUAN_DE_SALINAS"]
["200216","PUNO","AZANGARO","SANTIAGO DE PUPUJA",null,null,"16.SANTIAGO DE PUPUJA",null,"16.SANTIAGO_DE_PUPUJA"]
["200217","PUNO","AZANGARO","TIRAPATA",null,null,"17.TIRAPATA",null,"17.TIRAPATA"]
["200301","PUNO","CARABAYA","MACUSANI",null,null,"01.MACUSANI",null,"01.MACUSANI"]
["200302","PUNO","CARABAYA","AJOYANI",null,null,"02.AJOYANI",null,"02.AJOYANI"]
["200303","PUNO","CARABAYA","AYAPATA",null,null,"03.AYAPATA",null,"03.AYAPATA"]
["200304","PUNO","CARABAYA","COASA",null,null,"04.COASA",null,"04.COASA"]
["200305","PUNO","CARABAYA","CORANI",null,null,"05.CORANI",null,"05.CORANI"]
["200306","PUNO","CARABAYA","CRUCERO",null,null,"06.CRUCERO",null,"06.CRUCERO"]
["200307","PUNO","CARABAYA","ITUATA",null,null,"07.ITUATA",null,"07.ITUATA"]
["200308","PUNO","CARABAYA","OLLACHEA",null,null,"08.OLLACHEA",null,"08.OLLACHEA"]
["200309","PUNO","CARABAYA","SAN GABAN",null,null,"09.SAN GABAN",null,"09.SAN_GABAN"]
["200310","PUNO","CARABAYA","USICAYOS",null,null,"10.USICAYOS",null,"10.USICAYOS"]
["200401","PUNO","CHUCUITO","JULI",null,null,"01.JULI",null,"01.JULI"]
["200402","PUNO","CHUCUITO","DESAGUADERO",null,null,"02.DESAGUADERO",null,"02.DESAGUADERO"]
["200403","PUNO","CHUCUITO","HUACULLANI",null,null,"03.HUACULLANI",null,"03.HUACULLANI"]
["200406","PUNO","CHUCUITO","PISACOMA",null,null,"06.PISACOMA",null,"06.PISACOMA"]
["200407","PUNO","CHUCUITO","POMATA",null,null,"07.POMATA",null,"07.POMATA"]
["200410","PUNO","CHUCUITO","ZEPITA",null,null,"10.ZEPITA",null,"10.ZEPITA"]
["200412","PUNO","CHUCUITO","KELLUYO",null,null,"12.KELLUYO",null,"12.KELLUYO"]
["200501","PUNO","HUANCANE","HUANCANE",null,null,"01.HUANCANE",null,"01.HUANCANE"]
["200502","PUNO","HUANCANE","COJATA",null,null,"02.COJATA",null,"02.COJATA"]
["200504","PUNO","HUANCANE","INCHUPALLA",null,null,"04.INCHUPALLA",null,"04.INCHUPALLA"]
["200506","PUNO","HUANCANE","PUSI",null,null,"06.PUSI",null,"06.PUSI"]
["200507","PUNO","HUANCANE","ROSASPATA",null,null,"07.ROSASPATA",null,"07.ROSASPATA"]
["200508","PUNO","HUANCANE","TARACO",null,null,"08.TARACO",null,"08.TARACO"]
["200509","PUNO","HUANCANE","VILQUE CHICO",null,null,"09.VILQUE CHICO",null,"09.VILQUE_CHICO"]
["200511","PUNO","HUANCANE","HUATASANI",null,null,"11.HUATASANI",null,"11.HUATASANI"]
["200601","PUNO","LAMPA","LAMPA",null,null,"01.LAMPA",null,"01.LAMPA"]
["200602","PUNO","LAMPA","CABANILLA",null,null,"02.CABANILLA",null,"02.CABANILLA"]
["200603","PUNO","LAMPA","CALAPUJA",null,null,"03.CALAPUJA",null,"03.CALAPUJA"]
["200604","PUNO","LAMPA","NICASIO",null,null,"04.NICASIO",null,"04.NICASIO"]
["200605","PUNO","LAMPA","OCUVIRI",null,null,"05.OCUVIRI",null,"05.OCUVIRI"]
["200606","PUNO","LAMPA","PALCA",null,null,"06.PALCA",null,"06.PALCA"]
["200607","PUNO","LAMPA","PARATIA",null,null,"07.PARATIA",null,"07.PARATIA"]
["200608","PUNO","LAMPA","PUCARA",null,null,"08.PUCARA",null,"08.PUCARA"]
["200609","PUNO","LAMPA","SANTA LUCIA",null,null,"09.SANTA LUCIA",null,"09.SANTA_LUCIA"]
["200610","PUNO","LAMPA","VILAVILA",null,null,"10.VILAVILA",null,"10.VILAVILA"]
["200701","PUNO","MELGAR","AYAVIRI",null,null,"01.AYAVIRI",null,"01.AYAVIRI"]
["200702","PUNO","MELGAR","ANTAUTA",null,null,"02.ANTAUTA",null,"02.ANTAUTA"]
["200703","PUNO","MELGAR","CUPI",null,null,"03.CUPI",null,"03.CUPI"]
["200704","PUNO","MELGAR","LLALLI",null,null,"04.LLALLI",null,"04.LLALLI"]
["200705","PUNO","MELGAR","MACARI",null,null,"05.MACARI",null,"05.MACARI"]
["200706","PUNO","MELGAR","NUÑOA",null,null,"06.NUÑOA",null,"06.NUÑOA"]
["200707","PUNO","MELGAR","ORURILLO",null,null,"07.ORURILLO",null,"07.ORURILLO"]
["200708","PUNO","MELGAR","SANTA ROSA",null,null,"08.SANTA ROSA",null,"08.SANTA_ROSA"]
["200709","PUNO","MELGAR","UMACHIRI",null,null,"09.UMACHIRI",null,"09.UMACHIRI"]
["200801","PUNO","SANDIA","SANDIA",null,null,{"$f":"CONCATENATE(MID(A1667,5,2),\".\",D1667)","v":"01.SANDIA"},null,"01.SANDIA"]
["200803","PUNO","SANDIA","CUYOCUYO",null,null,"03.CUYOCUYO",null,"03.CUYOCUYO"]
["200804","PUNO","SANDIA","LIMBANI",null,null,"04.LIMBANI",null,"04.LIMBANI"]
["200805","PUNO","SANDIA","PHARA",null,null,"05.PHARA",null,"05.PHARA"]
["200806","PUNO","SANDIA","PATAMBUCO",null,null,"06.PATAMBUCO",null,"06.PATAMBUCO"]
["200807","PUNO","SANDIA","QUIACA",null,null,"07.QUIACA",null,"07.QUIACA"]
["200808","PUNO","SANDIA","SAN JUAN DEL ORO",null,null,"08.SAN JUAN DEL ORO",null,"08.SAN_JUAN_DEL_ORO"]
["200810","PUNO","SANDIA","YANAHUAYA",null,null,"10.YANAHUAYA",null,"10.YANAHUAYA"]
["200811","PUNO","SANDIA","ALTO INAMBARI",null,null,"11.ALTO INAMBARI",null,"11.ALTO_INAMBARI"]
["200812","PUNO","SANDIA","SAN PEDRO DE PUTINA PUNCO",null,null,"12.SAN PEDRO DE PUTINA PUNCO",null,"12.SAN_PEDRO_DE_PUTINA_PUNCO"]
["200901","PUNO","SAN ROMAN","JULIACA",null,null,"01.JULIACA",null,"01.JULIACA"]
["200902","PUNO","SAN ROMAN","CABANA",null,null,"02.CABANA",null,"02.CABANA"]
["200903","PUNO","SAN ROMAN","CABANILLAS",null,null,"03.CABANILLAS",null,"03.CABANILLAS"]
["200904","PUNO","SAN ROMAN","CARACOTO",null,null,"04.CARACOTO",null,"04.CARACOTO"]
["201001","PUNO","YUNGUYO","YUNGUYO",null,null,"01.YUNGUYO",null,"01.YUNGUYO"]
["201002","PUNO","YUNGUYO","UNICACHI",null,null,"02.UNICACHI",null,"02.UNICACHI"]
["201003","PUNO","YUNGUYO","ANAPIA",null,null,"03.ANAPIA",null,"03.ANAPIA"]
["201004","PUNO","YUNGUYO","COPANI",null,null,"04.COPANI",null,"04.COPANI"]
["201005","PUNO","YUNGUYO","CUTURAPI",null,null,"05.CUTURAPI",null,"05.CUTURAPI"]
["201006","PUNO","YUNGUYO","OLLARAYA",null,null,"06.OLLARAYA",null,"06.OLLARAYA"]
["201007","PUNO","YUNGUYO","TINICACHI",null,null,"07.TINICACHI",null,"07.TINICACHI"]
["201101","PUNO","SAN ANTONIO DE PUTINA","PUTINA",null,null,"01.PUTINA",null,"01.PUTINA"]
["201102","PUNO","SAN ANTONIO DE PUTINA","PEDRO VILCA APAZA",null,null,"02.PEDRO VILCA APAZA",null,"02.PEDRO_VILCA_APAZA"]
["201103","PUNO","SAN ANTONIO DE PUTINA","QUILCAPUNCU",null,null,"03.QUILCAPUNCU",null,"03.QUILCAPUNCU"]
["201104","PUNO","SAN ANTONIO DE PUTINA","ANANEA",null,null,"04.ANANEA",null,"04.ANANEA"]
["201105","PUNO","SAN ANTONIO DE PUTINA","SINA",null,null,"05.SINA",null,"05.SINA"]
["201201","PUNO","EL COLLAO","ILAVE",null,null,"01.ILAVE",null,"01.ILAVE"]
["201202","PUNO","EL COLLAO","PILCUYO",null,null,"02.PILCUYO",null,"02.PILCUYO"]
["201203","PUNO","EL COLLAO","SANTA ROSA",null,null,"03.SANTA ROSA",null,"03.SANTA_ROSA"]
["201204","PUNO","EL COLLAO","CAPASO",null,null,"04.CAPASO",null,"04.CAPASO"]
["201205","PUNO","EL COLLAO","CONDURIRI",null,null,"05.CONDURIRI",null,"05.CONDURIRI"]
["201301","PUNO","MOHO","MOHO",null,null,"01.MOHO",null,"01.MOHO"]
["201302","PUNO","MOHO","CONIMA",null,null,"02.CONIMA",null,"02.CONIMA"]
["201303","PUNO","MOHO","TILALI",null,null,"03.TILALI",null,"03.TILALI"]
["201304","PUNO","MOHO","HUAYRAPATA",null,null,"04.HUAYRAPATA",null,"04.HUAYRAPATA"]
["210101","SAN MARTIN","MOYOBAMBA","MOYOBAMBA",null,null,"01.MOYOBAMBA",null,"01.MOYOBAMBA"]
["210102","SAN MARTIN","MOYOBAMBA","CALZADA",null,null,"02.CALZADA",null,"02.CALZADA"]
["210103","SAN MARTIN","MOYOBAMBA","HABANA",null,null,"03.HABANA",null,"03.HABANA"]
["210104","SAN MARTIN","MOYOBAMBA","JEPELACIO",null,null,"04.JEPELACIO",null,"04.JEPELACIO"]
["210105","SAN MARTIN","MOYOBAMBA","SORITOR",null,null,"05.SORITOR",null,"05.SORITOR"]
["210106","SAN MARTIN","MOYOBAMBA","YANTALO",null,null,"06.YANTALO",null,"06.YANTALO"]
["210201","SAN MARTIN","HUALLAGA","SAPOSOA",null,null,"01.SAPOSOA",null,"01.SAPOSOA"]
["210202","SAN MARTIN","HUALLAGA","PISCOYACU",null,null,"02.PISCOYACU",null,"02.PISCOYACU"]
["210203","SAN MARTIN","HUALLAGA","SACANCHE",null,null,"03.SACANCHE",null,"03.SACANCHE"]
["210204","SAN MARTIN","HUALLAGA","TINGO DE SAPOSOA",null,null,"04.TINGO DE SAPOSOA",null,"04.TINGO_DE_SAPOSOA"]
["210205","SAN MARTIN","HUALLAGA","ALTO SAPOSOA",null,null,"05.ALTO SAPOSOA",null,"05.ALTO_SAPOSOA"]
["210206","SAN MARTIN","HUALLAGA","EL ESLABON",null,null,"06.EL ESLABON",null,"06.EL_ESLABON"]
["210301","SAN MARTIN","LAMAS","LAMAS",null,null,"01.LAMAS",null,"01.LAMAS"]
["210303","SAN MARTIN","LAMAS","BARRANQUITA",null,null,"03.BARRANQUITA",null,"03.BARRANQUITA"]
["210304","SAN MARTIN","LAMAS","CAYNARACHI",null,null,"04.CAYNARACHI",null,"04.CAYNARACHI"]
["210305","SAN MARTIN","LAMAS","CUÑUMBUQUI",null,null,"05.CUÑUMBUQUI",null,"05.CUÑUMBUQUI"]
["210306","SAN MARTIN","LAMAS","PINTO RECODO",null,null,"06.PINTO RECODO",null,"06.PINTO_RECODO"]
["210307","SAN MARTIN","LAMAS","RUMISAPA",null,null,"07.RUMISAPA",null,"07.RUMISAPA"]
["210311","SAN MARTIN","LAMAS","SHANAO",null,null,"11.SHANAO",null,"11.SHANAO"]
["210313","SAN MARTIN","LAMAS","TABALOSOS",null,null,"13.TABALOSOS",null,"13.TABALOSOS"]
["210314","SAN MARTIN","LAMAS","ZAPATERO",null,null,"14.ZAPATERO",null,"14.ZAPATERO"]
["210315","SAN MARTIN","LAMAS","ALONSO DE ALVARADO",null,null,"15.ALONSO DE ALVARADO",null,"15.ALONSO_DE_ALVARADO"]
["210316","SAN MARTIN","LAMAS","SAN ROQUE DE CUMBAZA",null,null,"16.SAN ROQUE DE CUMBAZA",null,"16.SAN_ROQUE_DE_CUMBAZA"]
["210401","SAN MARTIN","MARISCAL CACERES","JUANJUI",null,null,"01.JUANJUI",null,"01.JUANJUI"]
["210402","SAN MARTIN","MARISCAL CACERES","CAMPANILLA",null,null,"02.CAMPANILLA",null,"02.CAMPANILLA"]
["210403","SAN MARTIN","MARISCAL CACERES","HUICUNGO",null,null,"03.HUICUNGO",null,"03.HUICUNGO"]
["210404","SAN MARTIN","MARISCAL CACERES","PACHIZA",null,null,"04.PACHIZA",null,"04.PACHIZA"]
["210405","SAN MARTIN","MARISCAL CACERES","PAJARILLO",null,null,"05.PAJARILLO",null,"05.PAJARILLO"]
["210501","SAN MARTIN","RIOJA","RIOJA",null,null,"01.RIOJA",null,"01.RIOJA"]
["210502","SAN MARTIN","RIOJA","POSIC",null,null,{"$f":"CONCATENATE(MID(A1731,5,2),\".\",D1731)","v":"02.POSIC"},null,"02.POSIC"]
["210503","SAN MARTIN","RIOJA","YORONGOS",null,null,"03.YORONGOS",null,"03.YORONGOS"]
["210504","SAN MARTIN","RIOJA","YURACYACU",null,null,"04.YURACYACU",null,"04.YURACYACU"]
["210505","SAN MARTIN","RIOJA","NUEVA CAJAMARCA",null,null,"05.NUEVA CAJAMARCA",null,"05.NUEVA_CAJAMARCA"]
["210506","SAN MARTIN","RIOJA","ELIAS SOPLIN VARGAS",null,null,"06.ELIAS SOPLIN VARGAS",null,"06.ELIAS_SOPLIN_VARGAS"]
["210507","SAN MARTIN","RIOJA","SAN FERNANDO",null,null,"07.SAN FERNANDO",null,"07.SAN_FERNANDO"]
["210508","SAN MARTIN","RIOJA","PARDO MIGUEL",null,null,"08.PARDO MIGUEL",null,"08.PARDO_MIGUEL"]
["210509","SAN MARTIN","RIOJA","AWAJUN",null,null,"09.AWAJUN",null,"09.AWAJUN"]
["210601","SAN MARTIN","SAN MARTIN","TARAPOTO",null,null,"01.TARAPOTO",null,"01.TARAPOTO"]
["210602","SAN MARTIN","SAN MARTIN","ALBERTO LEVEAU",null,null,"02.ALBERTO LEVEAU",null,"02.ALBERTO_LEVEAU"]
["210604","SAN MARTIN","SAN MARTIN","CACATACHI",null,null,"04.CACATACHI",null,"04.CACATACHI"]
["210606","SAN MARTIN","SAN MARTIN","CHAZUTA",null,null,"06.CHAZUTA",null,"06.CHAZUTA"]
["210607","SAN MARTIN","SAN MARTIN","CHIPURANA",null,null,"07.CHIPURANA",null,"07.CHIPURANA"]
["210608","SAN MARTIN","SAN MARTIN","EL PORVENIR",null,null,"08.EL PORVENIR",null,"08.EL_PORVENIR"]
["210609","SAN MARTIN","SAN MARTIN","HUIMBAYOC",null,null,"09.HUIMBAYOC",null,"09.HUIMBAYOC"]
["210610","SAN MARTIN","SAN MARTIN","JUAN GUERRA",null,null,"10.JUAN GUERRA",null,"10.JUAN_GUERRA"]
["210611","SAN MARTIN","SAN MARTIN","MORALES",null,null,"11.MORALES",null,"11.MORALES"]
["210612","SAN MARTIN","SAN MARTIN","PAPAPLAYA",null,null,"12.PAPAPLAYA",null,"12.PAPAPLAYA"]
["210616","SAN MARTIN","SAN MARTIN","SAN ANTONIO",null,null,"16.SAN ANTONIO",null,"16.SAN_ANTONIO"]
["210619","SAN MARTIN","SAN MARTIN","SAUCE",null,null,"19.SAUCE",null,"19.SAUCE"]
["210620","SAN MARTIN","SAN MARTIN","SHAPAJA",null,null,"20.SHAPAJA",null,"20.SHAPAJA"]
["210621","SAN MARTIN","SAN MARTIN","LA BANDA DE SHILCAYO",null,null,"21.LA BANDA DE SHILCAYO",null,"21.LA_BANDA_DE_SHILCAYO"]
["210701","SAN MARTIN","BELLAVISTA","BELLAVISTA",null,null,"01.BELLAVISTA",null,"01.BELLAVISTA"]
["210702","SAN MARTIN","BELLAVISTA","SAN RAFAEL",null,null,"02.SAN RAFAEL",null,"02.SAN_RAFAEL"]
["210703","SAN MARTIN","BELLAVISTA","SAN PABLO",null,null,"03.SAN PABLO",null,"03.SAN_PABLO"]
["210704","SAN MARTIN","BELLAVISTA","ALTO BIAVO",null,null,"04.ALTO BIAVO",null,"04.ALTO_BIAVO"]
["210705","SAN MARTIN","BELLAVISTA","HUALLAGA",null,null,"05.HUALLAGA",null,"05.HUALLAGA"]
["210706","SAN MARTIN","BELLAVISTA","BAJO BIAVO",null,null,"06.BAJO BIAVO",null,"06.BAJO_BIAVO"]
["210801","SAN MARTIN","TOCACHE","TOCACHE",null,null,"01.TOCACHE",null,"01.TOCACHE"]
["210802","SAN MARTIN","TOCACHE","NUEVO PROGRESO",null,null,"02.NUEVO PROGRESO",null,"02.NUEVO_PROGRESO"]
["210803","SAN MARTIN","TOCACHE","POLVORA",null,null,"03.POLVORA",null,"03.POLVORA"]
["210804","SAN MARTIN","TOCACHE","SHUNTE",null,null,"04.SHUNTE",null,"04.SHUNTE"]
["210805","SAN MARTIN","TOCACHE","UCHIZA",null,null,"05.UCHIZA",null,"05.UCHIZA"]
["210901","SAN MARTIN","PICOTA","PICOTA",null,null,"01.PICOTA",null,"01.PICOTA"]
["210902","SAN MARTIN","PICOTA","BUENOS AIRES",null,null,"02.BUENOS AIRES",null,"02.BUENOS_AIRES"]
["210903","SAN MARTIN","PICOTA","CASPIZAPA",null,null,"03.CASPIZAPA",null,"03.CASPIZAPA"]
["210904","SAN MARTIN","PICOTA","PILLUANA",null,null,"04.PILLUANA",null,"04.PILLUANA"]
["210905","SAN MARTIN","PICOTA","PUCACACA",null,null,"05.PUCACACA",null,"05.PUCACACA"]
["210906","SAN MARTIN","PICOTA","SAN CRISTOBAL",null,null,"06.SAN CRISTOBAL",null,"06.SAN_CRISTOBAL"]
["210907","SAN MARTIN","PICOTA","SAN HILARION",null,null,"07.SAN HILARION",null,"07.SAN_HILARION"]
["210908","SAN MARTIN","PICOTA","TINGO DE PONASA",null,null,"08.TINGO DE PONASA",null,"08.TINGO_DE_PONASA"]
["210909","SAN MARTIN","PICOTA","TRES UNIDOS",null,null,"09.TRES UNIDOS",null,"09.TRES_UNIDOS"]
["210910","SAN MARTIN","PICOTA","SHAMBOYACU",null,null,"10.SHAMBOYACU",null,"10.SHAMBOYACU"]
["211001","SAN MARTIN","EL DORADO","SAN JOSE DE SISA",null,null,"01.SAN JOSE DE SISA",null,"01.SAN_JOSE_DE_SISA"]
["211002","SAN MARTIN","EL DORADO","AGUA BLANCA",null,null,"02.AGUA BLANCA",null,"02.AGUA_BLANCA"]
["211003","SAN MARTIN","EL DORADO","SHATOJA",null,null,"03.SHATOJA",null,"03.SHATOJA"]
["211004","SAN MARTIN","EL DORADO","SAN MARTIN",null,null,"04.SAN MARTIN",null,"04.SAN_MARTIN"]
["211005","SAN MARTIN","EL DORADO","SANTA ROSA",null,null,"05.SANTA ROSA",null,"05.SANTA_ROSA"]
["220101","TACNA","TACNA","TACNA",null,null,"01.TACNA",null,"01.TACNA"]
["220102","TACNA","TACNA","CALANA",null,null,"02.CALANA",null,"02.CALANA"]
["220104","TACNA","TACNA","INCLAN",null,null,"04.INCLAN",null,"04.INCLAN"]
["220107","TACNA","TACNA","PACHIA",null,null,"07.PACHIA",null,"07.PACHIA"]
["220108","TACNA","TACNA","PALCA",null,null,"08.PALCA",null,"08.PALCA"]
["220109","TACNA","TACNA","POCOLLAY",null,null,"09.POCOLLAY",null,"09.POCOLLAY"]
["220110","TACNA","TACNA","SAMA",null,null,"10.SAMA",null,"10.SAMA"]
["220111","TACNA","TACNA","ALTO DE LA ALIANZA",null,null,"11.ALTO DE LA ALIANZA",null,"11.ALTO_DE_LA_ALIANZA"]
["220112","TACNA","TACNA","CIUDAD NUEVA",null,null,"12.CIUDAD NUEVA",null,"12.CIUDAD_NUEVA"]
["220113","TACNA","TACNA","CORONEL GREGORIO ALBARRACIN L.",null,null,"13.CORONEL GREGORIO ALBARRACIN L.",null,"13.CORONEL_GREGORIO_ALBARRACIN_L."]
["220201","TACNA","TARATA","TARATA",null,null,"01.TARATA",null,"01.TARATA"]
["220205","TACNA","TARATA","HEROES ALBARRACIN",null,null,"05.HEROES ALBARRACIN",null,"05.HEROES_ALBARRACIN"]
["220206","TACNA","TARATA","ESTIQUE",null,null,"06.ESTIQUE",null,"06.ESTIQUE"]
["220207","TACNA","TARATA","ESTIQUE PAMPA",null,null,"07.ESTIQUE PAMPA",null,"07.ESTIQUE_PAMPA"]
["220210","TACNA","TARATA","SITAJARA",null,null,"10.SITAJARA",null,"10.SITAJARA"]
["220211","TACNA","TARATA","SUSAPAYA",null,null,"11.SUSAPAYA",null,"11.SUSAPAYA"]
["220212","TACNA","TARATA","TARUCACHI",null,null,{"$f":"CONCATENATE(MID(A1795,5,2),\".\",D1795)","v":"12.TARUCACHI"},null,"12.TARUCACHI"]
["220213","TACNA","TARATA","TICACO",null,null,"13.TICACO",null,"13.TICACO"]
["220301","TACNA","JORGE BASADRE","LOCUMBA",null,null,"01.LOCUMBA",null,"01.LOCUMBA"]
["220302","TACNA","JORGE BASADRE","ITE",null,null,"02.ITE",null,"02.ITE"]
["220303","TACNA","JORGE BASADRE","ILABAYA",null,null,"03.ILABAYA",null,"03.ILABAYA"]
["220401","TACNA","CANDARAVE","CANDARAVE",null,null,"01.CANDARAVE",null,"01.CANDARAVE"]
["220402","TACNA","CANDARAVE","CAIRANI",null,null,"02.CAIRANI",null,"02.CAIRANI"]
["220403","TACNA","CANDARAVE","CURIBAYA",null,null,"03.CURIBAYA",null,"03.CURIBAYA"]
["220404","TACNA","CANDARAVE","HUANUARA",null,null,"04.HUANUARA",null,"04.HUANUARA"]
["220405","TACNA","CANDARAVE","QUILAHUANI",null,null,"05.QUILAHUANI",null,"05.QUILAHUANI"]
["220406","TACNA","CANDARAVE","CAMILACA",null,null,"06.CAMILACA",null,"06.CAMILACA"]
["230101","TUMBES","TUMBES","TUMBES",null,null,"01.TUMBES",null,"01.TUMBES"]
["230102","TUMBES","TUMBES","CORRALES",null,null,"02.CORRALES",null,"02.CORRALES"]
["230103","TUMBES","TUMBES","LA CRUZ",null,null,"03.LA CRUZ",null,"03.LA_CRUZ"]
["230104","TUMBES","TUMBES","PAMPAS DE HOSPITAL",null,null,"04.PAMPAS DE HOSPITAL",null,"04.PAMPAS_DE_HOSPITAL"]
["230105","TUMBES","TUMBES","SAN JACINTO",null,null,"05.SAN JACINTO",null,"05.SAN_JACINTO"]
["230106","TUMBES","TUMBES","SAN JUAN DE LA VIRGEN",null,null,"06.SAN JUAN DE LA VIRGEN",null,"06.SAN_JUAN_DE_LA_VIRGEN"]
["230201","TUMBES","CONTRALMIRANTE VILLAR","ZORRITOS",null,null,"01.ZORRITOS",null,"01.ZORRITOS"]
["230202","TUMBES","CONTRALMIRANTE VILLAR","CASITAS",null,null,"02.CASITAS",null,"02.CASITAS"]
["230203","TUMBES","CONTRALMIRANTE VILLAR","CANOAS DE PUNTA SAL",null,null,"03.CANOAS DE PUNTA SAL",null,"03.CANOAS_DE_PUNTA_SAL"]
["230301","TUMBES","ZARUMILLA","ZARUMILLA",null,null,"01.ZARUMILLA",null,"01.ZARUMILLA"]
["230302","TUMBES","ZARUMILLA","MATAPALO",null,null,"02.MATAPALO",null,"02.MATAPALO"]
["230303","TUMBES","ZARUMILLA","PAPAYAL",null,null,"03.PAPAYAL",null,"03.PAPAYAL"]
["230304","TUMBES","ZARUMILLA","AGUAS VERDES",null,null,"04.AGUAS VERDES",null,"04.AGUAS_VERDES"]
["240101","CALLAO","CALLAO","CALLAO",null,null,"01.CALLAO",null,"01.CALLAO"]
["240102","CALLAO","CALLAO","BELLAVISTA",null,null,"02.BELLAVISTA",null,"02.BELLAVISTA"]
["240103","CALLAO","CALLAO","LA PUNTA",null,null,"03.LA PUNTA",null,"03.LA_PUNTA"]
["240104","CALLAO","CALLAO","CARMEN DE LA LEGUA-REYNOSO",null,null,"04.CARMEN DE LA LEGUA-REYNOSO",null,"04.CARMEN_DE_LA_LEGUA-REYNOSO"]
["240105","CALLAO","CALLAO","LA PERLA",null,null,"05.LA PERLA",null,"05.LA_PERLA"]
["240106","CALLAO","CALLAO","VENTANILLA",null,null,"06.VENTANILLA",null,"06.VENTANILLA"]
["250101","UCAYALI","CORONEL PORTILLO","CALLERIA",null,null,"01.CALLERIA",null,"01.CALLERIA"]
["250102","UCAYALI","CORONEL PORTILLO","YARINACOCHA",null,null,"02.YARINACOCHA",null,"02.YARINACOCHA"]
["250103","UCAYALI","CORONEL PORTILLO","MASISEA",null,null,"03.MASISEA",null,"03.MASISEA"]
["250104","UCAYALI","CORONEL PORTILLO","CAMPOVERDE",null,null,"04.CAMPOVERDE",null,"04.CAMPOVERDE"]
["250105","UCAYALI","CORONEL PORTILLO","IPARIA",null,null,"05.IPARIA",null,"05.IPARIA"]
["250106","UCAYALI","CORONEL PORTILLO","NUEVA REQUENA",null,null,"06.NUEVA REQUENA",null,"06.NUEVA_REQUENA"]
["250107","UCAYALI","CORONEL PORTILLO","MANANTAY",null,null,"07.MANANTAY",null,"07.MANANTAY"]
["250201","UCAYALI","PADRE ABAD","PADRE ABAD",null,null,"01.PADRE ABAD",null,"01.PADRE_ABAD"]
["250202","UCAYALI","PADRE ABAD","IRAZOLA",null,null,"02.IRAZOLA",null,"02.IRAZOLA"]
["250203","UCAYALI","PADRE ABAD","CURIMANA",null,null,"03.CURIMANA",null,"03.CURIMANA"]
["250301","UCAYALI","ATALAYA","RAIMONDI",null,null,"01.RAIMONDI",null,"01.RAIMONDI"]
["250302","UCAYALI","ATALAYA","TAHUANIA",null,null,"02.TAHUANIA",null,"02.TAHUANIA"]
["250303","UCAYALI","ATALAYA","YURUA",null,null,"03.YURUA",null,"03.YURUA"]
["250304","UCAYALI","ATALAYA","SEPAHUA",null,null,"04.SEPAHUA",null,"04.SEPAHUA"]
["250401","UCAYALI","PURUS","PURUS",null,null,"01.PURUS",null,"01.PURUS"]